{"text_format":"1","workbook":"xlsx","n_sheets":21,"sheets":["Monthly headcount","POSITION CATALOG","PROGRESSIVE POSITIONS","ORGCHAPPLIANCEASSEMBLY","ORGCHAPPLIANCEMETALMECHANIC","ORGCHAPPLIANCEPLASTICINJECTION","ORGCHAPPLIANCEPLASTICEXTRUSION","ORGCHAEROSPACESHEETMETALASSEMBL","ORGCHAEROSPACEWIREHARNESSES","ORGCHAEROSPACEMACHINING","ORGCHAUTOMOTIVEMETALMECHANIC","ORGCHAUTOMOTIVEPLASTICINJECTION","ORGCHAUTOMOTIVEWIREHARNESSES","ORGCHELECTRONICASSEMBLY","ORGCHELECTRONICREPAIR","ORGCHAUTOMOTIVEASSEMBLY","Shelter Services Questionnaire","PuestosIndustriaProceso_Catalog","PuestosIndustriaProceso","Listas","Currencies"],"not_rendered":{"charts":0,"images":9,"macros":1,"external_links":0,"defined_names":393,"comments":1,"pivot_tables":0},"unopened":[],"bounds":{"document_bytes":16777216,"sheet_cells":100000,"rows_first":2000,"rows_last":500,"rows_between":2000,"halvings":0,"cell_chars":16384,"cell_head_chars":4096},"cells_cut":0,"cells_raw":0,"read":"whole","date_system":"1900"}

{"sheet":"Monthly headcount","index":0,"n_rows":68,"n_cols":16,"rows_kept":68,"cut":false,"hidden":true,"merged":[[3,3,3,6],[3,7,4,7]]}
[]
["Headcount Calculation"]
[null,null,null,null,null,null,null,null,null,null,null,{"$f":"COLUMN()-COLUMN($B$3)+1","v":11},{"$f":"COLUMN()-COLUMN($B$3)+1","v":12},13,14,15]
[null,null,null,"DRIVERS SUMA",null,null,null,"QTY\nSUMA",null,null,null,{"$f":"'Shelter Services Questionnaire'!E73:I73","v":1},2,3,4,5]
["CLASS","#","POSITION","D1","D2","D3","D4",null,"Tope","Start","Level"]
["Direct positions"]
["DIR",1,{"$f":"'Shelter Services Questionnaire'!B74:C77","v":0},null,null,null,null,null,null,null,{"$f":"'Shelter Services Questionnaire'!D74:D77","v":0},{"$f":"'Shelter Services Questionnaire'!E74:I77","v":0},0,0,0,0]
["DIR",2,0,null,null,null,null,null,null,null,0,0,0,0,0,0]
["DIR",3,0,null,null,null,null,null,null,null,0,0,0,0,0,0]
["DIR",4,0,null,null,null,null,null,null,null,0,0,0,0,0,0]
["Indirect positions"]
["IND",101,{"$f":"'Shelter Services Questionnaire'!B88:C116","v":0},1,null,null,null,10,null,null,{"$f":"'Shelter Services Questionnaire'!D88:D116","v":0},{"$f":"IFERROR(IF(Cantidad>0,IF(Cantidad>0,MIN(IF($I12>0,$I12,10000000000),IF(Start>0,IF((IFERROR(VLOOKUP(Driver1,DatosLabor,ColumnaMes,FALSE),0)+IFERROR(VLOOKUP(Driver2,DatosLabor,ColumnaMes,FALSE),0)+IFERROR(VLOOKUP(Driver3,DatosLabor,ColumnaMes,FALSE),0)+IFERROR(VLOOKUP(Driver4,DatosLabor,ColumnaMes,FALSE),0))>=Start,ROUNDUP((IFERROR(VLOOKUP(Driver1,DatosLabor,ColumnaMes,FALSE),0)+IFERROR(VLOOKUP(Driver2,DatosLabor,ColumnaMes,FALSE),0)+IFERROR(VLOOKUP(Driver3,DatosLabor,ColumnaMes,FALSE),0)+IFERROR(VLOOKUP(Driver4,DatosLabor,ColumnaMes,FALSE),0))/Cantidad,0),0),INT((IFERROR(VLOOKUP(Driver1,DatosLabor,ColumnaMes,FALSE),0)+IFERROR(VLOOKUP(Driver2,DatosLabor,ColumnaMes,FALSE),0)+IFERROR(VLOOKUP(Driver3,DatosLabor,ColumnaMes,FALSE),0)+IFERROR(VLOOKUP(Driver4,DatosLabor,ColumnaMes,FALSE),0))/Cantidad))),0),0),0)","v":0},0,0,0,0]
["IND",102,0,1,null,null,null,1,1,1,0,0,0,0,0,0]
["IND",103,0,1,null,null,null,1,1,1,0,0,0,0,0,0]
["IND",104,0,1,null,null,null,15,null,null,0,0,0,0,0,0]
["IND",105,0,1,null,null,null,20,null,null,0,0,0,0,0,0]
["IND",106,0,1,null,null,null,50,null,null,0,0,0,0,0,0]
["IND",107,0,1,null,null,null,100,null,null,0,0,0,0,0,0]
["IND",108,0,1,null,null,null,20,null,null,0,0,0,0,0,0]
["IND",109,0,1,null,null,null,200,null,null,0,0,0,0,0,0]
["IND",110,0,null,null,null,null,null,null,null,0,0,0,0,0,0]
["IND",111,0,null,null,null,null,null,null,null,0,{"$f":"IFERROR(IF(Cantidad>0,IF(Cantidad>0,MIN(IF($I22>0,$I22,10000000000),IF(Start>0,IF((IFERROR(VLOOKUP(Driver1,DatosLabor,ColumnaMes,FALSE),0)+IFERROR(VLOOKUP(Driver2,DatosLabor,ColumnaMes,FALSE),0)+IFERROR(VLOOKUP(Driver3,DatosLabor,ColumnaMes,FALSE),0)+IFERROR(VLOOKUP(Driver4,DatosLabor,ColumnaMes,FALSE),0))>=Start,ROUNDUP((IFERROR(VLOOKUP(Driver1,DatosLabor,ColumnaMes,FALSE),0)+IFERROR(VLOOKUP(Driver2,DatosLabor,ColumnaMes,FALSE),0)+IFERROR(VLOOKUP(Driver3,DatosLabor,ColumnaMes,FALSE),0)+IFERROR(VLOOKUP(Driver4,DatosLabor,ColumnaMes,FALSE),0))/Cantidad,0),0),INT((IFERROR(VLOOKUP(Driver1,DatosLabor,ColumnaMes,FALSE),0)+IFERROR(VLOOKUP(Driver2,DatosLabor,ColumnaMes,FALSE),0)+IFERROR(VLOOKUP(Driver3,DatosLabor,ColumnaMes,FALSE),0)+IFERROR(VLOOKUP(Driver4,DatosLabor,ColumnaMes,FALSE),0))/Cantidad))),0),0),0)","v":0},0,0,0,0]
["IND",112,0,null,null,null,null,null,null,null,0,0,0,0,0,0]
["IND",113,0,null,null,null,null,null,null,null,0,0,0,0,0,0]
["IND",114,0,null,null,null,null,null,null,null,0,0,0,0,0,0]
["IND",115,0,null,null,null,null,null,null,null,0,0,0,0,0,0]
["IND",116,0,null,null,null,null,null,null,null,0,0,0,0,0,0]
["IND",117,0,null,null,null,null,null,null,null,0,0,0,0,0,0]
["IND",118,0,null,null,null,null,null,null,null,0,0,0,0,0,0]
["IND",119,0,null,null,null,null,null,null,null,0,0,0,0,0,0]
["IND",120,0,null,null,null,null,null,null,null,0,0,0,0,0,0]
["IND",121,0,null,null,null,null,null,null,null,0,{"$f":"IFERROR(IF(Cantidad>0,IF(Cantidad>0,MIN(IF($I32>0,$I32,10000000000),IF(Start>0,IF((IFERROR(VLOOKUP(Driver1,DatosLabor,ColumnaMes,FALSE),0)+IFERROR(VLOOKUP(Driver2,DatosLabor,ColumnaMes,FALSE),0)+IFERROR(VLOOKUP(Driver3,DatosLabor,ColumnaMes,FALSE),0)+IFERROR(VLOOKUP(Driver4,DatosLabor,ColumnaMes,FALSE),0))>=Start,ROUNDUP((IFERROR(VLOOKUP(Driver1,DatosLabor,ColumnaMes,FALSE),0)+IFERROR(VLOOKUP(Driver2,DatosLabor,ColumnaMes,FALSE),0)+IFERROR(VLOOKUP(Driver3,DatosLabor,ColumnaMes,FALSE),0)+IFERROR(VLOOKUP(Driver4,DatosLabor,ColumnaMes,FALSE),0))/Cantidad,0),0),INT((IFERROR(VLOOKUP(Driver1,DatosLabor,ColumnaMes,FALSE),0)+IFERROR(VLOOKUP(Driver2,DatosLabor,ColumnaMes,FALSE),0)+IFERROR(VLOOKUP(Driver3,DatosLabor,ColumnaMes,FALSE),0)+IFERROR(VLOOKUP(Driver4,DatosLabor,ColumnaMes,FALSE),0))/Cantidad))),0),0),0)","v":0},0,0,0,0]
["IND",122,0,null,null,null,null,null,null,null,0,0,0,0,0,0]
["IND",123,0,null,null,null,null,null,null,null,0,0,0,0,0,0]
["IND",124,0,null,null,null,null,null,null,null,0,0,0,0,0,0]
["IND",125,0,null,null,null,null,null,null,null,0,0,0,0,0,0]
["IND",126,0,null,null,null,null,null,null,null,0,0,0,0,0,0]
["IND",127,0,null,null,null,null,null,null,null,0,0,0,0,0,0]
["IND",128,0,null,null,null,null,null,null,null,0,0,0,0,0,0]
["IND",129,0,null,null,null,null,null,null,null,0,0,0,0,0,0]
["IND",130,{"$error":"#N/A"},null,null,null,null,null,null,null,{"$error":"#N/A"},0,0,0,0,0]
[]
["Administrative positions"]
["ADM",201,{"$f":"'Shelter Services Questionnaire'!B120:B142","v":0},1,null,null,null,1,1,1,{"$f":"'Shelter Services Questionnaire'!D120:D142","v":0},{"$f":"IFERROR(IF(Cantidad>0,IF(Cantidad>0,MIN(IF($I44>0,$I44,10000000000),IF(Start>0,IF((IFERROR(VLOOKUP(Driver1,DatosLabor,ColumnaMes,FALSE),0)+IFERROR(VLOOKUP(Driver2,DatosLabor,ColumnaMes,FALSE),0)+IFERROR(VLOOKUP(Driver3,DatosLabor,ColumnaMes,FALSE),0)+IFERROR(VLOOKUP(Driver4,DatosLabor,ColumnaMes,FALSE),0))>=Start,ROUNDUP((IFERROR(VLOOKUP(Driver1,DatosLabor,ColumnaMes,FALSE),0)+IFERROR(VLOOKUP(Driver2,DatosLabor,ColumnaMes,FALSE),0)+IFERROR(VLOOKUP(Driver3,DatosLabor,ColumnaMes,FALSE),0)+IFERROR(VLOOKUP(Driver4,DatosLabor,ColumnaMes,FALSE),0))/Cantidad,0),0),INT((IFERROR(VLOOKUP(Driver1,DatosLabor,ColumnaMes,FALSE),0)+IFERROR(VLOOKUP(Driver2,DatosLabor,ColumnaMes,FALSE),0)+IFERROR(VLOOKUP(Driver3,DatosLabor,ColumnaMes,FALSE),0)+IFERROR(VLOOKUP(Driver4,DatosLabor,ColumnaMes,FALSE),0))/Cantidad))),0),0),0)","v":0},0,0,0,0]
["ADM",202,0,1,null,null,null,1,1,1,0,0,0,0,0,0]
["ADM",203,0,1,null,null,null,1,1,1,0,0,0,0,0,0]
["ADM",204,0,1,null,null,null,20,1,null,0,0,0,0,0,0]
["ADM",205,0,1,null,null,null,50,1,null,0,0,0,0,0,0]
["ADM",206,0,null,null,null,null,null,null,null,0,0,0,0,0,0]
["ADM",207,0,null,null,null,null,null,null,null,0,0,0,0,0,0]
["ADM",208,0,null,null,null,null,null,null,null,0,0,0,0,0,0]
["ADM",209,0,null,null,null,null,null,null,null,0,0,0,0,0,0]
["ADM",210,0,null,null,null,null,null,null,null,0,0,0,0,0,0]
["ADM",211,0,null,null,null,null,null,null,null,0,{"$f":"IFERROR(IF(Cantidad>0,IF(Cantidad>0,MIN(IF($I54>0,$I54,10000000000),IF(Start>0,IF((IFERROR(VLOOKUP(Driver1,DatosLabor,ColumnaMes,FALSE),0)+IFERROR(VLOOKUP(Driver2,DatosLabor,ColumnaMes,FALSE),0)+IFERROR(VLOOKUP(Driver3,DatosLabor,ColumnaMes,FALSE),0)+IFERROR(VLOOKUP(Driver4,DatosLabor,ColumnaMes,FALSE),0))>=Start,ROUNDUP((IFERROR(VLOOKUP(Driver1,DatosLabor,ColumnaMes,FALSE),0)+IFERROR(VLOOKUP(Driver2,DatosLabor,ColumnaMes,FALSE),0)+IFERROR(VLOOKUP(Driver3,DatosLabor,ColumnaMes,FALSE),0)+IFERROR(VLOOKUP(Driver4,DatosLabor,ColumnaMes,FALSE),0))/Cantidad,0),0),INT((IFERROR(VLOOKUP(Driver1,DatosLabor,ColumnaMes,FALSE),0)+IFERROR(VLOOKUP(Driver2,DatosLabor,ColumnaMes,FALSE),0)+IFERROR(VLOOKUP(Driver3,DatosLabor,ColumnaMes,FALSE),0)+IFERROR(VLOOKUP(Driver4,DatosLabor,ColumnaMes,FALSE),0))/Cantidad))),0),0),0)","v":0},0,0,0,0]
["ADM",212,0,null,null,null,null,null,null,null,0,0,0,0,0,0]
["ADM",213,0,null,null,null,null,null,null,null,0,0,0,0,0,0]
["ADM",214,0,null,null,null,null,null,null,null,0,0,0,0,0,0]
["ADM",215,0,null,null,null,null,null,null,null,0,0,0,0,0,0]
["ADM",220,0,null,null,null,null,null,null,null,0,0,0,0,0,0]
["ADM",221,0,null,null,null,null,null,null,null,0,0,0,0,0,0]
["ADM",222,0,null,null,null,null,null,null,null,0,0,0,0,0,0]
["ADM",223,0,null,null,null,null,null,null,null,0,0,0,0,0,0]
["ADM",224,0,null,null,null,null,null,null,null,0,0,0,0,0,0]
["ADM",225,0,null,null,null,null,null,null,null,0,0,0,0,0,0]
["ADM",226,0,null,null,null,null,null,null,null,0,0,0,0,0,0]
["ADM",227,0,null,null,null,null,null,null,null,0,0,0,0,0,0]
["ADM",228,{"$error":"#N/A"},null,null,null,null,null,null,null,{"$error":"#N/A"},0,0,0,0,0]
["ADM",229,{"$error":"#N/A"},null,null,null,null,null,null,null,{"$error":"#N/A"},0,0,0,0,0]

{"sheet":"POSITION CATALOG","index":1,"n_rows":257,"n_cols":31,"rows_kept":257,"cut":false,"hidden":true,"merged":[]}
[]
[null,null,"xx","xx"]
["Position Number","SOC Number","Category","Payment","Area","Group","Position","Job Responsibilities","Competencies","CODIGO INDEX '15","CODIGO JUAREZ '15","CODIGO MERCER","CODIGO MERCER","CODIGO MERCER","CODIGO MERCER","CODIGO MERCER","CODIGO MERCER","CODIGO MERCER","CODIGO MERCER","Changing Level Position","Starting month","Progression Position","Competencies description",null,null,"Intermex",null,"Q1","MED","Q3","CODIGO JUAREZ '15"]
[1,"11-1021","ADM","SAL","Management","Manufacturing","Plant Manager","* Oversee activities directly related to making products or providing services. * Direct and coordinate activities of businesses or departments concerned with the production, pricing, sales, or distribution of products. * Review financial statements, sales and activity reports, and other performance data to measure productivity and goal achievement and to determine areas needing cost reduction and program improvement. * Manage staff, preparing work schedules and assigning specific duties. * Direct and coordinate organization's financial and budget activities to fund operations, maximize investments, and increase efficiency. * Establish and implement departmental policies, goals, objectives, and procedures, conferring with board members, organization officials, and staff members as necessary.","100-2-007/100-2-014/100-2-016/100-3-005,200-1-001,300-16,300-20,300-11,400-9,400-31,400-19,400-14,500-7,500-13,600,2,600-1,600-4,600-8","10.10.02","I.2","100.100.113","100.100.113",null,"100.100.113",null,"100.100.113","100.100.113",null,null,null,{"$f":"IF(T4<>\"\",VLOOKUP(T4,ProgressivePositions,6,FALSE),\"\")","v":""},"100 - Education\n[100-2-007]Industrial Engineer or [100-2-014]Industrial and Systems Engineer or [100-2-016]Industrial and Administrator Engineer or [100-3-005]Business Administration\n200 - Language\n[200-1-001]Advanced English, [2]\n300 - Knowledge\n[300-16]Production and Processing, [300-20]Quality Control, [300-11]Engineering and Technology\n400 - Experience\n[400-9]Minimum 9 years experience in similar position, [400-31]Team Work, [400-19]New Projects Development and Implementation, [400-14]Lean Manufacturing\n500 - Skills\n[500-7]Judgement and Decision Making, [500-13]Change Adaptation\n600 - Work Values\n[600], [600-1]Strong Work Ethic, [600-4]Honesty and Integrity, [600-8]Loyalty",null,null,3055.9716249999997,3055.9716249999997,{"$f":"87926/30","v":2930.8666666666668},{"$f":"98867/30","v":3295.5666666666666},{"$f":"110495/30","v":3683.1666666666665},"I.2"]
[1,"11-1021","ADM","SAL","Management","Manufacturing","Operations Manager","* Oversee activities directly related to making products or providing services. * Direct and coordinate activities of businesses or departments concerned with the production, pricing, sales, or distribution of products. * Review financial statements, sales and activity reports, and other performance data to measure productivity and goal achievement and to determine areas needing cost reduction and program improvement. * Manage staff, preparing work schedules and assigning specific duties. * Direct and coordinate organization's financial and budget activities to fund operations, maximize investments, and increase efficiency. * Establish and implement departmental policies, goals, objectives, and procedures, conferring with board members, organization officials, and staff members as necessary.","100-2-007/100-2-014/100-2-016/100-3-005,200-1-001,300-16,300-20,300-11,400-9,400-31,400-19,400-14,500-7,500-13,600-2,600-4,600-8","10.10.02","I.2","100.100.114","100.100.114",null,"100.100.113",null,"100.100.113","100.100.114",null,null,null,"","100 - Education\n[100-2-007]Industrial Engineer or [100-2-014]Industrial and Systems Engineer or [100-2-016]Industrial and Administrator Engineer or [100-3-005]Business Administration\n200 - Language\n[200-1-001]Advanced English\n300 - Knowledge\n[300-16]Production and Processing, [300-20]Quality Control, [300-11]Engineering and Technology\n400 - Experience\n[400-9]Minimum 9 years experience in similar position, [400-31]Team Work, [400-19]New Projects Development and Implementation, [400-14]Lean Manufacturing\n500 - Skills\n[500-7]Judgement and Decision Making, [500-13]Change Adaptation\n600 - Work Values\n[600-2]Dependability and Responsability, [600-4]Honesty and Integrity, [600-8]Loyalty",null,null,3055.9716249999997,3055.9716249999997,{"$f":"87926/30","v":2930.8666666666668},{"$f":"98867/30","v":3295.5666666666666},{"$f":"110495/30","v":3683.1666666666665},"I.2"]
[1,"11-1021","ADM","SAL","Management","Manufacturing","General Manager","* Oversee activities directly related to making products or providing services. * Direct and coordinate activities of businesses or departments concerned with the production, pricing, sales, or distribution of products. * Review financial statements, sales and activity reports, and other performance data to measure productivity and goal achievement and to determine areas needing cost reduction and program improvement. * Manage staff, preparing work schedules and assigning specific duties. * Direct and coordinate organization's financial and budget activities to fund operations, maximize investments, and increase efficiency. * Establish and implement departmental policies, goals, objectives, and procedures, conferring with board members, organization officials, and staff members as necessary.","100-2-007/100-2-014/100-2-016/100-3-005,200-1-001,300-16,300-20,300-11,400-5,400-31,400-19,400-14,500-7,500-13,600,2,600-4","10.10.02","I.2","100.100.115","100.100.115",null,"100.100.113",null,"100.100.113","100.100.115",null,null,null,"","100 - Education\n[100-2-007]Industrial Engineer or [100-2-014]Industrial and Systems Engineer or [100-2-016]Industrial and Administrator Engineer or [100-3-005]Business Administration\n200 - Language\n[200-1-001]Advanced English, [2]\n300 - Knowledge\n[300-16]Production and Processing, [300-20]Quality Control, [300-11]Engineering and Technology\n400 - Experience\n[400-5]Minimum 5 years experience in similar position, [400-31]Team Work, [400-19]New Projects Development and Implementation, [400-14]Lean Manufacturing\n500 - Skills\n[500-7]Judgement and Decision Making, [500-13]Change Adaptation\n600 - Work Values\n[600], [600-4]Honesty and Integrity",null,null,3055.9716249999997,3055.9716249999997,{"$f":"87926/30","v":2930.8666666666668},{"$f":"98867/30","v":3295.5666666666666},{"$f":"110495/30","v":3683.1666666666665},"I.2"]
[2,"11-3051","ADM","SAL","Management","Production","Production Manager","* Review processing schedules or production orders to make decisions concerning inventory requirements, staffing requirements, work procedures, or duty assignments, considering budgetary limitations and time constraints. * Direct or coordinate production, processing, distribution, or marketing activities of industrial organizations.\n* Develop or implement production tracking or quality control systems, analyzing production, quality control, maintenance, or other operational reports, to detect production problems. * Review operations and confer with technical or administrative staff to resolve production or processing problems. * Hire, train, evaluate, or discharge staff or resolve personnel grievances. * Prepare and maintain production reports or personnel records.\n* Set and monitor product standards, examining samples of raw products or directing testing during processing, to ensure finished products are of prescribed quality.","100-2-007/100-2-014,200-1-001,300-16,300-20,300-11,400-5,400-76,400-31,400-19,400-14,500-7,500-13,500-24,600-4,600-6","10.10.05","IV.29","700.224.720","700.224.720","700.224.720","700.224.720 ","700.224.720 ","700.224.720 ","700.224.720 ",null,null,null,"","100 - Education\n[100-2-007]Industrial Engineer or [100-2-014]Industrial and Systems Engineer\n200 - Language\n[200-1-001]Advanced English\n300 - Knowledge\n[300-16]Production and Processing, [300-20]Quality Control, [300-11]Engineering and Technology\n400 - Experience\n[400-5]Minimum 5 years experience in similar position, [400-76]Social Events Logistic, [400-31]Team Work, [400-19]New Projects Development and Implementation, [400-14]Lean Manufacturing\n500 - Skills\n[500-7]Judgement and Decision Making, [500-13]Change Adaptation, [500-24]Analytical\n600 - Work Values\n[600-4]Honesty and Integrity, [600-6]Self-Motivated",null,null,1776.9289999999999,1776.9289999999999,{"$f":"47606/30","v":1586.8666666666666},{"$f":"51071/30","v":1702.3666666666666},{"$f":"54535/30","v":1817.8333333333333},"IV.29"]
[3,"51-1011","IND","SAL","Manufacturing","Production","Production General Supervisor","* Maintains staff by recruiting, selecting, orienting, and training employees; developing personal growth opportunities. * Maintains work flow by monitoring steps of the process; setting processing variables; observing control points and equipment; monitoring personnel and resources; studying methods; implementing cost reductions; developing reporting procedures and systems; facilitating corrections to malfunctions within process control points; initiating and fostering a spirit of cooperation within and between departments. * Completes production plan by scheduling and assigning personnel; accomplishing work results; establishing priorities; monitoring progress; revising schedules; resolving problems; reporting results of the processing flow on shift production summaries. * Maintains quality service by establishing and enforcing organization standards.","100-2-007/100-2-012/100-2-014/100-2-016,200-1-001,300-16,300-23,400-2,400-13,400-31,400-21,400-26,500-7,500-13,500-24,500-8,600-4,600-6","Mercer","II.81","600.724.242","600.724.242","600.724.242","600.724.242","600.724.242","600.724.242","600.724.242",null,null,null,"","100 - Education\n[100-2-007]Industrial Engineer or [100-2-012]Electronics Engineer or [100-2-014]Industrial and Systems Engineer or [100-2-016]Industrial and Administrator Engineer\n200 - Language\n[200-1-001]Advanced English\n300 - Knowledge\n[300-16]Production and Processing, [300-23]Quality Systems / TS / ISO\n400 - Experience\n[400-2]Minimum 2 years experience in similar position, [400-13]HR Management, [400-31]Team Work, [400-21]Quality Audits, [400-26]Production Equipment / Machinery\n500 - Skills\n[500-7]Judgement and Decision Making, [500-13]Change Adaptation, [500-24]Analytical, [500-8]Communication and Oral Expression \n600 - Work Values\n[600-4]Honesty and Integrity, [600-6]Self-Motivated",null,null,757.95017222222225,757.95017222222225,{"$f":"23526/30","v":784.2},{"$f":"25536/30","v":851.2},{"$f":"27668/30","v":922.26666666666665},"II.81"]
[3,"51-1011","IND","SAL","Manufacturing","Production","Production Supervisor ","* Inspects products to verify conformance to specifications and directs setup and adjustments of machines. * Studies production schedules and estimates worker hour requirements for completion of job assignment. * Interprets company policies to workers and enforces safety regulations. * Interprets specifications, prints, and job orders to workers, and assigns duties. * Establishes or adjusts work procedures to meet production schedules.","100-2-007/100-2-012/100-2-014/100-2-016,200-1-001,300-16,300-20,300-29,300-36,400-2,400-13,400-31,400-19,400-14,500-7,500-13,500-24,500-8,600-4,600-6","Mercer","II.81","600.724.242","600.724.242","600.724.242","600.724.242","600.724.242","600.724.242","600.724.242",null,null,null,null,"100 - Education\n[100-2-007]Industrial Engineer or [100-2-012]Electronics Engineer or [100-2-014]Industrial and Systems Engineer or [100-2-016]Industrial and Administrator Engineer\n200 - Language\n[200-1-001]Advanced English\n300 - Knowledge\n[300-16]Production and Processing, [300-20]Quality Control, [300-29]5's, [300-36]Production Control\n400 - Experience\n[400-2]Minimum 2 years experience in similar position, [400-13]HR Management, [400-31]Team Work, [400-19]New Projects Development and Implementation, [400-14]Lean Manufacturing\n500 - Skills\n[500-7]Judgement and Decision Making, [500-13]Change Adaptation, [500-24]Analytical, [500-8]Communication and Oral Expression \n600 - Work Values\n[600-4]Honesty and Integrity, [600-6]Self-Motivated",null,null,757.95017222222225,757.95017222222225,{"$f":"23526/30","v":784.2},{"$f":"25536/30","v":851.2},{"$f":"27668/30","v":922.26666666666665},"II.81"]
[4,"43-5061","IND","SAL","Manufacturing","Production","Production Clerk","* Coordinate and expedite the flow of work and materials within or between departments of an establishment according to production schedule. * Duties include reviewing and distributing production, work, and shipment schedules; conferring with department supervisors to determine progress of work and completion dates; and compiling reports on progress of work, inventory levels, costs, and production problems. \n","100-4-008/100-5,200-1-002,400-1,400-15,500-14,600-2,600-4,600-5","10.10.10","II.93B","600.725.360","600.725.360","600.725.360","600.725.360","600.725.360","600.725.360","600.725.360",null,null,null,"","100 - Education\n[100-4-008]Administration or [100-5]High School\n200 - Language\n[200-1-002]Intermediate English\n400 - Experience\n[400-1]Minimum 1 year experience in similar position, [400-15]Management of Computer Programs \n500 - Skills\n[500-14]Proactive\n600 - Work Values\n[600-2]Dependability and Responsability, [600-4]Honesty and Integrity, [600-5]Punctuality",null,null,237.16666666666666,237.16666666666666,{"$f":"6224/30","v":207.46666666666667},{"$f":"7115/30","v":237.16666666666666},{"$f":"8330/30","v":277.66666666666669},"II.93B"]
[5,"17-3029.09","IND","HOU","Manufacturing","Engineering","Production Technician","* Test products or subassemblies for functionality or quality. * Troubleshoot problems with equipment, devices, or products. * Collect hazardous or non-hazardous waste in correctly labeled barrels or other containers and transfer them to collection areas. * Build product subassemblies or final assemblies. * Monitor and adjust production processes or equipment for quality and productivity. * Prepare and assemble materials.","100-4-005/100-4-003/100-5,200-1-002,400-1,400-15,500-8,500-14,600-2,600-4","10.10.11","II.96B","600.724.421","600.724.421","600.724.421","600.724.421","600.724.421","600.724.421","600.724.421",null,null,null,{"$f":"IF(T11<>\"\",VLOOKUP(T11,ProgressivePositions,6,FALSE),\"\")","v":""},"100 - Education\n[100-4-005]Maintenance or [100-4-003]Computer Sciences or [100-5]High School\n200 - Language\n[200-1-002]Intermediate English\n400 - Experience\n[400-1]Minimum 1 year experience in similar position, [400-15]Management of Computer Programs \n500 - Skills\n[500-8]Communication and Oral Expression , [500-14]Proactive\n600 - Work Values\n[600-2]Dependability and Responsability, [600-4]Honesty and Integrity",null,null,220,220,{"$f":"5518/30","v":183.93333333333334},{"$f":"6600/30","v":220},{"$f":"7965/30","v":265.5},"II.96B"]
[6,"43-5061","IND","SAL","Manufacturing","Production","Material Coordinator ","* Coordinate and expedite the flow of work and materials within or between departments of an establishment according to production schedule. * Duties include reviewing and distributing production, work, and shipment schedules; conferring with department supervisors to determine progress of work and completion dates; and compiling reports on progress of work, inventory levels, costs, and production problems. \n","100-4-008/100-5,200-1-002,400-1,400-15,400-57,400-47,500-14,600-2,600-4,600-5","20.10.07","IV.6","610.592.360","610.592.360","610.592.360","610.592.360","610.592.360","610.592.360","610.592.360",null,null,null,"","100 - Education\n[100-4-008]Administration or [100-5]High School\n200 - Language\n[200-1-002]Intermediate English\n400 - Experience\n[400-1]Minimum 1 year experience in similar position, [400-15]Management of Computer Programs , [400-57]Inventory Management, [400-47]Scrap Management \n500 - Skills\n[500-14]Proactive\n600 - Work Values\n[600-2]Dependability and Responsability, [600-4]Honesty and Integrity, [600-5]Punctuality",null,null,449.2,449.2,{"$f":"10690/30","v":356.33333333333331},{"$f":"13476/30","v":449.2},{"$f":"14540/30","v":484.66666666666669},"IV.6"]
[7,"47-2221","IND","HOU","Manufacturing","Engineering","Fitter/Welder ","* Lay out and examine metal stock or workpieces to be processed to ensure that specifications are met. * Verify conformance of workpieces to specifications, using squares, rulers, and measuring tapes. ¨* Tack-weld fitted parts together. * Remove high spots and cut bevels, using hand files, portable grinders, and cutting torches.","100-4-011/100-5,300-22,300-36,400-2,400-26,500-14,500-13,600-2,600-4","10.40.34","II.79",null,null,null,null,null,null,null,null,null,null,{"$f":"IF(T13<>\"\",VLOOKUP(T13,ProgressivePositions,6,FALSE),\"\")","v":""},"100 - Education\n[100-4-011]Welding or [100-5]High School\n300 - Knowledge\n[300-22]Measurement Equipment, [300-36]Production Control\n400 - Experience\n[400-2]Minimum 2 years experience in similar position, [400-26]Production Equipment / Machinery\n500 - Skills\n[500-14]Proactive, [500-13]Change Adaptation\n600 - Work Values\n[600-2]Dependability and Responsability, [600-4]Honesty and Integrity",null,null,172.26666666666668,172.26666666666668,{"$f":"4788/30","v":159.6},{"$f":"5168/30","v":172.26666666666668},{"$f":"5749/30","v":191.63333333333333},"II.79"]
[7,"47-2221","IND","HOU","Manufacturing","Engineering","Welder Technician","* Lay out and examine metal stock or workpieces to be processed to ensure that specifications are met. * Verify conformance of workpieces to specifications, using squares, rulers, and measuring tapes. ¨* Tack-weld fitted parts together. * Remove high spots and cut bevels, using hand files, portable grinders, and cutting torches.","100-4-011/100-5,300-22,300-36,300-45,400-2,400-26,500-14,500-13,600-2,600-4","10.40.34","II.79",null,null,null,null,null,null,null,null,null,null,{"$f":"IF(T14<>\"\",VLOOKUP(T14,ProgressivePositions,6,FALSE),\"\")","v":""},"100 - Education\n[100-4-011]Welding or [100-5]High School\n300 - Knowledge\n[300-22]Measurement Equipment, [300-36]Production Control, [300-45]Machines and Tools\n400 - Experience\n[400-2]Minimum 2 years experience in similar position, [400-26]Production Equipment / Machinery\n500 - Skills\n[500-14]Proactive, [500-13]Change Adaptation\n600 - Work Values\n[600-2]Dependability and Responsability, [600-4]Honesty and Integrity",null,null,172.26666666666668,172.26666666666668,{"$f":"4788/30","v":159.6},{"$f":"5168/30","v":172.26666666666668},{"$f":"5749/30","v":191.63333333333333},"II.79"]
[7,"47-2221","IND","HOU","Manufacturing","Engineering","Steel Fabricator ","* Lay out and examine metal stock or workpieces to be processed to ensure that specifications are met. * Verify conformance of workpieces to specifications, using squares, rulers, and measuring tapes. ¨* Tack-weld fitted parts together. * Remove high spots and cut bevels, using hand files, portable grinders, and cutting torches.","100-4-011/100-5,300-22,300-36,300-45,400-2,400-26,500-14,500-13,600-2,600-4","10.40.34","II.79",null,null,null,null,null,null,null,null,null,null,null,"100 - Education\n[100-4-011]Welding or [100-5]High School\n300 - Knowledge\n[300-22]Measurement Equipment, [300-36]Production Control, [300-45]Machines and Tools\n400 - Experience\n[400-2]Minimum 2 years experience in similar position, [400-26]Production Equipment / Machinery\n500 - Skills\n[500-14]Proactive, [500-13]Change Adaptation\n600 - Work Values\n[600-2]Dependability and Responsability, [600-4]Honesty and Integrity",null,null,172.26666666666668,172.26666666666668,159.6,172.26666666666668,191.63333333333333,"II.79"]
[8,"43-1011","IND","HOU","Manufacturing","Production","Team/Group Leader","* Resolve customer complaints or answer customers' questions regarding policies and procedures. * Supervise the work of office, administrative, or customer service employees to ensure adherence to quality standards, deadlines, and proper procedures, correcting errors or problems. * Provide employees with guidance in handling difficult or complex problems or in resolving escalated complaints or disputes. * Implement corporate or departmental policies, procedures, and service standards in conjunction with management. * Discuss job performance problems with employees to identify causes and issues and to work on resolving problems.","100-5/100-6,300-16,400-2,400-13,400-31,500-7,500-13,500-8,500-13,500-15,500-16,600-2,600-4,600-5","10.10.12","II.83","600.724.412","600.724.412","600.724.412","600.724.412","600.724.412","600.724.412","600.724.412",null,null,null,"","100 - Education\n[100-5]High School or [100-6]Junior High School\n300 - Knowledge\n[300-16]Production and Processing\n400 - Experience\n[400-2]Minimum 2 years experience in similar position, [400-13]HR Management, [400-31]Team Work\n500 - Skills\n[500-7]Judgement and Decision Making, [500-13]Change Adaptation, [500-8]Communication and Oral Expression , [500-13]Change Adaptation, [500-15]Leadership, [500-16]Team Work\n600 - Work Values\n[600-2]Dependability and Responsability, [600-4]Honesty and Integrity, [600-5]Punctuality",null,null,241.18277777777777,241.18277777777777,{"$f":"6020/30","v":200.66666666666666},{"$f":"6992/30","v":233.06666666666666},{"$f":"8430/30","v":281},"II.83"]
[8,"43-1011","IND","HOU","Manufacturing","Production","Production Team Leader ","* Resolve customer complaints or answer customers' questions regarding policies and procedures. * Supervise the work of office, administrative, or customer service employees to ensure adherence to quality standards, deadlines, and proper procedures, correcting errors or problems. * Provide employees with guidance in handling difficult or complex problems or in resolving escalated complaints or disputes. * Implement corporate or departmental policies, procedures, and service standards in conjunction with management. * Discuss job performance problems with employees to identify causes and issues and to work on resolving problems.","100-5/100-6,300-16,400-2,400-31,500-7,500-13,500-8,500-15,600-2,600-4,600-5","10.10.12","II.83","600.724.412","600.724.412","600.724.412","600.724.412","600.724.412","600.724.412","600.724.412",null,null,null,"","100 - Education\n[100-5]High School or [100-6]Junior High School\n300 - Knowledge\n[300-16]Production and Processing\n400 - Experience\n[400-2]Minimum 2 years experience in similar position, [400-31]Team Work\n500 - Skills\n[500-7]Judgement and Decision Making, [500-13]Change Adaptation, [500-8]Communication and Oral Expression , [500-15]Leadership\n600 - Work Values\n[600-2]Dependability and Responsability, [600-4]Honesty and Integrity, [600-5]Punctuality",null,null,241.18277777777777,241.18277777777777,{"$f":"6020/30","v":200.66666666666666},{"$f":"6992/30","v":233.06666666666666},{"$f":"8430/30","v":281},"II.83"]
[9,"13-1151","IND","SAL","Manufacturing","Production","Production Trainer","* Monitor, evaluate, or record training activities or program effectiveness. * Offer specific training programs to help workers maintain or improve job skills.\n* Assess training needs through surveys, interviews with employees, focus groups, or consultation with managers, instructors, or customer representatives.\n* Develop alternative training methods if expected improvements are not seen. *Organize and develop, or obtain, training procedure manuals and guides and course materials such as handouts and visual materials.","100-6,300-16,300-82,400-2,500-7,500-13,500-8,600-2,600-4,600-5,600-6","10.10.15","V.45","600.725.350","600.725.350","600.725.350","600.725.350","600.725.350","600.725.350","600.725.350",null,null,null,{"$f":"IF(T18<>\"\",VLOOKUP(T18,ProgressivePositions,6,FALSE),\"\")","v":""},"100 - Education\n[100-6]Junior High School\n300 - Knowledge\n[300-16]Production and Processing, [300-82]Instructor\n400 - Experience\n[400-2]Minimum 2 years experience in similar position\n500 - Skills\n[500-7]Judgement and Decision Making, [500-13]Change Adaptation, [500-8]Communication and Oral Expression \n600 - Work Values\n[600-2]Dependability and Responsability, [600-4]Honesty and Integrity, [600-5]Punctuality, [600-6]Self-Motivated",null,null,294.91500000000002,294.91500000000002,{"$f":"11164/30","v":372.13333333333333},{"$f":"11400/30","v":380},{"$f":"13000/30","v":433.33333333333331},"V.45"]
[10,"51-9023","DIR","HOU","Manufacturing","Production","Production Operator, Trainee 1","* Operate equipment safely and effectively for production processing. * Ensure that equipment are maintained in good and safe working condition.  * Inspect equipment to identify any replacements, malfunctions and repairs. * Perform regular equipment maintenance to ensure production capacity and quality. ","100-6,400-94,500-10,500-25,500-5,500-26,600-2,600-4,600-5","10.10.22","II.95",null,null,null,null,null,null,null,null,"OP10",1,{"$error":"#NAME?"},"100 - Education\n[100-6]Junior High School\n400 - Experience\n[400-94]Recruitment to 30 days \n500 - Skills\n[500-10]Written Comprenhension, [500-25]Basic Math, [500-5]Active Learning, [500-26]Visual\n600 - Work Values\n[600-2]Dependability and Responsability, [600-4]Honesty and Integrity, [600-5]Punctuality",null,null,97.266666666666666,97.266666666666666,{"$f":"2630/30","v":87.666666666666671},{"$f":"2918/30","v":97.266666666666666},{"$f":"3398/30","v":113.26666666666667},"II.95"]
[11,"51-9023","DIR","HOU","Manufacturing","Production","Generic Operator, A 1","* Operate equipment safely and effectively for production processing. * Ensure that equipment are maintained in good and safe working condition.  * Inspect equipment to identify any replacements, malfunctions and repairs. * Perform regular equipment maintenance to ensure production capacity and quality. ","100-6,300-54,300-55,400-95,500-5,500-25,500-26,600-2,600-4,600-5","10.10.25","II.97",null,null,null,null,null,null,null,null,"OP10",2,{"$error":"#NAME?"},"100 - Education\n[100-6]Junior High School\n300 - Knowledge\n[300-54]Basic Training Course, [300-55]Performance Assessment\n400 - Experience\n[400-95]31 to 90 days \n500 - Skills\n[500-5]Active Learning, [500-25]Basic Math, [500-26]Visual\n600 - Work Values\n[600-2]Dependability and Responsability, [600-4]Honesty and Integrity, [600-5]Punctuality",null,null,133.86666666666667,133.86666666666667,{"$f":"3594/30","v":119.8},{"$f":"4016/30","v":133.86666666666667},{"$f":"4406/30","v":146.86666666666667},"II.97"]
[12,"51-9023","DIR","HOU","Manufacturing","Production","Generic Operator, B  1","* Operate equipment safely and effectively for production processing. * Ensure that equipment are maintained in good and safe working condition.  * Inspect equipment to identify any replacements, malfunctions and repairs. * Perform regular equipment maintenance to ensure production capacity and quality. ","100-6,300-54,300-55,400-96,500-5,500-25,500-26,600-2,600-4,600-5","10.10.26","II.99",null,null,null,null,null,null,null,null,"OP10",4,{"$error":"#NAME?"},"100 - Education\n[100-6]Junior High School\n300 - Knowledge\n[300-54]Basic Training Course, [300-55]Performance Assessment\n400 - Experience\n[400-96]91 to 180 days \n500 - Skills\n[500-5]Active Learning, [500-25]Basic Math, [500-26]Visual\n600 - Work Values\n[600-2]Dependability and Responsability, [600-4]Honesty and Integrity, [600-5]Punctuality",null,null,159.46666666666667,159.46666666666667,{"$f":"4551/30","v":151.69999999999999},{"$f":"4784/30","v":159.46666666666667},{"$f":"5091/30","v":169.7},"II.99"]
[13,"51-9023","DIR","HOU","Manufacturing","Production","Generic Operator, C  1","* Operate equipment safely and effectively for production processing. * Ensure that equipment are maintained in good and safe working condition.  * Inspect equipment to identify any replacements, malfunctions and repairs. * Perform regular equipment maintenance to ensure production capacity and quality. ","100-6,300-54,300-55,400-97,500-5,500-25,500-26,600-2,600-4,600-5","10.10.26","II.98",null,null,null,null,null,null,null,null,"OP10",7,{"$error":"#NAME?"},"100 - Education\n[100-6]Junior High School\n300 - Knowledge\n[300-54]Basic Training Course, [300-55]Performance Assessment\n400 - Experience\n[400-97]181 to 270 days \n500 - Skills\n[500-5]Active Learning, [500-25]Basic Math, [500-26]Visual\n600 - Work Values\n[600-2]Dependability and Responsability, [600-4]Honesty and Integrity, [600-5]Punctuality",null,null,207.73333333333332,207.73333333333332,{"$f":"5213/30","v":173.76666666666668},{"$f":"6232/30","v":207.73333333333332},{"$f":"7144/30","v":238.13333333333333},"II.98"]
[14,"51-9023","DIR","HOU","Manufacturing","Production","Generic Operator, D  1","* Operate equipment safely and effectively for production processing. * Ensure that equipment are maintained in good and safe working condition.  * Inspect equipment to identify any replacements, malfunctions and repairs. * Perform regular equipment maintenance to ensure production capacity and quality. ","100-6,300-54,300-55,400-98,500-5,500-25,500-26,600-2,600-4,600-5","10.10.23",null,null,null,null,null,null,null,null,null,"OP10",10,{"$error":"#NAME?"},"100 - Education\n[100-6]Junior High School\n300 - Knowledge\n[300-54]Basic Training Course, [300-55]Performance Assessment\n400 - Experience\n[400-98]271 to 365 days \n500 - Skills\n[500-5]Active Learning, [500-25]Basic Math, [500-26]Visual\n600 - Work Values\n[600-2]Dependability and Responsability, [600-4]Honesty and Integrity, [600-5]Punctuality",null,null,216.04266666666669,216.04266666666669,{"$f":"5213*1.04/30","v":180.71733333333336},{"$f":"6232*1.04/30","v":216.04266666666669},{"$f":"7144*1.04/30","v":247.65866666666668}]
[15,"51-9023","DIR","HOU","Manufacturing","Production","Generic Operator, E  1","* Operate equipment safely and effectively for production processing. * Ensure that equipment are maintained in good and safe working condition.  * Inspect equipment to identify any replacements, malfunctions and repairs. * Perform regular equipment maintenance to ensure production capacity and quality. ","100-6,300-54,300-55,400-99,500-5,500-25,500-26,600-2,600-4,600-5","10.10.21",null,null,null,null,null,null,null,null,null,"OP10",13,{"$error":"#NAME?"},"100 - Education\n[100-6]Junior High School\n300 - Knowledge\n[300-54]Basic Training Course, [300-55]Performance Assessment\n400 - Experience\n[400-99]366 and up \n500 - Skills\n[500-5]Active Learning, [500-25]Basic Math, [500-26]Visual\n600 - Work Values\n[600-2]Dependability and Responsability, [600-4]Honesty and Integrity, [600-5]Punctuality",null,null,224.352,224.352,{"$f":"5213*1.08/30","v":187.66800000000001},{"$f":"6232*1.08/30","v":224.352},{"$f":"7144*1.08/30","v":257.18400000000003}]
[16,"51-4035","DIR","HOU","Manufacturing","Production","CNC Operator, level A  1","* Operate equipment safely and effectively for production processing. * Ensure that equipment are maintained in good and safe working condition.  * Inspect equipment to identify any replacements, malfunctions and repairs. * Perform regular equipment maintenance to ensure production capacity and quality. ","100-7/100-6/100-4,300-45,300-59,300-22,400-53,400-58,400-94,500-26,500-24,500-12,600-4,600-7",null,null,null,null,null,null,null,null,null,null,"OCNC01",1,{"$error":"#NAME?"},"100 - Education\n[100-7]Elementary School or [100-6]Junior High School or [100-4]Technical Degree\n300 - Knowledge\n[300-45]Machines and Tools, [300-59]Millings, [300-22]Measurement Equipment\n400 - Experience\n[400-53]Receipt of materials according to packing list, [400-58]Machines and equipment set- up , [400-94]Recruitment to 30 days \n500 - Skills\n[500-26]Visual, [500-24]Analytical, [500-12]Information Ordering\n600 - Work Values\n[600-4]Honesty and Integrity, [600-7]Strong Self-Confidence",null,null,230,230,{"$f":"5213*1.16/30","v":201.56933333333333},{"$f":"6232*1.116/30","v":231.8304},{"$f":"7144*1.16/30","v":276.23466666666661}]
[17,"51-4035","DIR","HOU","Manufacturing","Production","CNC Operator, level B  1","* Operate equipment safely and effectively for production processing. * Ensure that equipment are maintained in good and safe working condition.  * Inspect equipment to identify any replacements, malfunctions and repairs. * Perform regular equipment maintenance to ensure production capacity and quality. ","100-7/100-6/100-4,300-45,300-59,300-22,300-54,300-55,400-58,400-95,500-26,500-24,500-12,600-4",null,null,null,null,null,null,null,null,null,null,"OCNC01",2,{"$error":"#NAME?"},"100 - Education\n[100-7]Elementary School or [100-6]Junior High School or [100-4]Technical Degree\n300 - Knowledge\n[300-45]Machines and Tools, [300-59]Millings, [300-22]Measurement Equipment, [300-54]Basic Training Course, [300-55]Performance Assessment\n400 - Experience\n[400-58]Machines and equipment set- up , [400-95]31 to 90 days \n500 - Skills\n[500-26]Visual, [500-24]Analytical, [500-12]Information Ordering\n600 - Work Values\n[600-4]Honesty and Integrity",null,null,248,248,{"$f":"5213*1.2/30","v":208.51999999999998},{"$f":"6232*1.2/30","v":249.28},{"$f":"7144*1.2/30","v":285.76}]
[18,"51-4035","DIR","HOU","Manufacturing","Production","CNC Operator, level C  1","* Operate equipment safely and effectively for production processing. * Ensure that equipment are maintained in good and safe working condition.  * Inspect equipment to identify any replacements, malfunctions and repairs. * Perform regular equipment maintenance to ensure production capacity and quality. ","100-7/100-6/100-4,300-45,300-59,300-22,300-54,300-55,400-58,400-96,500-26,500-24,500-12,600-4",null,null,null,null,null,null,null,null,null,null,"OCNC01",4,{"$error":"#NAME?"},"100 - Education\n[100-7]Elementary School or [100-6]Junior High School or [100-4]Technical Degree\n300 - Knowledge\n[300-45]Machines and Tools, [300-59]Millings, [300-22]Measurement Equipment, [300-54]Basic Training Course, [300-55]Performance Assessment\n400 - Experience\n[400-58]Machines and equipment set- up , [400-96]91 to 180 days \n500 - Skills\n[500-26]Visual, [500-24]Analytical, [500-12]Information Ordering\n600 - Work Values\n[600-4]Honesty and Integrity",null,null,262.5,262.5,{"$f":"5213*1.24/30","v":215.47066666666666},{"$f":"6232*1.24/30","v":257.58933333333334},{"$f":"7144*1.24/30","v":295.28533333333331}]
[19,"51-4035","DIR","HOU","Manufacturing","Production","CNC Operator, level D  1","* Operate equipment safely and effectively for production processing. * Ensure that equipment are maintained in good and safe working condition.  * Inspect equipment to identify any replacements, malfunctions and repairs. * Perform regular equipment maintenance to ensure production capacity and quality. ","100-7/100-6/100-4,300-45,300-59,300-22,300-54,300-55,400-58,400-97,500-26,500-24,500-12,600-4",null,null,null,null,null,null,null,null,null,null,"OCNC01",7,{"$error":"#NAME?"},"100 - Education\n[100-7]Elementary School or [100-6]Junior High School or [100-4]Technical Degree\n300 - Knowledge\n[300-45]Machines and Tools, [300-59]Millings, [300-22]Measurement Equipment, [300-54]Basic Training Course, [300-55]Performance Assessment\n400 - Experience\n[400-58]Machines and equipment set- up , [400-97]181 to 270 days \n500 - Skills\n[500-26]Visual, [500-24]Analytical, [500-12]Information Ordering\n600 - Work Values\n[600-4]Honesty and Integrity",null,null,271.69,271.69,{"$f":"5213*1.26/30","v":218.946},{"$f":"6232*1.12/30","v":232.66133333333337},{"$f":"7144*1.12/30","v":266.70933333333335}]
[20,"51-4035","DIR","HOU","Manufacturing","Production","CNC Operator, level E  1","* Operate equipment safely and effectively for production processing. * Ensure that equipment are maintained in good and safe working condition.  * Inspect equipment to identify any replacements, malfunctions and repairs. * Perform regular equipment maintenance to ensure production capacity and quality. ","100-7/100-6/100-4,300-45,300-59,300-22,300-54,300-55,400-58,400-98,500-26,500-24,500-12,600-4",null,null,null,null,null,null,null,null,null,null,"OCNC01",10,{"$error":"#NAME?"},"100 - Education\n[100-7]Elementary School or [100-6]Junior High School or [100-4]Technical Degree\n300 - Knowledge\n[300-45]Machines and Tools, [300-59]Millings, [300-22]Measurement Equipment, [300-54]Basic Training Course, [300-55]Performance Assessment\n400 - Experience\n[400-58]Machines and equipment set- up , [400-98]271 to 365 days \n500 - Skills\n[500-26]Visual, [500-24]Analytical, [500-12]Information Ordering\n600 - Work Values\n[600-4]Honesty and Integrity",null,null,322.92,322.92,{"$f":"5213*1.3/30","v":225.89666666666668},{"$f":"6232*1.3/30","v":270.05333333333334},{"$f":"7144*1.3/30","v":309.57333333333338}]
[21,"51-4035","DIR","HOU","Manufacturing","Production","CNC Operator, level F  1","* Operate equipment safely and effectively for production processing. * Ensure that equipment are maintained in good and safe working condition.  * Inspect equipment to identify any replacements, malfunctions and repairs. * Perform regular equipment maintenance to ensure production capacity and quality. ","100-7/100-6/100-4,300-45,300-59,300-22,300-54,300-55,400-58,400-99,500-26,500-24,500-12,600-4",null,null,null,null,null,null,null,null,null,null,"OCNC01",13,{"$error":"#NAME?"},"100 - Education\n[100-7]Elementary School or [100-6]Junior High School or [100-4]Technical Degree\n300 - Knowledge\n[300-45]Machines and Tools, [300-59]Millings, [300-22]Measurement Equipment, [300-54]Basic Training Course, [300-55]Performance Assessment\n400 - Experience\n[400-58]Machines and equipment set- up , [400-99]366 and up \n500 - Skills\n[500-26]Visual, [500-24]Analytical, [500-12]Information Ordering\n600 - Work Values\n[600-4]Honesty and Integrity",null,null,360.66,360.66,{"$f":"5213*1.34/30","v":232.84733333333332},{"$f":"6232*1.34/30","v":278.36266666666671},{"$f":"7144*1.34/30","v":319.0986666666667}]
[22,"47-2141","DIR","HOU","Manufacturing","Production","Painter","* Cover surfaces with dropcloths or masking tape and paper to protect surfaces during painting. * Fill cracks, holes, or joints with caulk, putty, plaster, or other fillers, using caulking guns or putty knives. * Apply primers or sealers to prepare new surfaces, such as bare wood or metal, for finish coats. * Apply paint, stain, varnish, enamel, or other finishes to equipment, buildings, bridges, or other structures, using brushes, spray guns, or rollers. * Calculate amounts of required materials and estimate costs, based on surface measurements or work orders. * Read work orders or receive instructions from supervisors or homeowners to determine work requirements.","100-6,300-54,300-55,300-31,300-56,300-57,400-12,500-5,500-25,500-26","10.40.37","II.101B",null,"550.687.420",null,null,null,null,null,null,null,null,null,"100 - Education\n[100-6]Junior High School\n300 - Knowledge\n[300-54]Basic Training Course, [300-55]Performance Assessment, [300-31]Intepretation of Plans, [300-56]Paint Handling, [300-57]Solvent Handling\n400 - Experience\n[400-12]Experience not necessary\n500 - Skills\n[500-5]Active Learning, [500-25]Basic Math, [500-26]Visual",null,null,154.83333333333334,154.83333333333334,{"$f":"3828/30","v":127.6},{"$f":"4645/30","v":154.83333333333334},{"$f":"6703/30","v":223.43333333333334},"II.101B"]
[23,"11-3051","ADM","SAL","Management","Quality","Quality Control Manager","* Determining, negotiating and agreeing in-house quality procedures, standards and/or specifications. * Assessing customer requirements and ensuring that these are met.\n* Setting customer service standards. * Specifying quality requirements of raw materials with suppliers. * Investigating and setting standards for quality/health and safety.","100-2-009/100-2-007/100-2-014,200-1-001,300-20,300-21,300-22,300-23,300-24,400-5,400-13,400-31,400-19,400-14,500-7,500-13,500-24,600-4","10.20.02","III.2B","620.128.220","620.128.220",null,"620.128.220","620.128.220","620.128.220","620.128.220",null,null,null,"","100 - Education\n[100-2-009]Process Technology Engineer or [100-2-007]Industrial Engineer or [100-2-014]Industrial and Systems Engineer\n200 - Language\n[200-1-001]Advanced English\n300 - Knowledge\n[300-20]Quality Control, [300-21]Quality Assurance, [300-22]Measurement Equipment, [300-23]Quality Systems / TS / ISO, [300-24]Planning\n400 - Experience\n[400-5]Minimum 5 years experience in similar position, [400-13]HR Management, [400-31]Team Work, [400-19]New Projects Development and Implementation, [400-14]Lean Manufacturing\n500 - Skills\n[500-7]Judgement and Decision Making, [500-13]Change Adaptation, [500-24]Analytical\n600 - Work Values\n[600-4]Honesty and Integrity",null,null,1419.9808333333335,1419.9808333333335,{"$f":"47019/30","v":1567.3},{"$f":"53040/30","v":1768},{"$f":"61400/30","v":2046.6666666666667},"III.2B"]
[24,"11-3051","IND","SAL","Quality Control","Quality Control","Quality Control Superintendent","* Schedule subcontractors, consultants, and vendors in critical path to ensure timely completion. * Perform quality control duties and responsibilities regarding the work being performed. * Communicate with project team regarding ASI’s, RFI’s, and Material Submittals. * Ensure that subcontractor is fully executing and complying with his contracted scope of work.  * Coordinate required inspections with local jurisdictions. * Identify subcontractor non-compliance with safety, health, and environmental quality standards. \n Identify conflicts in construction progress and communicate them to project team for resolution. \n","100-2,200-1-001,300-20,300-21,300-22,300-23,300-24,400-3,400-13,400-31,400-19,400-14,500-26,500-13,500-24,600-4","10.20.03","III.4B",null,"620.128.430","620.128.430","620.128.220","620.128.220","620.128.220","620.128.220",null,null,null,"","100 - Education\n[100-2]Engineering\n200 - Language\n[200-1-001]Advanced English\n300 - Knowledge\n[300-20]Quality Control, [300-21]Quality Assurance, [300-22]Measurement Equipment, [300-23]Quality Systems / TS / ISO, [300-24]Planning\n400 - Experience\n[400-3]Minimum 3 years experience in similar position, [400-13]HR Management, [400-31]Team Work, [400-19]New Projects Development and Implementation, [400-14]Lean Manufacturing\n500 - Skills\n[500-26]Visual, [500-13]Change Adaptation, [500-24]Analytical\n600 - Work Values\n[600-4]Honesty and Integrity",null,null,174.72416666666672,174.72416666666672,{"$f":"27968/30","v":932.26666666666665},{"$f":"28000/30","v":933.33333333333337},{"$f":"38304/30","v":1276.8},"III.4B"]
[25,"17-3029.05","IND","SAL","Quality Control","Quality Control","Quality Control Supervisor","* Supervises and coordinates activities of workers engaged in inspecting incoming materials, inprocess molded plastic components, and finished fabricated plastic products to ensure adherence to company quality standards and customer specifications.* Distributes sketch and procedure to engineering, production control, and inspection work stations.* Inspects molded components following first-run production of new item, using gauges and shadow comparator, and advises technician of type of defects noted and need for machine adjustment.* Repeats inspection procedure until product meets quality standards and specifications are attained.","100-2-009/100-2-007/100-2-014,200-1-001,300-20,300-21,300-22,300-23,300-24,400-3,400-13,400-31,400-19,400-14,500-7,500-13,500-24,600-4","10.20.05","III.5B",null,"620.122.230","620.122.230","620.122.230","620.122.230","620.122.230","620.122.230",null,null,null,"","100 - Education\n[100-2-009]Process Technology Engineer or [100-2-007]Industrial Engineer or [100-2-014]Industrial and Systems Engineer\n200 - Language\n[200-1-001]Advanced English\n300 - Knowledge\n[300-20]Quality Control, [300-21]Quality Assurance, [300-22]Measurement Equipment, [300-23]Quality Systems / TS / ISO, [300-24]Planning\n400 - Experience\n[400-3]Minimum 3 years experience in similar position, [400-13]HR Management, [400-31]Team Work, [400-19]New Projects Development and Implementation, [400-14]Lean Manufacturing\n500 - Skills\n[500-7]Judgement and Decision Making, [500-13]Change Adaptation, [500-24]Analytical\n600 - Work Values\n[600-4]Honesty and Integrity",null,null,623.48000000000013,623.48000000000013,{"$f":"15450/30","v":515},{"$f":"18516/30","v":617.20000000000005},{"$f":"18900/30","v":630},"III.5B"]
[26,"17-3029.05","IND","SAL","Quality Control","Quality Control","Quality Control Engineer","* Plans and directs activities concerned with development, application, and maintenance of quality standards for industrial processes, materials, and products: Develops and initiates standards and methods for inspection, testing, and evaluation, utilizing knowledge in engineering fields such as chemical, electrical, or mechanical. * Devises sampling procedures and designs and develops forms and instructions for recording, evaluating, and reporting quality and reliability data. * Establishes program to evaluate precision and accuracy of production equipment and testing, measurement, and analytical equipment and facilities. * Develops and implements methods and procedures for disposition of discrepant material and devises methods to assess cost and responsibility.* Directs workers engaged in measuring and testing product and tabulating data concerning materials, product, or process quality and reliability.","100-2-009/100-2-007/100-2-014,200-1-001,300-20,300-21,300-22,300-23,300-25,300-24,300-26,300-27,400-3,400-13,400-31,400-19,400-14,500-7,500-13,500-24,600-4","10.20.07","III.6B","620.124.361","620.124.361","620.124.361","620.124.361","620.124.361","620.124.361","620.124.361",null,null,null,"","100 - Education\n[100-2-009]Process Technology Engineer or [100-2-007]Industrial Engineer or [100-2-014]Industrial and Systems Engineer\n200 - Language\n[200-1-001]Advanced English\n300 - Knowledge\n[300-20]Quality Control, [300-21]Quality Assurance, [300-22]Measurement Equipment, [300-23]Quality Systems / TS / ISO, [300-25]FEMA, [300-24]Planning, [300-26]8 D's, [300-27]5 W's\n400 - Experience\n[400-3]Minimum 3 years experience in similar position, [400-13]HR Management, [400-31]Team Work, [400-19]New Projects Development and Implementation, [400-14]Lean Manufacturing\n500 - Skills\n[500-7]Judgement and Decision Making, [500-13]Change Adaptation, [500-24]Analytical\n600 - Work Values\n[600-4]Honesty and Integrity",null,null,714.02878571428562,714.02878571428562,{"$f":"20950/30","v":698.33333333333337},{"$f":"25993/30","v":866.43333333333328},{"$f":"28416/30","v":947.2},"III.6B"]
[27,"19-4099.01","IND","HOU","Quality Control","Quality Control","Quality Control Technician ","* Collect or prepare measurement, weight, or identification labels and attach them to products. * Document quantity, quality, type, weight, test result data, and value of materials or products to maintain shipping, receiving, and production records and files. * Compare product labels, tags, or tickets, shipping manifests, purchase orders, and bills of lading to verify accuracy of shipment contents, quality specifications, or weights. * Count or estimate quantities of materials, parts, or products received or shipped.\n* Weigh or measure materials, equipment, or products to maintain relevant records, using volume meters, scales, rules, or calipers.","100-4-006,200-1-002,300-23,300-44,400-1,400-20,500-16,500-13,500-24,500-14","10.20.12","III.8B","620.128.430","620.128.430","620.128.430","620.128.430","620.128.430","620.128.430","620.128.430",null,null,null,"","100 - Education\n[100-4-006]Systems\n200 - Language\n[200-1-002]Intermediate English\n300 - Knowledge\n[300-23]Quality Systems / TS / ISO, [300-44]Detection of Problems and Failures\n400 - Experience\n[400-1]Minimum 1 year experience in similar position, [400-20]Interpretation of Plans\n500 - Skills\n[500-16]Team Work, [500-13]Change Adaptation, [500-24]Analytical, [500-14]Proactive",null,null,273.95238095238096,273.95238095238096,{"$f":"6556/30","v":218.53333333333333},{"$f":"8179/30","v":272.63333333333333},{"$f":"9652/30","v":321.73333333333335},"III.8B"]
[28,"51-9061","IND","HOU","Quality Control","Quality Control","Quality Inspector ","* Perform dimensional, visual, electrical and mechanical inspection using standard documentation and procedures. * Utilize precision measuring tools to assist receiving inspection. * Provide acceptance or rejection for compliance to established standards and processes. * Verify conformance to applicable procedures and other approved documents. * Prepare procedures, update and maintain files as needed by ISO certification and quality enhancement. \n","100-6,300-23,300-32,400-1,400-21,400-28,400-22,500-16,500-13,500-14,500-26","10.20.18","III.13","620.128.411","620.128.411","620.128.411","620.128.411","620.128.411","620.128.411","620.128.411",null,null,null,"","100 - Education\n[100-6]Junior High School\n300 - Knowledge\n[300-23]Quality Systems / TS / ISO, [300-32]Computer Sciences\n400 - Experience\n[400-1]Minimum 1 year experience in similar position, [400-21]Quality Audits, [400-28]Production Support, [400-22]Quality Tools\n500 - Skills\n[500-16]Team Work, [500-13]Change Adaptation, [500-14]Proactive, [500-26]Visual",null,null,268.28715978274602,268.28715978274602,{"$f":"4916/30","v":163.86666666666667},{"$f":"5778/30","v":192.6},{"$f":"6019/30","v":200.63333333333333},"III.13"]
[29,"17-3029.02","IND","SAL","Quality Control","Metrology Laboratory","Metrology Engineer","* Evaluate and implement solutions to problems and related to Metrology discipline. * Performs variety of technical tasks of calibration, installation and minor repairs on various equipment. *Applies learned technical knowledge to perform simple tasks in working on equipment. * Work typically involves such tasks as replacing components, wiring circuits and taking test readings, repairing simple electronic equipments and using tools, common test instruments (e.g pressure \ncontrollers, multi meters, audio signal generators, testers and oscilloscopes.)","100-2-018,200-1-001,300-22,300-41,300-24,300-33,300-34,400-3,400-23,400-20,500-14,500-13,500-24,600-4","10.20.07","III.27",null,null,null,null,null,null,null,null,null,null,"","100 - Education\n[100-2-018]Metrologist Engineer\n200 - Language\n[200-1-001]Advanced English\n300 - Knowledge\n[300-22]Measurement Equipment, [300-41]Graphics in SPC, [300-24]Planning, [300-33]Calibration, [300-34]Metrology\n400 - Experience\n[400-3]Minimum 3 years experience in similar position, [400-23]Metrology Equipment Management, [400-20]Interpretation of Plans\n500 - Skills\n[500-14]Proactive, [500-13]Change Adaptation, [500-24]Analytical\n600 - Work Values\n[600-4]Honesty and Integrity",null,null,1028.5666666666666,1028.5666666666666,{"$f":"21414/30","v":713.8},{"$f":"30857/30","v":1028.5666666666666},{"$f":"37500/30","v":1250},"III.27"]
[30,"17-3023.01","IND","SAL","Quality Control","Quality Laboratory","Metrology Technician ","* Applies learned technical knowledge to perform simple tasks in working on equipment. * Work typically involves such tasks as replacing components, repairing simple electronic equipments and using tools. ","100-4-010,200-1-002,300-22,300-41,300-24,300-33,300-34,400-1,400-22,400-20,500-14,500-13,500-24,600-4","10.24.06","III.28",null,null,null,null,null,null,null,null,null,null,"","100 - Education\n[100-4-010]Metrologist\n200 - Language\n[200-1-002]Intermediate English\n300 - Knowledge\n[300-22]Measurement Equipment, [300-41]Graphics in SPC, [300-24]Planning, [300-33]Calibration, [300-34]Metrology\n400 - Experience\n[400-1]Minimum 1 year experience in similar position, [400-22]Quality Tools, [400-20]Interpretation of Plans\n500 - Skills\n[500-14]Proactive, [500-13]Change Adaptation, [500-24]Analytical\n600 - Work Values\n[600-4]Honesty and Integrity",null,null,652.64,652.64,{"$f":"8998/30","v":299.93333333333334},{"$f":"11300/30","v":376.66666666666669},{"$f":"12768/30","v":425.6},"III.28"]
[31,"11-3051","ADM","SAL","Management","Engineering","Manufacturing Manager","* Overseeing the production process, drawing up a production schedule. *Ensuring that the production is cost effective. *Making sure that products are produced on time and are of good quality. *Working out the human and material resources needed. *Estimating costs and setting the quality standards.\n","100-2-007/100-2-016/100-3-005,200-1-001,300-16,300-20,300-11,400-5,400-76,400-31,400-19,400-14,500-7,500-13,500-24,600-4","10.30.02","II.2",null,null,null,null,"600.218.221","600.218.221","600.218.221",null,null,null,null,"100 - Education\n[100-2-007]Industrial Engineer or [100-2-016]Industrial and Administrator Engineer or [100-3-005]Business Administration\n200 - Language\n[200-1-001]Advanced English\n300 - Knowledge\n[300-16]Production and Processing, [300-20]Quality Control, [300-11]Engineering and Technology\n400 - Experience\n[400-5]Minimum 5 years experience in similar position, [400-76]Social Events Logistic, [400-31]Team Work, [400-19]New Projects Development and Implementation, [400-14]Lean Manufacturing\n500 - Skills\n[500-7]Judgement and Decision Making, [500-13]Change Adaptation, [500-24]Analytical\n600 - Work Values\n[600-4]Honesty and Integrity",null,null,1901.9,1901.9,{"$f":"55829/30","v":1860.9666666666667},{"$f":"67609/30","v":2253.6333333333332},{"$f":"78724/30","v":2624.1333333333332},"II.2"]
[32,"17-3026","IND","SAL","Manufacturing","Engineering","Process Engineering General Supervisor","* Ensures compliance with any and all related Policies. *Process role definitions. *Identification of Critical Success Factors and Key Performance Indicators\n*Process advocacy and ensuring proper training is conducted. * Process integration with other processes.","100-2-007/100-2-012/100-2-014/100-2-016,200-1-001,300-11,300-16,300-28,300-31,400-3,400-14,400-19,400-28,500-7,500-9,600-2","10.30.04","II.25","510.704.230","510.704.230","510.704.230","510.704.230","510.704.230","510.704.230","510.704.230",null,null,null,null,"100 - Education\n[100-2-007]Industrial Engineer or [100-2-012]Electronics Engineer or [100-2-014]Industrial and Systems Engineer or [100-2-016]Industrial and Administrator Engineer\n200 - Language\n[200-1-001]Advanced English\n300 - Knowledge\n[300-11]Engineering and Technology, [300-16]Production and Processing, [300-28]Continuous Improvement, [300-31]Intepretation of Plans\n400 - Experience\n[400-3]Minimum 3 years experience in similar position, [400-14]Lean Manufacturing, [400-19]New Projects Development and Implementation, [400-28]Production Support\n500 - Skills\n[500-7]Judgement and Decision Making, [500-9]Problem Sensitivity\n600 - Work Values\n[600-2]Dependability and Responsability",null,null,991.29611111111114,991.29611111111114,{"$f":"28892/30","v":963.06666666666672},{"$f":"32000/30","v":1066.6666666666667},{"$f":"38500/30","v":1283.3333333333333},"II.25"]
[33,"17-2112","IND","SAL","Manufacturing","Engineering","Product Design/Development Engineer","* Identify the needs and goals for a new product, from function to aesthetics. * Coordinate with market researchers and materials suppliers to evaluate market needs, existing competition and potential costs. * Create a design using computer-aided design software and fabricate models that can be tested.  *Analyze different materials, manufacturing processes, design tolerances and other factors in the developmental process. ","100-2-007/100-2-012/100-2-014/100-2-016,200-1-001,300-1,300-23,300-36,300-37,400-3,400-13,400-19,400-14,400-25,500-24,600-2,600-4","10.30.09","II.36","500.630.350","500.630.350","500.630.350","500.630.350","500.630.350","500.630.350","500.630.350",null,null,null,{"$f":"IF(T42<>\"\",VLOOKUP(T42,ProgressivePositions,6,FALSE),\"\")","v":""},"100 - Education\n[100-2-007]Industrial Engineer or [100-2-012]Electronics Engineer or [100-2-014]Industrial and Systems Engineer or [100-2-016]Industrial and Administrator Engineer\n200 - Language\n[200-1-001]Advanced English\n300 - Knowledge\n[300-1]Administration and Management, [300-23]Quality Systems / TS / ISO, [300-36]Production Control, [300-37]Product Design\n400 - Experience\n[400-3]Minimum 3 years experience in similar position, [400-13]HR Management, [400-19]New Projects Development and Implementation, [400-14]Lean Manufacturing, [400-25]Planning and Control\n500 - Skills\n[500-24]Analytical\n600 - Work Values\n[600-2]Dependability and Responsability, [600-4]Honesty and Integrity",null,null,733.44166666666672,733.44166666666672,{"$f":"18750/30","v":625},{"$f":"20617/30","v":687.23333333333335},{"$f":"23589/30","v":786.3},"II.36"]
[34,"17-2112","IND","SAL","Manufacturing","Engineering","Project Engineer","* Develops project objectives by reviewing project proposals and plans; conferring with management. * Determines project responsibilities by identifying project phases and elements; assigning personnel to phases and elements; reviewing bids from contractors. * Determines project specifications by studying product design, customer requirements, and performance standards; completing technical studies; preparing cost estimates. * Confirms product performance by designing and conducting tests. *Determines project schedule by studying project plan and specifications; calculating time requirements; sequencing project elements.","100-2-007/100-2-012/100-2-014,200-1-001,300-24,300-28,300-38,300-39,300-1,400-3,400-13,400-26,500-14,500-13,500-24,500-18,600-2,600-4","10.40.07","II.65","520.104.350","520.104.350","520.104.350","520.104.350","520.104.350","520.104.350","520.104.350",null,null,null,"","100 - Education\n[100-2-007]Industrial Engineer or [100-2-012]Electronics Engineer or [100-2-014]Industrial and Systems Engineer\n200 - Language\n[200-1-001]Advanced English\n300 - Knowledge\n[300-24]Planning, [300-28]Continuous Improvement, [300-38]Resource Management, [300-39]Suppliers and Contractors Management, [300-1]Administration and Management\n400 - Experience\n[400-3]Minimum 3 years experience in similar position, [400-13]HR Management, [400-26]Production Equipment / Machinery\n500 - Skills\n[500-14]Proactive, [500-13]Change Adaptation, [500-24]Analytical, [500-18]Stress management\n600 - Work Values\n[600-2]Dependability and Responsability, [600-4]Honesty and Integrity",null,null,951.6,951.6,{"$f":"23390/30","v":779.66666666666663},{"$f":"28548/30","v":951.6},{"$f":"36245/30","v":1208.1666666666667},"II.65"]
[35,"51-4111","IND","SAL","Manufacturing","Tool Manufacturing","Tool Room Supervisor","* Confer with management or subordinates to resolve worker problems, complaints, or grievances. * Enforce safety and sanitation regulations. * Inspect materials, products, or equipment to detect defects or malfunctions. * Confer with other supervisors to coordinate operations and activities within or between departments. * Recommend or implement measures to motivate employees and to improve production methods. ","100-2-008,200-1-001,300-40,400-3,400-28,400-22,400-82,400-29,500-14,500-24,500-8,600-2,600-4","10.30.12","II.17","610.612.230","610.612.230","610.612.230","610.612.230","610.612.230","610.612.230","610.612.230",null,null,null,"","100 - Education\n[100-2-008]Mechanical Engineer\n200 - Language\n[200-1-001]Advanced English\n300 - Knowledge\n[300-40]Preventive and Corrective Maintenance\n400 - Experience\n[400-3]Minimum 3 years experience in similar position, [400-28]Production Support, [400-22]Quality Tools, [400-82]Elaboration of Environmental and Safety Programs, [400-29]Continuous Improvement\n500 - Skills\n[500-14]Proactive, [500-24]Analytical, [500-8]Communication and Oral Expression \n600 - Work Values\n[600-2]Dependability and Responsability, [600-4]Honesty and Integrity",null,null,561.11111111111109,561.11111111111109,{"$f":"18848/30","v":628.26666666666665},{"$f":"27611/30","v":920.36666666666667},{"$f":"30400/30","v":1013.3333333333334},"II.17"]
[36,"17-2199.04","IND","SAL","Manufacturing","Engineering","Manufacturing Engineer","* Planning managing budgets. * Maintaining statistical and financial records. * Supervising engineering and technical staff.  * Purchasing and installing equipment. *Responding to breakdowns. ","100-2-010/100-2-009,200-1-001,300-1,300-20,300-11,400-2,400-13,400-14,500-7,500-13,600-2","10.30.14","Il.6B","510.704.350","510.704.350","510.704.350","510.704.350","510.704.350","510.704.350","510.704.350",null,null,null,"","100 - Education\n[100-2-010]Manufacturing Technology Engineer or [100-2-009]Process Technology Engineer\n200 - Language\n[200-1-001]Advanced English\n300 - Knowledge\n[300-1]Administration and Management, [300-20]Quality Control, [300-11]Engineering and Technology\n400 - Experience\n[400-2]Minimum 2 years experience in similar position, [400-13]HR Management, [400-14]Lean Manufacturing\n500 - Skills\n[500-7]Judgement and Decision Making, [500-13]Change Adaptation\n600 - Work Values\n[600-2]Dependability and Responsability",null,null,798.61240000000009,798.61240000000009,{"$f":"18810/30","v":627},{"$f":"21750/30","v":725},{"$f":"25149/30","v":838.3},"Il.6B"]
[37,"17-3026\n","IND","SAL","Manufacturing","Engineering","Manufacturing Technician ","* Interpret engineering drawings, schematic diagrams, or formulas and confer with management or engineering staff to determine quality and reliability standards. * Read worker logs, product processing sheets, or specification sheets to verify that records adhere to quality assurance specifications. * Observe worker using equipment to verify that equipment is being operated and maintained according to quality assurance standards. * Compile and evaluate statistical data to determine and maintain quality and reliability of products. * Prepare charts, graphs, or diagrams to illustrate workflow, routing, floor layouts, material handling, or machine utilization. * Study time, motion, methods, or speed involved in maintenance, production, or other operations to establish standard production rate or improve efficiency. * Design new equipment and materials or recommend revision to methods of operation, material handling, equipment layout, or other changes to increase production or improve standards.","100-4-008/100-4-006,200-1-002,300-20,300-11,400-1,400-28,400-60,400-31,500-14,500-8,600-2","10.30.31","Il.7","550.684.430","550.684.430","550.684.430","550.684.430","550.684.430","550.684.430","550.684.430",null,null,null,"","100 - Education\n[100-4-008]Administration or [100-4-006]Systems\n200 - Language\n[200-1-002]Intermediate English\n300 - Knowledge\n[300-20]Quality Control, [300-11]Engineering and Technology\n400 - Experience\n[400-1]Minimum 1 year experience in similar position, [400-28]Production Support, [400-60]Technical support, [400-31]Team Work\n500 - Skills\n[500-14]Proactive, [500-8]Communication and Oral Expression \n600 - Work Values\n[600-2]Dependability and Responsability",null,null,277,277,{"$f":"7472/30","v":249.06666666666666},{"$f":"8344/30","v":278.13333333333333},{"$f":"13850/30","v":461.66666666666669},"Il.7"]
[38,"49-2094","IND","HOU","Maintenance","Electronic Maintenance","Electronics Technician ","* Test faulty equipment to diagnose malfunctions, using test equipment or software, and applying knowledge of the functional operation of electronic units and systems.\n* Inspect components of industrial equipment for accurate assembly and installation or for defects, such as loose connections or frayed wires. * Install repaired equipment in various settings, such as industrial or military establishments. * Examine work orders and converse with equipment operators to detect equipment problems and to ascertain whether mechanical or human errors contributed to the problems. * Perform scheduled preventive maintenance tasks, such as checking, cleaning, or repairing equipment, to detect and prevent problems. * Study blueprints, schematics, manuals, or other specifications to determine installation procedures. * Set up and test industrial equipment to ensure that it functions properly.","100-2-012,300-40,300-43,400-1,400-28,500-24,500-19,600-2","10.30.34","Il.16B","510.664.430","510.664.420","510.664.430","510.664.430","510.664.430","510.664.430","510.664.430",null,null,null,"","100 - Education\n[100-2-012]Electronics Engineer\n300 - Knowledge\n[300-40]Preventive and Corrective Maintenance, [300-43]Diagnosis and Evaluation of Tablets\n400 - Experience\n[400-1]Minimum 1 year experience in similar position, [400-28]Production Support\n500 - Skills\n[500-24]Analytical, [500-19]Empathy\n600 - Work Values\n[600-2]Dependability and Responsability",null,null,304,304,{"$f":"7280/30","v":242.66666666666666},{"$f":"9120/30","v":304},{"$f":"10264/30","v":342.13333333333333},"Il.16B"]
[38,"49-2094","IND","HOU","Maintenance","Electronic Maintenance","Electrical and Electronics Repairer","* Test faulty equipment to diagnose malfunctions, using test equipment or software, and applying knowledge of the functional operation of electronic units and systems.\n* Inspect components of industrial equipment for accurate assembly and installation or for defects, such as loose connections or frayed wires. * Install repaired equipment in various settings, such as industrial or military establishments. * Examine work orders and converse with equipment operators to detect equipment problems and to ascertain whether mechanical or human errors contributed to the problems. * Perform scheduled preventive maintenance tasks, such as checking, cleaning, or repairing equipment, to detect and prevent problems. * Study blueprints, schematics, manuals, or other specifications to determine installation procedures. * Set up and test industrial equipment to ensure that it functions properly.","100-2-012,300-40,300-43,400-1,400-28,500-24,500-19,600-2","10.30.34","Il.16B","510.664.430","510.664.420","510.664.430","510.664.430","510.664.430","510.664.430","510.664.430",null,null,null,"","100 - Education\n[100-2-012]Electronics Engineer\n300 - Knowledge\n[300-40]Preventive and Corrective Maintenance, [300-43]Diagnosis and Evaluation of Tablets\n400 - Experience\n[400-1]Minimum 1 year experience in similar position, [400-28]Production Support\n500 - Skills\n[500-24]Analytical, [500-19]Empathy\n600 - Work Values\n[600-2]Dependability and Responsability",null,null,304,304,{"$f":"7280/30","v":242.66666666666666},{"$f":"9120/30","v":304},{"$f":"10264/30","v":342.13333333333333},"Il.16B"]
[39,"51-4061","IND","SAL","Manufacturing","Tool Manufacturing","Molding Technician ","* Study blueprints, drawings, and sketches to determine material dimensions, required equipment, and operations sequences.\n* Set up and operate machines such as lathes, drill presses, punch presses, or bandsaws to fabricate prototypes or models. * Inspect and test products to verify conformance to specifications, using precision measuring instruments or circuit testers.\n* Cut, shape, and form metal parts, using lathes, power saws, snips, power brakes and shears, files, and mallets. * Lay out and mark reference points and dimensions on materials, using measuring instruments and drawing or scribing tools.\n* Drill, countersink, and ream holes in parts and assemblies for bolts, screws, and other fasteners, using power tools. * Grind, file, and sand parts to finished dimensions.","100-4-004,300-36,300-40,300-30,300-45,400-1,400-32,400-29,500-14,500-24,600-2","10.30.46","Il.55B","550.682.430","550.682.430","550.682.430","550.682.430","550.682.430","550.682.430","550.682.430",null,null,null,null,"100 - Education\n[100-4-004]Machinery and Tools\n300 - Knowledge\n[300-36]Production Control, [300-40]Preventive and Corrective Maintenance, [300-30]Failure Analysis, [300-45]Machines and Tools\n400 - Experience\n[400-1]Minimum 1 year experience in similar position, [400-32]Equipment Repair, [400-29]Continuous Improvement\n500 - Skills\n[500-14]Proactive, [500-24]Analytical\n600 - Work Values\n[600-2]Dependability and Responsability",null,null,324.79700000000003,324.79700000000003,{"$f":"8995/30","v":299.83333333333331},{"$f":"11232/30","v":374.4},{"$f":"12552/30","v":418.4},"Il.55B"]
[39,"51-4061","IND","SAL","Manufacturing","Tool Manufacturing","Tool and Die Maker ","* Study blueprints, drawings, and sketches to determine material dimensions, required equipment, and operations sequences.\n* Set up and operate machines such as lathes, drill presses, punch presses, or bandsaws to fabricate prototypes or models. * Inspect and test products to verify conformance to specifications, using precision measuring instruments or circuit testers.\n* Cut, shape, and form metal parts, using lathes, power saws, snips, power brakes and shears, files, and mallets. * Lay out and mark reference points and dimensions on materials, using measuring instruments and drawing or scribing tools.\n* Drill, countersink, and ream holes in parts and assemblies for bolts, screws, and other fasteners, using power tools. * Grind, file, and sand parts to finished dimensions.","100-4-004,300-36,300-40,300-30,300-45,400-1,400-32,400-29,500-14,500-24,600-2","10.30.46","Il.55B","550.682.430","550.682.430","550.682.430","550.682.430","550.682.430","550.682.430","550.682.430",null,null,null,{"$f":"IF(T50<>\"\",VLOOKUP(T50,ProgressivePositions,6,FALSE),\"\")","v":""},"100 - Education\n[100-4-004]Machinery and Tools\n300 - Knowledge\n[300-36]Production Control, [300-40]Preventive and Corrective Maintenance, [300-30]Failure Analysis, [300-45]Machines and Tools\n400 - Experience\n[400-1]Minimum 1 year experience in similar position, [400-32]Equipment Repair, [400-29]Continuous Improvement\n500 - Skills\n[500-14]Proactive, [500-24]Analytical\n600 - Work Values\n[600-2]Dependability and Responsability",null,null,324.79700000000003,324.79700000000003,{"$f":"8995/30","v":299.83333333333331},{"$f":"11232/30","v":374.4},{"$f":"12552/30","v":418.4},"Il.55B"]
[40,"17-3012","IND","SAL","Manufacturing","Engineering","Electrical and Electronics Drafter ","* Consult with engineers to discuss and interpret design concepts, and determine requirements of detailed working drawings. * Examine electronic schematics and supporting documents to develop, compute, and verify specifications for drafting data, such as configuration of parts, dimensions, and tolerances. * Draft detail and assembly drawings of design components, circuitry and printed circuit boards, using computer-assisted equipment or standard drafting techniques and devices. * Locate files relating to specified design project in database library, load program into computer, and record completed job data. * Review work orders and procedural manuals and confer with vendors and design staff to resolve problems and modify design.","100-4-009,300-46,300-8,300-31,300-47,400-1,500-20,500-24,500-21,600-2",null,"II.32","510.656.360","510.656.360","510.656.360","510.656.360","510.656.360","510.656.360","510.656.360",null,null,null,null,"100 - Education\n[100-4-009]Graphic Design\n300 - Knowledge\n[300-46]Drawings and Strokes, [300-8]Design, [300-31]Intepretation of Plans, [300-47]Autocad\n400 - Experience\n[400-1]Minimum 1 year experience in similar position\n500 - Skills\n[500-20]Creativity, [500-24]Analytical, [500-21]Innovation\n600 - Work Values\n[600-2]Dependability and Responsability",null,null,533.33333333333337,533.33333333333337,{"$f":"10900/30","v":363.33333333333331},{"$f":"16000/30","v":533.33333333333337},{"$f":"16854/30","v":561.79999999999995},"II.32"]
[40,"17-3012","IND","SAL","Manufacturing","Engineering","Technical Draftsman ","* Consult with engineers to discuss and interpret design concepts, and determine requirements of detailed working drawings. * Examine electronic schematics and supporting documents to develop, compute, and verify specifications for drafting data, such as configuration of parts, dimensions, and tolerances. * Draft detail and assembly drawings of design components, circuitry and printed circuit boards, using computer-assisted equipment or standard drafting techniques and devices. * Locate files relating to specified design project in database library, load program into computer, and record completed job data. * Review work orders and procedural manuals and confer with vendors and design staff to resolve problems and modify design.","100-4-009,300-46,300-8,300-31,300-47,400-1,500-20,500-24,500-21,600-2",null,"II.32","510.656.360","510.656.360","510.656.360","510.656.360","510.656.360","510.656.360","510.656.360",null,null,null,null,"100 - Education\n[100-4-009]Graphic Design\n300 - Knowledge\n[300-46]Drawings and Strokes, [300-8]Design, [300-31]Intepretation of Plans, [300-47]Autocad\n400 - Experience\n[400-1]Minimum 1 year experience in similar position\n500 - Skills\n[500-20]Creativity, [500-24]Analytical, [500-21]Innovation\n600 - Work Values\n[600-2]Dependability and Responsability",null,null,533.33333333333337,533.33333333333337,{"$f":"10900/30","v":363.33333333333331},{"$f":"16000/30","v":533.33333333333337},{"$f":"16854/30","v":561.79999999999995},"II.32"]
[40,"17-3012","IND","SAL","Manufacturing","Engineering","CAD Designer ","* Consult with engineers to discuss and interpret design concepts, and determine requirements of detailed working drawings. * Examine electronic schematics and supporting documents to develop, compute, and verify specifications for drafting data, such as configuration of parts, dimensions, and tolerances. * Draft detail and assembly drawings of design components, circuitry and printed circuit boards, using computer-assisted equipment or standard drafting techniques and devices. * Locate files relating to specified design project in database library, load program into computer, and record completed job data. * Review work orders and procedural manuals and confer with vendors and design staff to resolve problems and modify design.","100-4-009,300-46,300-8,300-31,300-47,400-1,500-20,500-24,500-21,600-2",null,"II.32","510.656.360","510.656.360","510.656.360","510.656.360","510.656.360","510.656.360","510.656.360",null,null,null,{"$f":"IF(T53<>\"\",VLOOKUP(T53,ProgressivePositions,6,FALSE),\"\")","v":""},"100 - Education\n[100-4-009]Graphic Design\n300 - Knowledge\n[300-46]Drawings and Strokes, [300-8]Design, [300-31]Intepretation of Plans, [300-47]Autocad\n400 - Experience\n[400-1]Minimum 1 year experience in similar position\n500 - Skills\n[500-20]Creativity, [500-24]Analytical, [500-21]Innovation\n600 - Work Values\n[600-2]Dependability and Responsability",null,null,533.33333333333337,533.33333333333337,{"$f":"10900/30","v":363.33333333333331},{"$f":"16000/30","v":533.33333333333337},{"$f":"16854/30","v":561.79999999999995},"II.32"]
[41,"11-9199","ADM","SAL","Management","Maintenance","Maintenance Manager","* Inspecting the facility. * Checking electrical units. * Hiring other maintenance professionals.  * Ordering parts and equipment. * Recording daily maintenance activity","100-2-008,200-1-001,300-40,300-48,300-28,400-15,400-34,400-35,400-26,400-38,500-7,500-8,600-1,600-2,600-8","610.592.220","II.9","610.592.220","610.592.220","610.592.220","610.592.220","610.592.220","610.592.220","610.592.220",null,null,null,{"$f":"IF(T54<>\"\",VLOOKUP(T54,ProgressivePositions,6,FALSE),\"\")","v":""},"100 - Education\n[100-2-008]Mechanical Engineer\n200 - Language\n[200-1-001]Advanced English\n300 - Knowledge\n[300-40]Preventive and Corrective Maintenance, [300-48]Administration of New Projects, [300-28]Continuous Improvement\n400 - Experience\n[400-15]Management of Computer Programs , [400-34]Hydraulic, [400-35]Mechanics, [400-26]Production Equipment / Machinery, [400-38]Electrical Installation \n500 - Skills\n[500-7]Judgement and Decision Making, [500-8]Communication and Oral Expression \n600 - Work Values\n[600-1]Strong Work Ethic, [600-2]Dependability and Responsability, [600-8]Loyalty",null,null,1524.4646,1524.4646,{"$f":"37701/30","v":1256.7},{"$f":"46550/30","v":1551.6666666666667},{"$f":"58804/30","v":1960.1333333333334},"II.9"]
[42,"49-9043","IND","SAL","Maintenance","Equipment Maintenance","Chief of Maintenance","* Coordinates work with other administrative personnel to resolve system, security, maintenance, personnel, fiscal, budget and organizational problems. *Inspects, determines and recommends course of action to be taken on construction and renovation of State owned and leased facilities in a regional area. *Arranges, reviews and designs facilities support systems on initial plans. *Establishes procedures for maintenance, security, grounds and custodial operations; analyzes, recommends and implements policies and procedures as needed.","100-2-014,200-1-001,300-40,300-48,300-28,400-15,400-34,400-35,400-26,400-38,500-7,500-8,600-1,600-2","10.40.04","II.21","550.684.240","550.684.240","550.684.240","550.684.240","550.684.240","550.684.240","550.684.240",null,null,null,{"$f":"IF(T55<>\"\",VLOOKUP(T55,ProgressivePositions,6,FALSE),\"\")","v":""},"100 - Education\n[100-2-014]Industrial and Systems Engineer\n200 - Language\n[200-1-001]Advanced English\n300 - Knowledge\n[300-40]Preventive and Corrective Maintenance, [300-48]Administration of New Projects, [300-28]Continuous Improvement\n400 - Experience\n[400-15]Management of Computer Programs , [400-34]Hydraulic, [400-35]Mechanics, [400-26]Production Equipment / Machinery, [400-38]Electrical Installation \n500 - Skills\n[500-7]Judgement and Decision Making, [500-8]Communication and Oral Expression \n600 - Work Values\n[600-1]Strong Work Ethic, [600-2]Dependability and Responsability",null,null,935.26666666666665,935.26666666666665,{"$f":"27404/30","v":913.4666666666667},{"$f":"28058/30","v":935.26666666666665},{"$f":"29402/30","v":980.06666666666672},"II.21"]
[43,"49-1011","IND","SAL","Maintenance","Building Maintenance","Facilities Supervisor","* Implement regular inspection in all facilities areas within campus for recreational purposes to ensure activities are conducted safely and appropriately. * Execute open, close, and secure facilities at mentioned times and check for safety and maintenance concerns. * Convey maintenance, custodial and security issues to apt SRC and campus personnel. * Educate and guide participants and student staff. * Ensure to enforce and comply with all established policies and procedures. ","100-2-007/100-2-008/100-2-015,200-1-002,300-40,300-28,400-1,400-27,400-36,400-38,400-26,500-14,500-15,600-1,600-2,600-8","10.40.09","II.21B",null,"220.928.240","220.928.240",null,"220.928.240","220.928.240","220.928.240",null,null,null,{"$f":"IF(T56<>\"\",VLOOKUP(T56,ProgressivePositions,6,FALSE),\"\")","v":""},"100 - Education\n[100-2-007]Industrial Engineer or [100-2-008]Mechanical Engineer or [100-2-015]Mechatronics Engineer\n200 - Language\n[200-1-002]Intermediate English\n300 - Knowledge\n[300-40]Preventive and Corrective Maintenance, [300-28]Continuous Improvement\n400 - Experience\n[400-1]Minimum 1 year experience in similar position, [400-27]Productive Maintenance Equipment, [400-36]Installation and maintenance of air conditioning, [400-38]Electrical Installation , [400-26]Production Equipment / Machinery\n500 - Skills\n[500-14]Proactive, [500-15]Leadership\n600 - Work Values\n[600-1]Strong Work Ethic, [600-2]Dependability and Responsability, [600-8]Loyalty",null,null,618.08000000000004,618.08000000000004,{"$f":"15810/30","v":527},{"$f":"18264/30","v":608.79999999999995},{"$f":"18295/30","v":609.83333333333337},"II.21B"]
[44,"49-9099","IND","SAL","Maintenance","Equipment Maintenance","Productive Equipment Maintenance Supervisor","* Diagnose problems, replace or repair parts, test and make adjustments. *Perform regular preventive maintenance on machines, equipment and plant facilities.\n*Perform a variety of plumbing maintenance and carpentry functions. *Use a variety of hand and power tools, electric meters and material handling equipment in performing duties.","100-2-008/100-2-014,200-1-002,300-40,300-28,400-1,400-27,400-36,400-38,400-26,500-14,500-15,600-1,600-8","10.40.10","II.22",null,"550.684.360","550.684.360","550.684.360","550.684.360","550.684.360","550.684.360",null,null,null,null,"100 - Education\n[100-2-008]Mechanical Engineer or [100-2-014]Industrial and Systems Engineer\n200 - Language\n[200-1-002]Intermediate English\n300 - Knowledge\n[300-40]Preventive and Corrective Maintenance, [300-28]Continuous Improvement\n400 - Experience\n[400-1]Minimum 1 year experience in similar position, [400-27]Productive Maintenance Equipment, [400-36]Installation and maintenance of air conditioning, [400-38]Electrical Installation , [400-26]Production Equipment / Machinery\n500 - Skills\n[500-14]Proactive, [500-15]Leadership\n600 - Work Values\n[600-1]Strong Work Ethic, [600-8]Loyalty",null,null,790.19600000000003,790.19600000000003,{"$f":"12922/30","v":430.73333333333335},{"$f":"14850/30","v":495},{"$f":"17189/30","v":572.9666666666667},"II.22"]
[45,"49-9043","IND","SAL","Maintenance","Equipment Maintenance","Maintenance Technician ","* Schedule and direct a crew of Maintenance Technicians involved in craft specialties. * Provide training, work direction and guidance while performing work in one or more \nof the skilled trades. * Assist supervisor in scheduling work and determining needs for equipment and supplies. * Report to supervisors regarding work completed referring unusual technical or personnel issues to the supervisor. * Provide input to performance reviews; monitor work of assigned crew members","100-4-005,300-40,300-28,400-1,400-34,400-35,400-26,400-39,400-38,600-2,600-1,600-5,600-7","10.40.17","II.23",null,"510.652.430",null,null,null,"510.652.430","510.652.430",null,null,null,{"$f":"IF(T58<>\"\",VLOOKUP(T58,ProgressivePositions,6,FALSE),\"\")","v":""},"100 - Education\n[100-4-005]Maintenance\n300 - Knowledge\n[300-40]Preventive and Corrective Maintenance, [300-28]Continuous Improvement\n400 - Experience\n[400-1]Minimum 1 year experience in similar position, [400-34]Hydraulic, [400-35]Mechanics, [400-26]Production Equipment / Machinery, [400-39]Repair of Machinery and Equipment, [400-38]Electrical Installation \n600 - Work Values\n[600-2]Dependability and Responsability, [600-1]Strong Work Ethic, [600-5]Punctuality, [600-7]Strong Self-Confidence",null,null,404.63707936507939,404.63707936507939,{"$f":"6080/30","v":202.66666666666666},{"$f":"7600/30","v":253.33333333333334},{"$f":"11000/30","v":366.66666666666669},"II.23"]
[46,"49-9071","IND","SAL","Maintenance","Building Maintenance","Facilities Technician ","* Manage card reader system to create employee ID badges, access codes and routine backup of database. * Provide customer service and information on different maintenance activities and employee ID badge request. * Develop and configure again workstations based on requirement. * Complete and process different work order assignments. * Head responsibility for entire facility maintenance in office. * Perform as contact point for building engineering team, outside vendors and contractors on special projects. ","100-4-005,300-40,300-28,400-1,400-27,400-36,400-37,400-26,400-38,500-4,500-9,600-1,600-2,600-7","10.40.20",null,null,null,null,null,null,null,null,null,null,null,{"$f":"IF(T59<>\"\",VLOOKUP(T59,ProgressivePositions,6,FALSE),\"\")","v":""},"100 - Education\n[100-4-005]Maintenance\n300 - Knowledge\n[300-40]Preventive and Corrective Maintenance, [300-28]Continuous Improvement\n400 - Experience\n[400-1]Minimum 1 year experience in similar position, [400-27]Productive Maintenance Equipment, [400-36]Installation and maintenance of air conditioning, [400-37]Refrigeration Installation and Maintenance, [400-26]Production Equipment / Machinery, [400-38]Electrical Installation \n500 - Skills\n[500-4]Social Perceptiveness, [500-9]Problem Sensitivity\n600 - Work Values\n[600-1]Strong Work Ethic, [600-2]Dependability and Responsability, [600-7]Strong Self-Confidence",null,null,315,315,{"$f":"8500/30","v":283.33333333333331},{"$f":"9450/30","v":315},{"$f":"10000/30","v":333.33333333333331}]
[47,"11-3071","IND","SAL","Management","Materials","Logistics and Materials Manager","* Planning projects. * Working on  new supply strategies. * Planning vehicle routes. * Using specialist knowledge, such as mechanical-handling systems, to provide consultancy services.","100-2-007/100-3-005/100-3-007,200-1-001,300-11,300-21,300-29,300-40,300-49,300-81,400-4,400-43,400-51,400-54,500-7,500-18,600-2,600-4","20.10.02","IV.38","610.592.220","610.592.220","610.592.220","610.592.220","610.592.220","610.592.220","610.592.220",null,null,null,{"$f":"IF(T60<>\"\",VLOOKUP(T60,ProgressivePositions,6,FALSE),\"\")","v":""},"100 - Education\n[100-2-007]Industrial Engineer or [100-3-005]Business Administration or [100-3-007]International Commerce\n200 - Language\n[200-1-001]Advanced English\n300 - Knowledge\n[300-11]Engineering and Technology, [300-21]Quality Assurance, [300-29]5's, [300-40]Preventive and Corrective Maintenance, [300-49]Materials Handling, [300-81]Customs Laws and Regulations\n400 - Experience\n[400-4]Minimum 4 years experience in similar position, [400-43]Materialists Coordination, [400-51]Expedite of materials, [400-54]Materials Management and Planning\n500 - Skills\n[500-7]Judgement and Decision Making, [500-18]Stress management\n600 - Work Values\n[600-2]Dependability and Responsability, [600-4]Honesty and Integrity",null,null,1604.6000000000001,1604.6000000000001,{"$f":"46823/30","v":1560.7666666666667},{"$f":"53146/30","v":1771.5333333333333},{"$f":"55600/30","v":1853.3333333333333},"IV.38"]
[48,"43-5061","IND","SAL","Materials","Materials Handling / Warehouse","Materials Supervisor","* Development of the solicitations and requests for proposals for equipment and materials. * Development of the contract management instructions and procedures for acquiring a company’s supplies, from paper clips to heavy equipment. * Implementation the company purchasing policies and often assist in purchasing policy preparation. ","100-2-007,200-1-001,300-11,300-21,300-29,300-40,300-49,400-4,400-43,400-51,400-54,500-7,500-18,600-2,600-4","20.10.04","IV.5",null,"610.604.240","610.604.240","610.604.240","610.604.240","610.604.240","610.604.240",null,null,null,{"$f":"IF(T61<>\"\",VLOOKUP(T61,ProgressivePositions,6,FALSE),\"\")","v":""},"100 - Education\n[100-2-007]Industrial Engineer\n200 - Language\n[200-1-001]Advanced English\n300 - Knowledge\n[300-11]Engineering and Technology, [300-21]Quality Assurance, [300-29]5's, [300-40]Preventive and Corrective Maintenance, [300-49]Materials Handling\n400 - Experience\n[400-4]Minimum 4 years experience in similar position, [400-43]Materialists Coordination, [400-51]Expedite of materials, [400-54]Materials Management and Planning\n500 - Skills\n[500-7]Judgement and Decision Making, [500-18]Stress management\n600 - Work Values\n[600-2]Dependability and Responsability, [600-4]Honesty and Integrity",null,null,1371.23,1371.23,{"$f":"15200/30","v":506.66666666666669},{"$f":"18000/30","v":600},{"$f":"25392/30","v":846.4},"IV.5"]
[49,"53-7063","IND","HOU","Materials","Materials","Feeder ","* Inspect materials and products for defects, and to ensure conformance to specifications. * Remove materials and products from machines and equipment, and place them in boxes, trucks or conveyors, using hand tools and moving devices. * Push dual control buttons and move controls to start, stop, or adjust machinery and equipment.\nIdentify and mark materials, products, and samples, following instructions. * Load materials and products into machines and equipment, or onto conveyors, using hand tools and moving devices. * Clean and maintain machinery, equipment, and work areas to ensure proper functioning and safe working conditions. * Weigh or measure materials or products to ensure conformance to specifications.","100-6,300-51,300-52,300-49,400-1,400-54,400-53,400-47,400-41,400-45,400-46,500-14,500-23,600-2","20.10.06",null,null,null,null,null,null,null,null,null,null,null,null,"100 - Education\n[100-6]Junior High School\n300 - Knowledge\n[300-51]Arrangement, Assortment, and Delivery of Materials, [300-52]Forklift Handling, [300-49]Materials Handling\n400 - Experience\n[400-1]Minimum 1 year experience in similar position, [400-54]Materials Management and Planning, [400-53]Receipt of materials according to packing list, [400-47]Scrap Management , [400-41]FIFO Control, [400-45]Kanban Systems, [400-46]Supply Chain Improvement Programs\n500 - Skills\n[500-14]Proactive, [500-23]Organization\n600 - Work Values\n[600-2]Dependability and Responsability",null,null,242.47133333333335,242.47133333333335,{"$f":"6510.07/30","v":217.00233333333333},{"$f":"7274.14/30","v":242.47133333333335},{"$f":"8777.7/30","v":292.59000000000003}]
[50,"11-3061","IND","SAL","Materials","Purchasing","Purchasing Supervisor","* Responsible for supporting manufacturing operations with a sound and accurate purchasing schedules on a regular basis. * Assumes leadership role in managing key, strategic relationships with our customer’s divisions purchasing groups. * Assumes leadership role in working with key internal company personnel in order to establish sound and effective purchasing strategies. * Work with Sales and Manufacturing to find new raw materials and/or alternate raw materials to meet customer needs.","100-2-008/100-3-005,200-1-001,300-39,300-53,300-73,400-2,400-48,400-49,400-50,400-63,500-24,600-1,600-2,600-4,","20.20.03","IV.20B","610.572.230","610.572.230","610.572.230","610.572.230","610.572.230","610.572.230","610.572.230",null,null,null,null,"100 - Education\n[100-2-008]Mechanical Engineer or [100-3-005]Business Administration\n200 - Language\n[200-1-001]Advanced English\n300 - Knowledge\n[300-39]Suppliers and Contractors Management, [300-53]Budgets, [300-73]Organizational Development\n400 - Experience\n[400-2]Minimum 2 years experience in similar position, [400-48]Consolidation of requirements, [400-49]Business Negotiations , [400-50]Payment Procedures, [400-63]Financial statements development\n500 - Skills\n[500-24]Analytical\n600 - Work Values\n[600-1]Strong Work Ethic, [600-2]Dependability and Responsability, [600-4]Honesty and Integrity",null,null,835.11500000000001,835.11500000000001,{"$f":"17000/30","v":566.66666666666663},{"$f":"22500/30","v":750},{"$f":"24750/30","v":825},"IV.20B"]
[51,"11-3071.02","IND","SAL","Materials","Materials Handling / Warehouse","Warehouse Supervisor","* Accomplishes warehouse human resource objectives by selecting, orienting, training, assigning, scheduling, coaching, counseling, and disciplining employees; communicating job expectations; planning, monitoring, appraising job contributions; recommending compensation actions; adhering to policies and procedures.\n* Meets warehouse operational standards by contributing warehouse information to strategic plans and reviews; implementing production, productivity, quality, and customer-service standards; resolving problems; identifying warehouse system improvements. * Meets warehouse financial standards by providing annual budget information; monitoring expenditures; identifying variances; implementing corrective actions. * Moves inventory by scheduling materials to be moved to and from warehouse; coordinating inventory transfers with related departments.","100-2-016/100-3-005,200-1-002,300-49,300-50,300-51,300-52,400-3,400-43,400-44,400-41,400-42,400-46,500-14,500-23,600-2","20.30.02","IV.39","610.616.230","610.616.230","610.616.230","610.616.230","610.616.230","610.616.230","610.616.230",null,null,null,{"$f":"IF(T64<>\"\",VLOOKUP(T64,ProgressivePositions,6,FALSE),\"\")","v":""},"100 - Education\n[100-2-016]Industrial and Administrator Engineer or [100-3-005]Business Administration\n200 - Language\n[200-1-002]Intermediate English\n300 - Knowledge\n[300-49]Materials Handling, [300-50]Inventories, [300-51]Arrangement, Assortment, and Delivery of Materials, [300-52]Forklift Handling\n400 - Experience\n[400-3]Minimum 3 years experience in similar position, [400-43]Materialists Coordination, [400-44]Physical Inventory Control, [400-41]FIFO Control, [400-42]Receipts and Shipments, [400-46]Supply Chain Improvement Programs\n500 - Skills\n[500-14]Proactive, [500-23]Organization\n600 - Work Values\n[600-2]Dependability and Responsability",null,null,528.15200000000004,528.15200000000004,{"$f":"13005/30*1.16","v":502.85999999999996},{"$f":"19000/30*1.16","v":734.66666666666663},{"$f":"22121/30*1.16","v":855.34533333333331},"IV.39"]
[52,"43-5071","IND","SAL","Materials","Materials Handling / Warehouse","WarehouseMan ","* Prepares orders by processing requests and supply orders; pulling materials; packing boxes; placing orders in delivery area. * Completes deliveries by driving truck or van to and from vendors. * Maintains truck or van by completing preventive maintenance requirements; arranging for repairs. * Maintains inventory controls by collecting stock location orders and printing requests. * Maintains quality service by following organization standards.","100-5,300-52,300-51,300-50,400-1,400-54,400-42,500-23,600-2,600-4","20.30.06","IV.41B","610.616.430","610.616.430","610.616.430","610.616.430","610.616.430","610.616.430","610.616.430",null,null,null,"","100 - Education\n[100-5]High School\n300 - Knowledge\n[300-52]Forklift Handling, [300-51]Arrangement, Assortment, and Delivery of Materials, [300-50]Inventories\n400 - Experience\n[400-1]Minimum 1 year experience in similar position, [400-54]Materials Management and Planning, [400-42]Receipts and Shipments\n500 - Skills\n[500-23]Organization\n600 - Work Values\n[600-2]Dependability and Responsability, [600-4]Honesty and Integrity",null,null,188.33333333333334,188.33333333333334,{"$f":"4432/30","v":147.73333333333332},{"$f":"5650/30","v":188.33333333333334},{"$f":"6492/30","v":216.4},"IV.41B"]
[53,"43-5071","IND","HOU","Materials","Materials Handling / Warehouse","Receiving and Shipping Materials Operator","* Examine shipment contents and compare with records such as manifests, invoices, or orders to verify accuracy. * Record shipment data, such as weight, charges, space availability, damages, or discrepancies for reporting, accounting, or recordkeeping purposes. * Prepare documents, such as work orders, bills of lading, or shipping orders, to route materials. * Requisition and store shipping materials and supplies to maintain inventory of stock. * Determine shipping methods, routes, or rates for materials to be shipped.","100-6,300-52,300-50,400-1,400-44,400-54,400-53,500-7,500-23,600-2,600-4","20.30.11","IV.42","610.616.430","610.616.430",null,"610.616.430",null,"610.616.430","610.616.430",null,null,null,"","100 - Education\n[100-6]Junior High School\n300 - Knowledge\n[300-52]Forklift Handling, [300-50]Inventories\n400 - Experience\n[400-1]Minimum 1 year experience in similar position, [400-44]Physical Inventory Control, [400-54]Materials Management and Planning, [400-53]Receipt of materials according to packing list\n500 - Skills\n[500-7]Judgement and Decision Making, [500-23]Organization\n600 - Work Values\n[600-2]Dependability and Responsability, [600-4]Honesty and Integrity",null,null,257.08249999999998,257.08249999999998,{"$f":"4011/30","v":133.69999999999999},{"$f":"4693/30","v":156.43333333333334},{"$f":"5400/30","v":180},"IV.42"]
[53,"43-5071","IND","HOU","Materials","Materials Handling / Warehouse","Shipping and Receiving","* Examine shipment contents and compare with records such as manifests, invoices, or orders to verify accuracy. * Record shipment data, such as weight, charges, space availability, damages, or discrepancies for reporting, accounting, or recordkeeping purposes. * Prepare documents, such as work orders, bills of lading, or shipping orders, to route materials. * Requisition and store shipping materials and supplies to maintain inventory of stock. * Determine shipping methods, routes, or rates for materials to be shipped.","100-6,300-52,300-50,400-1,400-44,400-54,400-53,500-7,500-23,600-2,600-4","20.30.11","IV.42","610.616.430","610.616.430",null,"610.616.430",null,"610.616.430","610.616.430",null,null,null,"","100 - Education\n[100-6]Junior High School\n300 - Knowledge\n[300-52]Forklift Handling, [300-50]Inventories\n400 - Experience\n[400-1]Minimum 1 year experience in similar position, [400-44]Physical Inventory Control, [400-54]Materials Management and Planning, [400-53]Receipt of materials according to packing list\n500 - Skills\n[500-7]Judgement and Decision Making, [500-23]Organization\n600 - Work Values\n[600-2]Dependability and Responsability, [600-4]Honesty and Integrity",null,null,257.08249999999998,257.08249999999998,{"$f":"4011/30","v":133.69999999999999},{"$f":"4693/30","v":156.43333333333334},{"$f":"5400/30","v":180},"IV.42"]
[54,"13-1081\n","IND","SAL","Materials","Production Control","Planning and Production Control Supervisor","* Responsible for coordinating the production, storage, and shipment of all manufactured items at the facility they work. * Train personnel and provide recommendations for improving management.\n","100-2-016/100-3-005/100-3-007,200-1-001,300-49,300-50,300-51,400-2,400-43,400-44,400-55,500-23,600-2,600-4","20.50.03","IV.31","610.588.350","610.588.350",null,"610.588.350","610.588.350","610.588.350","610.588.350",null,null,null,"","100 - Education\n[100-2-016]Industrial and Administrator Engineer or [100-3-005]Business Administration or [100-3-007]International Commerce\n200 - Language\n[200-1-001]Advanced English\n300 - Knowledge\n[300-49]Materials Handling, [300-50]Inventories, [300-51]Arrangement, Assortment, and Delivery of Materials\n400 - Experience\n[400-2]Minimum 2 years experience in similar position, [400-43]Materialists Coordination, [400-44]Physical Inventory Control, [400-55]Shipments of finished product\n500 - Skills\n[500-23]Organization\n600 - Work Values\n[600-2]Dependability and Responsability, [600-4]Honesty and Integrity",null,null,662.0333333333333,662.0333333333333,{"$f":"15323/30","v":510.76666666666665},{"$f":"19861/30","v":662.0333333333333},{"$f":"19950/30","v":665},"IV.31"]
[55,"51-9060","IND","SAL","Materials","Production Control","Quality Assurance Inspector ","* Quality assurance inspectors ensure that products manufactured by their employers meet industry and federal standards. *Their goal is to assure that products can withstand regular use and that products work as intended. * inspectors analyze products, using either machinery or direct sensory observation, and determine whether they're suitable for the marketplace. ","100-2-009/100-2-007/100-2-014,200-1-001,300-20,300-21,300-22,300-23,300-24,400-3,400-13,400-31,400-19,400-14,500-7,500-13,500-24,600-4","10.21.07","III.12","620.128.411","620.128.411","620.128.411","620.128.411","620.128.411","620.128.411","620.128.411",null,null,null,"","100 - Education\n[100-2-009]Process Technology Engineer or [100-2-007]Industrial Engineer or [100-2-014]Industrial and Systems Engineer\n200 - Language\n[200-1-001]Advanced English\n300 - Knowledge\n[300-20]Quality Control, [300-21]Quality Assurance, [300-22]Measurement Equipment, [300-23]Quality Systems / TS / ISO, [300-24]Planning\n400 - Experience\n[400-3]Minimum 3 years experience in similar position, [400-13]HR Management, [400-31]Team Work, [400-19]New Projects Development and Implementation, [400-14]Lean Manufacturing\n500 - Skills\n[500-7]Judgement and Decision Making, [500-13]Change Adaptation, [500-24]Analytical\n600 - Work Values\n[600-4]Honesty and Integrity",null,null,184.43333333333334,184.43333333333334,{"$f":"4164/30","v":138.80000000000001},{"$f":"5533/30","v":184.43333333333334},{"$f":"6137/30","v":204.56666666666666},"III.12"]
[56,"13-1081\n","IND","SAL","Materials","Production Control","Production Planner","* Maintain and develop positive business relationships with a customer's key personnel involved in or directly relevant to a logistics activity. * Develop an understanding of customers' needs and take actions to ensure that such needs are met. * Direct availability and allocation of materials, supplies, and finished products. * Collaborate with other departments as necessary to meet customer requirements, to take advantage of sales opportunities or, in the case of shortages, to minimize negative impacts on a business.\n* Protect and control proprietary materials. * Review logistics performance with customers against targets, benchmarks and service agreements.","100-2-016/100-3-005/100-3-007,200-1-001,300-49,300-50,300-51,400-2,400-44,400-51,400-56,400-57,500-23,500-8,600-2,600-4","20.50.06","IV.27","600.725.360","600.725.360","600.725.360",null,"600.725.360","600.725.360","600.725.360",null,null,null,"","100 - Education\n[100-2-016]Industrial and Administrator Engineer or [100-3-005]Business Administration or [100-3-007]International Commerce\n200 - Language\n[200-1-001]Advanced English\n300 - Knowledge\n[300-49]Materials Handling, [300-50]Inventories, [300-51]Arrangement, Assortment, and Delivery of Materials\n400 - Experience\n[400-2]Minimum 2 years experience in similar position, [400-44]Physical Inventory Control, [400-51]Expedite of materials, [400-56]Programming and production control, [400-57]Inventory Management\n500 - Skills\n[500-23]Organization, [500-8]Communication and Oral Expression \n600 - Work Values\n[600-2]Dependability and Responsability, [600-4]Honesty and Integrity",null,null,714.51655158730171,714.51655158730171,{"$f":"18000/30","v":600},{"$f":"22358/30","v":745.26666666666665},{"$f":"28500/30","v":950},"IV.27"]
[57,"13-1199","ADM","SAL","Management","Customs","Traffic and Customs Manager","* Enforce adherence to work-flow processes and deadlines. * Development and maintenance of traffic management guidelines documentation. * Work with administrative as necessary for Purchase Order requests. * Maintain workload data for monthly and quarterly metric output.","100-3-005/100-3-004/100-3-007,200-1-001,300-36,300-79,300-81,300-80,400-5,400-44,400-91,400-89,400-90,400-92,500-15,500-7,500-9,500-14,500-24,600-2,600-4","20.10.02","IV.13B",null,null,null,null,null,null,null,null,null,null,"","100 - Education\n[100-3-005]Business Administration or [100-3-004]International Relations or [100-3-007]International Commerce\n200 - Language\n[200-1-001]Advanced English\n300 - Knowledge\n[300-36]Production Control, [300-79]International Commerce, [300-81]Customs Laws and Regulations, [300-80]Customs Systems (Annex 24)\n400 - Experience\n[400-5]Minimum 5 years experience in similar position, [400-44]Physical Inventory Control, [400-91]Administrative procedures in Customs, [400-89]Customs Reports, [400-90]Preparation of Annual Statements, [400-92]Mexican customs audit\n500 - Skills\n[500-15]Leadership, [500-7]Judgement and Decision Making, [500-9]Problem Sensitivity, [500-14]Proactive, [500-24]Analytical\n600 - Work Values\n[600-2]Dependability and Responsability, [600-4]Honesty and Integrity",null,null,825.30000000000007,825.30000000000007,{"$f":"32000/30","v":1066.6666666666667},{"$f":"38282/30","v":1276.0666666666666},{"$f":"40570/30","v":1352.3333333333333},"IV.13B"]
[58,"13-1199.03","ADM","SAL","Materials","Customs","Customs Supervisor","* Development and maintenance of traffic management guidelines documentation. * Work with administrative as necessary for Purchase Order requests. ","100-3-005/100-3-004/100-3-007,200-1-002,300-79,300-81,400-3,400-89,500-3,500-11,500-23,600-2","20.60.02","IV.14",null,"610.610.230",null,null,"610.610.230","610.610.230","610.610.230",null,null,null,"","100 - Education\n[100-3-005]Business Administration or [100-3-004]International Relations or [100-3-007]International Commerce\n200 - Language\n[200-1-002]Intermediate English\n300 - Knowledge\n[300-79]International Commerce, [300-81]Customs Laws and Regulations\n400 - Experience\n[400-3]Minimum 3 years experience in similar position, [400-89]Customs Reports\n500 - Skills\n[500-3]Monitoring, [500-11]Written Expression, [500-23]Organization\n600 - Work Values\n[600-2]Dependability and Responsability",null,null,847.30800000000011,847.30800000000011,{"$f":"20299/30","v":676.63333333333333},{"$f":"24928/30","v":830.93333333333328},{"$f":"32695/30","v":1089.8333333333333},"IV.14"]
[59,"11-3021","ADM","SAL","Management","MIS","Information Technologies Manager","* Review project plans to plan and coordinate project activity. *Manage backup, security and user help systems. *Develop and interpret organizational goals, policies, and procedures. *Develop computer information resources, providing for data security and control, strategic computing, and disaster recovery. *Consult with users, management, vendors, and technicians to assess computing needs and system requirements.","100-2-002/100-2-003,200-1-001,300-1,300-62,300-63,300-61,400-5,400-59,400-29,500-8,500-9,600-1","50.10.02","VII.1","310.100.210","310.100.210",null,null,"310.100.210","310.100.210","310.100.210",null,null,null,null,"100 - Education\n[100-2-002]Computer Systems Engineer in Hardware or [100-2-003]Computer Systems Engineer in Software\n200 - Language\n[200-1-001]Advanced English\n300 - Knowledge\n[300-1]Administration and Management, [300-62]Hardware, [300-63]Sofware, [300-61]Communication Systems\n400 - Experience\n[400-5]Minimum 5 years experience in similar position, [400-59]Communications equipment configuration, [400-29]Continuous Improvement\n500 - Skills\n[500-8]Communication and Oral Expression , [500-9]Problem Sensitivity\n600 - Work Values\n[600-1]Strong Work Ethic",null,null,1836.1666666666667,1836.1666666666667,{"$f":"53293/30","v":1776.4333333333334},{"$f":"55085/30","v":1836.1666666666667},{"$f":"57989/30","v":1932.9666666666667},"VII.1"]
[59,"11-3021","ADM","SAL","Management","MIS","Computer and Information Systems Manager","* Review project plans to plan and coordinate project activity. *Manage backup, security and user help systems. *Develop and interpret organizational goals, policies, and procedures. *Develop computer information resources, providing for data security and control, strategic computing, and disaster recovery. *Consult with users, management, vendors, and technicians to assess computing needs and system requirements.","100-2-002/100-2-003,200-1-001,300-1,300-62,300-63,300-61,400-5,400-59,400-29,500-8,500-9,600-1","50.10.02","VII.1","310.100.210","310.100.210",null,null,"310.100.210","310.100.210","310.100.210",null,null,null,{"$f":"IF(T74<>\"\",VLOOKUP(T74,ProgressivePositions,6,FALSE),\"\")","v":""},"100 - Education\n[100-2-002]Computer Systems Engineer in Hardware or [100-2-003]Computer Systems Engineer in Software\n200 - Language\n[200-1-001]Advanced English\n300 - Knowledge\n[300-1]Administration and Management, [300-62]Hardware, [300-63]Sofware, [300-61]Communication Systems\n400 - Experience\n[400-5]Minimum 5 years experience in similar position, [400-59]Communications equipment configuration, [400-29]Continuous Improvement\n500 - Skills\n[500-8]Communication and Oral Expression , [500-9]Problem Sensitivity\n600 - Work Values\n[600-1]Strong Work Ethic",null,null,1836.1666666666667,1836.1666666666667,{"$f":"53293/30","v":1776.4333333333334},{"$f":"55085/30","v":1836.1666666666667},{"$f":"57989/30","v":1932.9666666666667},"VII.1"]
[60,"15-1133","IND","SAL","Administrative","MIS","Systems Engineer","* Modify existing software to correct errors, to adapt it to new hardware, or to upgrade interfaces and improve performance. * Develop or direct software system testing or validation procedures. * Direct software programming and development of documentation. * Consult with customers or other departments on project status, proposals, or technical issues, such as software system design or maintenance. * Analyze information to determine, recommend, and plan installation of a new system or modification of an existing system. * Consult with engineering staff to evaluate interface between hardware and software, develop specifications and performance requirements, or resolve customer problems.","100-2-002/100-2-003,200-1-001,300-62,300-63,300-61,400-3,400-59,400-56,400-62,500-10,500-12,600-2","50.10.04","VII.5B","320.409.360",null,null,null,"320.409.360","320.409.360","320.409.360",null,null,null,null,"100 - Education\n[100-2-002]Computer Systems Engineer in Hardware or [100-2-003]Computer Systems Engineer in Software\n200 - Language\n[200-1-001]Advanced English\n300 - Knowledge\n[300-62]Hardware, [300-63]Sofware, [300-61]Communication Systems\n400 - Experience\n[400-3]Minimum 3 years experience in similar position, [400-59]Communications equipment configuration, [400-56]Programming and production control, [400-62]Data capture\n500 - Skills\n[500-10]Written Comprenhension, [500-12]Information Ordering\n600 - Work Values\n[600-2]Dependability and Responsability",null,null,600.4,600.4,{"$f":"14286/30","v":476.2},{"$f":"18012/30","v":600.4},{"$f":"22623/30","v":754.1},"VII.5B"]
[60,"15-1133","IND","SAL","Administrative","MIS","Software Engineer ","* Modify existing software to correct errors, to adapt it to new hardware, or to upgrade interfaces and improve performance. * Develop or direct software system testing or validation procedures. * Direct software programming and development of documentation. * Consult with customers or other departments on project status, proposals, or technical issues, such as software system design or maintenance. * Analyze information to determine, recommend, and plan installation of a new system or modification of an existing system. * Consult with engineering staff to evaluate interface between hardware and software, develop specifications and performance requirements, or resolve customer problems.","100-2-002/100-2-003,200-1-001,300-62,300-63,300-61,400-3,400-59,400-56,400-62,500-10,500-12,600-2","50.10.04","VII.5B","320.409.360",null,null,null,"320.409.360","320.409.360","320.409.360",null,null,null,{"$f":"IF(T76<>\"\",VLOOKUP(T76,ProgressivePositions,6,FALSE),\"\")","v":""},"100 - Education\n[100-2-002]Computer Systems Engineer in Hardware or [100-2-003]Computer Systems Engineer in Software\n200 - Language\n[200-1-001]Advanced English\n300 - Knowledge\n[300-62]Hardware, [300-63]Sofware, [300-61]Communication Systems\n400 - Experience\n[400-3]Minimum 3 years experience in similar position, [400-59]Communications equipment configuration, [400-56]Programming and production control, [400-62]Data capture\n500 - Skills\n[500-10]Written Comprenhension, [500-12]Information Ordering\n600 - Work Values\n[600-2]Dependability and Responsability",null,null,600.4,600.4,{"$f":"14286/30","v":476.2},{"$f":"18012/30","v":600.4},{"$f":"22623/30","v":754.1},"VII.5B"]
[61,"15-1151","IND","SAL","Administrative","MIS","Systems Technician","* Writing programs to handle data for a wide variety of applications * Operating and coordinating automated networks, datalinks and circuits. * Applying diagnostic, corrective and recovery techniques to information systems. * Analyzing communication signals.  * Providing telecommunications and computer-related training and assistance","100-4-006,200-1-003,300-62,300-61,400-1,400-60,500-3,600-2,600-4","50.10.06","VII.8",null,null,null,null,null,null,null,null,null,null,{"$f":"IF(T77<>\"\",VLOOKUP(T77,ProgressivePositions,6,FALSE),\"\")","v":""},"100 - Education\n[100-4-006]Systems\n200 - Language\n[200-1-003]Basic English\n300 - Knowledge\n[300-62]Hardware, [300-61]Communication Systems\n400 - Experience\n[400-1]Minimum 1 year experience in similar position, [400-60]Technical support\n500 - Skills\n[500-3]Monitoring\n600 - Work Values\n[600-2]Dependability and Responsability, [600-4]Honesty and Integrity",null,null,491.48500000000007,491.48500000000007,{"$f":"8077/30","v":269.23333333333335},{"$f":"11274/30","v":375.8},{"$f":"13542/30","v":451.4},"VII.8"]
[62,"15-1151","ADM","SAL","Administrative","MIS","Help Desk Engineer","*Receive, manage and record IT help desk requests receiving either by telephone or email. *Dealing with and resolving helpdesk requests e.g. adding users, Active Directory \nupdating, e-mail account creation, general IT trouble shooting. *Maintain appropriate logs of equipment, users and operational activities","100-2-002/100-2-003,200-1-001,300-11,300-39,400-3,400-62,400-77,500-1,500-12,500-14,600-2","50.60.02","VII.10",null,"330.404.420",null,"330.404.420","330.404.420","330.404.420","330.404.420",null,null,null,{"$f":"IF(T78<>\"\",VLOOKUP(T78,ProgressivePositions,6,FALSE),\"\")","v":""},"100 - Education\n[100-2-002]Computer Systems Engineer in Hardware or [100-2-003]Computer Systems Engineer in Software\n200 - Language\n[200-1-001]Advanced English\n300 - Knowledge\n[300-11]Engineering and Technology, [300-39]Suppliers and Contractors Management\n400 - Experience\n[400-3]Minimum 3 years experience in similar position, [400-62]Data capture, [400-77]Files Administration\n500 - Skills\n[500-1]Active Listening, [500-12]Information Ordering, [500-14]Proactive\n600 - Work Values\n[600-2]Dependability and Responsability",null,null,928.63333333333333,928.63333333333333,{"$f":"16448/30","v":548.26666666666665},{"$f":"27859/30","v":928.63333333333333},{"$f":"36993/30","v":1233.0999999999999},"VII.10"]
[63,"43-9021","IND","SAL","Administrative","MIS","Data Entry Clerk","* Prepares source data for computer entry by compiling and sorting information; establishing entry priorities. * Processes customer and account source documents by reviewing data for deficiencies; resolving discrepancies by using standard procedures or returning incomplete documents to the team leader for resolution.\n* Enters customer and account data by inputting alphabetic and numeric information on keyboard or optical scanner according to screen format. * Maintains data entry requirements by following data program techniques and procedures. * Verifies entered customer and account data by reviewing, correcting, deleting, or reentering data; combining data from both systems when account information is incomplete; purging files to eliminate duplication of data.","100-5,300-60,400-1,400-13,400-61,400-62,400-77,600-2,600-4","50.50.04","VII.12",null,"220.118.420",null,null,"220.118.420","220.118.420","220.118.420",null,null,null,{"$f":"IF(T79<>\"\",VLOOKUP(T79,ProgressivePositions,6,FALSE),\"\")","v":""},"100 - Education\n[100-5]High School\n300 - Knowledge\n[300-60]Office\n400 - Experience\n[400-1]Minimum 1 year experience in similar position, [400-13]HR Management, [400-61]Computer Systems, [400-62]Data capture, [400-77]Files Administration\n600 - Work Values\n[600-2]Dependability and Responsability, [600-4]Honesty and Integrity",null,null,160.26666666666668,160.26666666666668,{"$f":"4475/30","v":149.16666666666666},{"$f":"4808/30","v":160.26666666666668},{"$f":"5140/30","v":171.33333333333334},"VII.12"]
[64,"43-3031","ADM","SAL","Administrative","General Accounting","Accounting Supervisor","* Accomplishes accounting human resource objectives by selecting, orienting, training, assigning, scheduling, coaching, counseling, and disciplining employees; communicating job expectations; planning, monitoring, appraising job contributions; recommending compensation actions; adhering to policies and procedures.\n* Meets accounting operational standards by contributing financial information to strategic plans and reviews; implementing production, productivity, quality, and customer-service standards; resolving problems; identifying system improvements. * Meets accounting financial standards by providing accounting department annual budget information; monitoring expenditures; identifying variances; implementing corrective actions.","100-3-006,200-1-001,300-64,300-69,400-5,400-65,400-66,400-67,500-6,500-10,500-24,600-2,600-4","40.20.02","VI.6","210.340.230","320.409.360",null,"210.340.230","210.340.230","210.340.230","210.340.230",null,null,null,{"$f":"IF(T80<>\"\",VLOOKUP(T80,ProgressivePositions,6,FALSE),\"\")","v":""},"100 - Education\n[100-3-006]Public Accountant\n200 - Language\n[200-1-001]Advanced English\n300 - Knowledge\n[300-64]General Accounting, [300-69]Accounting Systems\n400 - Experience\n[400-5]Minimum 5 years experience in similar position, [400-65]Tax Calculation and Refunds, [400-66]Reconciliations, [400-67]Accounting records\n500 - Skills\n[500-6]Complex Problem Solving, [500-10]Written Comprenhension, [500-24]Analytical\n600 - Work Values\n[600-2]Dependability and Responsability, [600-4]Honesty and Integrity",null,null,946,946,{"$f":"22818/30","v":760.6},{"$f":"28380/30","v":946},{"$f":"31541/30","v":1051.3666666666666},"VI.6"]
[65,"13-2011","IND","SAL","Administrative","General Accounting","Accountant","* Prepares asset, liability, and capital account entries by compiling and analyzing account information. *Documents financial transactions by entering account information.\n*Recommends financial actions by analyzing accounting options. *Summarizes current financial status by collecting information; preparing balance sheet, profit and loss statement, and other reports. *Substantiates financial transactions by auditing documents. *Maintains accounting controls by preparing and recommending policies and procedures.","100-3-006,200-1-001,300-64,300-65,300-69,400-4,400-67,400-90,500-12,500-18,500-23,500-24,600,2,600-4","40.20.04","VI.7",null,"210.316.360",null,"210.340.230","210.340.230","210.340.230","210.340.230",null,null,null,null,"100 - Education\n[100-3-006]Public Accountant\n200 - Language\n[200-1-001]Advanced English, [2]\n300 - Knowledge\n[300-64]General Accounting, [300-65]ISR, IMSS, taxes, LFT and other laws related with the function, [300-69]Accounting Systems\n400 - Experience\n[400-4]Minimum 4 years experience in similar position, [400-67]Accounting records, [400-90]Preparation of Annual Statements\n500 - Skills\n[500-12]Information Ordering, [500-18]Stress management, [500-23]Organization, [500-24]Analytical\n600 - Work Values\n[600], [600-4]Honesty and Integrity",null,null,926.23333333333335,926.23333333333335,{"$f":"20861/30","v":695.36666666666667},{"$f":"27787/30","v":926.23333333333335},{"$f":"29750/30","v":991.66666666666663},"VI.7"]
[65,"13-2011","IND","SAL","Administrative","General Accounting","Cost Accountant ","* Prepares asset, liability, and capital account entries by compiling and analyzing account information. *Documents financial transactions by entering account information.\n*Recommends financial actions by analyzing accounting options. *Summarizes current financial status by collecting information; preparing balance sheet, profit and loss statement, and other reports. *Substantiates financial transactions by auditing documents. *Maintains accounting controls by preparing and recommending policies and procedures.","100-3-006,200-1-001,300-64,300-65,300-69,400-4,400-67,400-90,500-12,500-18,500-23,500-24,600,2,600-4","40.20.04","VI.7",null,"210.316.360",null,"210.340.230","210.340.230","210.340.230","210.340.230",null,null,null,{"$f":"IF(T82<>\"\",VLOOKUP(T82,ProgressivePositions,6,FALSE),\"\")","v":""},"100 - Education\n[100-3-006]Public Accountant\n200 - Language\n[200-1-001]Advanced English, [2]\n300 - Knowledge\n[300-64]General Accounting, [300-65]ISR, IMSS, taxes, LFT and other laws related with the function, [300-69]Accounting Systems\n400 - Experience\n[400-4]Minimum 4 years experience in similar position, [400-67]Accounting records, [400-90]Preparation of Annual Statements\n500 - Skills\n[500-12]Information Ordering, [500-18]Stress management, [500-23]Organization, [500-24]Analytical\n600 - Work Values\n[600], [600-4]Honesty and Integrity",null,null,926.23333333333335,926.23333333333335,{"$f":"20861/30","v":695.36666666666667},{"$f":"27787/30","v":926.23333333333335},{"$f":"29750/30","v":991.66666666666663},"VI.7"]
[66,"43-3051","IND","SAL","Human Resources","Payroll","Payroll General Supervisor","* Checking people's hours. * Making the monthly payments on time. * Working out tax and national insurance deductions. * Setting up new members of staff. * Calculating overtime. ","100-3-006/100-3-002/100-3-008,200-1-002,300-64,300-65,300-68,300-74,400-4,400-13,400-69,500-24,600-4","40.30.02","V.6","120.256.230","120.256.230",null,"120.256.230","120.256.230","120.256.230","120.256.230",null,null,null,{"$f":"IF(T83<>\"\",VLOOKUP(T83,ProgressivePositions,6,FALSE),\"\")","v":""},"100 - Education\n[100-3-006]Public Accountant or [100-3-002]Financial Administration or [100-3-008]Human Resources\n200 - Language\n[200-1-002]Intermediate English\n300 - Knowledge\n[300-64]General Accounting, [300-65]ISR, IMSS, taxes, LFT and other laws related with the function, [300-68]Payroll Systems, [300-74]Payroll Management\n400 - Experience\n[400-4]Minimum 4 years experience in similar position, [400-13]HR Management, [400-69]Payroll calculation\n500 - Skills\n[500-24]Analytical\n600 - Work Values\n[600-4]Honesty and Integrity",null,null,785.83333333333337,785.83333333333337,{"$f":"21863/30","v":728.76666666666665},{"$f":"23575/30","v":785.83333333333337},{"$f":"25288/30","v":842.93333333333328},"V.6"]
[67,"43-3031","IND","SAL","Administrative","General Accounting","Accounts Payable Supervisor","* Ensure the smooth running of the Accounts Payable department. * Performing the month end closing process and reconciliation of the ledgers. * Maintain excellent working relationship with external supplier. * Ensure the Accounts Payable team are replying to all queries in a timely manner and all queries are dealt with correctly and efficiently.\n* Provide day to day management of the Purchase Ledger team - motivating and leading the team you will also lead the way in developing processes and efficiencies.\n* Performance management of staff and monthly appraisals. ","100-3-006/100-3-008/100-3-002,200-1-002,300-1,300-64,300-65,400-5,400-13,400-68,400-69,500-24,600-2,600-4","40.40.02","VI.15",null,"210.320.230",null,"210.320.230","210.320.230","210.320.230","210.320.230",null,null,null,{"$f":"IF(T84<>\"\",VLOOKUP(T84,ProgressivePositions,6,FALSE),\"\")","v":""},"100 - Education\n[100-3-006]Public Accountant or [100-3-008]Human Resources or [100-3-002]Financial Administration\n200 - Language\n[200-1-002]Intermediate English\n300 - Knowledge\n[300-1]Administration and Management, [300-64]General Accounting, [300-65]ISR, IMSS, taxes, LFT and other laws related with the function\n400 - Experience\n[400-5]Minimum 5 years experience in similar position, [400-13]HR Management, [400-68]Elaboration of Reports, [400-69]Payroll calculation\n500 - Skills\n[500-24]Analytical\n600 - Work Values\n[600-2]Dependability and Responsability, [600-4]Honesty and Integrity",null,null,582.73333333333335,582.73333333333335,{"$f":"15400/30","v":513.33333333333337},{"$f":"17482/30","v":582.73333333333335},{"$f":"19601/30","v":653.36666666666667},"VI.15"]
[68,"43-3031","ADM","SAL","Administrative","General Accounting","Accounting Clerk","* Maintains accounting records by making copies; filing documents. * Reconciles bank statements by comparing statements with general ledger. * Maintains accounting databases by entering data into the computer; processing backups. * Verifies financial reports by running performance analysis software program.","100-4-007,200-1-002,300-64,300-69,400-2,400-67,400-68,500-10,500-12,500-24,600-2","40.20.07","VI.8","210.316.430","210.316.430",null,null,"210.316.430","210.316.430","210.316.430",null,null,null,{"$f":"IF(T85<>\"\",VLOOKUP(T85,ProgressivePositions,6,FALSE),\"\")","v":""},"100 - Education\n[100-4-007]Accounting\n200 - Language\n[200-1-002]Intermediate English\n300 - Knowledge\n[300-64]General Accounting, [300-69]Accounting Systems\n400 - Experience\n[400-2]Minimum 2 years experience in similar position, [400-67]Accounting records, [400-68]Elaboration of Reports\n500 - Skills\n[500-10]Written Comprenhension, [500-12]Information Ordering, [500-24]Analytical\n600 - Work Values\n[600-2]Dependability and Responsability",null,null,458.06666666666666,458.06666666666666,{"$f":"10526/30","v":350.86666666666667},{"$f":"13742/30","v":458.06666666666666},{"$f":"15925/30","v":530.83333333333337},"VI.8"]
[69,"43-3051","ADM","SAL","Human Resources","Payroll","Payroll Assistant","* Maintains payroll information by collecting, calculating, and entering data. * Updates payroll records by entering changes in exemptions, insurance coverage, savings deductions, and job title and department/division transfers. * Prepares reports by compiling summaries of earnings, taxes, deductions, leave, disability, and nontaxable wages. * Determines payroll liabilities by calculating employee federal and state income and social security taxes and employer's social security, unemployment, and workers compensation payments.","100-4-008,200-1-003,300-68,300-74,400-2,500-7,500-8,600-2,600-4","40.30.04","VI.13B","120.256.360","120.256.360",null,null,"120.256.360","120.256.360","120.256.360",null,null,null,null,"100 - Education\n[100-4-008]Administration\n200 - Language\n[200-1-003]Basic English\n300 - Knowledge\n[300-68]Payroll Systems, [300-74]Payroll Management\n400 - Experience\n[400-2]Minimum 2 years experience in similar position\n500 - Skills\n[500-7]Judgement and Decision Making, [500-8]Communication and Oral Expression \n600 - Work Values\n[600-2]Dependability and Responsability, [600-4]Honesty and Integrity",null,null,465.26666666666665,465.26666666666665,{"$f":"12370/30","v":412.33333333333331},{"$f":"13958/30","v":465.26666666666665},{"$f":"15895/30","v":529.83333333333337},"VI.13B"]
[70,"11-3121","ADM","SAL","Management","Human Resources","Human Resources Manager","* Serve as a link between management and employees by handling questions, interpreting and administering contracts and helping resolve work-related problems. * Analyze and modify compensation and benefits policies to establish competitive programs and ensure compliance with legal requirements. * Advise managers on organizational policy matters such as equal employment opportunity and sexual harassment, and recommend needed changes. * Perform difficult staffing duties, including dealing with understaffing, refereeing disputes, firing employees, and administering disciplinary procedures. * Plan and conduct new employee orientation to foster positive attitude toward organizational objectives. * Identify staff vacancies and recruit, interview and select applicants. * Plan, direct, supervise, and coordinate work activities of subordinates and staff relating to employment, compensation, labor relations, and employee relations.","100-3-008/100-3-005,200-1-001,300-65,300-71,300-70,300-72,300-73,300-74,400-5,400-13,400-74,500-8,500-1,500-8,500-19,600-2,600-4","30.12.02","V.4","120.100.220","120.100.220","120.100.220","120.100.220","120.100.220","120.100.220","120.100.220",null,null,null,{"$f":"IF(T87<>\"\",VLOOKUP(T87,ProgressivePositions,6,FALSE),\"\")","v":""},"100 - Education\n[100-3-008]Human Resources or [100-3-005]Business Administration\n200 - Language\n[200-1-001]Advanced English\n300 - Knowledge\n[300-65]ISR, IMSS, taxes, LFT and other laws related with the function, [300-71]Labor Relations Management, [300-70]Training, [300-72]Recruitment and Selection process, [300-73]Organizational Development, [300-74]Payroll Management\n400 - Experience\n[400-5]Minimum 5 years experience in similar position, [400-13]HR Management, [400-74]HR Planning\n500 - Skills\n[500-8]Communication and Oral Expression , [500-1]Active Listening, [500-8]Communication and Oral Expression , [500-19]Empathy\n600 - Work Values\n[600-2]Dependability and Responsability, [600-4]Honesty and Integrity",null,null,1464.1666666666667,1464.1666666666667,{"$f":"42023/30","v":1400.7666666666667},{"$f":"43925/30","v":1464.1666666666667},{"$f":"46234/30","v":1541.1333333333334},"V.4"]
[70,"11-3121","ADM","SAL","Management","Human Resources","Employee Relations Manager","* Serve as a link between management and employees by handling questions, interpreting and administering contracts and helping resolve work-related problems. * Analyze and modify compensation and benefits policies to establish competitive programs and ensure compliance with legal requirements. * Advise managers on organizational policy matters such as equal employment opportunity and sexual harassment, and recommend needed changes. * Perform difficult staffing duties, including dealing with understaffing, refereeing disputes, firing employees, and administering disciplinary procedures. * Plan and conduct new employee orientation to foster positive attitude toward organizational objectives. * Identify staff vacancies and recruit, interview and select applicants. * Plan, direct, supervise, and coordinate work activities of subordinates and staff relating to employment, compensation, labor relations, and employee relations.","100-3-008/100-3-005,200-1-001,300-65,300-71,300-70,300-72,300-73,300-74,400-5,400-13,400-74,500-8,500-1,500-8,500-19,600-2,600-4","30.12.02","V.4","120.100.220","120.100.220","120.100.220","120.100.220","120.100.220","120.100.220","120.100.220",null,null,null,{"$f":"IF(T88<>\"\",VLOOKUP(T88,ProgressivePositions,6,FALSE),\"\")","v":""},"100 - Education\n[100-3-008]Human Resources or [100-3-005]Business Administration\n200 - Language\n[200-1-001]Advanced English\n300 - Knowledge\n[300-65]ISR, IMSS, taxes, LFT and other laws related with the function, [300-71]Labor Relations Management, [300-70]Training, [300-72]Recruitment and Selection process, [300-73]Organizational Development, [300-74]Payroll Management\n400 - Experience\n[400-5]Minimum 5 years experience in similar position, [400-13]HR Management, [400-74]HR Planning\n500 - Skills\n[500-8]Communication and Oral Expression , [500-1]Active Listening, [500-8]Communication and Oral Expression , [500-19]Empathy\n600 - Work Values\n[600-2]Dependability and Responsability, [600-4]Honesty and Integrity",null,null,1464.1666666666667,1464.1666666666667,{"$f":"42023/30","v":1400.7666666666667},{"$f":"43925/30","v":1464.1666666666667},{"$f":"46234/30","v":1541.1333333333334},"V.4"]
[71,"13-1071","IND","SAL","Human Resources","Personnel Management","Human Resources General Supervisor","* Assists in scheduling a variety of meetings and employee events for the purpose of meeting the needs of the department, District and\nemployees. * Audits monthly personnel actions prepared by staff for the purpose of to ensure consistency with position control report (PCR) and\nto ensure that errors are kept to a minimum and that correct account numbers are used. * Communicates with other employees, departments, administrators, applicants and the public for the purpose of providing information and assistance concerning employment, recruitment, transfers, personnel records, leaves. licenses, and related legal\nrequirements.","100-3-005/100-3-008,200-1-001,300-65,300-70,300-71,300-72,300-74,400-3,400-75,500-1,500-8,600-2,600-4","30.10.03","V.7","120.252.230","120.252.230",null,null,"120.252.230","120.252.230","120.252.230",null,null,null,null,"100 - Education\n[100-3-005]Business Administration or [100-3-008]Human Resources\n200 - Language\n[200-1-001]Advanced English\n300 - Knowledge\n[300-65]ISR, IMSS, taxes, LFT and other laws related with the function, [300-70]Training, [300-71]Labor Relations Management, [300-72]Recruitment and Selection process, [300-74]Payroll Management\n400 - Experience\n[400-3]Minimum 3 years experience in similar position, [400-75]HR Process Management\n500 - Skills\n[500-1]Active Listening, [500-8]Communication and Oral Expression \n600 - Work Values\n[600-2]Dependability and Responsability, [600-4]Honesty and Integrity",null,null,858.83333333333337,858.83333333333337,{"$f":"23034/30","v":767.8},{"$f":"25765/30","v":858.83333333333337},{"$f":"28195/30","v":939.83333333333337},"V.7"]
[72,"13-1071","IND","SAL","Human Resources","Personnel Management","Human Resources Assistant","* Substantiates applicants' skills by administering and scoring tests. * Schedules examinations by coordinating appointments. * Welcomes new employees to the organization by conducting orientation. * Provides payroll information by collecting time and attendance records. * Submits employee data reports by assembling, preparing, and analyzing data.","100-4-008/100-5,200-1-003,300-72,300-74,300-76,400-1,400-62,500-8,600-2,600-4","30.10.07","V.9","120.252.360","120.252.360",null,null,"120.252.360","120.252.360","120.252.360",null,null,null,{"$f":"IF(T90<>\"\",VLOOKUP(T90,ProgressivePositions,6,FALSE),\"\")","v":""},"100 - Education\n[100-4-008]Administration or [100-5]High School\n200 - Language\n[200-1-003]Basic English\n300 - Knowledge\n[300-72]Recruitment and Selection process, [300-74]Payroll Management, [300-76]HR Management Systems\n400 - Experience\n[400-1]Minimum 1 year experience in similar position, [400-62]Data capture\n500 - Skills\n[500-8]Communication and Oral Expression \n600 - Work Values\n[600-2]Dependability and Responsability, [600-4]Honesty and Integrity",null,null,416.93333333333334,416.93333333333334,{"$f":"9478/30","v":315.93333333333334},{"$f":"12508/30","v":416.93333333333334},{"$f":"14246/30","v":474.86666666666667},"V.9"]
[73,"43-6014","IND","SAL","Administrative","Administrative Support","Bilingual Receptionist","* Provide administrative support to the staff, including, filing, answering phones, faxing, mail distribution, supply orders, develop forms & surveys, maintenance of grant files and reports, general correspondence and billing systems.  * Maintain a clean and organized work space. * Receive and direct incoming phone calls and direct visitors/clients; transmit messages in a timely, courteous and accurate manner. * Complete work orders for building maintenance requests. * Assist with office equipment operations; order office supplies. * Maintain lobby, personal space and common areas orderly.","100-3-005/100-5,200-1-001,300-60,400-1,400-62,400-77,400-78,500-8,600-2","30.10.08","V.20","220.368.420","220.368.420",null,null,"220.368.420","220.368.420","220.368.420",null,null,null,"","100 - Education\n[100-3-005]Business Administration or [100-5]High School\n200 - Language\n[200-1-001]Advanced English\n300 - Knowledge\n[300-60]Office\n400 - Experience\n[400-1]Minimum 1 year experience in similar position, [400-62]Data capture, [400-77]Files Administration, [400-78]Customer Service\n500 - Skills\n[500-8]Communication and Oral Expression \n600 - Work Values\n[600-2]Dependability and Responsability",null,null,648.12666666666667,648.12666666666667,{"$f":"11782/30","v":392.73333333333335},{"$f":"12979/30","v":432.63333333333333},{"$f":"14250/30","v":475},"V.20"]
[73,"43-6014","IND","SAL","Administrative","Administrative Support","Bilingual Assistant-Management","* Perform administrative duties including preparation of letters, memos, and various reports. * Maintain schedules and calendars using computer software.\n* Enter, update, and maintain data in various databases using a computer. * Receive messages and communicate via telephone, email, and in person with citizens, department personnel, and other staff members.* Establish and maintain paper records and files. * Proofread written materials for accuracy including proper spelling, grammar, vocabulary and punctuation.","100-3-005/100-5,200-1-001,300-60,400-2,400-62,400-77,400-78,500-8,500-14,600-2,600-4","30.10.08","V.20","220.368.420","220.368.420",null,null,"220.368.420","220.368.420","220.368.420",null,null,null,"","100 - Education\n[100-3-005]Business Administration or [100-5]High School\n200 - Language\n[200-1-001]Advanced English\n300 - Knowledge\n[300-60]Office\n400 - Experience\n[400-2]Minimum 2 years experience in similar position, [400-62]Data capture, [400-77]Files Administration, [400-78]Customer Service\n500 - Skills\n[500-8]Communication and Oral Expression , [500-14]Proactive\n600 - Work Values\n[600-2]Dependability and Responsability, [600-4]Honesty and Integrity",null,null,648.12666666666667,648.12666666666667,{"$f":"11782/30","v":392.73333333333335},{"$f":"12979/30","v":432.63333333333333},{"$f":"14250/30","v":475},"V.20"]
[73,"43-6011","IND","SAL","Administrative","Administrative Support","Administrative Assistant ","* Perform administrative duties including preparation of letters, memos, and various reports. * Enter, update, and maintain data in various databases using a computer.                            * Receive messages and communicate via telephone, email, and in person with citizens, department personnel, and other staff members.* Establish and maintain paper records and files. * Proofread written materials for accuracy including proper spelling, grammar, vocabulary and punctuation.","100-3-005/100-5,200-1-001,300-60,400-2,400-62,400-77,400-78,500-8,500-14,600-2,600-4","30.10.08","V.20","220.368.420","220.368.420",null,null,"220.368.420","220.368.420","220.368.420",null,null,null,"","100 - Education\n[100-3-005]Business Administration or [100-5]High School\n200 - Language\n[200-1-001]Advanced English\n300 - Knowledge\n[300-60]Office\n400 - Experience\n[400-2]Minimum 2 years experience in similar position, [400-62]Data capture, [400-77]Files Administration, [400-78]Customer Service\n500 - Skills\n[500-8]Communication and Oral Expression , [500-14]Proactive\n600 - Work Values\n[600-2]Dependability and Responsability, [600-4]Honesty and Integrity",null,null,648.12666666666667,648.12666666666667,{"$f":"11782/30","v":392.73333333333335},{"$f":"12979/30","v":432.63333333333333},{"$f":"14250/30","v":475},"V.20"]
[74,"17-2081","IND","SAL","Environmental","Environmental","Environmental Engineer","* Design or supervise the design of systems, processes, or equipment for control, management, or remediation of water, air, or soil quality. * Green Task Statement\nAdvise corporations or government agencies of procedures to follow in cleaning up contaminated sites to protect people and the environment. * Green Task Statement\nCollaborate with environmental scientists, planners, hazardous waste technicians, engineers, experts in law or business, or other specialists to address environmental problems. * Green Task Statement\nObtain, update, or maintain plans, permits, or standard operating procedures. * Green Task Statement\nServe as liaison with federal, state, or local agencies or officials on issues pertaining to solid or hazardous waste program requirements. * Green Task Statement\nProvide technical support for environmental remediation or litigation projects, including remediation system design or determination of regulatory applicability","100-2-011,200-1-001,300-77,300-78,300-28,400-5,400-79,400-82,400-83,400-84,400-85,500-17,600-2","30.60.03","V.23",null,"510.668.350",null,null,null,null,null,null,null,null,"","100 - Education\n[100-2-011]Environmental Engineer\n200 - Language\n[200-1-001]Advanced English\n300 - Knowledge\n[300-77]Mexican Environmental Standards, [300-78]Environmental Self-management Programs, [300-28]Continuous Improvement\n400 - Experience\n[400-5]Minimum 5 years experience in similar position, [400-79]Elaboration of Contingency Plans, [400-82]Elaboration of Environmental and Safety Programs, [400-83]Accident Prevention Programs and Health, [400-84]Reports and Environmental Impact Programs, [400-85]Environmental Procedures \n500 - Skills\n[500-17]Self-management\n600 - Work Values\n[600-2]Dependability and Responsability",null,null,379.83333333333331,379.83333333333331,{"$f":"20096/30","v":669.86666666666667},{"$f":"24768/30","v":825.6},{"$f":"28810/30","v":960.33333333333337},"V.23"]
[74,"17-2081","IND","SAL","Environmental","Environmental","Environmental Analyst ","* Design or supervise the design of systems, processes, or equipment for control, management, or remediation of water, air, or soil quality. * Green Task Statement\nAdvise corporations or government agencies of procedures to follow in cleaning up contaminated sites to protect people and the environment. * Green Task Statement\nCollaborate with environmental scientists, planners, hazardous waste technicians, engineers, experts in law or business, or other specialists to address environmental problems. * Green Task Statement\nObtain, update, or maintain plans, permits, or standard operating procedures. * Green Task Statement\nServe as liaison with federal, state, or local agencies or officials on issues pertaining to solid or hazardous waste program requirements. * Green Task Statement\nProvide technical support for environmental remediation or litigation projects, including remediation system design or determination of regulatory applicability","100-2-011,200-1-001,300-77,300-78,300-28,400-5,400-79,400-82,400-83,400-84,400-85,500-17,600-2","30.60.04","V.24",null,"510.668.350",null,null,null,null,null,null,null,null,"","100 - Education\n[100-2-011]Environmental Engineer\n200 - Language\n[200-1-001]Advanced English\n300 - Knowledge\n[300-77]Mexican Environmental Standards, [300-78]Environmental Self-management Programs, [300-28]Continuous Improvement\n400 - Experience\n[400-5]Minimum 5 years experience in similar position, [400-79]Elaboration of Contingency Plans, [400-82]Elaboration of Environmental and Safety Programs, [400-83]Accident Prevention Programs and Health, [400-84]Reports and Environmental Impact Programs, [400-85]Environmental Procedures \n500 - Skills\n[500-17]Self-management\n600 - Work Values\n[600-2]Dependability and Responsability",null,null,379.83333333333331,379.83333333333331,{"$f":"20096/30","v":669.86666666666667},{"$f":"24768/30","v":825.6},{"$f":"28810/30","v":960.33333333333337},"V.24"]
[75,"29-9012","IND","SAL","Environmental","Hygene and Security","Health & Safety Technician","* Examine credentials, licenses, or permits to ensure compliance with licensing requirements. * Help direct rescue and firefighting operations in the event of a fire or an explosion. * Maintain all required records and documentation. * Maintain logbooks of daily activities, including areas visited and activities performed. * Plan emergency response drills.\n","100-4-008,300-26,300-77,400-2,400-82,400-79,400-83,500-16,500-14,600-2,600-4","30.70.05","V.30",null,"510.240.360","510.240.360",null,"510.240.360","510.240.360","510.240.360",null,null,null,"","100 - Education\n[100-4-008]Administration\n300 - Knowledge\n[300-26]8 D's, [300-77]Mexican Environmental Standards\n400 - Experience\n[400-2]Minimum 2 years experience in similar position, [400-82]Elaboration of Environmental and Safety Programs, [400-79]Elaboration of Contingency Plans, [400-83]Accident Prevention Programs and Health\n500 - Skills\n[500-16]Team Work, [500-14]Proactive\n600 - Work Values\n[600-2]Dependability and Responsability, [600-4]Honesty and Integrity",null,null,346.5,346.5,{"$f":"9376/30","v":312.53333333333336},{"$f":"10395/30","v":346.5},{"$f":"11930/30","v":397.66666666666669},"V.30"]
[76,"29-1171","IND","SAL","Human Resources","Medical Assistance","Nurse","* Assessing and planning nursing care requirements. * Providing pre- and post-operation care.  * Monitoring and administering medication and intravenous infusions\ntaking patient samples, pulses, temperatures and blood pressures. * Writing records. * Supervising junior staff","100-4-012,300-83,400-2,400-83,500-8,500-16,600-2,600-4","30.70.12","V.37",null,"600.240.330",null,null,"600.240.330","600.240.330","600.240.330",null,null,null,"","100 - Education\n[100-4-012]Nursing\n300 - Knowledge\n[300-83]Clinical History Records \n400 - Experience\n[400-2]Minimum 2 years experience in similar position, [400-83]Accident Prevention Programs and Health\n500 - Skills\n[500-8]Communication and Oral Expression , [500-16]Team Work\n600 - Work Values\n[600-2]Dependability and Responsability, [600-4]Honesty and Integrity",null,null,400,400,{"$f":"9243/30","v":308.10000000000002},{"$f":"10064/30","v":335.46666666666664},{"$f":"11203/30","v":373.43333333333334},"V.37"]
[77,"43-5021","ADM","SAL","Administrative","Administrative Support","Chauffeur/Messenger","* Receive and record communication and other materials to be delivered, and \nsecure information on recipients.  * Sort items to be delivered according to the delivery route, load and/or unload the \nsame. * Plan and follow the most efficient routes for delivering said items.  * Deliver communications, parcel, packages and other items to other \nestablishments and offices as directed. \n","100-7,400-1,400-78,600-2,600-4","60.10.12","V.21",null,"220.112.431",null,"220.112.431","220.112.431","220.112.431","220.112.431",null,null,null,"","100 - Education\n[100-7]Elementary School\n400 - Experience\n[400-1]Minimum 1 year experience in similar position, [400-78]Customer Service\n600 - Work Values\n[600-2]Dependability and Responsability, [600-4]Honesty and Integrity",null,null,329.33333333333331,329.33333333333331,{"$f":"6862/30","v":228.73333333333332},{"$f":"9880/30","v":329.33333333333331},{"$f":"11288/30","v":376.26666666666665},"V.21"]
[78,"53-7062","IND","SAL","Materials","Materials Handling / Warehouse","Material Handler","* Loads, unloads, and moves materials within or near plant, yard, or work site, performing any combination of following duties: Reads work order or follows oral instructions to ascertain materials or containers to be moved. * Loads and unloads materials onto or from pallets, trays, racks, and shelves by hand. * Loads materials into vehicles and installs strapping, bracing, or padding to prevent shifting or damage in transit, using handtools. * Conveys materials to or from storage or work sites to designated area, using handtruck, electric dolly, wheelbarrow, or other device.","100-4-004/100-5,300-21,300-40,300-49,400-2,400-51,600-2,600-4","20.10.05","IV.7B",null,null,null,null,null,null,null,null,null,null,null,"100 - Education\n[100-4-004]Machinery and Tools or [100-5]High School\n300 - Knowledge\n[300-21]Quality Assurance, [300-40]Preventive and Corrective Maintenance, [300-49]Materials Handling\n400 - Experience\n[400-2]Minimum 2 years experience in similar position, [400-51]Expedite of materials\n600 - Work Values\n[600-2]Dependability and Responsability, [600-4]Honesty and Integrity",null,null,267.76190476190476,267.76190476190476,{"$f":"7496/30","v":249.86666666666667},{"$f":"8683/30","v":289.43333333333334},{"$f":"11060/30","v":368.66666666666669},"IV.7B"]
[79,"17-2112 ","IND","SAL","Manufacturing","Engineering","Industrial Engineer","* Plan and establish sequence of operations to fabricate and assemble parts or products and to promote efficient utilization. * Review production schedules, engineering specifications, orders, and related information to obtain knowledge of manufacturing methods, procedures, and activities. * Estimate production costs, cost saving methods, and the effects of product design changes on expenditures for management review, action, and control. * Draft and design layout of equipment, materials, and workspace to illustrate maximum efficiency using drafting tools and computer. * Coordinate and implement quality control objectives, activities, or procedures to resolve production problems, maximize product reliability, or minimize costs.","100-2-007,200-1-001,300-23,300-36,300-28,300-42,400-4,400-14,400-25,400-19,500-7,500-13,600-1,600-2","10.30.59","II.30B",null,"510.676.360",null,"510.676.360","510.676.360","510.676.360","510.676.360",null,null,null,{"$f":"IF(T100<>\"\",VLOOKUP(T100,ProgressivePositions,6,FALSE),\"\")","v":""},"100 - Education\n[100-2-007]Industrial Engineer\n200 - Language\n[200-1-001]Advanced English\n300 - Knowledge\n[300-23]Quality Systems / TS / ISO, [300-36]Production Control, [300-28]Continuous Improvement, [300-42]Standardization of Processes\n400 - Experience\n[400-4]Minimum 4 years experience in similar position, [400-14]Lean Manufacturing, [400-25]Planning and Control, [400-19]New Projects Development and Implementation\n500 - Skills\n[500-7]Judgement and Decision Making, [500-13]Change Adaptation\n600 - Work Values\n[600-1]Strong Work Ethic, [600-2]Dependability and Responsability",null,null,614.26444444444439,614.26444444444439,{"$f":"19049/30","v":634.9666666666667},{"$f":"25000/30","v":833.33333333333337},{"$f":"28994/30","v":966.4666666666667},"II.30B"]
[79,"17-2112 ","IND","SAL","Manufacturing","Engineering","Tool Engineer ","* Plan and establish sequence of operations to fabricate and assemble parts or products and to promote efficient utilization. * Review production schedules, engineering specifications, orders, and related information to obtain knowledge of manufacturing methods, procedures, and activities. * Estimate production costs, cost saving methods, and the effects of product design changes on expenditures for management review, action, and control. * Draft and design layout of equipment, materials, and workspace to illustrate maximum efficiency using drafting tools and computer. * Coordinate and implement quality control objectives, activities, or procedures to resolve production problems, maximize product reliability, or minimize costs.","100-2-007,200-1-001,300-23,300-36,300-28,300-42,400-4,400-14,400-25,400-19,500-7,500-13,600-1,600-2","10.30.59","II.30B",null,"510.676.360",null,"510.676.360","510.676.360","510.676.360","510.676.360",null,null,null,"","100 - Education\n[100-2-007]Industrial Engineer\n200 - Language\n[200-1-001]Advanced English\n300 - Knowledge\n[300-23]Quality Systems / TS / ISO, [300-36]Production Control, [300-28]Continuous Improvement, [300-42]Standardization of Processes\n400 - Experience\n[400-4]Minimum 4 years experience in similar position, [400-14]Lean Manufacturing, [400-25]Planning and Control, [400-19]New Projects Development and Implementation\n500 - Skills\n[500-7]Judgement and Decision Making, [500-13]Change Adaptation\n600 - Work Values\n[600-1]Strong Work Ethic, [600-2]Dependability and Responsability",null,null,614.26444444444439,614.26444444444439,{"$f":"19049/30","v":634.9666666666667},{"$f":"25000/30","v":833.33333333333337},{"$f":"28994/30","v":966.4666666666667},"II.30B"]
[79,"17-2112 ","IND","SAL","Manufacturing","Engineering","Production Engineer ","* Plan and establish sequence of operations to fabricate and assemble parts or products and to promote efficient utilization. * Review production schedules, engineering specifications, orders, and related information to obtain knowledge of manufacturing methods, procedures, and activities. * Estimate production costs, cost saving methods, and the effects of product design changes on expenditures for management review, action, and control. * Draft and design layout of equipment, materials, and workspace to illustrate maximum efficiency using drafting tools and computer. * Coordinate and implement quality control objectives, activities, or procedures to resolve production problems, maximize product reliability, or minimize costs.","100-2-007,200-1-001,300-23,300-36,300-28,300-42,400-4,400-14,400-25,400-19,500-7,500-13,600-1,600-2","10.30.59","II.30B",null,"510.676.360",null,"510.676.360","510.676.360","510.676.360","510.676.360",null,null,null,"","100 - Education\n[100-2-007]Industrial Engineer\n200 - Language\n[200-1-001]Advanced English\n300 - Knowledge\n[300-23]Quality Systems / TS / ISO, [300-36]Production Control, [300-28]Continuous Improvement, [300-42]Standardization of Processes\n400 - Experience\n[400-4]Minimum 4 years experience in similar position, [400-14]Lean Manufacturing, [400-25]Planning and Control, [400-19]New Projects Development and Implementation\n500 - Skills\n[500-7]Judgement and Decision Making, [500-13]Change Adaptation\n600 - Work Values\n[600-1]Strong Work Ethic, [600-2]Dependability and Responsability",null,null,614.26444444444439,614.26444444444439,{"$f":"19049/30","v":634.9666666666667},{"$f":"25000/30","v":833.33333333333337},{"$f":"28994/30","v":966.4666666666667},"II.30B"]
[80,"17-2071","IND","SAL","Manufacturing","Engineering","Electrical Process Engineer","* Prepare technical drawings, specifications of electrical systems, or topographical maps to ensure that installation and operations conform to standards and customer requirements. * Operate computer-assisted engineering or design software or equipment to perform engineering tasks. * Confer with engineers, customers, or others to discuss existing or potential engineering projects or products. * Direct or coordinate manufacturing, construction, installation, maintenance, support, documentation, or testing activities to ensure compliance with specifications, codes, or customer requirements. * Design, implement, maintain, or improve electrical instruments, equipment, facilities, components, products, or systems for commercial, industrial, or domestic purposes.","100-2-012,200-1-001,300-23,300-36,300-37,400-3,400-13,400-19,400-14,400-25,500-13,600-2,600-4",null,"III.23","510.704.360","510.704.360","510.704.360","510.704.360","510.704.360","510.704.360","510.704.360",null,null,null,"","100 - Education\n[100-2-012]Electronics Engineer\n200 - Language\n[200-1-001]Advanced English\n300 - Knowledge\n[300-23]Quality Systems / TS / ISO, [300-36]Production Control, [300-37]Product Design\n400 - Experience\n[400-3]Minimum 3 years experience in similar position, [400-13]HR Management, [400-19]New Projects Development and Implementation, [400-14]Lean Manufacturing, [400-25]Planning and Control\n500 - Skills\n[500-13]Change Adaptation\n600 - Work Values\n[600-2]Dependability and Responsability, [600-4]Honesty and Integrity",null,null,933.33333333333337,933.33333333333337,{"$f":"23875/30","v":795.83333333333337},{"$f":"28000/30","v":933.33333333333337},{"$f":"33993/30","v":1133.0999999999999},"III.23"]
[80,"17-2071","IND","SAL","Manufacturing","Engineering","Test Engineer ","* Prepare technical drawings, specifications of electrical systems, or topographical maps to ensure that installation and operations conform to standards and customer requirements. * Operate computer-assisted engineering or design software or equipment to perform engineering tasks. * Confer with engineers, customers, or others to discuss existing or potential engineering projects or products. * Direct or coordinate manufacturing, construction, installation, maintenance, support, documentation, or testing activities to ensure compliance with specifications, codes, or customer requirements. * Design, implement, maintain, or improve electrical instruments, equipment, facilities, components, products, or systems for commercial, industrial, or domestic purposes.","100-2-012,200-1-001,300-23,300-36,300-37,400-3,400-13,400-19,400-14,400-25,500-13,600-2,600-4",null,"III.23","510.704.360","510.704.360","510.704.360","510.704.360","510.704.360","510.704.360","510.704.360",null,null,null,"","100 - Education\n[100-2-012]Electronics Engineer\n200 - Language\n[200-1-001]Advanced English\n300 - Knowledge\n[300-23]Quality Systems / TS / ISO, [300-36]Production Control, [300-37]Product Design\n400 - Experience\n[400-3]Minimum 3 years experience in similar position, [400-13]HR Management, [400-19]New Projects Development and Implementation, [400-14]Lean Manufacturing, [400-25]Planning and Control\n500 - Skills\n[500-13]Change Adaptation\n600 - Work Values\n[600-2]Dependability and Responsability, [600-4]Honesty and Integrity",null,null,933.33333333333337,933.33333333333337,{"$f":"23875/30","v":795.83333333333337},{"$f":"28000/30","v":933.33333333333337},{"$f":"33993/30","v":1133.0999999999999},"III.23"]
[81,"19-4099.01","IND","SAL","Quality Control","ISO Quality","Quality Systems Coord. & Training","* Support the co-ordination of all regional training activities, building the capacity, financial sustainability and effectiveness of the regional operation. * Ensure all internal documents used to support the delivery of HIA Training. * Co-ordinate training resources and manage these resources within budget \nallocations. \n","100-2-007/100-2-014,200-1-001,300-20,300-21,300-29,400-3,400-14,400-17,400-18,500-16,500-8,500-13,600-1,600-2",null,"Vll.5B",null,null,null,null,"330.418.430","330.418.430","330.418.430",null,null,null,"","100 - Education\n[100-2-007]Industrial Engineer or [100-2-014]Industrial and Systems Engineer\n200 - Language\n[200-1-001]Advanced English\n300 - Knowledge\n[300-20]Quality Control, [300-21]Quality Assurance, [300-29]5's\n400 - Experience\n[400-3]Minimum 3 years experience in similar position, [400-14]Lean Manufacturing, [400-17]Development Plans of Implementation and Certification of quality systems, [400-18]Documents Control System\n500 - Skills\n[500-16]Team Work, [500-8]Communication and Oral Expression , [500-13]Change Adaptation\n600 - Work Values\n[600-1]Strong Work Ethic, [600-2]Dependability and Responsability",null,null,600.4,600.4,{"$f":"14286/30","v":476.2},{"$f":"18012/30","v":600.4},{"$f":"22623/30","v":754.1},"Vll.5B"]
[82,"43-5111","IND","HOU","Quality Control","Quality Laboratory","Test Laboratory Technician","* Organizes work by matching computer orders with specimen labeling; sorting specimens; checking labeling; logging specimens; arranging reports for delivery; keeping work surfaces clean and orderly.* Maintains quality results by running standards and controls, verifying equipment function through routine equipment maintenance and advanced trouble shooting; calibrating equipment utilizing approved testing procedures; monitoring quality control measures and protocols. * Serves as technical resource by participating in staff training; answering questions of other professionals; participating in educational opportunities; reading professional publications; maintaining personal networks; participating in professional organizations.","100-4-010,300-22,300-33,300-34,400-1,400-23,500-5,500-26,600-2,600-4","10.24.03","III.34","510.704.360","510.704.360",null,"510.704.360","510.704.360","510.704.360","510.704.360",null,null,null,"","100 - Education\n[100-4-010]Metrologist\n300 - Knowledge\n[300-22]Measurement Equipment, [300-33]Calibration, [300-34]Metrology\n400 - Experience\n[400-1]Minimum 1 year experience in similar position, [400-23]Metrology Equipment Management\n500 - Skills\n[500-5]Active Learning, [500-26]Visual\n600 - Work Values\n[600-2]Dependability and Responsability, [600-4]Honesty and Integrity",null,null,275.47000000000003,275.47000000000003,217.23,275.47000000000003,317.60000000000002,"III.34"]
[83,"11-9041","ADM","SAL","Management","Engineering","Process Engineering Manager","* Manage and maintain the business process systems. * Ensure that the process standards, procedures and specifications are in place for the assets. * Identify and manage resources for operations of process systems. * Develop process maintenance system based on risk and reliability management principle. * Develop process engineering initiatives to manage project implementation. * Recruit, train and guide resources to improve total performance and productivity. \n\n","100-2-007/100-2-009,200-1-001,300-23,300-36,400-7,400-13,400-31,400-19,400-14,400-25,500-7,500-13,600-4","10.30.02","II.24","510.704.220","510.704.220",null,"510.704.220","510.704.220","510.704.220","510.704.220",null,null,null,"","100 - Education\n[100-2-007]Industrial Engineer or [100-2-009]Process Technology Engineer\n200 - Language\n[200-1-001]Advanced English\n300 - Knowledge\n[300-23]Quality Systems / TS / ISO, [300-36]Production Control\n400 - Experience\n[400-7]Minimum 7 years experience in similar position, [400-13]HR Management, [400-31]Team Work, [400-19]New Projects Development and Implementation, [400-14]Lean Manufacturing, [400-25]Planning and Control\n500 - Skills\n[500-7]Judgement and Decision Making, [500-13]Change Adaptation\n600 - Work Values\n[600-4]Honesty and Integrity",null,null,2182.6333333333332,2182.6333333333332,{"$f":"48660/30","v":1622},{"$f":"65479/30","v":2182.6333333333332},{"$f":"80310/30","v":2677},"II.24"]
[84,"17-2199.04","IND","SAL","Manufacturing","Engineering","Process Engineer","* Assessing processes for their relevance, and assessing the adequacy of engineering equipment.  * Reviewing existing data (also lab analysis) to see if more research and information need to be collated.  * Designing, installing and commissioning new production units, monitoring modifications and upgrades, and troubleshooting existing processes.  * Applying the principles of mass, momentum and heat transfer to process and equipment design, including conceptual, scheme and detail design. ","100-2-007/100-2-009,200-1-001,300-23,300-36,300-37,300-28,300-42,400-2,400-14,400-25,500-7,500-13,600-4","10.30.04",null,"510.704.360","510.704.360","510.704.360","510.704.360","510.704.360","510.704.360","510.704.360",null,null,null,"","100 - Education\n[100-2-007]Industrial Engineer or [100-2-009]Process Technology Engineer\n200 - Language\n[200-1-001]Advanced English\n300 - Knowledge\n[300-23]Quality Systems / TS / ISO, [300-36]Production Control, [300-37]Product Design, [300-28]Continuous Improvement, [300-42]Standardization of Processes\n400 - Experience\n[400-2]Minimum 2 years experience in similar position, [400-14]Lean Manufacturing, [400-25]Planning and Control\n500 - Skills\n[500-7]Judgement and Decision Making, [500-13]Change Adaptation\n600 - Work Values\n[600-4]Honesty and Integrity",null,null,1337.9233333333332,1337.9233333333332,{"$f":"35064.49/30","v":1168.8163333333332},{"$f":"40137.7/30","v":1337.9233333333332},{"$f":"43388.18/30","v":1446.2726666666667}]
[85,"43-4151","IND","SAL","Materials","Customs","Customs Assistant ","* General support in the fulfillment of the customs manager duties. * Development, understanding  and maintenance of traffic management guidelines documentation. ","100-4-008,200-1-002,300-1,300-79,300-81,400-1,400-77,400-88,500-23,500-24,600-2","20.60.05","IV.17B","610.610.360","610.610.360",null,"610.610.360","610.610.360","610.610.360","610.610.360",null,null,null,"","100 - Education\n[100-4-008]Administration\n200 - Language\n[200-1-002]Intermediate English\n300 - Knowledge\n[300-1]Administration and Management, [300-79]International Commerce, [300-81]Customs Laws and Regulations\n400 - Experience\n[400-1]Minimum 1 year experience in similar position, [400-77]Files Administration, [400-88]Import and Export Processes\n500 - Skills\n[500-23]Organization, [500-24]Analytical\n600 - Work Values\n[600-2]Dependability and Responsability",null,null,372.36666666666667,372.36666666666667,{"$f":"8698/30","v":289.93333333333334},{"$f":"11171/30","v":372.36666666666667},{"$f":"13494/30","v":449.8},"IV.17B"]
[86,"51-9023","DIR","HOU","Manufacturing","Production","Operator Aerospace - Sheet Metal Assembly Trainee","* Responsible to the Production Supervisor or Group Leader for complying with the process objectives; may perform backing activities covering other positions. ","100-6,400-94,500-5,500-25,500-26",null,null,null,null,null,null,null,null,null,null,"OP01",1,{"$error":"#NAME?"},"100 - Education\n[100-6]Junior High School\n400 - Experience\n[400-94]Recruitment to 30 days \n500 - Skills\n[500-5]Active Learning, [500-25]Basic Math, [500-26]Visual",null,null,171.46153846153845,171.46153846153845,102.83,117.52,132.21]
[87,"51-9023","DIR","HOU","Manufacturing","Production","Operator Aerospace - Sheet Metal Assembly A","* Responsible to the Production Supervisor or Group Leader for complying with the process objectives; may perform backing activities covering other positions. ","100-6,300-54,300-55,400-95,500-5,500-25,500-26",null,null,null,null,null,null,null,null,null,null,"OP01",2,{"$error":"#NAME?"},"100 - Education\n[100-6]Junior High School\n300 - Knowledge\n[300-54]Basic Training Course, [300-55]Performance Assessment\n400 - Experience\n[400-95]31 to 90 days \n500 - Skills\n[500-5]Active Learning, [500-25]Basic Math, [500-26]Visual",null,null,196.76923076923077,196.76923076923077,108.29,123.76,139.22999999999999]
[88,"51-9023","DIR","HOU","Manufacturing","Production","Operator Aerospace - Sheet Metal Assembly B","* Responsible to the Production Supervisor or Group Leader for complying with the process objectives; may perform backing activities covering other positions. ","100-6,300-54,300-55,400-96,500-5,500-25,500-26",null,null,null,null,null,null,null,null,null,null,"OP01",4,{"$f":"IF(T112<>\"\",VLOOKUP(T112,ProgressivePositions,6,FALSE),\"\")","v":{"$error":"#NAME?"}},"100 - Education\n[100-6]Junior High School\n300 - Knowledge\n[300-54]Basic Training Course, [300-55]Performance Assessment\n400 - Experience\n[400-96]91 to 180 days \n500 - Skills\n[500-5]Active Learning, [500-25]Basic Math, [500-26]Visual",null,null,219.07692307692307,219.07692307692307,118.3,135.19999999999999,152.1]
[89,"51-9023","DIR","HOU","Manufacturing","Production","Operator Aerospace - Sheet Metal Assembly C","* Responsible to the Production Supervisor or Group Leader for complying with the process objectives; may perform backing activities covering other positions. ","100-6,300-54,300-55,400-97,500-5,500-25,500-26",null,null,null,null,null,null,null,null,null,null,"OP01",7,{"$error":"#NAME?"},"100 - Education\n[100-6]Junior High School\n300 - Knowledge\n[300-54]Basic Training Course, [300-55]Performance Assessment\n400 - Experience\n[400-97]181 to 270 days \n500 - Skills\n[500-5]Active Learning, [500-25]Basic Math, [500-26]Visual",null,null,249.99799999999999,249.99799999999999,150.15,171.6,193.05]
[90,"51-9023","DIR","HOU","Manufacturing","Production","Operator Aerospace - Sheet Metal Assembly D","* Responsible to the Production Supervisor or Group Leader for complying with the process objectives; may perform backing activities covering other positions. ","100-6,300-54,300-55,400-98,500-5,500-25,500-26",null,null,null,null,null,null,null,null,null,null,"OP01",10,{"$error":"#NAME?"},"100 - Education\n[100-6]Junior High School\n300 - Knowledge\n[300-54]Basic Training Course, [300-55]Performance Assessment\n400 - Experience\n[400-98]271 to 365 days \n500 - Skills\n[500-5]Active Learning, [500-25]Basic Math, [500-26]Visual",null,null,262.83333333333331,262.83333333333331,155.61000000000001,177.84,200.07]
[91,"51-9023","DIR","HOU","Manufacturing","Production","Operator Aerospace - Sheet Metal Assembly E","* Responsible to the Production Supervisor or Group Leader for complying with the process objectives; may perform backing activities covering other positions. ","100-6,300-54,300-55,400-99,500-5,500-25,500-26",null,null,null,null,null,null,null,null,null,null,"OP01",13,{"$error":"#NAME?"},"100 - Education\n[100-6]Junior High School\n300 - Knowledge\n[300-54]Basic Training Course, [300-55]Performance Assessment\n400 - Experience\n[400-99]366 and up \n500 - Skills\n[500-5]Active Learning, [500-25]Basic Math, [500-26]Visual",null,null,293,293,161.07,184.08,207.09]
[92,"51-9023","DIR","HOU","Manufacturing","Production","Operator Aerospace - Wire harnesses Trainee","* Responsible to the Production Supervisor or Group Leader for following all instructions required by each client, in compliance with production objectives. ","100-6,400-94,500-5,500-25,500-26",null,null,null,null,null,null,null,null,null,null,"OP02",1,{"$error":"#NAME?"},"100 - Education\n[100-6]Junior High School\n400 - Experience\n[400-94]Recruitment to 30 days \n500 - Skills\n[500-5]Active Learning, [500-25]Basic Math, [500-26]Visual",null,null,143,143,100.625,115,129.375]
[93,"51-9023","DIR","HOU","Manufacturing","Production","Operator Aerospace - Wire harnesses A","* Responsible to the Production Supervisor or Group Leader for following all instructions required by each client, in compliance with production objectives. ","100-6,300-54,300-55,400-95,500-5,500-25,500-26",null,null,null,null,null,null,null,null,null,null,"OP02",2,{"$error":"#NAME?"},"100 - Education\n[100-6]Junior High School\n300 - Knowledge\n[300-54]Basic Training Course, [300-55]Performance Assessment\n400 - Experience\n[400-95]31 to 90 days \n500 - Skills\n[500-5]Active Learning, [500-25]Basic Math, [500-26]Visual",null,null,164.125,164.125,113.75,130,146.25]
[94,"51-9023","DIR","HOU","Manufacturing","Production","Operator Aerospace - Wire harnesses B","* Responsible to the Production Supervisor or Group Leader for following all instructions required by each client, in compliance with production objectives. ","100-6,300-54,300-55,400-96,500-5,500-25,500-26",null,null,null,null,null,null,null,null,null,null,"OP02",4,{"$f":"IF(T118<>\"\",VLOOKUP(T118,ProgressivePositions,6,FALSE),\"\")","v":{"$error":"#NAME?"}},"100 - Education\n[100-6]Junior High School\n300 - Knowledge\n[300-54]Basic Training Course, [300-55]Performance Assessment\n400 - Experience\n[400-96]91 to 180 days \n500 - Skills\n[500-5]Active Learning, [500-25]Basic Math, [500-26]Visual",null,null,184,184,121.625,139,156.375]
[95,"51-9023","DIR","HOU","Manufacturing","Production","Operator Aerospace - Wire harnesses C","* Responsible to the Production Supervisor or Group Leader for following all instructions required by each client, in compliance with production objectives. ","100-6,300-54,300-55,400-97,500-5,500-25,500-26",null,null,null,null,null,null,null,null,null,null,"OP02",7,{"$error":"#NAME?"},"100 - Education\n[100-6]Junior High School\n300 - Knowledge\n[300-54]Basic Training Course, [300-55]Performance Assessment\n400 - Experience\n[400-97]181 to 270 days \n500 - Skills\n[500-5]Active Learning, [500-25]Basic Math, [500-26]Visual",null,null,210.3,210.3,126.875,145,163.125]
[96,"51-9023","DIR","HOU","Manufacturing","Production","Operator Aerospace - Wire harnesses D","* Responsible to the Production Supervisor or Group Leader for following all instructions required by each client, in compliance with production objectives. ","100-6,300-54,300-55,400-98,500-5,500-25,500-26",null,null,null,null,null,null,null,null,null,null,"OP02",10,{"$error":"#NAME?"},"100 - Education\n[100-6]Junior High School\n300 - Knowledge\n[300-54]Basic Training Course, [300-55]Performance Assessment\n400 - Experience\n[400-98]271 to 365 days \n500 - Skills\n[500-5]Active Learning, [500-25]Basic Math, [500-26]Visual",null,null,211.07333333333335,211.07333333333335,133,152,171]
[97,"51-9023","DIR","HOU","Manufacturing","Production","Operator Aerospace - Wire harnesses E","* Responsible to the Production Supervisor or Group Leader for following all instructions required by each client, in compliance with production objectives. ","100-6,300-54,300-55,400-99,500-5,500-25,500-26",null,null,null,null,null,null,null,null,null,null,"OP02",13,{"$error":"#NAME?"},"100 - Education\n[100-6]Junior High School\n300 - Knowledge\n[300-54]Basic Training Course, [300-55]Performance Assessment\n400 - Experience\n[400-99]366 and up \n500 - Skills\n[500-5]Active Learning, [500-25]Basic Math, [500-26]Visual",null,null,232.61538461538461,232.61538461538461,138.25,158,177.75]
[98,"51-9023","DIR","HOU","Manufacturing","Production","Operator Aerospace - Machining Trainee ","* Responsible to the Production Supervisor or Group Leader for following all instructions required by each client, in compliance with production objectives. ","100-6,400-94,500-5,500-25,500-26",null,null,null,null,null,null,null,null,null,null,"OP03",1,{"$error":"#NAME?"},"100 - Education\n[100-6]Junior High School\n400 - Experience\n[400-94]Recruitment to 30 days \n500 - Skills\n[500-5]Active Learning, [500-25]Basic Math, [500-26]Visual",null,null,208,208,175,208,225]
[99,"51-9023","DIR","HOU","Manufacturing","Production","Operator Aerospace - Machining A","* Responsible to the Production Supervisor or Group Leader for following all instructions required by each client, in compliance with production objectives. ","100-6,300-54,300-55,400-95,500-5,500-25,500-16,500-26",null,null,null,null,null,null,null,null,null,null,"OP03",2,{"$error":"#NAME?"},"100 - Education\n[100-6]Junior High School\n300 - Knowledge\n[300-54]Basic Training Course, [300-55]Performance Assessment\n400 - Experience\n[400-95]31 to 90 days \n500 - Skills\n[500-5]Active Learning, [500-25]Basic Math, [500-16]Team Work, [500-26]Visual",null,null,244.4,244.4,205.625,244.4,264.375]
[100,"51-9023","DIR","HOU","Manufacturing","Production","Operator Aerospace - Machining B","* Responsible to the Production Supervisor or Group Leader for following all instructions required by each client, in compliance with production objectives. ","100-6,300-54,300-55,400-96,500-5,500-25,500-16,500-26",null,null,null,null,null,null,null,null,null,null,"OP03",4,{"$error":"#NAME?"},"100 - Education\n[100-6]Junior High School\n300 - Knowledge\n[300-54]Basic Training Course, [300-55]Performance Assessment\n400 - Experience\n[400-96]91 to 180 days \n500 - Skills\n[500-5]Active Learning, [500-25]Basic Math, [500-16]Team Work, [500-26]Visual",null,null,253.76,253.76,213.5,253.76,274.5]
[101,"51-9023","DIR","HOU","Manufacturing","Production","Operator Aerospace - Machining C","* Responsible to the Production Supervisor or Group Leader for following all instructions required by each client, in compliance with production objectives. ","100-6,300-54,300-55,400-97,500-5,500-25,500-16,500-26",null,null,null,null,null,null,null,null,null,null,"OP03",7,{"$error":"#NAME?"},"100 - Education\n[100-6]Junior High School\n300 - Knowledge\n[300-54]Basic Training Course, [300-55]Performance Assessment\n400 - Experience\n[400-97]181 to 270 days \n500 - Skills\n[500-5]Active Learning, [500-25]Basic Math, [500-16]Team Work, [500-26]Visual",null,null,270.39999999999998,270.39999999999998,227.5,270.39999999999998,292.5]
[102,"51-9023","DIR","HOU","Manufacturing","Production","Operator Aerospace - Machining D","* Responsible to the Production Supervisor or Group Leader for following all instructions required by each client, in compliance with production objectives. ","100-6,300-54,300-55,400-98,500-5,500-25,500-16,500-26",null,null,null,null,null,null,null,null,null,null,"OP03",10,{"$error":"#NAME?"},"100 - Education\n[100-6]Junior High School\n300 - Knowledge\n[300-54]Basic Training Course, [300-55]Performance Assessment\n400 - Experience\n[400-98]271 to 365 days \n500 - Skills\n[500-5]Active Learning, [500-25]Basic Math, [500-16]Team Work, [500-26]Visual",null,null,317.2,317.2,266.875,317.2,343.125]
[103,"51-9023","DIR","HOU","Manufacturing","Production","Operator Aerospace - Machining E","* Responsible to the Production Supervisor or Group Leader for following all instructions required by each client, in compliance with production objectives. ","100-6,300-54,300-55,400-99,500-5,500-25,500-16,500-26",null,null,null,null,null,null,null,null,null,null,"OP03",13,{"$error":"#NAME?"},"100 - Education\n[100-6]Junior High School\n300 - Knowledge\n[300-54]Basic Training Course, [300-55]Performance Assessment\n400 - Experience\n[400-99]366 and up \n500 - Skills\n[500-5]Active Learning, [500-25]Basic Math, [500-16]Team Work, [500-26]Visual",null,null,348.4,348.4,293.125,348.4,376.875]
[104,"51-9023","DIR","HOU","Manufacturing","Production","Operator Automotive - Metal Mechanic Trainee ","* Responsible to the Production Supervisor or Group Leader for following all instructions required by each client, in compliance with production objectives. ","100-6,400-94,500-5,500-25,500-26",null,null,null,null,null,null,null,null,null,null,"OP04",1,{"$error":"#NAME?"},"100 - Education\n[100-6]Junior High School\n400 - Experience\n[400-94]Recruitment to 30 days \n500 - Skills\n[500-5]Active Learning, [500-25]Basic Math, [500-26]Visual",null,null,95,95,71.91,80.819999999999993,90.922499999999999]
[105,"51-9023","DIR","HOU","Manufacturing","Production","Operator Automotive - Metal Mechanic A","* Responsible to the Production Supervisor or Group Leader for following all instructions required by each client, in compliance with production objectives. ","100-6,300-54,300-55,400-95,500-33,500-25,500-23",null,null,null,null,null,null,null,null,null,null,"OP04",2,{"$error":"#NAME?"},"100 - Education\n[100-6]Junior High School\n300 - Knowledge\n[300-54]Basic Training Course, [300-55]Performance Assessment\n400 - Experience\n[400-95]31 to 90 days \n500 - Skills\n[500-33], [500-25]Basic Math, [500-23]Organization",null,null,109,109,82.337500000000006,94.1,105.8625]
[106,"51-9023","DIR","HOU","Manufacturing","Production","Operator Automotive - Metal Mechanic B","* Responsible to the Production Supervisor or Group Leader for following all instructions required by each client, in compliance with production objectives. ","100-6,300-54,300-55,400-96,500-33,500-25,500-23",null,null,null,null,null,null,null,null,null,null,"OP04",4,{"$error":"#NAME?"},"100 - Education\n[100-6]Junior High School\n300 - Knowledge\n[300-54]Basic Training Course, [300-55]Performance Assessment\n400 - Experience\n[400-96]91 to 180 days \n500 - Skills\n[500-33], [500-25]Basic Math, [500-23]Organization",null,null,114,114,100.625,115,129.375]
[107,"51-9023","DIR","HOU","Manufacturing","Production","Operator Automotive - Metal Mechanic C","* Responsible to the Production Supervisor or Group Leader for following all instructions required by each client, in compliance with production objectives. ","100-6,300-54,300-55,400-97,500-33,500-25,500-23",null,null,null,null,null,null,null,null,null,null,"OP04",7,{"$error":"#NAME?"},"100 - Education\n[100-6]Junior High School\n300 - Knowledge\n[300-54]Basic Training Course, [300-55]Performance Assessment\n400 - Experience\n[400-97]181 to 270 days \n500 - Skills\n[500-33], [500-25]Basic Math, [500-23]Organization",null,null,120,120,103.25,118,132.75]
[108,"51-9023","DIR","HOU","Manufacturing","Production","Operator Automotive - Metal Mechanic D","* Responsible to the Production Supervisor or Group Leader for following all instructions required by each client, in compliance with production objectives. ","100-6,300-54,300-55,400-98,500-33,500-25,500-23",null,null,null,null,null,null,null,null,null,null,"OP04",10,{"$error":"#NAME?"},"100 - Education\n[100-6]Junior High School\n300 - Knowledge\n[300-54]Basic Training Course, [300-55]Performance Assessment\n400 - Experience\n[400-98]271 to 365 days \n500 - Skills\n[500-33], [500-25]Basic Math, [500-23]Organization",null,null,134,134,114.625,131,147.375]
[109,"51-9023","DIR","HOU","Manufacturing","Production","Operator Automotive - Metal Mechanic E","* Responsible to the Production Supervisor or Group Leader for following all instructions required by each client, in compliance with production objectives. ","100-6,300-54,300-55,400-99,500-33,500-25,500-23",null,null,null,null,null,null,null,null,null,null,"OP04",13,{"$error":"#NAME?"},"100 - Education\n[100-6]Junior High School\n300 - Knowledge\n[300-54]Basic Training Course, [300-55]Performance Assessment\n400 - Experience\n[400-99]366 and up \n500 - Skills\n[500-33], [500-25]Basic Math, [500-23]Organization",null,null,147,147,116.375,133,149.625]
[110,"51-9023","DIR","HOU","Manufacturing","Production","Operator (Automotive - Plastic Injection Molding) Entry level","* Responsible to the Production Supervisor or Group Leader for following all instructions required by each client, in compliance with production objectives. ","100-6,400-94,500-5,500-25,500-26",null,null,null,null,null,null,null,null,null,null,"OP05",1,{"$error":"#NAME?"},"100 - Education\n[100-6]Junior High School\n400 - Experience\n[400-94]Recruitment to 30 days \n500 - Skills\n[500-5]Active Learning, [500-25]Basic Math, [500-26]Visual",null,null,112.7,112.7,77,95,99]
[111,"51-9023","DIR","HOU","Manufacturing","Production","Operator (Automotive - Plastic Injection Molding) A","* Responsible to the Production Supervisor or Group Leader for following all instructions required by each client, in compliance with production objectives. ","100-6,300-54,300-55,400-95,500-5,500-25,500-26",null,null,null,null,null,null,null,null,null,null,"OP05",2,{"$error":"#NAME?"},"100 - Education\n[100-6]Junior High School\n300 - Knowledge\n[300-54]Basic Training Course, [300-55]Performance Assessment\n400 - Experience\n[400-95]31 to 90 days \n500 - Skills\n[500-5]Active Learning, [500-25]Basic Math, [500-26]Visual",null,null,118.65,118.65,91,104,117]
[112,"51-9023","DIR","HOU","Manufacturing","Production","Operator (Automotive - Plastic Injection Molding) B","* Responsible to the Production Supervisor or Group Leader for following all instructions required by each client, in compliance with production objectives. ","100-6,300-54,300-55,400-96,500-5,500-25,500-26",null,null,null,null,null,null,null,null,null,null,"OP05",4,{"$error":"#NAME?"},"100 - Education\n[100-6]Junior High School\n300 - Knowledge\n[300-54]Basic Training Course, [300-55]Performance Assessment\n400 - Experience\n[400-96]91 to 180 days \n500 - Skills\n[500-5]Active Learning, [500-25]Basic Math, [500-26]Visual",null,null,145.52000000000001,145.52000000000001,113.75,130,146.25]
[113,"51-9023","DIR","HOU","Manufacturing","Production","Operator (Automotive - Plastic Injection Molding) C","* Responsible to the Production Supervisor or Group Leader for following all instructions required by each client, in compliance with production objectives. ","100-6,300-54,300-55,400-97,500-5,500-25,500-26",null,null,null,null,null,null,null,null,null,null,"OP05",7,{"$error":"#NAME?"},"100 - Education\n[100-6]Junior High School\n300 - Knowledge\n[300-54]Basic Training Course, [300-55]Performance Assessment\n400 - Experience\n[400-97]181 to 270 days \n500 - Skills\n[500-5]Active Learning, [500-25]Basic Math, [500-26]Visual",null,null,150.99,150.99,118.125,135,151.875]
[114,"51-9023","DIR","HOU","Manufacturing","Production","Operator (Automotive - Plastic Injection Molding) D","* Responsible to the Production Supervisor or Group Leader for following all instructions required by each client, in compliance with production objectives. ","100-6,300-54,300-55,400-98,500-5,500-25,500-26",null,null,null,null,null,null,null,null,null,null,"OP05",10,{"$error":"#NAME?"},"100 - Education\n[100-6]Junior High School\n300 - Knowledge\n[300-54]Basic Training Course, [300-55]Performance Assessment\n400 - Experience\n[400-98]271 to 365 days \n500 - Skills\n[500-5]Active Learning, [500-25]Basic Math, [500-26]Visual",null,null,176.09,176.09,128.625,147,165.375]
[115,"51-9023","DIR","HOU","Manufacturing","Production","Operator Automotive Wire Harnesses  Trainee","* Responsible to the Production Supervisor or Group Leader for following all instructions required by each client, in compliance with production objectives. ","100-6,400-94,500-5,500-25,500-26",null,null,null,null,null,null,null,null,null,null,"OP06",1,{"$error":"#NAME?"},"100 - Education\n[100-6]Junior High School\n400 - Experience\n[400-94]Recruitment to 30 days \n500 - Skills\n[500-5]Active Learning, [500-25]Basic Math, [500-26]Visual",null,null,80,80,100.625,115,129.375]
[116,"51-9023","DIR","HOU","Manufacturing","Production","Operator Automotive Wire Harnesses A","* Responsible to the Production Supervisor or Group Leader for following all instructions required by each client, in compliance with production objectives. ","100-6,300-54,300-55,400-95,500-3,500-5,500-25,500-26,600-4",null,null,null,null,null,null,null,null,null,null,"OP06",2,{"$error":"#NAME?"},"100 - Education\n[100-6]Junior High School\n300 - Knowledge\n[300-54]Basic Training Course, [300-55]Performance Assessment\n400 - Experience\n[400-95]31 to 90 days \n500 - Skills\n[500-3]Monitoring, [500-5]Active Learning, [500-25]Basic Math, [500-26]Visual\n600 - Work Values\n[600-4]Honesty and Integrity",null,null,85,85,113.75,130,146.25]
[117,"51-9023","DIR","HOU","Manufacturing","Production","Operator Automotive Wire Harnesses B","* Responsible to the Production Supervisor or Group Leader for following all instructions required by each client, in compliance with production objectives. ","100-6,300-54,300-55,400-96,500-3,500-5,500-25,500-26,600-4",null,null,null,null,null,null,null,null,null,null,"OP06",4,{"$error":"#NAME?"},"100 - Education\n[100-6]Junior High School\n300 - Knowledge\n[300-54]Basic Training Course, [300-55]Performance Assessment\n400 - Experience\n[400-96]91 to 180 days \n500 - Skills\n[500-3]Monitoring, [500-5]Active Learning, [500-25]Basic Math, [500-26]Visual\n600 - Work Values\n[600-4]Honesty and Integrity",null,null,93.26,93.26,121.625,139,156.375]
[118,"51-9023","DIR","HOU","Manufacturing","Production","Operator Automotive Wire Harnesses C","* Responsible to the Production Supervisor or Group Leader for following all instructions required by each client, in compliance with production objectives. ","100-6,300-54,300-55,400-97,500-3,500-5,500-25,500-26,600-4",null,null,null,null,null,null,null,null,null,null,"OP06",7,{"$error":"#NAME?"},"100 - Education\n[100-6]Junior High School\n300 - Knowledge\n[300-54]Basic Training Course, [300-55]Performance Assessment\n400 - Experience\n[400-97]181 to 270 days \n500 - Skills\n[500-3]Monitoring, [500-5]Active Learning, [500-25]Basic Math, [500-26]Visual\n600 - Work Values\n[600-4]Honesty and Integrity",null,null,102.14,102.14,126.875,145,163.125]
[119,"51-9023","DIR","HOU","Manufacturing","Production","Operator Automotive Wire Harnesses D","* Responsible to the Production Supervisor or Group Leader for following all instructions required by each client, in compliance with production objectives. ","100-6,300-54,300-55,400-98,500-3,500-5,500-25,500-26,600-4",null,null,null,null,null,null,null,null,null,null,"OP06",10,{"$error":"#NAME?"},"100 - Education\n[100-6]Junior High School\n300 - Knowledge\n[300-54]Basic Training Course, [300-55]Performance Assessment\n400 - Experience\n[400-98]271 to 365 days \n500 - Skills\n[500-3]Monitoring, [500-5]Active Learning, [500-25]Basic Math, [500-26]Visual\n600 - Work Values\n[600-4]Honesty and Integrity",null,null,113.48,113.48,133,152,171]
[120,"47-2141","DIR","HOU","Manufacturing","Production","Operator Automotive Wire Harnesses E","* Responsible to the Production Supervisor or Group Leader for following all instructions required by each client, in compliance with production objectives. ","100-6,300-54,300-55,400-99,500-3,500-5,500-25,500-26,600-4",null,null,null,null,null,null,null,null,null,null,"OP06",13,{"$error":"#NAME?"},"100 - Education\n[100-6]Junior High School\n300 - Knowledge\n[300-54]Basic Training Course, [300-55]Performance Assessment\n400 - Experience\n[400-99]366 and up \n500 - Skills\n[500-3]Monitoring, [500-5]Active Learning, [500-25]Basic Math, [500-26]Visual\n600 - Work Values\n[600-4]Honesty and Integrity",null,null,118,118,138.25,158,177.75]
[121,"47-2141","DIR","HOU","Manufacturing","Production","Painting Operator Automotive - Machining 1","* Cover surfaces with dropcloths or masking tape and paper to protect surfaces during painting. * Fill cracks, holes, or joints with caulk, putty, plaster, or other fillers, using caulking guns or putty knives. * Apply primers or sealers to prepare new surfaces, such as bare wood or metal, for finish coats. * Apply paint, stain, varnish, enamel, or other finishes to equipment, buildings, bridges, or other structures, using brushes, spray guns, or rollers. * Calculate amounts of required materials and estimate costs, based on surface measurements or work orders. * Read work orders or receive instructions from supervisors or homeowners to determine work requirements.","100-6,300-54,300-55,300-56,300-57,400-94,500-5,500-25,500-14,500-26",null,null,null,null,null,null,null,null,null,null,"PNT01",1,{"$error":"#NAME?"},"100 - Education\n[100-6]Junior High School\n300 - Knowledge\n[300-54]Basic Training Course, [300-55]Performance Assessment, [300-56]Paint Handling, [300-57]Solvent Handling\n400 - Experience\n[400-94]Recruitment to 30 days \n500 - Skills\n[500-5]Active Learning, [500-25]Basic Math, [500-14]Proactive, [500-26]Visual",null,null,294,294,103.84114583333333,123.42261904761905,133.51004464285714]
[122,"47-2141","DIR","HOU","Manufacturing","Production","Painting Operator Automotive - Machining 2","* Cover surfaces with dropcloths or masking tape and paper to protect surfaces during painting. * Fill cracks, holes, or joints with caulk, putty, plaster, or other fillers, using caulking guns or putty knives. * Apply primers or sealers to prepare new surfaces, such as bare wood or metal, for finish coats. * Apply paint, stain, varnish, enamel, or other finishes to equipment, buildings, bridges, or other structures, using brushes, spray guns, or rollers. * Calculate amounts of required materials and estimate costs, based on surface measurements or work orders. * Read work orders or receive instructions from supervisors or homeowners to determine work requirements.","100-6,300-54,300-55,300-56,300-57,400-95,500-5,500-25,500-14,500-26",null,null,null,null,null,null,null,null,null,null,"PNT01",2,{"$error":"#NAME?"},"100 - Education\n[100-6]Junior High School\n300 - Knowledge\n[300-54]Basic Training Course, [300-55]Performance Assessment, [300-56]Paint Handling, [300-57]Solvent Handling\n400 - Experience\n[400-95]31 to 90 days \n500 - Skills\n[500-5]Active Learning, [500-25]Basic Math, [500-14]Proactive, [500-26]Visual",null,null,294,294,115.546875,137.33571428571429,148.56026785714286]
[123,"47-2141","DIR","HOU","Manufacturing","Production","Painting Operator Automotive - Machining 3","* Cover surfaces with dropcloths or masking tape and paper to protect surfaces during painting. * Fill cracks, holes, or joints with caulk, putty, plaster, or other fillers, using caulking guns or putty knives. * Apply primers or sealers to prepare new surfaces, such as bare wood or metal, for finish coats. * Apply paint, stain, varnish, enamel, or other finishes to equipment, buildings, bridges, or other structures, using brushes, spray guns, or rollers. * Calculate amounts of required materials and estimate costs, based on surface measurements or work orders. * Read work orders or receive instructions from supervisors or homeowners to determine work requirements.","100-6,300-54,300-55,300-56,300-57,400-96,500-5,500-25,500-14,500-26",null,null,null,null,null,null,null,null,null,null,"PNT01",4,{"$error":"#NAME?"},"100 - Education\n[100-6]Junior High School\n300 - Knowledge\n[300-54]Basic Training Course, [300-55]Performance Assessment, [300-56]Paint Handling, [300-57]Solvent Handling\n400 - Experience\n[400-96]91 to 180 days \n500 - Skills\n[500-5]Active Learning, [500-25]Basic Math, [500-14]Proactive, [500-26]Visual",null,null,150.80000000000001,150.80000000000001,126.875,150.80000000000001,163.125]
[124,"47-2141","DIR","HOU","Manufacturing","Production","Painting Operator Automotive - Machining 4","* Cover surfaces with dropcloths or masking tape and paper to protect surfaces during painting. * Fill cracks, holes, or joints with caulk, putty, plaster, or other fillers, using caulking guns or putty knives. * Apply primers or sealers to prepare new surfaces, such as bare wood or metal, for finish coats. * Apply paint, stain, varnish, enamel, or other finishes to equipment, buildings, bridges, or other structures, using brushes, spray guns, or rollers. * Calculate amounts of required materials and estimate costs, based on surface measurements or work orders. * Read work orders or receive instructions from supervisors or homeowners to determine work requirements.","100-6,300-54,300-55,300-56,300-57,400-97,500-5,500-25,500-14,500-26",null,null,null,null,null,null,null,null,null,null,"PNT01",7,{"$error":"#NAME?"},"100 - Education\n[100-6]Junior High School\n300 - Knowledge\n[300-54]Basic Training Course, [300-55]Performance Assessment, [300-56]Paint Handling, [300-57]Solvent Handling\n400 - Experience\n[400-97]181 to 270 days \n500 - Skills\n[500-5]Active Learning, [500-25]Basic Math, [500-14]Proactive, [500-26]Visual",null,null,187.53279999999998,187.53279999999998,157.78,187.53279999999998,202.86]
[125,"51-9023","DIR","HOU","Manufacturing","Production","Painting Operator Automotive - Machining 5","* Cover surfaces with dropcloths or masking tape and paper to protect surfaces during painting. * Fill cracks, holes, or joints with caulk, putty, plaster, or other fillers, using caulking guns or putty knives. * Apply primers or sealers to prepare new surfaces, such as bare wood or metal, for finish coats. * Apply paint, stain, varnish, enamel, or other finishes to equipment, buildings, bridges, or other structures, using brushes, spray guns, or rollers. * Calculate amounts of required materials and estimate costs, based on surface measurements or work orders. * Read work orders or receive instructions from supervisors or homeowners to determine work requirements.","100-6,300-54,300-55,300-56,300-57,400-98,500-5,500-25,500-14,500-26",null,null,null,null,null,null,null,null,null,null,"PNT01",10,{"$error":"#NAME?"},"100 - Education\n[100-6]Junior High School\n300 - Knowledge\n[300-54]Basic Training Course, [300-55]Performance Assessment, [300-56]Paint Handling, [300-57]Solvent Handling\n400 - Experience\n[400-98]271 to 365 days \n500 - Skills\n[500-5]Active Learning, [500-25]Basic Math, [500-14]Proactive, [500-26]Visual",null,null,203.84,203.84,171.5,203.84,220.5]
[126,"51-9023","DIR","HOU","Manufacturing","Production","Operator Electronic - Assembly Trainee ","* Responsible to the Production Supervisor or Group Leader for executing specialized functions in the process; he/she must be multifunctional; requieres training or certification to carry out his/her activities.","100-6,400-94,500-5,500-25,500-26",null,null,null,null,null,null,null,null,null,null,"OP07",1,{"$error":"#NAME?"},"100 - Education\n[100-6]Junior High School\n400 - Experience\n[400-94]Recruitment to 30 days \n500 - Skills\n[500-5]Active Learning, [500-25]Basic Math, [500-26]Visual",null,null,88.92,88.92,74.8125,88.92,96.1875]
[127,"51-9023","DIR","HOU","Manufacturing","Production","Operator Electronic - Assembly A","* Responsible to the Production Supervisor or Group Leader for executing specialized functions in the process; he/she must be multifunctional; requieres training or certification to carry out his/her activities.","100-6,300-54,300-55,400-95,500-5,500-25,500-26",null,null,null,null,null,null,null,null,null,null,"OP07",2,{"$error":"#NAME?"},"100 - Education\n[100-6]Junior High School\n300 - Knowledge\n[300-54]Basic Training Course, [300-55]Performance Assessment\n400 - Experience\n[400-95]31 to 90 days \n500 - Skills\n[500-5]Active Learning, [500-25]Basic Math, [500-26]Visual",null,null,90.48,90.48,76.125,90.48,97.875]
[128,"51-9023","DIR","HOU","Manufacturing","Production","Operator Electronic - Assembly B","* Responsible to the Production Supervisor or Group Leader for executing specialized functions in the process; he/she must be multifunctional; requieres training or certification to carry out his/her activities.","100-6,300-54,300-55,400-96,500-5,500-25,500-26",null,null,null,null,null,null,null,null,null,null,"OP07",4,{"$error":"#NAME?"},"100 - Education\n[100-6]Junior High School\n300 - Knowledge\n[300-54]Basic Training Course, [300-55]Performance Assessment\n400 - Experience\n[400-96]91 to 180 days \n500 - Skills\n[500-5]Active Learning, [500-25]Basic Math, [500-26]Visual",null,null,92.56,92.56,77.875,92.56,100.125]
[129,"51-9023","DIR","HOU","Manufacturing","Production","Operator Electronic - Assembly C","* Responsible to the Production Supervisor or Group Leader for executing specialized functions in the process; he/she must be multifunctional; requieres training or certification to carry out his/her activities.","100-6,300-54,300-55,400-97,500-5,500-25,500-26",null,null,null,null,null,null,null,null,null,null,"OP07",7,{"$error":"#NAME?"},"100 - Education\n[100-6]Junior High School\n300 - Knowledge\n[300-54]Basic Training Course, [300-55]Performance Assessment\n400 - Experience\n[400-97]181 to 270 days \n500 - Skills\n[500-5]Active Learning, [500-25]Basic Math, [500-26]Visual",null,null,112.32,112.32,94.5,112.32,121.5]
[130,"51-9023","DIR","HOU","Manufacturing","Production","Operator Electronic - Assembly D","* Responsible to the Production Supervisor or Group Leader for executing specialized functions in the process; he/she must be multifunctional; requieres training or certification to carry out his/her activities.","100-6,300-54,300-55,400-98,500-5,500-25,500-26",null,null,null,null,null,null,null,null,null,null,"OP07",10,{"$error":"#NAME?"},"100 - Education\n[100-6]Junior High School\n300 - Knowledge\n[300-54]Basic Training Course, [300-55]Performance Assessment\n400 - Experience\n[400-98]271 to 365 days \n500 - Skills\n[500-5]Active Learning, [500-25]Basic Math, [500-26]Visual",null,null,127.92,127.92,107.625,127.92,138.375]
[131,"51-9023","DIR","HOU","Manufacturing","Production","Operator Electronic - Assembly E ","* Responsible to the Production Supervisor or Group Leader for executing specialized functions in the process; he/she must be multifunctional; requieres training or certification to carry out his/her activities.","100-6,300-54,300-55,400-99,500-5,500-25,500-26",null,null,null,null,null,null,null,null,null,null,"OP07",13,{"$error":"#NAME?"},"100 - Education\n[100-6]Junior High School\n300 - Knowledge\n[300-54]Basic Training Course, [300-55]Performance Assessment\n400 - Experience\n[400-99]366 and up \n500 - Skills\n[500-5]Active Learning, [500-25]Basic Math, [500-26]Visual",null,null,154.96,154.96,130.375,154.96,167.625]
[132,"51-9023","DIR","HOU","Manufacturing","Production","Operator Electronic - Repair Trainee ","* Responsible to the Production Supervisor or Group Leader for executing specialized functions in the process; he/she must be multifunctional; requieres training or certification to carry out his/her activities.","100-6,400-94,500-5,500-25,500-26",null,null,null,null,null,null,null,null,null,null,"OP08",1,{"$error":"#NAME?"},"100 - Education\n[100-6]Junior High School\n400 - Experience\n[400-94]Recruitment to 30 days \n500 - Skills\n[500-5]Active Learning, [500-25]Basic Math, [500-26]Visual",null,null,86.85,86.85,77,91.52,99]
[133,"51-9023","DIR","HOU","Manufacturing","Production","Operator Electronic - Repair A","* Responsible to the Production Supervisor or Group Leader for executing specialized functions in the process; he/she must be multifunctional; requieres training or certification to carry out his/her activities.","100-6,300-54,300-55,400-95,500-5,500-25,500-26",null,null,null,null,null,null,null,null,null,null,"OP08",2,{"$error":"#NAME?"},"100 - Education\n[100-6]Junior High School\n300 - Knowledge\n[300-54]Basic Training Course, [300-55]Performance Assessment\n400 - Experience\n[400-95]31 to 90 days \n500 - Skills\n[500-5]Active Learning, [500-25]Basic Math, [500-26]Visual",null,null,102.21,102.21,79.625,94.64,102.375]
[134,"51-9023","DIR","HOU","Manufacturing","Production","Operator Electronic - Repair B","* Responsible to the Production Supervisor or Group Leader for executing specialized functions in the process; he/she must be multifunctional; requieres training or certification to carry out his/her activities.","100-6,300-54,300-55,400-96,500-5,500-25,500-26",null,null,null,null,null,null,null,null,null,null,"OP08",4,{"$error":"#NAME?"},"100 - Education\n[100-6]Junior High School\n300 - Knowledge\n[300-54]Basic Training Course, [300-55]Performance Assessment\n400 - Experience\n[400-96]91 to 180 days \n500 - Skills\n[500-5]Active Learning, [500-25]Basic Math, [500-26]Visual",null,null,144.09,144.09,83.125,98.8,106.875]
[135,"51-9023","DIR","HOU","Manufacturing","Production","Operator Automotive - Assembly Entry Level","* Responsible to the Production Supervisor or Group Leader for executing specialized functions in the process; he/she must be multifunctional; requieres training or certification to carry out his/her activities.","100-6,400-94,500-5,500-25,500-26",null,null,null,null,null,null,null,null,null,null,"OP09",1,{"$error":"#NAME?"},"100 - Education\n[100-6]Junior High School\n400 - Experience\n[400-94]Recruitment to 30 days \n500 - Skills\n[500-5]Active Learning, [500-25]Basic Math, [500-26]Visual",null,null,112.7,112.7,67.665000000000006,73,82.125]
[136,"51-9023","DIR","HOU","Manufacturing","Production","Operator Automotive - Assembly A","* Responsible to the Production Supervisor or Group Leader for executing specialized functions in the process; he/she must be multifunctional; requieres training or certification to carry out his/her activities.","100-6,300-54,300-55,400-95,500-5,500-25,500-26",null,null,null,null,null,null,null,null,null,null,"OP09",2,{"$error":"#NAME?"},"100 - Education\n[100-6]Junior High School\n300 - Knowledge\n[300-54]Basic Training Course, [300-55]Performance Assessment\n400 - Experience\n[400-95]31 to 90 days \n500 - Skills\n[500-5]Active Learning, [500-25]Basic Math, [500-26]Visual",null,null,118.65,118.65,74.375,85,103.375]
[137,"51-9023","DIR","HOU","Manufacturing","Production","Operator Automotive - Assembly B","* Responsible to the Production Supervisor or Group Leader for executing specialized functions in the process; he/she must be multifunctional; requieres training or certification to carry out his/her activities.","100-6,300-54,300-55,400-96,500-5,500-25,500-26",null,null,null,null,null,null,null,null,null,null,"OP09",4,{"$error":"#NAME?"},"100 - Education\n[100-6]Junior High School\n300 - Knowledge\n[300-54]Basic Training Course, [300-55]Performance Assessment\n400 - Experience\n[400-96]91 to 180 days \n500 - Skills\n[500-5]Active Learning, [500-25]Basic Math, [500-26]Visual",null,null,139.65,139.65,87.5,100,104.375]
[138,"51-9023","DIR","HOU","Manufacturing","Production","Operator Automotive - Assembly C","* Responsible to the Production Supervisor or Group Leader for executing specialized functions in the process; he/she must be multifunctional; requieres training or certification to carry out his/her activities.","100-6,300-54,300-55,400-97,500-5,500-25,500-26",null,null,null,null,null,null,null,null,null,null,"OP09",7,{"$error":"#NAME?"},"100 - Education\n[100-6]Junior High School\n300 - Knowledge\n[300-54]Basic Training Course, [300-55]Performance Assessment\n400 - Experience\n[400-97]181 to 270 days \n500 - Skills\n[500-5]Active Learning, [500-25]Basic Math, [500-26]Visual",null,null,145.52000000000001,145.52000000000001,89.25,102,105.375]
[139,"51-9023","DIR","HOU","Manufacturing","Production","Operator Automotive - Assembly D","* Responsible to the Production Supervisor or Group Leader for executing specialized functions in the process; he/she must be multifunctional; requieres training or certification to carry out his/her activities.","100-6,300-54,300-55,400-98,500-5,500-25,500-26",null,null,null,null,null,null,null,null,null,null,"OP09",10,{"$error":"#NAME?"},"100 - Education\n[100-6]Junior High School\n300 - Knowledge\n[300-54]Basic Training Course, [300-55]Performance Assessment\n400 - Experience\n[400-98]271 to 365 days \n500 - Skills\n[500-5]Active Learning, [500-25]Basic Math, [500-26]Visual",null,null,150.99,150.99,95.375,109,106.375]
[140,"51-1011","IND","SAL","Maintenance","Equipment Maintenance","Maintenance ","* Enforce safety and sanitation regulations. * Direct and coordinate the activities of employees engaged in the production or processing of goods, such as inspectors, machine setters, and fabricators. * Confer with other supervisors to coordinate operations and activities within or between departments. * Plan and establish work schedules, assignments, and production sequences to meet production goals. * Inspect materials, products, or equipment to detect defects or malfunctions. * Observe work and monitor gauges, dials, and other indicators to ensure that operators conform to production or processing standards. * Conduct employee training in equipment operations or work and safety procedures, or assign employee training to experienced workers.","100-2-008/100-2-007,200-1-002,300-40,300-28,400-1,400-34,400-35,400-26,400-38,600-5,600-1,600-7,600-2","550.684.241","II.13","550.684.241","550.684.241","550.684.241","550.684.241","550.684.241","550.684.241","550.684.241",null,null,null,"","100 - Education\n[100-2-008]Mechanical Engineer or [100-2-007]Industrial Engineer\n200 - Language\n[200-1-002]Intermediate English\n300 - Knowledge\n[300-40]Preventive and Corrective Maintenance, [300-28]Continuous Improvement\n400 - Experience\n[400-1]Minimum 1 year experience in similar position, [400-34]Hydraulic, [400-35]Mechanics, [400-26]Production Equipment / Machinery, [400-38]Electrical Installation \n600 - Work Values\n[600-5]Punctuality, [600-1]Strong Work Ethic, [600-7]Strong Self-Confidence, [600-2]Dependability and Responsability",null,null,1544.3,1544.3,{"$f":"13317/30","v":443.9},{"$f":"15186/30","v":506.2},{"$f":"17502/30","v":583.4},"II.13"]
[140,"51-1011","IND","SAL","Maintenance","Equipment Maintenance","Production Supervisor Manufacturing ","* Enforce safety and sanitation regulations. * Direct and coordinate the activities of employees engaged in the production or processing of goods, such as inspectors, machine setters, and fabricators. * Confer with other supervisors to coordinate operations and activities within or between departments. * Plan and establish work schedules, assignments, and production sequences to meet production goals. * Inspect materials, products, or equipment to detect defects or malfunctions. * Observe work and monitor gauges, dials, and other indicators to ensure that operators conform to production or processing standards. * Conduct employee training in equipment operations or work and safety procedures, or assign employee training to experienced workers.","100-2-008/100-2-007,200-1-002,300-40,300-28,400-1,400-34,400-35,400-26,400-38,600-5,600-1,600-7,600-2","550.684.241","II.13","550.684.241","550.684.241","550.684.241","550.684.241","550.684.241","550.684.241","550.684.241",null,null,null,"","100 - Education\n[100-2-008]Mechanical Engineer or [100-2-007]Industrial Engineer\n200 - Language\n[200-1-002]Intermediate English\n300 - Knowledge\n[300-40]Preventive and Corrective Maintenance, [300-28]Continuous Improvement\n400 - Experience\n[400-1]Minimum 1 year experience in similar position, [400-34]Hydraulic, [400-35]Mechanics, [400-26]Production Equipment / Machinery, [400-38]Electrical Installation \n600 - Work Values\n[600-5]Punctuality, [600-1]Strong Work Ethic, [600-7]Strong Self-Confidence, [600-2]Dependability and Responsability",null,null,1544.3,1544.3,{"$f":"13317/30","v":443.9},{"$f":"15186/30","v":506.2},{"$f":"17502/30","v":583.4},"II.13"]
[140,"51-1011","IND","SAL","Maintenance","Equipment Maintenance","Shift Supervisor ","* Enforce safety and sanitation regulations. * Direct and coordinate the activities of employees engaged in the production or processing of goods, such as inspectors, machine setters, and fabricators. * Confer with other supervisors to coordinate operations and activities within or between departments. * Plan and establish work schedules, assignments, and production sequences to meet production goals. * Inspect materials, products, or equipment to detect defects or malfunctions. * Observe work and monitor gauges, dials, and other indicators to ensure that operators conform to production or processing standards. * Conduct employee training in equipment operations or work and safety procedures, or assign employee training to experienced workers.","100-2-008/100-2-007,200-1-002,300-40,300-28,400-1,400-34,400-35,400-26,400-38,600-5,600-1,600-7,600-2","550.684.241","II.13","550.684.241","550.684.241","550.684.241","550.684.241","550.684.241","550.684.241","550.684.241",null,null,null,{"$f":"IF(T166<>\"\",VLOOKUP(T166,ProgressivePositions,6,FALSE),\"\")","v":""},"100 - Education\n[100-2-008]Mechanical Engineer or [100-2-007]Industrial Engineer\n200 - Language\n[200-1-002]Intermediate English\n300 - Knowledge\n[300-40]Preventive and Corrective Maintenance, [300-28]Continuous Improvement\n400 - Experience\n[400-1]Minimum 1 year experience in similar position, [400-34]Hydraulic, [400-35]Mechanics, [400-26]Production Equipment / Machinery, [400-38]Electrical Installation \n600 - Work Values\n[600-5]Punctuality, [600-1]Strong Work Ethic, [600-7]Strong Self-Confidence, [600-2]Dependability and Responsability",null,null,1544.3,1544.3,{"$f":"13317/30","v":443.9},{"$f":"15186/30","v":506.2},{"$f":"17502/30","v":583.4},"II.13"]
[141,"13-2011.02","IND","SAL","Administrative","General Accounting","Molding Supervisor","* Collect and analyze data to detect deficient controls, duplicated effort, extravagance, fraud, or non-compliance with laws, regulations, and management policies. * Prepare detailed reports on audit findings. * Supervise auditing of establishments, and determine scope of investigation required. * Report to management about asset utilization and audit results, and recommend changes in operations and financial activities. * Inspect account books and accounting systems for efficiency, effectiveness, and use of accepted accounting procedures to record transactions. * Examine records and interview workers to ensure recording of transactions and compliance with laws and regulations. * Examine and evaluate financial and information systems, recommending controls to ensure system reliability and data integrity.","100-3-006/100-3-002,200-1-001,300-12,300-64,300-65,300-66,300-68,300-69,300-74,400-5,400-11,400-21,500-7,500-24,600-4",null,"II.11B",null,null,null,null,null,null,null,null,null,null,{"$f":"IF(T167<>\"\",VLOOKUP(T167,ProgressivePositions,6,FALSE),\"\")","v":""},"100 - Education\n[100-3-006]Public Accountant or [100-3-002]Financial Administration\n200 - Language\n[200-1-001]Advanced English\n300 - Knowledge\n[300-12]Law and Government, [300-64]General Accounting, [300-65]ISR, IMSS, taxes, LFT and other laws related with the function, [300-66]Assets Control, [300-68]Payroll Systems, [300-69]Accounting Systems, [300-74]Payroll Management\n400 - Experience\n[400-5]Minimum 5 years experience in similar position, [400-11]Licensing exam , [400-21]Quality Audits\n500 - Skills\n[500-7]Judgement and Decision Making, [500-24]Analytical\n600 - Work Values\n[600-4]Honesty and Integrity",null,null,885.2,885.2,{"$f":"17919/30","v":597.29999999999995},{"$f":"26556/30","v":885.2},{"$f":"28759/30","v":958.63333333333333},"II.11B"]
[142,"11-3031","ADM","SAL","Administrative","Administrative Support","Auditor ","* Supervise employees performing financial reporting, accounting, billing, collections, payroll, and budgeting duties. * Coordinate and direct the financial planning, budgeting, procurement, or investment activities of all or part of an organization. * Develop internal control policies, guidelines, and procedures for activities such as budget administration, cash and credit management, and accounting. * Maintain current knowledge of organizational policies and procedures, federal and state policies and directives, and current accounting standards. * Prepare or direct preparation of financial statements, business activity reports, financial position forecasts, annual budgets, or reports required by regulatory agencies.","100-3-002,200-1-001,300-9,300-68,300-66,300-69,400-9,400-63,400-66,400-67,400-68,500-6,500-7,500-18,600-1","10.20.13","CHI",null,"550.684.241",null,null,"550.684.241","550.684.241","550.684.241",null,null,null,{"$f":"IF(T168<>\"\",VLOOKUP(T168,ProgressivePositions,6,FALSE),\"\")","v":""},"100 - Education\n[100-3-002]Financial Administration\n200 - Language\n[200-1-001]Advanced English\n300 - Knowledge\n[300-9]Economics and Accounting , [300-68]Payroll Systems, [300-66]Assets Control, [300-69]Accounting Systems\n400 - Experience\n[400-9]Minimum 9 years experience in similar position, [400-63]Financial statements development, [400-66]Reconciliations, [400-67]Accounting records, [400-68]Elaboration of Reports\n500 - Skills\n[500-6]Complex Problem Solving, [500-7]Judgement and Decision Making, [500-18]Stress management\n600 - Work Values\n[600-1]Strong Work Ethic",null,null,379.63333333333333,379.63333333333333,{"$f":"10699/30","v":356.63333333333333},{"$f":"11389/30","v":379.63333333333333},{"$f":"12813/30","v":427.1},"CHI"]
[143,"11-3031.01","ADM","SAL","Administrative","Administrative Support","Finance Manager","* Responsible before the Plant Manager; implementing specific control programs and best management of Financial Resources and Investments. * Keeps inventory control, audits, fixed assets and costs.  * Makes analysis presenting financial statements of each internal project under accounting outlines. ","100-3-002/100-3-006,200-1-001,300-65,300-69,400-8,400-66,400-67,400-73,500-7,500-8,500-24,600-1","40.10.02","VI.2","210.100.220","210.100.220",null,"210.100.220","210.100.220","210.100.220","210.100.220",null,null,null,null,"100 - Education\n[100-3-002]Financial Administration or [100-3-006]Public Accountant\n200 - Language\n[200-1-001]Advanced English\n300 - Knowledge\n[300-65]ISR, IMSS, taxes, LFT and other laws related with the function, [300-69]Accounting Systems\n400 - Experience\n[400-8]Minimum 8 years experience in similar position, [400-66]Reconciliations, [400-67]Accounting records, [400-73]Elaboration and implementation of policies\n500 - Skills\n[500-7]Judgement and Decision Making, [500-8]Communication and Oral Expression , [500-24]Analytical\n600 - Work Values\n[600-1]Strong Work Ethic",null,null,3133.3333333333335,3133.3333333333335,{"$f":"88020/30","v":2934},{"$f":"94000/30","v":3133.3333333333335},{"$f":"99927/30","v":3330.9},"VI.2"]
[144,"11 3061","ADM","SAL","Administrative","Administrative Support","Comptroller ","*Represent companies in negotiating contracts and formulating policies with suppliers. *Direct and coordinate activities of personnel engaged in buying, selling, and distributing materials, equipment, machinery, and supplies.\n*Interview and hire staff, and oversee staff training. *Locate vendors of materials, equipment or supplies, and interview them to determine product availability and terms of sales.\n*Prepare and process requisitions and purchase orders for supplies and equipment. *Develop and implement purchasing and contract management instructions, policies, and procedures. ","100-3-005/100-3-009/100-3-010,200-1-001,300-19,300-38,300-39,400-5,400-49,400-71,500-12,500-22,600-1,600-4",null,"VI.2",null,null,null,null,null,null,null,null,null,null,null,"100 - Education\n[100-3-005]Business Administration or [100-3-009]Public Relations   or [100-3-010]Marketing\n200 - Language\n[200-1-001]Advanced English\n300 - Knowledge\n[300-19]Sales and Marketing , [300-38]Resource Management, [300-39]Suppliers and Contractors Management\n400 - Experience\n[400-5]Minimum 5 years experience in similar position, [400-49]Business Negotiations , [400-71]Supplier Management\n500 - Skills\n[500-12]Information Ordering, [500-22]Negotiation \n600 - Work Values\n[600-1]Strong Work Ethic, [600-4]Honesty and Integrity",null,null,2133.3333333333335,2133.3333333333335,{"$f":"60218/30","v":2007.2666666666667},{"$f":"64000/30","v":2133.3333333333335},{"$f":"99927/30","v":3330.9},"VI.2"]
[145,"11 3061","ADM","SAL","Administrative","Administrative Support","Purchasing Manager","*Represent companies in negotiating contracts and formulating policies with suppliers. *Direct and coordinate activities of personnel engaged in buying, selling, and distributing materials, equipment, machinery, and supplies.\n*Interview and hire staff, and oversee staff training. *Locate vendors of materials, equipment or supplies, and interview them to determine product availability and terms of sales.\n*Prepare and process requisitions and purchase orders for supplies and equipment. *Develop and implement purchasing and contract management instructions, policies, and procedures. ","100-3-005/100-3-009/100-3-010,200-1-001,300-19,300-38,300-39,400-5,400-49,400-71,500-12,500-22,600-1,600-4","810.572.220","VI.4","810.572.220","810.572.220",null,"810.572.220","810.572.220","810.572.220","810.572.220",null,null,null,null,"100 - Education\n[100-3-005]Business Administration or [100-3-009]Public Relations   or [100-3-010]Marketing\n200 - Language\n[200-1-001]Advanced English\n300 - Knowledge\n[300-19]Sales and Marketing , [300-38]Resource Management, [300-39]Suppliers and Contractors Management\n400 - Experience\n[400-5]Minimum 5 years experience in similar position, [400-49]Business Negotiations , [400-71]Supplier Management\n500 - Skills\n[500-12]Information Ordering, [500-22]Negotiation \n600 - Work Values\n[600-1]Strong Work Ethic, [600-4]Honesty and Integrity",null,null,1473.6666666666667,1473.6666666666667,{"$f":"37105/30","v":1236.8333333333333},{"$f":"44210/30","v":1473.6666666666667},{"$f":"66195/30","v":2206.5},"VI.4"]
[146,"11 3071","ADM","SAL","Warehouse","Distribution ","Procurement Manager","*Analyze expenditures and other financial information to develop plans, policies, or budgets for increasing profits or improving services. *Set operations policies and standards, including determining safety procedures for the handling of dangerous goods. *Plan, organize, or manage the work of subordinate staff to ensure that the work is accomplished in a manner consistent with organizational requirements. *Negotiate and authorize contracts with equipment and materials suppliers, and monitor contract fulfillment.","100-3-005/100-3-008,200-1-001,300-39,300-49,300-50,300-51,400-5,400-43,400-44,400-54,400-57,500-6,500-12,600-2,600-4","610.596.220","II.24",null,"610.596.220",null,"610.596.220","610.596.220","610.596.220","610.596.220",null,null,null,null,"100 - Education\n[100-3-005]Business Administration or [100-3-008]Human Resources\n200 - Language\n[200-1-001]Advanced English\n300 - Knowledge\n[300-39]Suppliers and Contractors Management, [300-49]Materials Handling, [300-50]Inventories, [300-51]Arrangement, Assortment, and Delivery of Materials\n400 - Experience\n[400-5]Minimum 5 years experience in similar position, [400-43]Materialists Coordination, [400-44]Physical Inventory Control, [400-54]Materials Management and Planning, [400-57]Inventory Management\n500 - Skills\n[500-6]Complex Problem Solving, [500-12]Information Ordering\n600 - Work Values\n[600-2]Dependability and Responsability, [600-4]Honesty and Integrity",null,null,2182.6333333333332,2182.6333333333332,{"$f":"48660/30","v":1622},{"$f":"65479/30","v":2182.6333333333332},{"$f":"80310/30","v":2677},"II.24"]
[147,"11-2022","ADM","SAL","Sales","Manufacturing","Warehouse Manager","* Resolve customer complaints regarding sales and service.  *Oversee regional and local sales managers and their staffs.\n* Plan and direct staffing, training, and performance evaluations to develop and control sales and service programs. *Determine price schedules and discount rates.\n* Review operational records and reports to project sales and determine profitability. *Monitor customer preferences to determine focus of sales efforts. *Prepare budgets and approve budget expenditures.","100-3-005/100-3-009/100-3-010,200-1-001,300-19,300-79,400-31,400-2,400-49,400-78,500-14,500-17,500-22,600-1,600-4",null,"IV.38","610.616.220","610.616.220",null,"610.616.220","610.616.220","610.616.220","610.616.220",null,null,null,null,"100 - Education\n[100-3-005]Business Administration or [100-3-009]Public Relations   or [100-3-010]Marketing\n200 - Language\n[200-1-001]Advanced English\n300 - Knowledge\n[300-19]Sales and Marketing , [300-79]International Commerce\n400 - Experience\n[400-31]Team Work, [400-2]Minimum 2 years experience in similar position, [400-49]Business Negotiations , [400-78]Customer Service\n500 - Skills\n[500-14]Proactive, [500-17]Self-management, [500-22]Negotiation \n600 - Work Values\n[600-1]Strong Work Ethic, [600-4]Honesty and Integrity",null,null,1771.5333333333333,1771.5333333333333,{"$f":"46823/30","v":1560.7666666666667},{"$f":"53146/30","v":1771.5333333333333},{"$f":"59470/30","v":1982.3333333333333},"IV.38"]
[148,"11-2022","ADM","SAL","Sales","Manufacturing","Sales Manager","* Resolve customer complaints regarding sales and service.  *Oversee regional and local sales managers and their staffs.\n* Plan and direct staffing, training, and performance evaluations to develop and control sales and service programs. *Determine price schedules and discount rates.\n* Review operational records and reports to project sales and determine profitability. *Monitor customer preferences to determine focus of sales efforts. *Prepare budgets and approve budget expenditures.","100-3-005/100-3-009/100-3-010,200-1-001,300-19,300-79,400-31,400-2,400-49,400-78,500-14,500-17,500-22,600-1,600-4","420.100.222","VIII.1","420.100.222","420.100.222","420.100.222","420.100.222","420.100.222","420.100.222","420.100.222",null,null,null,null,"100 - Education\n[100-3-005]Business Administration or [100-3-009]Public Relations   or [100-3-010]Marketing\n200 - Language\n[200-1-001]Advanced English\n300 - Knowledge\n[300-19]Sales and Marketing , [300-79]International Commerce\n400 - Experience\n[400-31]Team Work, [400-2]Minimum 2 years experience in similar position, [400-49]Business Negotiations , [400-78]Customer Service\n500 - Skills\n[500-14]Proactive, [500-17]Self-management, [500-22]Negotiation \n600 - Work Values\n[600-1]Strong Work Ethic, [600-4]Honesty and Integrity",null,null,2533.3333333333335,2533.3333333333335,{"$f":"68205/30","v":2273.5},{"$f":"76000/30","v":2533.3333333333335},{"$f":"93574/30","v":3119.1333333333332},"VIII.1"]
[149,"11-3011","ADM","SAL","Management","Manufacturing","Sales Representative","* Direct or coordinate the supportive services department of a business, agency, or organization. *Prepare and review operational reports and schedules to ensure accuracy and efficiency. *Set goals and deadlines for the department. *Acquire, distribute and store supplies. *Analyze internal processes and recommend and implement procedural or policy changes to improve operations, such as supply changes or the disposal of records. *Plan, administer and control budgets for contracts, equipment and supplies.","100-3-002/100-3-005/100-3-008,200-1-001,300-1,300-14,300-20,300-24,300-73,400-1,400-19,400-64,500-7,500-8,500-12,600-1,600-2","420.100.222","VIII.4","420.100.222","420.100.222","420.100.222","420.100.222","420.100.222","420.100.222","420.100.222",null,null,null,null,"100 - Education\n[100-3-002]Financial Administration or [100-3-005]Business Administration or [100-3-008]Human Resources\n200 - Language\n[200-1-001]Advanced English\n300 - Knowledge\n[300-1]Administration and Management, [300-14]Personnel and Human Resources, [300-20]Quality Control, [300-24]Planning, [300-73]Organizational Development\n400 - Experience\n[400-1]Minimum 1 year experience in similar position, [400-19]New Projects Development and Implementation, [400-64]General accounting\n500 - Skills\n[500-7]Judgement and Decision Making, [500-8]Communication and Oral Expression , [500-12]Information Ordering\n600 - Work Values\n[600-1]Strong Work Ethic, [600-2]Dependability and Responsability",null,null,500,500,{"$f":"14340/30","v":478},{"$f":"15000/30","v":500},{"$f":"22087/30","v":736.23333333333335},"VIII.4"]
[150,"11-3011","ADM","SAL","Management","Manufacturing","Administrative Manager","* Direct or coordinate the supportive services department of a business, agency, or organization. *Prepare and review operational reports and schedules to ensure accuracy and efficiency. *Set goals and deadlines for the department. *Acquire, distribute and store supplies. *Analyze internal processes and recommend and implement procedural or policy changes to improve operations, such as supply changes or the disposal of records. *Plan, administer and control budgets for contracts, equipment and supplies.","100-3-002/100-3-005/100-3-008,200-1-001,300-1,300-14,300-20,300-24,300-73,400-1,400-19,400-64,500-7,500-8,500-12,600-1,600-2","220.112.220","VI.19",null,"220.112.220",null,null,"220.112.220","220.112.220","220.112.220",null,null,null,null,"100 - Education\n[100-3-002]Financial Administration or [100-3-005]Business Administration or [100-3-008]Human Resources\n200 - Language\n[200-1-001]Advanced English\n300 - Knowledge\n[300-1]Administration and Management, [300-14]Personnel and Human Resources, [300-20]Quality Control, [300-24]Planning, [300-73]Organizational Development\n400 - Experience\n[400-1]Minimum 1 year experience in similar position, [400-19]New Projects Development and Implementation, [400-64]General accounting\n500 - Skills\n[500-7]Judgement and Decision Making, [500-8]Communication and Oral Expression , [500-12]Information Ordering\n600 - Work Values\n[600-1]Strong Work Ethic, [600-2]Dependability and Responsability",null,null,1610.7,1610.7,{"$f":"37389/30","v":1246.3},{"$f":"48321/30","v":1610.7},{"$f":"62006/30","v":2066.8666666666668},"VI.19"]
[150,"11-3111","ADM","SAL","Management","Manufacturing","Office Manager","* Direct or coordinate the supportive services department of a business, agency, or organization. *Prepare and review operational reports and schedules to ensure accuracy and efficiency. *Set goals and deadlines for the department. *Acquire, distribute and store supplies. *Analyze internal processes and recommend and implement procedural or policy changes to improve operations, such as supply changes or the disposal of records. *Plan, administer and control budgets for contracts, equipment and supplies.","100-3-002/100-3-005/100-3-008,200-1-001,300-1,300-14,300-20,300-24,300-73,400-1,400-19,400-64,500-7,500-8,500-12,600-1,600-2","220.112.220","VI.19",null,"220.112.220",null,null,"220.112.220","220.112.220","220.112.220",null,null,null,null,"100 - Education\n[100-3-002]Financial Administration or [100-3-005]Business Administration or [100-3-008]Human Resources\n200 - Language\n[200-1-001]Advanced English\n300 - Knowledge\n[300-1]Administration and Management, [300-14]Personnel and Human Resources, [300-20]Quality Control, [300-24]Planning, [300-73]Organizational Development\n400 - Experience\n[400-1]Minimum 1 year experience in similar position, [400-19]New Projects Development and Implementation, [400-64]General accounting\n500 - Skills\n[500-7]Judgement and Decision Making, [500-8]Communication and Oral Expression , [500-12]Information Ordering\n600 - Work Values\n[600-1]Strong Work Ethic, [600-2]Dependability and Responsability",null,null,1610.7,1610.7,{"$f":"37389/30","v":1246.3},{"$f":"48321/30","v":1610.7},{"$f":"62006/30","v":2066.8666666666668},"VI.19"]
[151,"11-9041","ADM","SAL","Administrative","Engineering","Trainning and Development Manager","* Manage the coordination and overall integration of technical activities in architecture or engineering projects. * Direct, review, or approve project design changes.\n* Confer with management, production, or marketing staff to discuss project specifications or procedures. * Present and explain proposals, reports, or findings to clients. *Consult or negotiate with clients to prepare project specification.","100-2/100-3-005,200-1-001,300-1,300-11,300-14,300-21,300-28,400-5,400-14,400-19,400-56,500-7,500-8,500-15,500-24,600-1","520.104.220","II.24","520.104.220","520.104.220",null,"520.104.220","520.104.220","520.104.220","520.104.220",null,null,null,null,"100 - Education\n[100-2]Engineering or [100-3-005]Business Administration\n200 - Language\n[200-1-001]Advanced English\n300 - Knowledge\n[300-1]Administration and Management, [300-11]Engineering and Technology, [300-14]Personnel and Human Resources, [300-21]Quality Assurance, [300-28]Continuous Improvement\n400 - Experience\n[400-5]Minimum 5 years experience in similar position, [400-14]Lean Manufacturing, [400-19]New Projects Development and Implementation, [400-56]Programming and production control\n500 - Skills\n[500-7]Judgement and Decision Making, [500-8]Communication and Oral Expression , [500-15]Leadership, [500-24]Analytical\n600 - Work Values\n[600-1]Strong Work Ethic",null,null,1309.6732499999998,1309.6732499999998,{"$f":"48660/30","v":1622},{"$f":"65479/30","v":2182.6333333333332},{"$f":"80310/30","v":2677},"II.24"]
[151,"11-9041","ADM","SAL","Administrative","Engineering","Engineering Manager ","* Manage the coordination and overall integration of technical activities in architecture or engineering projects. * Direct, review, or approve project design changes.\n* Confer with management, production, or marketing staff to discuss project specifications or procedures. * Present and explain proposals, reports, or findings to clients. *Consult or negotiate with clients to prepare project specification","100-2/100-3-005,200-1-001,300-1,300-11,300-14,300-21,300-28,400-5,400-14,400-19,400-56,500-7,500-8,500-15,500-24,600-1","520.104.220","II.24","520.104.220","520.104.220",null,"520.104.220","520.104.220","520.104.220","520.104.220",null,null,null,null,"100 - Education\n[100-2]Engineering or [100-3-005]Business Administration\n200 - Language\n[200-1-001]Advanced English\n300 - Knowledge\n[300-1]Administration and Management, [300-11]Engineering and Technology, [300-14]Personnel and Human Resources, [300-21]Quality Assurance, [300-28]Continuous Improvement\n400 - Experience\n[400-5]Minimum 5 years experience in similar position, [400-14]Lean Manufacturing, [400-19]New Projects Development and Implementation, [400-56]Programming and production control\n500 - Skills\n[500-7]Judgement and Decision Making, [500-8]Communication and Oral Expression , [500-15]Leadership, [500-24]Analytical\n600 - Work Values\n[600-1]Strong Work Ethic",null,null,1309.6732499999998,1309.6732499999998,{"$f":"48660/30","v":1622},{"$f":"65479/30","v":2182.6333333333332},{"$f":"80310/30","v":2677},"II.24"]
[151,"11-9041","ADM","SAL","Management","Quality Control","Engineering Program Manager ","* Manage the coordination and overall integration of technical activities in architecture or engineering projects. * Direct, review, or approve project design changes.\n* Confer with management, production, or marketing staff to discuss project specifications or procedures. * Present and explain proposals, reports, or findings to clients. *Consult or negotiate with clients to prepare project specification","100-2/100-3-005,200-1-001,300-1,300-11,300-14,300-21,300-28,400-5,400-14,400-19,400-56,500-7,500-8,500-15,500-24,600-1","520.104.220","II.24","520.104.220","520.104.220",null,"520.104.220","520.104.220","520.104.220","520.104.220",null,null,null,null,"100 - Education\n[100-2]Engineering or [100-3-005]Business Administration\n200 - Language\n[200-1-001]Advanced English\n300 - Knowledge\n[300-1]Administration and Management, [300-11]Engineering and Technology, [300-14]Personnel and Human Resources, [300-21]Quality Assurance, [300-28]Continuous Improvement\n400 - Experience\n[400-5]Minimum 5 years experience in similar position, [400-14]Lean Manufacturing, [400-19]New Projects Development and Implementation, [400-56]Programming and production control\n500 - Skills\n[500-7]Judgement and Decision Making, [500-8]Communication and Oral Expression , [500-15]Leadership, [500-24]Analytical\n600 - Work Values\n[600-1]Strong Work Ethic",null,null,1309.6732499999998,1309.6732499999998,{"$f":"48660/30","v":1622},{"$f":"65479/30","v":2182.6333333333332},{"$f":"80310/30","v":2677},"II.24"]
[152,"13-1051","IND","SAL","Administrative","Administrative Support","Project Manager","* Consult with clients, vendors, personnel in other departments or construction foremen to discuss and formulate estimates and resolve issues.\n* Analyze blueprints and other documentation to prepare time, cost, materials, and labor estimates. * Prepare estimates for use in selecting vendors or subcontractors.\n* Confer with engineers, architects, owners, contractors and subcontractors on changes and adjustments to cost estimates. * Prepare estimates used by management for purposes such as planning, organizing, and scheduling work.","100-3-002/100-3-006,200-1-001,300-66,300-69,400-6,400-19,500-7,500-22,500-24,600-1",null,"II.65",null,null,null,null,null,null,null,null,null,null,null,"100 - Education\n[100-3-002]Financial Administration or [100-3-006]Public Accountant\n200 - Language\n[200-1-001]Advanced English\n300 - Knowledge\n[300-66]Assets Control, [300-69]Accounting Systems\n400 - Experience\n[400-6]Minimum 6 years experience in similar position, [400-19]New Projects Development and Implementation\n500 - Skills\n[500-7]Judgement and Decision Making, [500-22]Negotiation , [500-24]Analytical\n600 - Work Values\n[600-1]Strong Work Ethic",null,null,951.6,951.6,{"$f":"23390/30","v":779.66666666666663},{"$f":"28548/30","v":951.6},{"$f":"36245/30","v":1208.1666666666667},"II.65"]
[153,"13-1075","IND","SAL","Human Resources","Personnel Management","Cost Analyst","* Advise management on matters related to the administration of contracts or employee discipline or grievance procedures. * Call or meet with union, company, government, or other interested parties to discuss labor relations matters, such as contract negotiations or grievances. * Draft contract proposals or counter-proposals for collective bargaining or other labor negotiations.\n* Draft rules or regulations to govern collective bargaining activities in collaboration with company, government, or employee representatives.","100-3-005/100-3-008,200-1-001,300-70,300-71,300-72,300-74,400-5,400-13,500-15,500-23,600-1",null,"VI.20",null,null,null,null,null,null,null,null,null,null,null,"100 - Education\n[100-3-005]Business Administration or [100-3-008]Human Resources\n200 - Language\n[200-1-001]Advanced English\n300 - Knowledge\n[300-70]Training, [300-71]Labor Relations Management, [300-72]Recruitment and Selection process, [300-74]Payroll Management\n400 - Experience\n[400-5]Minimum 5 years experience in similar position, [400-13]HR Management\n500 - Skills\n[500-15]Leadership, [500-23]Organization\n600 - Work Values\n[600-1]Strong Work Ethic",null,null,1007.3333333333334,1007.3333333333334,{"$f":"25995/30","v":866.5},{"$f":"30220/30","v":1007.3333333333334},{"$f":"34209/30","v":1140.3},"VI.20"]
[154,"13-1141","IND","SAL","Human Resources","Personnel Management","Labor Relations Specialist","* Ensure company compliance with federal and state laws, including reporting requirements. * Evaluate job positions, determining classification, exempt or non-exempt status, and salary. * Plan, develop, evaluate, improve, and communicate methods and techniques for selecting, promoting, compensating, evaluating, and training workers.\n* Prepare occupational classifications, job descriptions and salary scales. * Provide advice on the resolution of classification and salary complaints.\n* Advise managers and employees on state and federal employment regulations, collective agreements, benefit and compensation policies, personnel procedures and classification programs","100-3-005/100-3-008/200-1-001,300-14,300-71,300-72,400-8,400-74,500-7,500-9,500-19,600-2,600-4",null,"V.12",null,null,null,null,null,null,null,null,null,null,null,"100 - Education\n[100-3-005]Business Administration or [100-3-008]Human Resources or [200-1-001]Advanced English\n300 - Knowledge\n[300-14]Personnel and Human Resources, [300-71]Labor Relations Management, [300-72]Recruitment and Selection process\n400 - Experience\n[400-8]Minimum 8 years experience in similar position, [400-74]HR Planning\n500 - Skills\n[500-7]Judgement and Decision Making, [500-9]Problem Sensitivity, [500-19]Empathy\n600 - Work Values\n[600-2]Dependability and Responsability, [600-4]Honesty and Integrity",null,null,1250.6333333333334,1250.6333333333334,{"$f":"32617/30","v":1087.2333333333333},{"$f":"37519/30","v":1250.6333333333334},{"$f":"42422/30","v":1414.0666666666666},"V.12"]
[155,"15-1121","IND","SAL","Administrative","MIS","Human Resources Analyst ","* Expand or modify system to serve new purposes or improve work flow. * Test, maintain, and monitor computer programs and systems, including coordinating the installation of computer programs and systems. * Develop, document and revise system design procedures, test procedures, and quality standards.\n* Provide staff and users with assistance solving computer related problems, such as malfunctions and program problems. * Review and analyze computer printouts and performance indicators to locate code problems, and correct errors by correcting codes","100-2-002/100-2-003/100-3-001,200-1-001,300-6,300-32,400-5,400-22,400-59,400-60,500-24,500-26,600-2",null,"V.14",null,null,null,null,null,null,null,null,null,null,null,"100 - Education\n[100-2-002]Computer Systems Engineer in Hardware or [100-2-003]Computer Systems Engineer in Software or [100-3-001]Information Technologies\n200 - Language\n[200-1-001]Advanced English\n300 - Knowledge\n[300-6]Computers and Electronics , [300-32]Computer Sciences\n400 - Experience\n[400-5]Minimum 5 years experience in similar position, [400-22]Quality Tools, [400-59]Communications equipment configuration, [400-60]Technical support\n500 - Skills\n[500-24]Analytical, [500-26]Visual\n600 - Work Values\n[600-2]Dependability and Responsability",null,null,730.76666666666665,730.76666666666665,{"$f":"19207/30","v":640.23333333333335},{"$f":"21923/30","v":730.76666666666665},{"$f":"26057/30","v":868.56666666666672},"V.14"]
[156,"15-1121","IND","SAL","Administrative","MIS","Computer Systems Analyst ","* Expand or modify system to serve new purposes or improve work flow. * Test, maintain, and monitor computer programs and systems, including coordinating the installation of computer programs and systems. * Develop, document and revise system design procedures, test procedures, and quality standards.\n* Provide staff and users with assistance solving computer related problems, such as malfunctions and program problems. * Review and analyze computer printouts and performance indicators to locate code problems, and correct errors by correcting codes","100-2-002/100-2-003/100-3-001,200-1-001,300-6,300-32,400-8,400-22,400-59,400-60,500-24,500-26,600-2",null,"VII.7",null,null,null,null,null,null,null,null,null,null,null,"100 - Education\n[100-2-002]Computer Systems Engineer in Hardware or [100-2-003]Computer Systems Engineer in Software or [100-3-001]Information Technologies\n200 - Language\n[200-1-001]Advanced English\n300 - Knowledge\n[300-6]Computers and Electronics , [300-32]Computer Sciences\n400 - Experience\n[400-8]Minimum 8 years experience in similar position, [400-22]Quality Tools, [400-59]Communications equipment configuration, [400-60]Technical support\n500 - Skills\n[500-24]Analytical, [500-26]Visual\n600 - Work Values\n[600-2]Dependability and Responsability",null,null,833.33333333333337,833.33333333333337,{"$f":"18379/30","v":612.63333333333333},{"$f":"25000/30","v":833.33333333333337},{"$f":"31896/30","v":1063.2},"VII.7"]
[156,"15-1141","IND","SAL","Administrative","MIS","Programmer Analyst","* Test programs or databases, correct errors and make necessary modifications. * Modify existing databases and database management systems or direct programmers and analysts to make changes. * Plan, coordinate and implement security measures to safeguard information in computer files against accidental or unauthorized damage, modification or disclosure. * Work as part of a project team to coordinate database development and determine project scope and limitations. * Write and code logical and physical database descriptions and specify identifiers of database to management system or direct others in coding descriptions.","100-2-003/100-2-009/100-3-001,200-1-001,300-11,300-16,300-24,400-8,400-15,400-62,500-7,500-21,500-24,600-2",null,"VII.7",null,null,null,null,null,null,null,null,null,null,null,"100 - Education\n[100-2-003]Computer Systems Engineer in Software or [100-2-009]Process Technology Engineer or [100-3-001]Information Technologies\n200 - Language\n[200-1-001]Advanced English\n300 - Knowledge\n[300-11]Engineering and Technology, [300-16]Production and Processing, [300-24]Planning\n400 - Experience\n[400-8]Minimum 8 years experience in similar position, [400-15]Management of Computer Programs , [400-62]Data capture\n500 - Skills\n[500-7]Judgement and Decision Making, [500-21]Innovation, [500-24]Analytical\n600 - Work Values\n[600-2]Dependability and Responsability",null,null,833.33333333333337,833.33333333333337,{"$f":"18379/30","v":612.63333333333333},{"$f":"25000/30","v":833.33333333333337},{"$f":"31896/30","v":1063.2},"VII.7"]
[157,"15-1151","IND","SAL","Administrative","MIS","Database Analyst ","* Oversee the daily performance of computer systems. * Answer user inquiries regarding computer software or hardware operation to resolve problems.\n* Enter commands and observe system functioning to verify correct operations and detect errors. * Set up equipment for employee use, performing or ensuring proper installation of cables, operating systems, or appropriate software. * Install and perform minor repairs to hardware, software, or peripheral equipment, following design or installation specifications. * Maintain records of daily data communication transactions, problems and remedial actions taken, or installation activities","100-2-003/100-3-001,200-1-001,300-7,300-62,300-63,400-6,400-56,400-60,500-1,500-6,600-2",null,"VII.3",null,null,null,null,null,null,null,null,null,null,null,"100 - Education\n[100-2-003]Computer Systems Engineer in Software or [100-3-001]Information Technologies\n200 - Language\n[200-1-001]Advanced English\n300 - Knowledge\n[300-7]Customer and Personal Service, [300-62]Hardware, [300-63]Sofware\n400 - Experience\n[400-6]Minimum 6 years experience in similar position, [400-56]Programming and production control, [400-60]Technical support\n500 - Skills\n[500-1]Active Listening, [500-6]Complex Problem Solving\n600 - Work Values\n[600-2]Dependability and Responsability",null,null,1096.3333333333333,1096.3333333333333,{"$f":"31560/30","v":1052},{"$f":"32890/30","v":1096.3333333333333},{"$f":"37713/30","v":1257.0999999999999},"VII.3"]
[157,"15-1151","IND","SAL","Administrative","MIS","Network Support Specialist ","* Oversee the daily performance of computer systems. * Answer user inquiries regarding computer software or hardware operation to resolve problems.\n* Enter commands and observe system functioning to verify correct operations and detect errors. * Set up equipment for employee use, performing or ensuring proper installation of cables, operating systems, or appropriate software. * Install and perform minor repairs to hardware, software, or peripheral equipment, following design or installation specifications. * Maintain records of daily data communication transactions, problems and remedial actions taken, or installation activities","100-2-003/100-3-001,200-1-001,300-7,300-62,300-63,400-6,400-56,400-60,500-1,500-6,600-2",null,"VII.3",null,null,null,null,null,null,null,null,null,null,null,"100 - Education\n[100-2-003]Computer Systems Engineer in Software or [100-3-001]Information Technologies\n200 - Language\n[200-1-001]Advanced English\n300 - Knowledge\n[300-7]Customer and Personal Service, [300-62]Hardware, [300-63]Sofware\n400 - Experience\n[400-6]Minimum 6 years experience in similar position, [400-56]Programming and production control, [400-60]Technical support\n500 - Skills\n[500-1]Active Listening, [500-6]Complex Problem Solving\n600 - Work Values\n[600-2]Dependability and Responsability",null,null,1096.3333333333333,1096.3333333333333,{"$f":"31560/30","v":1052},{"$f":"32890/30","v":1096.3333333333333},{"$f":"37713/30","v":1257.0999999999999},"VII.3"]
[158,"15-1199.01","IND","SAL","Administrative","MIS","Software Test Engineer","* Design test plans, scenarios, scripts, or procedures. * Test system modifications to prepare for implementation. * Develop testing programs that address areas such as database impacts, software scenarios, regression testing, negative testing, error or bug retests, or usability. * Document software defects, using a bug tracking system, and report defects to software developers.","100-2-003/100-3-001,200-1-001,300-63,400-5,400-15,500-9,500-12,600-2",null,null,null,null,null,null,null,null,null,null,null,null,null,"100 - Education\n[100-2-003]Computer Systems Engineer in Software or [100-3-001]Information Technologies\n200 - Language\n[200-1-001]Advanced English\n300 - Knowledge\n[300-63]Sofware\n400 - Experience\n[400-5]Minimum 5 years experience in similar position, [400-15]Management of Computer Programs \n500 - Skills\n[500-9]Problem Sensitivity, [500-12]Information Ordering\n600 - Work Values\n[600-2]Dependability and Responsability",null,null,941.26666666666665,941.26666666666665,{"$f":"25540.08/30","v":851.33600000000001},{"$f":"28238/30","v":941.26666666666665},{"$f":"28922/30","v":964.06666666666672}]
[159,"15-1199.07","IND","SAL","Warehouse","MIS","Data Warehousing Specialist ","* Design, implement, or operate comprehensive data warehouse systems to balance optimization of data access with batch loading and resource utilization factors, according to customer requirements. * Develop data warehouse process models, including sourcing, loading, transformation, and extraction. * Create or implement metadata processes and frameworks. * Create plans, test files, and scripts for data warehouse testing, ranging from unit to integration testing. * Create supporting documentation, such as metadata and diagrams of entity relationships, business processes, and process flow. * Design and implement warehouse database structures","100-2-003/100-2-009/100-3-001,200-1-001,300-16,300-21,300-39,400-5,400-46,400-57,400-77,500-12,500-23,600-2,600-4","330.398.340",null,"330.398.340","330.398.340","330.398.340","330.398.340","330.398.340","330.398.340","330.398.340",null,null,null,null,"100 - Education\n[100-2-003]Computer Systems Engineer in Software or [100-2-009]Process Technology Engineer or [100-3-001]Information Technologies\n200 - Language\n[200-1-001]Advanced English\n300 - Knowledge\n[300-16]Production and Processing, [300-21]Quality Assurance, [300-39]Suppliers and Contractors Management\n400 - Experience\n[400-5]Minimum 5 years experience in similar position, [400-46]Supply Chain Improvement Programs, [400-57]Inventory Management, [400-77]Files Administration\n500 - Skills\n[500-12]Information Ordering, [500-23]Organization\n600 - Work Values\n[600-2]Dependability and Responsability, [600-4]Honesty and Integrity",null,null,807.66133333333335,807.66133333333335,{"$f":"22135/30","v":737.83333333333337},{"$f":"24229.84/30","v":807.66133333333335},{"$f":"31044.59/30","v":1034.8196666666668}]
[160,"17-2041","IND","SAL","Manufacturing","Engineering","Chemical Engineer ","* Develop safety procedures to be employed by workers operating equipment or working in close proximity to on-going chemical reactions. * Troubleshoot problems with chemical manufacturing processes. * Evaluate chemical equipment and processes to identify ways to optimize performance or to ensure compliance with safety and environmental regulations. * Conduct research to develop new and improved chemical manufacturing processes. * Determine most effective arrangement of operations such as mixing, crushing, heat transfer, distillation, and drying.","100-2-006,200-1-001,300-3,300-16,300-23,300-35,400-2,400-85,500-17,600-2",null,null,"120.240.340","120.240.340",null,"120.240.340","120.240.340","120.240.340","120.240.340",null,null,null,null,"100 - Education\n[100-2-006]Chemical Engineer\n200 - Language\n[200-1-001]Advanced English\n300 - Knowledge\n[300-3]Chemistry, [300-16]Production and Processing, [300-23]Quality Systems / TS / ISO, [300-35]Testing\n400 - Experience\n[400-2]Minimum 2 years experience in similar position, [400-85]Environmental Procedures \n500 - Skills\n[500-17]Self-management\n600 - Work Values\n[600-2]Dependability and Responsability",null,null,763.48199999999997,763.48199999999997,{"$f":"20308.41/30","v":676.947},{"$f":"22904.46/30","v":763.48199999999997},{"$f":"24732.79/30","v":824.42633333333333}]
[161,"17-2131","IND","SAL","Materials","Engineering","Materials Engineer ","* Review new product plans and make recommendations for material selection based on design objectives, such as strength, weight, heat resistance, electrical conductivity, and cost. * Supervise the work of technologists, technicians, and other engineers . * Analyze product failure data and laboratory test results to determine causes of problems and develop solutions. * Conduct or supervise tests on raw materials or finished products to ensure their quality. * Plan and implement laboratory operations for the purpose of developing material and fabrication procedures that meet cost, product specification, and performance standards","100-2-007/100-2-010,200-1-001,300-11,300-21,300-29,400-4,400-43,400-54,500-7,500-18,600-2,600-4",null,"IV.4",null,null,null,null,null,null,null,null,null,null,null,"100 - Education\n[100-2-007]Industrial Engineer or [100-2-010]Manufacturing Technology Engineer\n200 - Language\n[200-1-001]Advanced English\n300 - Knowledge\n[300-11]Engineering and Technology, [300-21]Quality Assurance, [300-29]5's\n400 - Experience\n[400-4]Minimum 4 years experience in similar position, [400-43]Materialists Coordination, [400-54]Materials Management and Planning\n500 - Skills\n[500-7]Judgement and Decision Making, [500-18]Stress management\n600 - Work Values\n[600-2]Dependability and Responsability, [600-4]Honesty and Integrity",null,null,1232.2,1232.2,{"$f":"31987/30","v":1066.2333333333333},{"$f":"36966/30","v":1232.2},{"$f":"45600/30","v":1520},"IV.4"]
[161,"17-2131","IND","SAL","Materials","Engineering","Materials Development Engineer","* Review new product plans and make recommendations for material selection based on design objectives, such as strength, weight, heat resistance, electrical conductivity, and cost. * Supervise the work of technologists, technicians, and other engineers . * Analyze product failure data and laboratory test results to determine causes of problems and develop solutions. * Conduct or supervise tests on raw materials or finished products to ensure their quality. * Plan and implement laboratory operations for the purpose of developing material and fabrication procedures that meet cost, product specification, and performance standards","100-2-007/100-2-010,200-1-001,300-11,300-21,300-29,400-4,400-43,400-54,500-7,500-18,600-2,600-4",null,"IV.4",null,null,null,null,null,null,null,null,null,null,null,"100 - Education\n[100-2-007]Industrial Engineer or [100-2-010]Manufacturing Technology Engineer\n200 - Language\n[200-1-001]Advanced English\n300 - Knowledge\n[300-11]Engineering and Technology, [300-21]Quality Assurance, [300-29]5's\n400 - Experience\n[400-4]Minimum 4 years experience in similar position, [400-43]Materialists Coordination, [400-54]Materials Management and Planning\n500 - Skills\n[500-7]Judgement and Decision Making, [500-18]Stress management\n600 - Work Values\n[600-2]Dependability and Responsability, [600-4]Honesty and Integrity",null,null,1232.2,1232.2,{"$f":"31987/30","v":1066.2333333333333},{"$f":"36966/30","v":1232.2},{"$f":"45600/30","v":1520},"IV.4"]
[162,"17-2141","IND","SAL","Manufacturing","Engineering","Mechanical Engineer ","* Research, design, evaluate, install, operate, and maintain mechanical products, equipment, systems and processes to meet requirements, applying knowledge of engineering principles. * Confer with engineers or other personnel to implement operating procedures, resolve system malfunctions, or provide technical information.\n* Recommend design modifications to eliminate machine or system malfunctions. * Conduct research that tests or analyzes the feasibility, design, operation, or performance of equipment, components, or systems. * Investigate equipment failures and difficulties to diagnose faulty operation, and to make recommendations to maintenance crew.\n* Develop and test models of alternate designs and processing methods to assess feasibility, operating condition effects, possible new applications and necessity of modification. ","100-2-008,200-1-001,300-8,300-11,300-13,300-22,300-33,300-45,400-4,400-26,400-35,400-58,500-6,600-2",null,null,null,null,null,null,null,null,null,null,null,null,null,"100 - Education\n[100-2-008]Mechanical Engineer\n200 - Language\n[200-1-001]Advanced English\n300 - Knowledge\n[300-8]Design, [300-11]Engineering and Technology, [300-13]Mechanical, [300-22]Measurement Equipment, [300-33]Calibration, [300-45]Machines and Tools\n400 - Experience\n[400-4]Minimum 4 years experience in similar position, [400-26]Production Equipment / Machinery, [400-35]Mechanics, [400-58]Machines and equipment set- up \n500 - Skills\n[500-6]Complex Problem Solving\n600 - Work Values\n[600-2]Dependability and Responsability",null,null,822.5333333333333,822.5333333333333,{"$f":"24385.74/30","v":812.85800000000006},{"$f":"24676/30","v":822.5333333333333},{"$f":"27820.78/30","v":927.35933333333332}]
[162,"17-2141","IND","SAL","Manufacturing","Engineering","Mechanical Design Engineer ","* Research, design, evaluate, install, operate, and maintain mechanical products, equipment, systems and processes to meet requirements, applying knowledge of engineering principles. * Confer with engineers or other personnel to implement operating procedures, resolve system malfunctions, or provide technical information.\n* Recommend design modifications to eliminate machine or system malfunctions. * Conduct research that tests or analyzes the feasibility, design, operation, or performance of equipment, components, or systems. * Investigate equipment failures and difficulties to diagnose faulty operation, and to make recommendations to maintenance crew.\n* Develop and test models of alternate designs and processing methods to assess feasibility, operating condition effects, possible new applications and necessity of modification. ","100-2-008,200-1-001,300-8,300-11,300-13,300-22,300-33,300-45,400-4,400-26,400-35,400-58,500-6,600-2",null,null,null,null,null,null,null,null,null,null,null,null,null,"100 - Education\n[100-2-008]Mechanical Engineer\n200 - Language\n[200-1-001]Advanced English\n300 - Knowledge\n[300-8]Design, [300-11]Engineering and Technology, [300-13]Mechanical, [300-22]Measurement Equipment, [300-33]Calibration, [300-45]Machines and Tools\n400 - Experience\n[400-4]Minimum 4 years experience in similar position, [400-26]Production Equipment / Machinery, [400-35]Mechanics, [400-58]Machines and equipment set- up \n500 - Skills\n[500-6]Complex Problem Solving\n600 - Work Values\n[600-2]Dependability and Responsability",null,null,822.5333333333333,822.5333333333333,{"$f":"24385.74/30","v":812.85800000000006},{"$f":"24676/30","v":822.5333333333333},{"$f":"27820.78/30","v":927.35933333333332}]
[163,"17-3021","IND","SAL","Manufacturing","Engineering","Aerospace Engineering ","* Inspect, diagnose, maintain, and operate test setups and equipment to detect malfunctions. * Record and interpret test data on parts, assemblies, and mechanisms.\n* Confer with engineering personnel regarding details and implications of test procedures and results. * Adjust, repair or replace faulty components of test setups and equipment. * Identify required data, data acquisition plans and test parameters, setting up equipment to conform to these specifications","100-2-005,200-1-001,300-11,300-22,300-45,400-4,400-33,400-58,500-16,500-21,600-2",null,null,null,null,null,null,null,null,null,null,null,null,null,"100 - Education\n[100-2-005]Aerospace Engineer\n200 - Language\n[200-1-001]Advanced English\n300 - Knowledge\n[300-11]Engineering and Technology, [300-22]Measurement Equipment, [300-45]Machines and Tools\n400 - Experience\n[400-4]Minimum 4 years experience in similar position, [400-33]Time and motion analysis, [400-58]Machines and equipment set- up \n500 - Skills\n[500-16]Team Work, [500-21]Innovation\n600 - Work Values\n[600-2]Dependability and Responsability",null,null,755.76666666666665,755.76666666666665,{"$f":"21474/30","v":715.8},{"$f":"22673/30","v":755.76666666666665},{"$f":"25133/30","v":837.76666666666665}]
[164,"17-3023","IND","SAL","Manufacturing","Engineering","Electrical and Electronic Engineering ","* Identify and resolve equipment malfunctions, working with manufacturers or field representatives as necessary to procure replacement parts. * Test electronics units, using standard test equipment, and analyze results to evaluate performance and determine need for adjustment. * Adjust or replace defective or improperly functioning circuitry or electronics components, using hand tools or soldering iron. * Assemble, test, or maintain circuitry or electronic components, according to engineering instructions, technical manuals, or knowledge of electronics, using hand or power tools. * Perform preventative maintenance or calibration of equipment or systems.","100-2-012,200-1-001,300-11,300-40,400-2,400-60,500-3,500-9,500-18,600-2",null,null,null,null,null,null,null,null,null,null,null,null,null,"100 - Education\n[100-2-012]Electronics Engineer\n200 - Language\n[200-1-001]Advanced English\n300 - Knowledge\n[300-11]Engineering and Technology, [300-40]Preventive and Corrective Maintenance\n400 - Experience\n[400-2]Minimum 2 years experience in similar position, [400-60]Technical support\n500 - Skills\n[500-3]Monitoring, [500-9]Problem Sensitivity, [500-18]Stress management\n600 - Work Values\n[600-2]Dependability and Responsability",null,null,777.06666666666672,777.06666666666672,{"$f":"20721/30","v":690.7},{"$f":"23312/30","v":777.06666666666672},{"$f":"25285/30","v":842.83333333333337}]
[165,"17-3024","IND","HOU","Manufacturing","Engineering","Electro-Mechanical Technician ","* Test performance of electromechanical assemblies, using test instruments such as oscilloscopes, electronic voltmeters, or bridges. * Read blueprints, schematics, diagrams, or technical orders to determine methods and sequences of assembly. * Install electrical or electronic parts and hardware in housings or assemblies, using soldering equipment and hand tools. * Align, fit, or assemble component parts, using hand or power tools, fixtures, templates, or microscopes. * Inspect parts for surface defects.","100-4-001/100-2-012,200-1-001,300-11,300-40,400-2,400-60,400-24,500-3,500-9,500-18,600-2",null,"II.58",null,null,null,null,null,null,null,null,null,null,null,"100 - Education\n[100-4-001]Electronic or [100-2-012]Electronics Engineer\n200 - Language\n[200-1-001]Advanced English\n300 - Knowledge\n[300-11]Engineering and Technology, [300-40]Preventive and Corrective Maintenance\n400 - Experience\n[400-2]Minimum 2 years experience in similar position, [400-60]Technical support, [400-24]Destructive Testing\n500 - Skills\n[500-3]Monitoring, [500-9]Problem Sensitivity, [500-18]Stress management\n600 - Work Values\n[600-2]Dependability and Responsability",null,null,459.46666666666664,459.46666666666664,{"$f":"13629/30","v":454.3},{"$f":"13784/30","v":459.46666666666664},{"$f":"13939/30","v":464.63333333333333},"II.58"]
[165,"17-3024","IND","HOU","Manufacturing","Engineering","Electronic Technician ","* Test performance of electromechanical assemblies, using test instruments such as oscilloscopes, electronic voltmeters, or bridges. * Read blueprints, schematics, diagrams, or technical orders to determine methods and sequences of assembly. * Install electrical or electronic parts and hardware in housings or assemblies, using soldering equipment and hand tools. * Align, fit, or assemble component parts, using hand or power tools, fixtures, templates, or microscopes. * Inspect parts for surface defects.","100-4-001/100-2-012,200-1-001,300-11,300-40,400-2,400-60,400-24,500-3,500-9,500-18,600-2",null,"II.58",null,null,null,null,null,null,null,null,null,null,null,"100 - Education\n[100-4-001]Electronic or [100-2-012]Electronics Engineer\n200 - Language\n[200-1-001]Advanced English\n300 - Knowledge\n[300-11]Engineering and Technology, [300-40]Preventive and Corrective Maintenance\n400 - Experience\n[400-2]Minimum 2 years experience in similar position, [400-60]Technical support, [400-24]Destructive Testing\n500 - Skills\n[500-3]Monitoring, [500-9]Problem Sensitivity, [500-18]Stress management\n600 - Work Values\n[600-2]Dependability and Responsability",null,null,459.46666666666664,459.46666666666664,{"$f":"13629/30","v":454.3},{"$f":"13784/30","v":459.46666666666664},{"$f":"13939/30","v":464.63333333333333},"II.58"]
[166,"17-3029","IND","SAL","Materials","Engineering","Non-Destructive Testing Specialist ","* Interpret or evaluate test results in accordance with applicable codes, standards, specifications, or procedures. * Interpret the results of all methods of non-destructive testing (NDT) such as acoustic emission, electromagnetic, leak, liquid penetrant, magnetic particle, neutron radiographic, radiographic, thermal or infrared, ultrasonic, vibration analysis, and visual testing. * Select, calibrate, or operate equipment used in the non-destructive testing (NDT) of products or materials. * Examine structures or vehicles such as aircraft, trains, nuclear reactors, bridges, dams, and pipelines using non-destructive testing (NDT) techniques. * Make radiographic images to detect flaws in objects while leaving objects intact","100-2-008/100-2-009,200-1-001,300-11,300-16,300-22,300-33,300-35,400-5,400-101,500-14,600-1",null,null,null,null,null,null,null,null,null,null,null,null,null,"100 - Education\n[100-2-008]Mechanical Engineer or [100-2-009]Process Technology Engineer\n200 - Language\n[200-1-001]Advanced English\n300 - Knowledge\n[300-11]Engineering and Technology, [300-16]Production and Processing, [300-22]Measurement Equipment, [300-33]Calibration, [300-35]Testing\n400 - Experience\n[400-5]Minimum 5 years experience in similar position, [400-101]Conciliaciones\n500 - Skills\n[500-14]Proactive\n600 - Work Values\n[600-1]Strong Work Ethic",null,null,824.13333333333333,824.13333333333333,{"$f":"22518/30","v":750.6},{"$f":"24724/30","v":824.13333333333333},{"$f":"27456/30","v":915.2}]
[167,"27-3031","IND","SAL","Administrative","Administrative Support","Public Relations Specialist ","\n* Respond to requests for information from the media or designate an appropriate spokesperson or information source. * Study the objectives, promotional policies, or needs of organizations to develop public relations strategies that will influence public opinion or promote ideas, products, or services. * Plan or direct development or communication of informational programs to maintain favorable public or stockholder perceptions of an organization's accomplishments or agenda. * Establish or maintain cooperative relationships with representatives of community, consumer, employee, or public interest groups. * Prepare or edit organizational publications for internal and external audiences, including employee newsletters and stockholders' reports. * Coach client representatives in effective communication with the public or with employee","100-3-003/100-3-009/100-3-010,200-1-001,300-5,300-61,400-5,400-76,500-4,500-8,500-19,600-2,600-8",null,null,null,null,null,null,null,null,null,null,null,null,null,"100 - Education\n[100-3-003]Communication Sciences or [100-3-009]Public Relations   or [100-3-010]Marketing\n200 - Language\n[200-1-001]Advanced English\n300 - Knowledge\n[300-5]Communications and Media, [300-61]Communication Systems\n400 - Experience\n[400-5]Minimum 5 years experience in similar position, [400-76]Social Events Logistic\n500 - Skills\n[500-4]Social Perceptiveness, [500-8]Communication and Oral Expression , [500-19]Empathy\n600 - Work Values\n[600-2]Dependability and Responsability, [600-8]Loyalty",null,null,1149.2333333333333,1149.2333333333333,{"$f":"26391.8/30","v":879.72666666666669},{"$f":"34477/30","v":1149.2333333333333},{"$f":"37379/30","v":1245.9666666666667}]
[168,"27-3091","IND","SAL","Administrative","Administrative Support","Interpreters and Translators ","* Translate messages simultaneously or consecutively into specified languages, orally or by using hand signs, maintaining message content, context, and style as much as possible. * Listen to speakers' statements to determine meanings and to prepare translations, using electronic listening systems as necessary. * Compile terminology and information to be used in translations, including technical terms such as those for legal or medical material. * Read written materials, such as legal documents, scientific works, or news reports, and rewrite material into specified languages. * Identify and resolve conflicts related to the meanings of words, concepts, practices, or behaviors.","100-3-013,200-1-001/200-2-001/200-3-001/200-4-001/200-5-001/200-6-001,400-3,500-1,500-8,600-2",null,null,null,null,null,null,null,null,null,null,null,null,null,"100 - Education\n[100-3-013]\n200 - Language\n[200-1-001]Advanced English or [200-2-001]Advanced French English or [200-3-001]Advanced Madarin English or [200-4-001]Advanced Japanese English or [200-5-001]Advanced Portuguese English or [200-6-001]Advanced German English\n400 - Experience\n[400-3]Minimum 3 years experience in similar position\n500 - Skills\n[500-1]Active Listening, [500-8]Communication and Oral Expression \n600 - Work Values\n[600-2]Dependability and Responsability",null,null,633.33333333333337,633.33333333333337,{"$f":"15500/30","v":516.66666666666663},{"$f":"19000/30","v":633.33333333333337},{"$f":"22300/30","v":743.33333333333337}]
[169,"43-4051","IND","SAL","Administrative","Administrative Support","Customer Service Supervisor ","* Confer with customers by telephone or in person to provide information about products or services, take or enter orders, cancel accounts, or obtain details of complaints.\n* Check to ensure that appropriate changes were made to resolve customers' problems. * Keep records of customer interactions or transactions, recording details of inquiries, complaints, or comments, as well as actions taken. * Resolve customers' service or billing complaints by performing activities such as exchanging merchandise, refunding money, or adjusting bills. * Complete contract forms, prepare change of address records, or issue service discontinuance orders, using computer.","100-3-005/100-3-010,200-1-001,300-7,300-19,400-5,400-17,400-78,500-1,500-4,500-9,500-19,600-2",null,null,null,"120.240.340",null,null,"120.240.340",null,"120.240.340",null,null,null,null,"100 - Education\n[100-3-005]Business Administration or [100-3-010]Marketing\n200 - Language\n[200-1-001]Advanced English\n300 - Knowledge\n[300-7]Customer and Personal Service, [300-19]Sales and Marketing \n400 - Experience\n[400-5]Minimum 5 years experience in similar position, [400-17]Development Plans of Implementation and Certification of quality systems, [400-78]Customer Service\n500 - Skills\n[500-1]Active Listening, [500-4]Social Perceptiveness, [500-9]Problem Sensitivity, [500-19]Empathy\n600 - Work Values\n[600-2]Dependability and Responsability",null,null,876.81166666666661,876.81166666666661,{"$f":"26082.71/30","v":869.42366666666669},{"$f":"26304.35/30","v":876.81166666666661},{"$f":"31539.74/30","v":1051.3246666666666}]
[169,"43-4051","IND","SAL","Administrative","Administrative Support","Customer Care Representative ","* Confer with customers by telephone or in person to provide information about products or services, take or enter orders, cancel accounts, or obtain details of complaints.\n* Check to ensure that appropriate changes were made to resolve customers' problems. * Keep records of customer interactions or transactions, recording details of inquiries, complaints, or comments, as well as actions taken. * Resolve customers' service or billing complaints by performing activities such as exchanging merchandise, refunding money, or adjusting bills. * Complete contract forms, prepare change of address records, or issue service discontinuance orders, using computer.","100-3-005/100-3-010,200-1-001,300-7,300-19,400-5,400-17,400-78,500-1,500-4,500-9,500-19,600-2",null,null,null,"120.240.340",null,null,"120.240.340",null,"120.240.340",null,null,null,null,"100 - Education\n[100-3-005]Business Administration or [100-3-010]Marketing\n200 - Language\n[200-1-001]Advanced English\n300 - Knowledge\n[300-7]Customer and Personal Service, [300-19]Sales and Marketing \n400 - Experience\n[400-5]Minimum 5 years experience in similar position, [400-17]Development Plans of Implementation and Certification of quality systems, [400-78]Customer Service\n500 - Skills\n[500-1]Active Listening, [500-4]Social Perceptiveness, [500-9]Problem Sensitivity, [500-19]Empathy\n600 - Work Values\n[600-2]Dependability and Responsability",null,null,876.81166666666661,876.81166666666661,{"$f":"26082.71/30","v":869.42366666666669},{"$f":"26304.35/30","v":876.81166666666661},{"$f":"31539.74/30","v":1051.3246666666666}]
[170,"43-4151","IND","SAL","Manufacturing","Administrative Support","Order Clerks ","* Obtain customers' names, addresses, and billing information, product numbers, and specifications of items to be purchased, and enter this information on order forms.\n* Prepare invoices, shipping documents, and contracts. * Inform customers by mail or telephone of order information, such as unit prices, shipping dates, and any anticipated delays. * Receive and respond to customer complaints. * Verify customer and order information for correctness, checking it against previously obtained information as necessary. * Direct specified departments or units to prepare and ship orders to designated locations.","100-4-008,300-1,300-7,300-39,300-48,400-2,400-25,400-50,400-75,500-10,500-12,500-23,600-1","120.240.340",null,"120.240.340","120.240.340","120.240.340","120.240.340","120.240.340","120.240.340","120.240.340",null,null,null,null,"100 - Education\n[100-4-008]Administration\n300 - Knowledge\n[300-1]Administration and Management, [300-7]Customer and Personal Service, [300-39]Suppliers and Contractors Management, [300-48]Administration of New Projects\n400 - Experience\n[400-2]Minimum 2 years experience in similar position, [400-25]Planning and Control, [400-50]Payment Procedures, [400-75]HR Process Management\n500 - Skills\n[500-10]Written Comprenhension, [500-12]Information Ordering, [500-23]Organization\n600 - Work Values\n[600-1]Strong Work Ethic",null,null,345.74599999999998,345.74599999999998,{"$f":"10216/30","v":340.53333333333336},{"$f":"10372.38/30","v":345.74599999999998},{"$f":"11285/30","v":376.16666666666669}]
[170,"43-4151","IND","SAL","Manufacturing","Administrative Support","Warehouse Clerk ","* Obtain customers' names, addresses, and billing information, product numbers, and specifications of items to be purchased, and enter this information on order forms.\n* Prepare invoices, shipping documents, and contracts. * Inform customers by mail or telephone of order information, such as unit prices, shipping dates, and any anticipated delays. * Receive and respond to customer complaints. * Verify customer and order information for correctness, checking it against previously obtained information as necessary. * Direct specified departments or units to prepare and ship orders to designated locations.","100-4-008,300-1,300-7,300-39,300-48,400-2,400-25,400-50,400-75,500-10,500-12,500-23,600-1","120.240.340",null,"120.240.340","120.240.340","120.240.340","120.240.340","120.240.340","120.240.340","120.240.340",null,null,null,null,"100 - Education\n[100-4-008]Administration\n300 - Knowledge\n[300-1]Administration and Management, [300-7]Customer and Personal Service, [300-39]Suppliers and Contractors Management, [300-48]Administration of New Projects\n400 - Experience\n[400-2]Minimum 2 years experience in similar position, [400-25]Planning and Control, [400-50]Payment Procedures, [400-75]HR Process Management\n500 - Skills\n[500-10]Written Comprenhension, [500-12]Information Ordering, [500-23]Organization\n600 - Work Values\n[600-1]Strong Work Ethic",null,null,345.74599999999998,345.74599999999998,{"$f":"10216/30","v":340.53333333333336},{"$f":"10372.38/30","v":345.74599999999998},{"$f":"11285/30","v":376.16666666666669}]
[171,"43-6011","IND","SAL","Administrative","Administrative Support","Executive Secretary","* Perform general office duties, such as ordering supplies, maintaining records management database systems, and performing basic bookkeeping work.\n* File and retrieve corporate documents, records, and reports. * Open, sort, and distribute incoming correspondence, including faxes and email.\n* Make travel arrangements for executives. * Conduct research, compile data, and prepare papers for consideration and presentation by executives, committees and boards of directors. * Answer phone calls and direct calls to appropriate parties or take messages.","100-3-005,200-1-001,300-1,300-7,300-39,300-48,300-64,400-2,400-25,400-50,400-77,500-10,500-12,500-23,600-1,600-2",null,null,null,null,null,null,null,null,null,null,null,null,null,"100 - Education\n[100-3-005]Business Administration\n200 - Language\n[200-1-001]Advanced English\n300 - Knowledge\n[300-1]Administration and Management, [300-7]Customer and Personal Service, [300-39]Suppliers and Contractors Management, [300-48]Administration of New Projects, [300-64]General Accounting\n400 - Experience\n[400-2]Minimum 2 years experience in similar position, [400-25]Planning and Control, [400-50]Payment Procedures, [400-77]Files Administration\n500 - Skills\n[500-10]Written Comprenhension, [500-12]Information Ordering, [500-23]Organization\n600 - Work Values\n[600-1]Strong Work Ethic, [600-2]Dependability and Responsability",null,null,420.2,420.2,{"$f":"10596.55/30","v":353.21833333333331},{"$f":"12606/30","v":420.2},{"$f":"14218.35/30","v":473.94499999999999}]
[172,"47-2211","IND","HOU","Manufacturing","Manufacturing","Sheet Metal Worker ","* Determine project requirements, including scope, assembly sequences, and required methods and materials, according to blueprints, drawings, and written or verbal instructions. * Lay out, measure, and mark dimensions and reference lines on material, such as roofing panels, according to drawings or templates, using calculators, scribes, dividers, squares, and rulers. * Fasten seams or joints together with welds, bolts, cement, rivets, solder, caulks, metal drive clips, or bonds to assemble components into products or to repair sheet metal items. * Install assemblies, such as flashing, pipes, tubes, heating and air conditioning ducts, furnace casings, rain gutters, or downspouts in supportive frameworks. * Convert blueprints into shop drawings to be followed in the construction or assembly of sheet metal products.","100-4-011/100-4-004/100-5,300-22,300-36,400-2,500-14,500-13,600-2,600-4",null,"II.45",null,null,null,null,null,null,null,null,null,null,null,"100 - Education\n[100-4-011]Welding or [100-4-004]Machinery and Tools or [100-5]High School\n300 - Knowledge\n[300-22]Measurement Equipment, [300-36]Production Control\n400 - Experience\n[400-2]Minimum 2 years experience in similar position\n500 - Skills\n[500-14]Proactive, [500-13]Change Adaptation\n600 - Work Values\n[600-2]Dependability and Responsability, [600-4]Honesty and Integrity",null,null,537.56666666666672,537.56666666666672,{"$f":"14903/30","v":496.76666666666665},{"$f":"16127/30","v":537.56666666666672},{"$f":"17350/30","v":578.33333333333337},"II.45"]
[172,"47-2211","IND","HOU","Manufacturing","Manufacturing","Sheet Metal Mechanic","* Determine project requirements, including scope, assembly sequences, and required methods and materials, according to blueprints, drawings, and written or verbal instructions. * Lay out, measure, and mark dimensions and reference lines on material, such as roofing panels, according to drawings or templates, using calculators, scribes, dividers, squares, and rulers. * Fasten seams or joints together with welds, bolts, cement, rivets, solder, caulks, metal drive clips, or bonds to assemble components into products or to repair sheet metal items. * Install assemblies, such as flashing, pipes, tubes, heating and air conditioning ducts, furnace casings, rain gutters, or downspouts in supportive frameworks. * Convert blueprints into shop drawings to be followed in the construction or assembly of sheet metal products.","100-4-011/100-4-004/100-5,300-22,300-36,400-2,500-14,500-13,600-2,600-4",null,"II.45",null,null,null,null,null,null,null,null,null,null,null,"100 - Education\n[100-4-011]Welding or [100-4-004]Machinery and Tools or [100-5]High School\n300 - Knowledge\n[300-22]Measurement Equipment, [300-36]Production Control\n400 - Experience\n[400-2]Minimum 2 years experience in similar position\n500 - Skills\n[500-14]Proactive, [500-13]Change Adaptation\n600 - Work Values\n[600-2]Dependability and Responsability, [600-4]Honesty and Integrity",null,null,537.56666666666672,537.56666666666672,{"$f":"14903/30","v":496.76666666666665},{"$f":"16127/30","v":537.56666666666672},{"$f":"17350/30","v":578.33333333333337},"II.45"]
[173,"49-2091","IND","SAL","Manufacturing","Engineering","Avionics Electronics Technician ","* Set up and operate ground support and test equipment to perform functional flight tests of electrical and electronic systems. * Test and troubleshoot instruments, components, and assemblies, using circuit testers, oscilloscopes, or voltmeters. * Keep records of maintenance and repair work. * Coordinate work with that of engineers, technicians, and other aircraft maintenance personnel. *Interpret flight test data to diagnose malfunctions and systemic performance problems.","100-2-005/100-2-012,200-1-001,300-6,300-13,300-44,400-4,400-58,400-60,500-6,500-24,600-2",null,null,null,null,null,null,null,null,null,null,null,null,null,"100 - Education\n[100-2-005]Aerospace Engineer or [100-2-012]Electronics Engineer\n200 - Language\n[200-1-001]Advanced English\n300 - Knowledge\n[300-6]Computers and Electronics , [300-13]Mechanical, [300-44]Detection of Problems and Failures\n400 - Experience\n[400-4]Minimum 4 years experience in similar position, [400-58]Machines and equipment set- up , [400-60]Technical support\n500 - Skills\n[500-6]Complex Problem Solving, [500-24]Analytical\n600 - Work Values\n[600-2]Dependability and Responsability",null,null,772.0333333333333,772.0333333333333,{"$f":"8786/30","v":292.86666666666667},{"$f":"23161/30","v":772.0333333333333},{"$f":"24195/30","v":806.5}]
[173,"49-2091","IND","SAL","Manufacturing","Engineering","Aircraft Electrical Systems Specialist ","* Set up and operate ground support and test equipment to perform functional flight tests of electrical and electronic systems. * Test and troubleshoot instruments, components, and assemblies, using circuit testers, oscilloscopes, or voltmeters. * Keep records of maintenance and repair work. * Coordinate work with that of engineers, technicians, and other aircraft maintenance personnel. *Interpret flight test data to diagnose malfunctions and systemic performance problems.","100-2-005/100-2-012,200-1-001,300-6,300-13,300-44,400-4,400-58,400-60,500-6,500-24,600-2",null,null,null,null,null,null,null,null,null,null,null,null,null,"100 - Education\n[100-2-005]Aerospace Engineer or [100-2-012]Electronics Engineer\n200 - Language\n[200-1-001]Advanced English\n300 - Knowledge\n[300-6]Computers and Electronics , [300-13]Mechanical, [300-44]Detection of Problems and Failures\n400 - Experience\n[400-4]Minimum 4 years experience in similar position, [400-58]Machines and equipment set- up , [400-60]Technical support\n500 - Skills\n[500-6]Complex Problem Solving, [500-24]Analytical\n600 - Work Values\n[600-2]Dependability and Responsability",null,null,772.0333333333333,772.0333333333333,{"$f":"8786/30","v":292.86666666666667},{"$f":"23161/30","v":772.0333333333333},{"$f":"24195/30","v":806.5}]
[174,"49-2093","IND","SAL","Manufacturing","Engineering","Troubleshooter ","* Inspect and test electrical systems and equipment to locate and diagnose malfunctions, using visual inspections, testing devices, and computer software.\n* Reassemble and test equipment after repairs. * Splice wires with knives or cutting pliers, and solder connections to fixtures, outlets, and equipment.\n* Install new fuses, electrical cables, or power sources as required. * Locate and remove or repair circuit defects such as blown fuses or malfunctioning transistors.","100-4-001,200-1-003,300-6,400-2,400-31,400-38,400-39,400-60,500-24,600-2",null,null,null,null,null,null,null,null,null,null,null,null,null,"100 - Education\n[100-4-001]Electronic\n200 - Language\n[200-1-003]Basic English\n300 - Knowledge\n[300-6]Computers and Electronics \n400 - Experience\n[400-2]Minimum 2 years experience in similar position, [400-31]Team Work, [400-38]Electrical Installation , [400-39]Repair of Machinery and Equipment, [400-60]Technical support\n500 - Skills\n[500-24]Analytical\n600 - Work Values\n[600-2]Dependability and Responsability",null,null,418.70920000000001,418.70920000000001,{"$f":"344.106837606838*1.04","v":357.87111111111153},{"$f":"402.605*1.04","v":418.70920000000001},{"$f":"471.04785*1.04","v":489.88976400000001}]
[175,"49-3011","IND","SAL","Manufacturing","Engineering","Aircraft Maintenance Supervisor","* Examine and inspect aircraft components, including landing gear, hydraulic systems, and deicers to locate cracks, breaks, leaks, or other problems.\nConduct routine and special inspections as required by regulations.* Inspect completed work to certify that maintenance meets standards and that aircraft are ready for operation. * Read and interpret maintenance manuals, service bulletins, and other specifications to determine the feasibility and method of repairing or replacing malfunctioning or damaged components. * Maintain repair logs, documenting all preventive and corrective aircraft maintenance. * Modify aircraft structures, space vehicles, systems, or components, following drawings, schematics, charts, engineering orders, and technical publications.","100-2-005,200-1-001,300-6,300-13,300-44,400-4,400-58,400-60,500-24,600-2",null,null,null,null,null,null,null,null,null,null,null,null,null,"100 - Education\n[100-2-005]Aerospace Engineer\n200 - Language\n[200-1-001]Advanced English\n300 - Knowledge\n[300-6]Computers and Electronics , [300-13]Mechanical, [300-44]Detection of Problems and Failures\n400 - Experience\n[400-4]Minimum 4 years experience in similar position, [400-58]Machines and equipment set- up , [400-60]Technical support\n500 - Skills\n[500-24]Analytical\n600 - Work Values\n[600-2]Dependability and Responsability",null,null,910.76666666666665,910.76666666666665,{"$f":"23851/30","v":795.0333333333333},{"$f":"27323/30","v":910.76666666666665},{"$f":"36380/30","v":1212.6666666666667}]
[176,"49-9041","IND","HOU","Manufacturing","Engineering","Industrial Machinery Mechanic","* Repair or maintain the operating condition of industrial production or processing machinery or equipment. * Repair or replace broken or malfunctioning components of machinery or equipment. * Disassemble machinery or equipment to remove parts and make repairs. * Observe and test the operation of machinery or equipment to diagnose malfunctions, using voltmeters or other testing devices. * Reassemble equipment after completion of inspections, testing, or repairs","100-4-002,200-1-002,300-13,300-45,400-2,400-26,400-39,500-14,500-26,600-2",null,null,null,null,null,null,null,null,null,null,null,null,null,"100 - Education\n[100-4-002]Mechanical\n200 - Language\n[200-1-002]Intermediate English\n300 - Knowledge\n[300-13]Mechanical, [300-45]Machines and Tools\n400 - Experience\n[400-2]Minimum 2 years experience in similar position, [400-26]Production Equipment / Machinery, [400-39]Repair of Machinery and Equipment\n500 - Skills\n[500-14]Proactive, [500-26]Visual\n600 - Work Values\n[600-2]Dependability and Responsability",null,null,416.48880000000003,416.48880000000003,{"$f":"395.42*1.04","v":411.23680000000002},{"$f":"400.47*1.04","v":416.48880000000003},{"$f":"405.55*1.04","v":421.77200000000005}]
[176,"49-9041","IND","HOU","Manufacturing","Engineering","Machine Adjuster ","* Repair or maintain the operating condition of industrial production or processing machinery or equipment. * Repair or replace broken or malfunctioning components of machinery or equipment. * Disassemble machinery or equipment to remove parts and make repairs. * Observe and test the operation of machinery or equipment to diagnose malfunctions, using voltmeters or other testing devices. * Reassemble equipment after completion of inspections, testing, or repairs","100-4-002,200-1-002,300-13,300-45,400-2,400-26,400-39,500-14,500-26,600-2",null,null,null,null,null,null,null,null,null,null,null,null,null,"100 - Education\n[100-4-002]Mechanical\n200 - Language\n[200-1-002]Intermediate English\n300 - Knowledge\n[300-13]Mechanical, [300-45]Machines and Tools\n400 - Experience\n[400-2]Minimum 2 years experience in similar position, [400-26]Production Equipment / Machinery, [400-39]Repair of Machinery and Equipment\n500 - Skills\n[500-14]Proactive, [500-26]Visual\n600 - Work Values\n[600-2]Dependability and Responsability",null,null,416.48880000000003,416.48880000000003,{"$f":"395.42*1.04","v":411.23680000000002},{"$f":"400.47*1.04","v":416.48880000000003},{"$f":"405.55*1.04","v":421.77200000000005}]
[177,"17-3021","ADM","SAL","Management","Manufacturing","Aerospace Wire Harnesses Trainer","* Monitor, evaluate, or record training activities or program effectiveness. * Offer specific training programs to help workers maintain or improve job skills.\n* Assess training needs through surveys, interviews with employees, focus groups, or consultation with managers, instructors, or customer representatives.\n* Develop alternative training methods if expected improvements are not seen. *Organize and develop, or obtain, training procedure manuals and guides and course materials such as handouts and visual materials.","100-6,300-16,300-82,400-2,500-7,500-13,500-8,600-2,600-4,600-5,600-6",null,null,null,null,null,null,null,null,null,null,null,null,null,"100 - Education\n[100-6]Junior High School\n300 - Knowledge\n[300-16]Production and Processing, [300-82]Instructor\n400 - Experience\n[400-2]Minimum 2 years experience in similar position\n500 - Skills\n[500-7]Judgement and Decision Making, [500-13]Change Adaptation, [500-8]Communication and Oral Expression \n600 - Work Values\n[600-2]Dependability and Responsability, [600-4]Honesty and Integrity, [600-5]Punctuality, [600-6]Self-Motivated",null,null,675.88499999999999,675.88499999999999,{"$f":"AC216/1.17","v":577.67948717948718},{"$f":"19311*1.05/30","v":675.88499999999999},{"$f":"AC216*1.17","v":790.78544999999997}]
[178,"15-1199.09","ADM","SAL","Administrative","Administrative Support","IT Manager","* Review project plans to plan and coordinate project activity. *Manage backup, security and user help systems. *Develop and interpret organizational goals, policies, and procedures. *Develop computer information resources, providing for data security and control, strategic computing, and disaster recovery. *Consult with users, management, vendors, and technicians to assess computing needs and system requirements.","100-2-002/100-2-003,200-1-001,300-1,300-62,300-63,300-61,400-5,400-59,400-29,500-8,500-9,600-1",null,null,null,"310.100.220",null,"310.100.220","310.100.220","310.100.220","310.100.220",null,null,null,null,"100 - Education\n[100-2-002]Computer Systems Engineer in Hardware or [100-2-003]Computer Systems Engineer in Software\n200 - Language\n[200-1-001]Advanced English\n300 - Knowledge\n[300-1]Administration and Management, [300-62]Hardware, [300-63]Sofware, [300-61]Communication Systems\n400 - Experience\n[400-5]Minimum 5 years experience in similar position, [400-59]Communications equipment configuration, [400-29]Continuous Improvement\n500 - Skills\n[500-8]Communication and Oral Expression , [500-9]Problem Sensitivity\n600 - Work Values\n[600-1]Strong Work Ethic",null,null,1454.5,1454.5,{"$f":"41195/30","v":1373.1666666666667},{"$f":"43635/30","v":1454.5},{"$f":"46685/30","v":1556.1666666666667}]
[179,"17-2011","IND","SAL","Manufacturing","Engineering","Aerospace Wire Harnesses Industrial/Mfg Engineer","* Oversee operations of various items of machinery. *Basic math calculations. *Reduce waste and handle problems in quality. *Repair tools, and maintain a production schedule. *Train new employees.","100-2-005/200-1-001,300-11,300-22,300-33,400-2,400-35,400-58,500-9,600-2",null,null,null,null,null,null,null,null,null,null,null,null,null,"100 - Education\n[100-2-005]Aerospace Engineer or [200-1-001]Advanced English\n300 - Knowledge\n[300-11]Engineering and Technology, [300-22]Measurement Equipment, [300-33]Calibration\n400 - Experience\n[400-2]Minimum 2 years experience in similar position, [400-35]Mechanics, [400-58]Machines and equipment set- up \n500 - Skills\n[500-9]Problem Sensitivity\n600 - Work Values\n[600-2]Dependability and Responsability",null,null,755.76666666666665,755.76666666666665,{"$f":"21474/30","v":715.8},{"$f":"22673/30","v":755.76666666666665},{"$f":"25133/30","v":837.76666666666665}]
[180,"17-3021","IND","SAL","Maintenance","Engineering","Aerospace Wire Harnesses Maintenance Supervisor","* Hands on experience in complex interconnections systems, with sound practical application of various electrical standards as applicable to cables, wires, connectors, cable accessories such as flanges, heads, clamps, ties. * Hands on experience in various test tools and techniques to test, qualify and install various kinds of cable harnesses, cables, wires and looms for the aviation and defense industry. * Expertise with software design tools such as CableTest, Mentor Graphics CHS, Pro-E or any other \ncable harness design tool. Adherence to Avionic and MIL standards. * Knowledge of mechanical components and manufacturing process used in the cable industry is a \nmust. \n","100-2/200-1-001,300-11,300-22,300-40,300-28,400-2,400-27,400-36,400-38,400-26,500-14,500-15,600-1,600-8",null,null,null,null,null,null,null,null,null,null,null,null,null,"100 - Education\n[100-2]Engineering or [200-1-001]Advanced English\n300 - Knowledge\n[300-11]Engineering and Technology, [300-22]Measurement Equipment, [300-40]Preventive and Corrective Maintenance, [300-28]Continuous Improvement\n400 - Experience\n[400-2]Minimum 2 years experience in similar position, [400-27]Productive Maintenance Equipment, [400-36]Installation and maintenance of air conditioning, [400-38]Electrical Installation , [400-26]Production Equipment / Machinery\n500 - Skills\n[500-14]Proactive, [500-15]Leadership\n600 - Work Values\n[600-1]Strong Work Ethic, [600-8]Loyalty",null,null,649.56320000000005,649.56320000000005,{"$f":"500.27*1.04","v":520.2808},{"$f":"624.58*1.04","v":649.56320000000005},{"$f":"836.89*1.04","v":870.36559999999997}]
[181,"13-1022","IND","SAL","Materials","Operations","Buyer","* Represent companies in negotiating contracts and formulating policies with suppliers. *Direct and coordinate activities of personnel engaged in buying, selling, and distributing materials, equipment, machinery, and supplies. *Interview and hire staff, and oversee staff training. *Locate vendors of materials, equipment or supplies, and interview them to determine product availability and terms of sales. *Prepare and process requisitions and purchase orders for supplies and equipment. *Develop and implement purchasing and contract management instructions, policies, and procedures. ","100-3-005/100-3-009/100-3-010,200-1-001,300-19,300-38,300-39,400-5,400-49,400-71,500-12,500-22,600-1,600-4","610.572.350","IV.21","610.572.350","610.572.350",null,"610.572.350","610.572.350","610.572.350","610.572.350",null,null,null,null,"100 - Education\n[100-3-005]Business Administration or [100-3-009]Public Relations   or [100-3-010]Marketing\n200 - Language\n[200-1-001]Advanced English\n300 - Knowledge\n[300-19]Sales and Marketing , [300-38]Resource Management, [300-39]Suppliers and Contractors Management\n400 - Experience\n[400-5]Minimum 5 years experience in similar position, [400-49]Business Negotiations , [400-71]Supplier Management\n500 - Skills\n[500-12]Information Ordering, [500-22]Negotiation \n600 - Work Values\n[600-1]Strong Work Ethic, [600-4]Honesty and Integrity",null,null,493.42,493.42,{"$f":"17347/30","v":578.23333333333335},{"$f":"19684/30","v":656.13333333333333},{"$f":"21719/30","v":723.9666666666667},"IV.21"]
[182,"47-2211","IND","SAL","Manufacturing","Engineering","Aerospace Sheet Metal Trainer","* Responsible for designing patterns, cutting, shaping and putting together the metal pieces of an aircraft. *Bending, shaping and hammering metal into correct shapes.\n*Soldering and welding pieces together.\n","100-2,200-1-002,300-22,300-36,400-2,500-14,500-13,600-2,600-4",null,null,null,null,null,null,null,null,null,null,null,null,null,"100 - Education\n[100-2]Engineering\n200 - Language\n[200-1-002]Intermediate English\n300 - Knowledge\n[300-22]Measurement Equipment, [300-36]Production Control\n400 - Experience\n[400-2]Minimum 2 years experience in similar position\n500 - Skills\n[500-14]Proactive, [500-13]Change Adaptation\n600 - Work Values\n[600-2]Dependability and Responsability, [600-4]Honesty and Integrity",null,null,420.53333333333336,420.53333333333336,{"$f":"10303/30","v":343.43333333333334},{"$f":"12616/30","v":420.53333333333336},{"$f":"14024/30","v":467.46666666666664}]
[183,"47-2211","ADM","SAL","Manufacturing","Engineering","Aerospace Sheet Metal Maintenance Supervisor","* Monitors job skill base of all technical staff; oversees timely staff training and recruitment. * Conducts review of new construction design documents to assure compliance with published standards and to ensure reasonable repair and overhaul access to building systems. * Promotes continuous improvement of workplace safety and environmental practices.","100-2,200-1-001,300-21,300-22,300-36,400-3,400-39,500-14,500-13,600-2,600-4",null,null,null,null,null,null,null,null,null,null,null,null,null,"100 - Education\n[100-2]Engineering\n200 - Language\n[200-1-001]Advanced English\n300 - Knowledge\n[300-21]Quality Assurance, [300-22]Measurement Equipment, [300-36]Production Control\n400 - Experience\n[400-3]Minimum 3 years experience in similar position, [400-39]Repair of Machinery and Equipment\n500 - Skills\n[500-14]Proactive, [500-13]Change Adaptation\n600 - Work Values\n[600-2]Dependability and Responsability, [600-4]Honesty and Integrity",null,null,692.06666666666672,692.06666666666672,{"$f":"18861/30","v":628.70000000000005},{"$f":"20762/30","v":692.06666666666672},{"$f":"21474/30","v":715.8}]
[184,"47-2211","IND","SAL","Materials","Engineering","Aerospace Sheet Metal MRB Engineer ","* Contributes to planning, developing and coordinating of important engineering projects. * Provides specialized technical assistance to team members. * Uses advanced techniques and modified extension of theories to provide technical solutions to a wide range of difficult problems. * Determines and develops own approach to solutions within schedule and cost objectives.","100-2-005,200-1-001,300-22,300-36,400-2,400-28,500-14,500-13,600-2,600-4",null,null,null,null,null,null,null,null,null,null,null,null,null,"100 - Education\n[100-2-005]Aerospace Engineer\n200 - Language\n[200-1-001]Advanced English\n300 - Knowledge\n[300-22]Measurement Equipment, [300-36]Production Control\n400 - Experience\n[400-2]Minimum 2 years experience in similar position, [400-28]Production Support\n500 - Skills\n[500-14]Proactive, [500-13]Change Adaptation\n600 - Work Values\n[600-2]Dependability and Responsability, [600-4]Honesty and Integrity",null,null,755.76666666666665,755.76666666666665,{"$f":"21474/30","v":715.8},{"$f":"22673/30","v":755.76666666666665},{"$f":"25133/30","v":837.76666666666665}]
[185,"51-4199","IND","SAL","Quality ","Engineering","Metallography Analyst ","* Routine sample preparation of Steelmaking chemistry and metallographic investigation samples. This includes cutting, grinding, checking of surface quality of ground samples, mounting, polishing, and heat treatment. * Sample and Heat identification including; order and numbering of samples, heat numbering and determination, segregation sampling and recognition of incorrect sampling, mixed grade sequence cast sampling and recognition of incorrect sampling, types of non-routine samples and method of handling. * Utilizing the spectrometers to analyze routine & non-routine chemistry samples and all associated reporting functions.","100-2-006/100-2-009,200-1-001,300-22,300-35,300-36,400-2,400-24,500-17,600-2",null,null,null,null,null,null,null,null,null,null,null,null,null,"100 - Education\n[100-2-006]Chemical Engineer or [100-2-009]Process Technology Engineer\n200 - Language\n[200-1-001]Advanced English\n300 - Knowledge\n[300-22]Measurement Equipment, [300-35]Testing, [300-36]Production Control\n400 - Experience\n[400-2]Minimum 2 years experience in similar position, [400-24]Destructive Testing\n500 - Skills\n[500-17]Self-management\n600 - Work Values\n[600-2]Dependability and Responsability",null,null,498.64359999999999,498.64359999999999,{"$f":"409.799145299145*1.04","v":426.19111111111079},{"$f":"479.465*1.04","v":498.64359999999999},{"$f":"560.97405*1.04","v":583.41301200000009}]
[186,"29-2012","IND","SAL","Quality ","Engineering","Laboratory Analyst ","* Assist hands on testing process from establishing, conducting test and clean up. * Perform with physical as well as microbiological testing. * Develop lab samples required for analysis. * Prepare analysis solutions for reference and usage. * Direct and monitor laboratory technicians on general criteria. ","100-2-006,200-1-002,300-3,300-35,400-24,500-17,600-1,600-2",null,null,null,null,null,null,null,null,null,null,null,null,null,"100 - Education\n[100-2-006]Chemical Engineer\n200 - Language\n[200-1-002]Intermediate English\n300 - Knowledge\n[300-3]Chemistry, [300-35]Testing\n400 - Experience\n[400-24]Destructive Testing\n500 - Skills\n[500-17]Self-management\n600 - Work Values\n[600-1]Strong Work Ethic, [600-2]Dependability and Responsability",null,null,358.76666666666665,358.76666666666665,{"$f":"10699/30","v":356.63333333333333},{"$f":"10763/30","v":358.76666666666665},{"$f":"11749/30","v":391.63333333333333}]
[187,"49-9043","IND","SAL","Maintenance","Production","Analist Technician","* Troubleshoot problems with equipment, devices, or products. * Build product subassemblies or final assemblies. * Monitor and adjust production processes or equipment for quality and productivity. * Prepare and assemble materials.","100-4-002/100-4-005,300-22,400-1,400-15,400-24,500-3,500-14,600-2",null,null,null,null,null,null,null,null,null,null,null,null,null,"100 - Education\n[100-4-002]Mechanical or [100-4-005]Maintenance\n300 - Knowledge\n[300-22]Measurement Equipment\n400 - Experience\n[400-1]Minimum 1 year experience in similar position, [400-15]Management of Computer Programs , [400-24]Destructive Testing\n500 - Skills\n[500-3]Monitoring, [500-14]Proactive\n600 - Work Values\n[600-2]Dependability and Responsability",null,null,252.7,252.7,400,445,451]
[188,"49-9043","IND","SAL","Maintenance","Equipment Maintenance","Repair Technician","* Install repaired equipment in various settings, such as industrial or military establishments. * Perform scheduled preventive maintenance tasks, such as checking, cleaning, or repairing equipment, to detect and prevent problems. * Set up and test industrial equipment to ensure that it functions properly.","100-4-002/100-4-004,300-22,400-15,400-24,500-3,500-14,600-2",null,null,null,null,null,null,null,null,null,null,null,null,null,"100 - Education\n[100-4-002]Mechanical or [100-4-004]Machinery and Tools\n300 - Knowledge\n[300-22]Measurement Equipment\n400 - Experience\n[400-15]Management of Computer Programs , [400-24]Destructive Testing\n500 - Skills\n[500-3]Monitoring, [500-14]Proactive\n600 - Work Values\n[600-2]Dependability and Responsability",null,null,180,180,411,476,507]
[189,"49-9099","ADM","SAL","Maintenance","Production","Repair Manager","* To manage the responsive repairs service and sub-contractors, ensuring all resources including materials, transport, plant and equipment are used effectively. * Determine and monitor standards of performance throughout the range of operations, continually develop the service to ensure it’s effectiveness in response to changing circumstances and demands. * In conjunction with the Head of Maintenance, ensure that expenditure is monitored and controlled, providing reports as necessary. \n","100-2-008/100-2-009,200-1-002,300-40,400-4,400-32,400-35,400-26,400-38,500-7,500-8,600-2,600-8",null,null,null,null,null,null,null,null,null,null,null,null,null,"100 - Education\n[100-2-008]Mechanical Engineer or [100-2-009]Process Technology Engineer\n200 - Language\n[200-1-002]Intermediate English\n300 - Knowledge\n[300-40]Preventive and Corrective Maintenance\n400 - Experience\n[400-4]Minimum 4 years experience in similar position, [400-32]Equipment Repair, [400-35]Mechanics, [400-26]Production Equipment / Machinery, [400-38]Electrical Installation \n500 - Skills\n[500-7]Judgement and Decision Making, [500-8]Communication and Oral Expression \n600 - Work Values\n[600-2]Dependability and Responsability, [600-8]Loyalty",null,null,1076.585,1076.585,699,768,925]
[190,"51-9023","DIR","HOU","Manufacturing","Production","Production Operator, Trainee 1","* Operate equipment safely and effectively for production processing. * Ensure that equipment are maintained in good and safe working condition.  * Inspect equipment to identify any replacements, malfunctions and repairs. * Perform regular equipment maintenance to ensure production capacity and quality. ","100-6,400-94,500-10,500-25,500-5,500-26,600-2,600-4,600-5","10.10.22","II.95",null,null,null,null,null,null,null,null,"OP11",1,{"$f":"IF(T229<>\"\",VLOOKUP(T229,ProgressivePositions,6,FALSE),\"\")","v":{"$error":"#NAME?"}},"100 - Education\n[100-6]Junior High School\n400 - Experience\n[400-94]Recruitment to 30 days \n500 - Skills\n[500-10]Written Comprenhension, [500-25]Basic Math, [500-5]Active Learning, [500-26]Visual\n600 - Work Values\n[600-2]Dependability and Responsability, [600-4]Honesty and Integrity, [600-5]Punctuality",null,null,90,90,{"$f":"2630/30","v":87.666666666666671},{"$f":"2918/30","v":97.266666666666666},{"$f":"3398/30","v":113.26666666666667},"II.95"]
[191,"51-9023","DIR","HOU","Manufacturing","Production","Generic Operator, A 1","* Operate equipment safely and effectively for production processing. * Ensure that equipment are maintained in good and safe working condition.  * Inspect equipment to identify any replacements, malfunctions and repairs. * Perform regular equipment maintenance to ensure production capacity and quality. ","100-6,300-54,300-55,400-95,500-5,500-25,500-26,600-2,600-4,600-5","10.10.25","II.97",null,null,null,null,null,null,null,null,"OP11",2,{"$error":"#NAME?"},"100 - Education\n[100-6]Junior High School\n300 - Knowledge\n[300-54]Basic Training Course, [300-55]Performance Assessment\n400 - Experience\n[400-95]31 to 90 days \n500 - Skills\n[500-5]Active Learning, [500-25]Basic Math, [500-26]Visual\n600 - Work Values\n[600-2]Dependability and Responsability, [600-4]Honesty and Integrity, [600-5]Punctuality",null,null,95,95,{"$f":"3594/30","v":119.8},{"$f":"4016/30","v":133.86666666666667},{"$f":"4406/30","v":146.86666666666667},"II.97"]
[192,"51-9023","DIR","HOU","Manufacturing","Production","Generic Operator, B  1","* Operate equipment safely and effectively for production processing. * Ensure that equipment are maintained in good and safe working condition.  * Inspect equipment to identify any replacements, malfunctions and repairs. * Perform regular equipment maintenance to ensure production capacity and quality. ","100-6,300-54,300-55,400-96,500-5,500-25,500-26,600-2,600-4,600-5","10.10.26","II.99",null,null,null,null,null,null,null,null,"OP11",4,{"$error":"#NAME?"},"100 - Education\n[100-6]Junior High School\n300 - Knowledge\n[300-54]Basic Training Course, [300-55]Performance Assessment\n400 - Experience\n[400-96]91 to 180 days \n500 - Skills\n[500-5]Active Learning, [500-25]Basic Math, [500-26]Visual\n600 - Work Values\n[600-2]Dependability and Responsability, [600-4]Honesty and Integrity, [600-5]Punctuality",null,null,100,100,{"$f":"4551/30","v":151.69999999999999},{"$f":"4784/30","v":159.46666666666667},{"$f":"5091/30","v":169.7},"II.99"]
[193,"51-9023","DIR","HOU","Manufacturing","Production","Generic Operator, C  1","* Operate equipment safely and effectively for production processing. * Ensure that equipment are maintained in good and safe working condition.  * Inspect equipment to identify any replacements, malfunctions and repairs. * Perform regular equipment maintenance to ensure production capacity and quality. ","100-6,300-54,300-55,400-97,500-5,500-25,500-26,600-2,600-4,600-5","10.10.26","II.98",null,null,null,null,null,null,null,null,"OP11",7,{"$error":"#NAME?"},"100 - Education\n[100-6]Junior High School\n300 - Knowledge\n[300-54]Basic Training Course, [300-55]Performance Assessment\n400 - Experience\n[400-97]181 to 270 days \n500 - Skills\n[500-5]Active Learning, [500-25]Basic Math, [500-26]Visual\n600 - Work Values\n[600-2]Dependability and Responsability, [600-4]Honesty and Integrity, [600-5]Punctuality",null,null,120,120,{"$f":"5213/30","v":173.76666666666668},{"$f":"6232/30","v":207.73333333333332},{"$f":"7144/30","v":238.13333333333333},"II.98"]
[194,"51-9023","DIR","HOU","Manufacturing","Production","Generic Operator, D  1","* Operate equipment safely and effectively for production processing. * Ensure that equipment are maintained in good and safe working condition.  * Inspect equipment to identify any replacements, malfunctions and repairs. * Perform regular equipment maintenance to ensure production capacity and quality. ","100-6,300-54,300-55,400-98,500-5,500-25,500-26,600-2,600-4,600-5","10.10.23",null,null,null,null,null,null,null,null,null,"OP11",10,{"$error":"#NAME?"},"100 - Education\n[100-6]Junior High School\n300 - Knowledge\n[300-54]Basic Training Course, [300-55]Performance Assessment\n400 - Experience\n[400-98]271 to 365 days \n500 - Skills\n[500-5]Active Learning, [500-25]Basic Math, [500-26]Visual\n600 - Work Values\n[600-2]Dependability and Responsability, [600-4]Honesty and Integrity, [600-5]Punctuality",null,null,143,143,{"$f":"5213*1.04/30","v":180.71733333333336},{"$f":"6232*1.04/30","v":216.04266666666669},{"$f":"7144*1.04/30","v":247.65866666666668}]
[195,"51-9023","DIR","HOU","Manufacturing","Production","Generic Operator, E  1","* Operate equipment safely and effectively for production processing. * Ensure that equipment are maintained in good and safe working condition.  * Inspect equipment to identify any replacements, malfunctions and repairs. * Perform regular equipment maintenance to ensure production capacity and quality. ","100-6,300-54,300-55,400-99,500-5,500-25,500-26,600-2,600-4,600-5","10.10.21",null,null,null,null,null,null,null,null,null,"OP11",13,{"$error":"#NAME?"},"100 - Education\n[100-6]Junior High School\n300 - Knowledge\n[300-54]Basic Training Course, [300-55]Performance Assessment\n400 - Experience\n[400-99]366 and up \n500 - Skills\n[500-5]Active Learning, [500-25]Basic Math, [500-26]Visual\n600 - Work Values\n[600-2]Dependability and Responsability, [600-4]Honesty and Integrity, [600-5]Punctuality",null,null,165,165,{"$f":"5213*1.08/30","v":187.66800000000001},{"$f":"6232*1.08/30","v":224.352},{"$f":"7144*1.08/30","v":257.18400000000003}]
[196,"51-9023","DIR","HOU","Manufacturing","Production","Production Operator, Trainee 1","* Operate equipment safely and effectively for production processing. * Ensure that equipment are maintained in good and safe working condition.  * Inspect equipment to identify any replacements, malfunctions and repairs. * Perform regular equipment maintenance to ensure production capacity and quality. ","100-6,400-94,500-10,500-25,500-5,500-26,600-2,600-4,600-5","10.10.22","II.95",null,null,null,null,null,null,null,null,"OP12",1,{"$f":"IF(T235<>\"\",VLOOKUP(T235,ProgressivePositions,6,FALSE),\"\")","v":{"$error":"#NAME?"}},"100 - Education\n[100-6]Junior High School\n400 - Experience\n[400-94]Recruitment to 30 days \n500 - Skills\n[500-10]Written Comprenhension, [500-25]Basic Math, [500-5]Active Learning, [500-26]Visual\n600 - Work Values\n[600-2]Dependability and Responsability, [600-4]Honesty and Integrity, [600-5]Punctuality",null,null,99.36,99.36,{"$f":"2630/30","v":87.666666666666671},{"$f":"2918/30","v":97.266666666666666},{"$f":"3398/30","v":113.26666666666667},"II.95"]
[197,"51-9023","DIR","HOU","Manufacturing","Production","Generic Operator, A 1","* Operate equipment safely and effectively for production processing. * Ensure that equipment are maintained in good and safe working condition.  * Inspect equipment to identify any replacements, malfunctions and repairs. * Perform regular equipment maintenance to ensure production capacity and quality. ","100-6,300-54,300-55,400-95,500-5,500-25,500-26,600-2,600-4,600-5","10.10.25","II.97",null,null,null,null,null,null,null,null,"OP12",2,{"$error":"#NAME?"},"100 - Education\n[100-6]Junior High School\n300 - Knowledge\n[300-54]Basic Training Course, [300-55]Performance Assessment\n400 - Experience\n[400-95]31 to 90 days \n500 - Skills\n[500-5]Active Learning, [500-25]Basic Math, [500-26]Visual\n600 - Work Values\n[600-2]Dependability and Responsability, [600-4]Honesty and Integrity, [600-5]Punctuality",null,null,107.3,107.3,{"$f":"3594/30","v":119.8},{"$f":"4016/30","v":133.86666666666667},{"$f":"4406/30","v":146.86666666666667},"II.97"]
[198,"51-9023","DIR","HOU","Manufacturing","Production","Generic Operator, B  1","* Operate equipment safely and effectively for production processing. * Ensure that equipment are maintained in good and safe working condition.  * Inspect equipment to identify any replacements, malfunctions and repairs. * Perform regular equipment maintenance to ensure production capacity and quality. ","100-6,300-54,300-55,400-96,500-5,500-25,500-26,600-2,600-4,600-5","10.10.26","II.99",null,null,null,null,null,null,null,null,"OP12",4,{"$error":"#NAME?"},"100 - Education\n[100-6]Junior High School\n300 - Knowledge\n[300-54]Basic Training Course, [300-55]Performance Assessment\n400 - Experience\n[400-96]91 to 180 days \n500 - Skills\n[500-5]Active Learning, [500-25]Basic Math, [500-26]Visual\n600 - Work Values\n[600-2]Dependability and Responsability, [600-4]Honesty and Integrity, [600-5]Punctuality",null,null,115.89,115.89,{"$f":"4551/30","v":151.69999999999999},{"$f":"4784/30","v":159.46666666666667},{"$f":"5091/30","v":169.7},"II.99"]
[199,"51-9023","DIR","HOU","Manufacturing","Production","Generic Operator, C  1","* Operate equipment safely and effectively for production processing. * Ensure that equipment are maintained in good and safe working condition.  * Inspect equipment to identify any replacements, malfunctions and repairs. * Perform regular equipment maintenance to ensure production capacity and quality. ","100-6,300-54,300-55,400-97,500-5,500-25,500-26,600-2,600-4,600-5","10.10.26","II.98",null,null,null,null,null,null,null,null,"OP12",7,{"$error":"#NAME?"},"100 - Education\n[100-6]Junior High School\n300 - Knowledge\n[300-54]Basic Training Course, [300-55]Performance Assessment\n400 - Experience\n[400-97]181 to 270 days \n500 - Skills\n[500-5]Active Learning, [500-25]Basic Math, [500-26]Visual\n600 - Work Values\n[600-2]Dependability and Responsability, [600-4]Honesty and Integrity, [600-5]Punctuality",null,null,125.16,125.16,{"$f":"5213/30","v":173.76666666666668},{"$f":"6232/30","v":207.73333333333332},{"$f":"7144/30","v":238.13333333333333},"II.98"]
[200,"51-9023","DIR","HOU","Manufacturing","Production","Generic Operator, D  1","* Operate equipment safely and effectively for production processing. * Ensure that equipment are maintained in good and safe working condition.  * Inspect equipment to identify any replacements, malfunctions and repairs. * Perform regular equipment maintenance to ensure production capacity and quality. ","100-6,300-54,300-55,400-98,500-5,500-25,500-26,600-2,600-4,600-5","10.10.23",null,null,null,null,null,null,null,null,null,"OP12",10,{"$error":"#NAME?"},"100 - Education\n[100-6]Junior High School\n300 - Knowledge\n[300-54]Basic Training Course, [300-55]Performance Assessment\n400 - Experience\n[400-98]271 to 365 days \n500 - Skills\n[500-5]Active Learning, [500-25]Basic Math, [500-26]Visual\n600 - Work Values\n[600-2]Dependability and Responsability, [600-4]Honesty and Integrity, [600-5]Punctuality",null,null,135.16999999999999,135.16999999999999,{"$f":"5213*1.04/30","v":180.71733333333336},{"$f":"6232*1.04/30","v":216.04266666666669},{"$f":"7144*1.04/30","v":247.65866666666668}]
[201,"51-9023","DIR","HOU","Manufacturing","Production","Generic Operator, E  1","* Operate equipment safely and effectively for production processing. * Ensure that equipment are maintained in good and safe working condition.  * Inspect equipment to identify any replacements, malfunctions and repairs. * Perform regular equipment maintenance to ensure production capacity and quality. ","100-6,300-54,300-55,400-99,500-5,500-25,500-26,600-2,600-4,600-5","10.10.21",null,null,null,null,null,null,null,null,null,"OP12",13,{"$error":"#NAME?"},"100 - Education\n[100-6]Junior High School\n300 - Knowledge\n[300-54]Basic Training Course, [300-55]Performance Assessment\n400 - Experience\n[400-99]366 and up \n500 - Skills\n[500-5]Active Learning, [500-25]Basic Math, [500-26]Visual\n600 - Work Values\n[600-2]Dependability and Responsability, [600-4]Honesty and Integrity, [600-5]Punctuality",null,null,145.97999999999999,145.97999999999999,{"$f":"5213*1.08/30","v":187.66800000000001},{"$f":"6232*1.08/30","v":224.352},{"$f":"7144*1.08/30","v":257.18400000000003}]
[202,"17-3029.09","IND","HOU","Manufacturing","Engineering","Setup Extrusion","* Test products or subassemblies for functionality or quality. * Troubleshoot problems with equipment, devices, or products. * Collect hazardous or non-hazardous waste in correctly labeled barrels or other containers and transfer them to collection areas. * Build product subassemblies or final assemblies. * Monitor and adjust production processes or equipment for quality and productivity. * Prepare and assemble materials.","100-4-005/100-4-003/100-5,200-1-002,400-1,400-15,500-8,500-14,600-2,600-4","10.10.11","II.96B","600.724.421",null,"600.724.421","600.724.421","600.724.421","600.724.421",null,null,null,null,{"$f":"IF(T241<>\"\",VLOOKUP(T241,ProgressivePositions,6,FALSE),\"\")","v":""},"100 - Education\n[100-4-005]Maintenance or [100-4-003]Computer Sciences or [100-5]High School\n200 - Language\n[200-1-002]Intermediate English\n400 - Experience\n[400-1]Minimum 1 year experience in similar position, [400-15]Management of Computer Programs \n500 - Skills\n[500-8]Communication and Oral Expression , [500-14]Proactive\n600 - Work Values\n[600-2]Dependability and Responsability, [600-4]Honesty and Integrity",null,null,352,352,{"$f":"5518/30","v":183.93333333333334},{"$f":"6600/30","v":220},{"$f":"7965/30","v":265.5},"II.96B"]
[203,"51-9023","DIR","HOU","Manufacturing","Production","Operator Appliance - Metal Mechanic Trainee ","* Responsible to the Production Supervisor or Group Leader for following all instructions required by each client, in compliance with production objectives. ","100-6,400-94,500-5,500-25,500-26",null,null,null,null,null,null,null,null,null,null,"OP13",1,{"$f":"IF(T242<>\"\",VLOOKUP(T242,ProgressivePositions,6,FALSE),\"\")","v":{"$error":"#NAME?"}},"100 - Education\n[100-6]Junior High School\n400 - Experience\n[400-94]Recruitment to 30 days \n500 - Skills\n[500-5]Active Learning, [500-25]Basic Math, [500-26]Visual",null,null,80.819999999999993,80.819999999999993,71.91,80.819999999999993,90.922499999999999]
[204,"51-9023","DIR","HOU","Manufacturing","Production","Operator Appliance - Metal Mechanic A","* Responsible to the Production Supervisor or Group Leader for following all instructions required by each client, in compliance with production objectives. ","100-6,300-54,300-55,400-95,500-33,500-25,500-23",null,null,null,null,null,null,null,null,null,null,"OP13",2,{"$error":"#NAME?"},"100 - Education\n[100-6]Junior High School\n300 - Knowledge\n[300-54]Basic Training Course, [300-55]Performance Assessment\n400 - Experience\n[400-95]31 to 90 days \n500 - Skills\n[500-33], [500-25]Basic Math, [500-23]Organization",null,null,94.1,94.1,82.337500000000006,94.1,105.8625]
[205,"51-9023","DIR","HOU","Manufacturing","Production","Operator Appliance - Metal Mechanic B","* Responsible to the Production Supervisor or Group Leader for following all instructions required by each client, in compliance with production objectives. ","100-6,300-54,300-55,400-96,500-33,500-25,500-23",null,null,null,null,null,null,null,null,null,null,"OP13",4,{"$error":"#NAME?"},"100 - Education\n[100-6]Junior High School\n300 - Knowledge\n[300-54]Basic Training Course, [300-55]Performance Assessment\n400 - Experience\n[400-96]91 to 180 days \n500 - Skills\n[500-33], [500-25]Basic Math, [500-23]Organization",null,null,115,115,100.625,115,129.375]
[206,"51-9023","DIR","HOU","Manufacturing","Production","Operator Appliance - Metal Mechanic C","* Responsible to the Production Supervisor or Group Leader for following all instructions required by each client, in compliance with production objectives. ","100-6,300-54,300-55,400-97,500-33,500-25,500-23",null,null,null,null,null,null,null,null,null,null,"OP13",7,{"$error":"#NAME?"},"100 - Education\n[100-6]Junior High School\n300 - Knowledge\n[300-54]Basic Training Course, [300-55]Performance Assessment\n400 - Experience\n[400-97]181 to 270 days \n500 - Skills\n[500-33], [500-25]Basic Math, [500-23]Organization",null,null,118,118,103.25,118,132.75]
[207,"51-9023","DIR","HOU","Manufacturing","Production","Operator Appliance - Metal Mechanic D","* Responsible to the Production Supervisor or Group Leader for following all instructions required by each client, in compliance with production objectives. ","100-6,300-54,300-55,400-98,500-33,500-25,500-23",null,null,null,null,null,null,null,null,null,null,"OP13",10,{"$error":"#NAME?"},"100 - Education\n[100-6]Junior High School\n300 - Knowledge\n[300-54]Basic Training Course, [300-55]Performance Assessment\n400 - Experience\n[400-98]271 to 365 days \n500 - Skills\n[500-33], [500-25]Basic Math, [500-23]Organization",null,null,131,131,114.625,131,147.375]
[208,"51-9023","DIR","HOU","Manufacturing","Production","Operator Appliance - Metal Mechanic E","* Responsible to the Production Supervisor or Group Leader for following all instructions required by each client, in compliance with production objectives. ","100-6,300-54,300-55,400-99,500-33,500-25,500-23",null,null,null,null,null,null,null,null,null,null,"OP13",13,{"$error":"#NAME?"},"100 - Education\n[100-6]Junior High School\n300 - Knowledge\n[300-54]Basic Training Course, [300-55]Performance Assessment\n400 - Experience\n[400-99]366 and up \n500 - Skills\n[500-33], [500-25]Basic Math, [500-23]Organization",null,null,133,133,116.375,133,149.625]
[209,"51-9023","DIR","HOU","Manufacturing","Production","Operator Appliance - Metal Mechanic Trainee ","* Responsible to the Production Supervisor or Group Leader for following all instructions required by each client, in compliance with production objectives. ","100-6,400-94,500-5,500-25,500-26",null,null,null,null,null,null,null,null,null,null,"OP14",1,{"$f":"IF(T248<>\"\",VLOOKUP(T248,ProgressivePositions,6,FALSE),\"\")","v":{"$error":"#NAME?"}},"100 - Education\n[100-6]Junior High School\n400 - Experience\n[400-94]Recruitment to 30 days \n500 - Skills\n[500-5]Active Learning, [500-25]Basic Math, [500-26]Visual",null,null,92,92,71.91,80.819999999999993,90.922499999999999]
[210,"51-9023","DIR","HOU","Manufacturing","Production","Operator Appliance - Metal Mechanic A","* Responsible to the Production Supervisor or Group Leader for following all instructions required by each client, in compliance with production objectives. ","100-6,300-54,300-55,400-95,500-33,500-25,500-23",null,null,null,null,null,null,null,null,null,null,"OP14",2,{"$error":"#NAME?"},"100 - Education\n[100-6]Junior High School\n300 - Knowledge\n[300-54]Basic Training Course, [300-55]Performance Assessment\n400 - Experience\n[400-95]31 to 90 days \n500 - Skills\n[500-33], [500-25]Basic Math, [500-23]Organization",null,null,99.36,99.36,82.337500000000006,94.1,105.8625]
[211,"51-9023","DIR","HOU","Manufacturing","Production","Operator Appliance - Metal Mechanic B","* Responsible to the Production Supervisor or Group Leader for following all instructions required by each client, in compliance with production objectives. ","100-6,300-54,300-55,400-96,500-33,500-25,500-23",null,null,null,null,null,null,null,null,null,null,"OP14",4,{"$error":"#NAME?"},"100 - Education\n[100-6]Junior High School\n300 - Knowledge\n[300-54]Basic Training Course, [300-55]Performance Assessment\n400 - Experience\n[400-96]91 to 180 days \n500 - Skills\n[500-33], [500-25]Basic Math, [500-23]Organization",null,null,107.3,107.3,100.625,115,129.375]
[212,"51-9023","DIR","HOU","Manufacturing","Production","Operator Appliance - Metal Mechanic C","* Responsible to the Production Supervisor or Group Leader for following all instructions required by each client, in compliance with production objectives. ","100-6,300-54,300-55,400-97,500-33,500-25,500-23",null,null,null,null,null,null,null,null,null,null,"OP14",7,{"$error":"#NAME?"},"100 - Education\n[100-6]Junior High School\n300 - Knowledge\n[300-54]Basic Training Course, [300-55]Performance Assessment\n400 - Experience\n[400-97]181 to 270 days \n500 - Skills\n[500-33], [500-25]Basic Math, [500-23]Organization",null,null,115.89,115.89,103.25,118,132.75]
[213,"51-9023","DIR","HOU","Manufacturing","Production","Operator Appliance - Metal Mechanic D","* Responsible to the Production Supervisor or Group Leader for following all instructions required by each client, in compliance with production objectives. ","100-6,300-54,300-55,400-98,500-33,500-25,500-23",null,null,null,null,null,null,null,null,null,null,"OP14",10,{"$error":"#NAME?"},"100 - Education\n[100-6]Junior High School\n300 - Knowledge\n[300-54]Basic Training Course, [300-55]Performance Assessment\n400 - Experience\n[400-98]271 to 365 days \n500 - Skills\n[500-33], [500-25]Basic Math, [500-23]Organization",null,null,125.16,125.16,114.625,131,147.375]
[214,"51-9023","DIR","HOU","Manufacturing","Production","Operator Appliance - Metal Mechanic E","* Responsible to the Production Supervisor or Group Leader for following all instructions required by each client, in compliance with production objectives. ","100-6,300-54,300-55,400-99,500-33,500-25,500-23",null,null,null,null,null,null,null,null,null,null,"OP14",13,{"$error":"#NAME?"},"100 - Education\n[100-6]Junior High School\n300 - Knowledge\n[300-54]Basic Training Course, [300-55]Performance Assessment\n400 - Experience\n[400-99]366 and up \n500 - Skills\n[500-33], [500-25]Basic Math, [500-23]Organization",null,null,135.16999999999999,135.16999999999999,116.375,133,149.625]
[]
[]
[]
["last","last","last","last","last","last","last","last","last","last","last","last","last","last","last","last","last","last","last","last","last","last","last",null,null,"last",null,"last","last","last","last"]

{"sheet":"PROGRESSIVE POSITIONS","index":2,"n_rows":20,"n_cols":6,"rows_kept":20,"cut":false,"hidden":true,"merged":[]}
[]
[]
["Clave","Categoria","Pago","Industria","Proceso","Position"]
["OP01","DIR","HOU","AEROSPACE","SHEET METAL ASSEMBLY","Production Operator (Aerospace - Sheet Metal Assembly)"]
["OP02","DIR","HOU","AEROSPACE","WIRE HARNESSES","Production Operator (Aerospace - Wire harnesses)"]
["OP03","DIR","HOU","AEROSPACE","MACHINING","Production Operator (Aerospace - Machining)"]
["OP04","DIR","HOU","AUTOMOTIVE","METAL MECHANIC","Production Operator (Automotive - Metal Mechanic)"]
["OP05","DIR","HOU","AUTOMOTIVE","PLASTIC INJECTION MOLDING","Production Operator (Automotive - Plastic Injection Molding)"]
["OP06","DIR","HOU","AUTOMOTIVE","WIRE HARNESSES","Production Operator (Automotive - Wire harnesses)"]
["OP07","DIR","HOU","ELECTRONIC","ASSEMBLY","Production Operator (Electronic - Assembly)"]
["OP08","DIR","HOU","ELECTRONIC","REPAIR","Production Operator (Electronic - Repair)"]
["OP09","DIR","HOU","AUTOMOTIVE","ASSEMBLY","Production Operator (Automotive - Assembly)"]
["OP10","DIR","HOU","GENERIC","PROCESS","Production Operator (Generic Process)"]
["PNT01","DIR","HOU","AEROSPACE","MACHINING","Painting Operator (Automotive - Machining)"]
["OCNC01","DIR","HOU","AUTOMOTIVE","ASSEMBLY","CNC Operator"]
["OP11","DIR","HOU","APPLIANCE","PLASTIC EXTRUSION","Production Operator (Appliance - Plastic Extrusion)"]
["OP12","DIR","HOU","APPLIANCE","PLASTIC INJECTION MOLDING","Production Operator (Appliance - Plastic Injection Molding)"]
["OP13","DIR","HOU","APPLIANCE","METAL MECHANIC","Production Operator (Appliance - Metal Mechanic)"]
["OP14","DIR","HOU","APPLIANCE","ASSEMBLY","Production Operator (Appliance - Assembly)"]
["last","last","last","last","last","last"]

{"sheet":"ORGCHAPPLIANCEASSEMBLY","index":3,"n_rows":31,"n_cols":16,"rows_kept":31,"cut":false,"hidden":true,"merged":[[2,5,2,8],[2,9,4,9],[5,5,5,8],[12,5,12,8],[13,5,13,8],[14,5,14,8]]}
[null,null,null,"INDUSTRY","APPLIANCE"]
[null,null,null,"PROCESS","ASSEMBLY"]
[null,null,null,"Clase Riesgo Trabajo","Clase III   ","DRIVERS SUMA",null,null,null,"QTY\nSUMA"]
[null,null,null,"Origen","Org Chart B M P Electrodomesticos Textil 2016"]
["CLASS","TYPE","#","ID","POSITION","D1","D2","D3","D4",null,"Max","Start","Nivel","Meses","Progresion","Distribute on shifts"]
["DIR","HOU",1,"DIR-HOU-1","Operator","RAMP UP",null,null,null,null,null,null,"OP14",null,null,"YES"]
["DIR","HOU",301,"DIR-HOU-301","Operator A",null,null,null,null,null,null,null,209,1,"OP14","YES"]
["DIR","HOU",302,"DIR-HOU-302","Operator B",null,null,null,null,null,null,null,210,2,"OP14","YES"]
["DIR","HOU",303,"DIR-HOU-303","Operator C",null,null,null,null,null,null,null,211,4,"OP14","YES"]
["DIR","HOU",304,"DIR-HOU-304","Operator D",null,null,null,null,null,null,null,212,7,"OP14","YES"]
["DIR","HOU",305,"DIR-HOU-305","Operator E",null,null,null,null,null,null,null,213,10,"OP14","YES"]
["DIR","HOU",306,"DIR-HOU-306","Operator F",null,null,null,null,null,null,null,214,13,"OP14","YES"]
[]
[]
[]
[]
["IND","HOU",101,"IND-HOU-101","Quality Inspector ",1,null,null,null,20,null,null,28,null,null,"YES"]
["IND","SAL",102,"IND-SAL-102","Maintenance Technician",1,null,null,null,150,null,null,45,null,null,"NO"]
["IND","SAL",103,"IND-SAL-103","Warehouse Supervisor",1,null,null,null,150,1,1,51,null,null,"NO"]
["IND","HOU",104,"IND-HOU-104","Team/Group Leader",1,null,null,null,20,null,null,8,null,null,"YES"]
["IND","SAL",105,"IND-SAL-105","Quality Control Technician ",1,null,null,null,30,null,null,27,null,null,"NO"]
["IND","SAL",106,"IND-SAL-106","Quality Control Engineer",1,null,null,null,10,1,1,26,null,null,"NO"]
["IND","SAL",107,"IND-SAL-107","Manufacturing Engineer",1,null,null,null,1,1,null,36,null,null,"NO"]
["IND","SAL",108,"IND-SAL-108","Traffic and Customs Manager",1,null,null,null,50,1,null,57,null,null,"NO"]
["IND","SAL",109,"IND-SAL-109","Production Supervisor ",1,null,null,null,100,null,null,3,null,null,"YES"]
[]
[]
[]
["ADM","SAL",201,"ADM-SAL-201","Plant Manager",1,null,null,null,1,1,1,1,null,null,"NO"]
["ADM","SAL",202,"ADM-SAL-202","Quality Control Manager",1,null,null,null,1,1,1,23,null,null,"NO"]
["ADM","SAL",203,"ADM-SAL-203","Administrative Assistant ",1,null,null,null,1,1,null,73,null,null,"NO"]

{"sheet":"ORGCHAPPLIANCEMETALMECHANIC","index":4,"n_rows":38,"n_cols":16,"rows_kept":38,"cut":false,"hidden":true,"merged":[[2,5,2,8],[2,9,4,9],[5,5,5,8],[13,5,13,8],[14,5,14,8],[15,5,15,8]]}
[null,null,null,"INDUSTRY","APPLIANCE"]
[null,null,null,"PROCESS","METAL MECHANIC"]
[null,null,null,"Clase Riesgo Trabajo","Clase III   ","DRIVERS SUMA",null,null,null,"QTY\nSUMA"]
[null,null,null,"Origen","Org Chart Borg Warner Automotriz 2016"]
["CLASS","TYPE","#","ID","POSITION","D1","D2","D3","D4",null,"Max","Start","Nivel","Meses","Progresion","Distribute on shifts"]
["DIR","HOU",1,"DIR-HOU-1","Operator","RAMP UP",null,null,null,null,null,null,"OP13",null,null,"YES"]
["DIR","HOU",301,"DIR-HOU-301","Operator A",null,null,null,null,null,null,null,203,1,"OP13","YES"]
["DIR","HOU",302,"DIR-HOU-302","Operator B",null,null,null,null,null,null,null,204,2,"OP13","YES"]
["DIR","HOU",303,"DIR-HOU-303","Operator C",null,null,null,null,null,null,null,205,4,"OP13","YES"]
["DIR","HOU",304,"DIR-HOU-304","Operator D",null,null,null,null,null,null,null,206,7,"OP13","YES"]
["DIR","HOU",305,"DIR-HOU-305","Operator E",null,null,null,null,null,null,null,207,10,"OP13","YES"]
["DIR","HOU",306,"DIR-HOU-306","Operator F",null,null,null,null,null,null,null,208,13,"OP13","YES"]
[]
[]
[]
[]
[]
["IND","HOU",101,"IND-HOU-101","Team/Group Leader",1,null,null,null,10,null,null,8,null,null,"NO"]
["IND","SAL",102,"IND-SAL-102","Enviromental Technician",1,null,null,null,1,1,1,74,null,null,"NO"]
["IND","SAL",103,"IND-SAL-103","Tools Technician",1,null,null,null,1,1,1,35,null,null,"NO"]
["IND","HOU",104,"IND-HOU-104","Quality Control Technician ",1,null,null,null,15,null,null,27,null,null,"YES"]
["IND","SAL",105,"IND-SAL-105","Maintenance Equipment Technician ",1,null,null,null,20,null,null,45,null,null,"NO"]
["IND","SAL",106,"IND-SAL-106","Manufacturing Engineer",1,null,null,null,50,null,null,36,null,null,"NO"]
["IND","SAL",107,"IND-SAL-107","Production Planner",1,null,null,null,100,null,null,56,null,null,"NO"]
["IND","SAL",108,"IND-SAL-108","Production Supervisor ",1,null,null,null,20,null,null,3,null,null,"NO"]
["IND","SAL",109,"IND-SAL-109","Material Handler",1,null,null,null,200,null,null,78,null,null,"NO"]
[]
[]
[]
[]
[]
[]
[]
["ADM","SAL",201,"ADM-SAL-201","Plant Manager",1,null,null,null,1,1,1,1,null,null,"NO"]
["ADM","SAL",202,"ADM-SAL-202","Engineering Manager",1,null,null,null,1,1,1,151,null,null,"NO"]
["ADM","SAL",203,"ADM-SAL-203","Maintenance Manager",1,null,null,null,1,1,1,41,null,null,"NO"]
["ADM","SAL",204,"ADM-SAL-204","Quality Control Manager",1,null,null,null,20,1,null,23,null,null,"NO"]
["ADM","SAL",205,"ADM-SAL-205","Production Manager",1,null,null,null,50,1,null,2,null,null,"NO"]

{"sheet":"ORGCHAPPLIANCEPLASTICINJECTION","index":5,"n_rows":36,"n_cols":16,"rows_kept":36,"cut":false,"hidden":true,"merged":[[2,5,2,8],[2,9,4,9],[5,5,5,8],[13,5,13,8],[14,5,14,8],[15,5,15,8]]}
[null,null,null,"INDUSTRY","APPLIANCE"]
[null,null,null,"PROCESS","PLASTIC INJECTION MOLDING"]
[null,null,null,"Clase Riesgo Trabajo","Clase III   ","DRIVERS SUMA",null,null,null,"QTY\nSUMA"]
[null,null,null,"Origen","Org Chart Master Presition Electrodomesticos Inyeccion de Plastico 2016"]
["CLASS","TYPE","#","ID","POSITION","D1","D2","D3","D4",null,"Max","Start","Nivel","Meses","Progresion","Distribute on shifts"]
["DIR","HOU",1,"DIR-HOU-1","Operator","RAMP UP",null,null,null,null,null,null,"OP12",null,null,"YES"]
["DIR","HOU",301,"DIR-HOU-301","Operator A",null,null,null,null,null,null,null,196,1,"OP12","YES"]
["DIR","HOU",302,"DIR-HOU-302","Operator B",null,null,null,null,null,null,null,197,2,"OP12","YES"]
["DIR","HOU",303,"DIR-HOU-303","Operator C",null,null,null,null,null,null,null,198,7,"OP12","YES"]
["DIR","HOU",304,"DIR-HOU-304","Operator D",null,null,null,null,null,null,null,199,13,"OP12","YES"]
["DIR","HOU",305,"DIR-HOU-305","Operator E",null,null,null,null,null,null,null,200,19,"OP12","YES"]
["DIR","HOU",306,"DIR-HOU-306","Operator F",null,null,null,null,null,null,null,201,24,"OP12","YES"]
[]
[]
[]
[]
[]
[]
["IND","HOU",101,"IND-HOU-101","Quality Inspector ",1,null,null,null,25,null,null,28,null,null,"YES"]
["IND","SAL",102,"IND-SAL-102","Planning and Production Control Supervisor",1,null,null,null,100,null,null,56,null,null,"NO"]
["IND","SAL",103,"IND-SAL-103","Maintenance Equipment Technician ",1,null,null,null,100,1,1,45,null,null,"YES"]
["IND","SAL",104,"IND-SAL-104","Production General Supervisor",1,null,null,null,100,1,1,3,null,null,"NO"]
["IND","SAL",105,"IND-SAL-105","Manufacturing Engineer",1,null,null,null,100,null,null,36,null,null,"NO"]
["IND","SAL",106,"IND-SAL-106","Material Handler",1,null,null,null,100,null,null,78,null,null,"NO"]
["IND","SAL",107,"IND-SAL-107","Team/Group Leader",1,null,null,null,100,null,null,8,null,null,"NO"]
["IND","SAL",108,"IND-SAL-108","Tools Technician",1,null,null,null,100,null,null,39,null,null,"NO"]
[]
[]
[]
["ADM","SAL",201,"ADM-SAL-201","Engineering Manager",1,null,null,null,1,1,null,151,null,null,"NO"]
["ADM","SAL",202,"ADM-SAL-202","Maintenance Manager",1,null,null,null,1,1,null,41,null,null,"NO"]
["ADM","SAL",203,"ADM-SAL-203","Customs Supervisor",1,null,null,null,1,1,null,58,null,null,"NO"]
["ADM","SAL",204,"ADM-SAL-204","Plant Manager",1,null,null,null,1,1,null,1,null,null,"NO"]
["ADM","SAL",205,"ADM-SAL-205","Production Manager",1,null,null,null,1,1,null,2,null,null,"NO"]
["ADM","SAL",206,"ADM-SAL-206","Quality Control Manager",1,null,null,null,1,1,null,23,null,null,"NO"]
["ADM","SAL",207,"ADM-SAL-207","Environmental Engineer",1,null,null,null,1,1,null,74,null,null,"NO"]

{"sheet":"ORGCHAPPLIANCEPLASTICEXTRUSION","index":6,"n_rows":36,"n_cols":16,"rows_kept":36,"cut":false,"hidden":true,"merged":[[2,5,2,8],[2,9,4,9],[5,5,5,8],[13,5,13,8],[14,5,14,8],[15,5,15,8]]}
[null,null,null,"INDUSTRY","APPLIANCE"]
[null,null,null,"PROCESS","PLASTIC EXTRUSION"]
[null,null,null,"Clase Riesgo Trabajo","Clase III   ","DRIVERS SUMA",null,null,null,"QTY\nSUMA"]
[null,null,null,"Origen","Org Chart Custom Profile Electrodomesticos Extrusion de Plastico 2016"]
["CLASS","TYPE","#","ID","POSITION","D1","D2","D3","D4",null,"Max","Start","Nivel","Meses","Progresion","Distribute on shifts"]
["DIR","HOU",1,"DIR-HOU-1","Operator","RAMP UP",null,null,null,null,null,null,"OP11",null,null,"YES"]
["DIR","HOU",301,"DIR-HOU-301","Operator A",null,null,null,null,null,null,null,190,1,"OP11","YES"]
["DIR","HOU",302,"DIR-HOU-302","Operator B",null,null,null,null,null,null,null,191,2,"OP11","YES"]
["DIR","HOU",303,"DIR-HOU-303","Operator C",null,null,null,null,null,null,null,192,7,"OP11","YES"]
["DIR","HOU",304,"DIR-HOU-304","Operator D",null,null,null,null,null,null,null,193,13,"OP11","YES"]
["DIR","HOU",305,"DIR-HOU-305","Operator E",null,null,null,null,null,null,null,194,19,"OP11","YES"]
["DIR","HOU",306,"DIR-HOU-306","Operator F",null,null,null,null,null,null,null,195,24,"OP11","YES"]
[]
[]
[]
[]
[]
[]
["IND","HOU",101,"IND-HOU-101","Setup Extrusion",1,null,null,null,50,null,null,202,null,null,"YES"]
["IND","HOU",102,"IND-HOU-102","Receiving and Shipping Materials Operator",1,null,null,null,100,null,null,53,null,null,"NO"]
["IND","SAL",103,"IND-SAL-103","Group Team Leader",1,null,null,null,100,null,null,8,null,null,"NO"]
["IND","SAL",104,"IND-SAL-104","Administrative assistant",1,null,null,null,1,1,1,73,null,null,"YES"]
["IND","SAL",105,"IND-SAL-105","Maintenance Equipment Technician ",1,null,null,null,100,1,1,45,null,null,"YES"]
["IND","SAL",106,"IND-SAL-106","Productive Equipment Maintenance Supervisor",1,null,null,null,200,1,1,44,null,null,"NO"]
["IND","SAL",107,"IND-SAL-107","Quality Control Engineer",1,null,null,null,200,null,null,26,null,null,"NO"]
["IND","SAL",108,"IND-SAL-108","Production Supervisor ",1,null,null,null,1,1,1,3,null,null,"NO"]
["IND","SAL",109,"IND-SAL-109","Production Supervisor Manufacturing ",1,null,null,null,100,1,1,140,null,null,"NO"]
["IND","SAL",110,"IND-SAL-110","Quality Inspector ",1,null,null,null,100,null,1,28,null,null,"NO"]
["IND","SAL",111,"IND-SAL-111","Buyer",1,null,null,null,100,1,1,181,null,null,"NO"]
[]
[]
[]
[]
[]
["ADM","SAL",201,"ADM-SAL-201","Warehouse Supervisor",1,null,null,null,1,1,null,51,null,null,"NO"]
["ADM","SAL",202,"ADM-SAL-202","Plant Manager",1,null,null,null,1,1,null,1,null,null,"NO"]

{"sheet":"ORGCHAEROSPACESHEETMETALASSEMBL","index":7,"n_rows":43,"n_cols":16,"rows_kept":43,"cut":false,"hidden":true,"merged":[[2,5,2,8],[2,9,4,9],[5,5,5,8],[13,5,13,8],[14,5,14,8],[15,5,15,8]]}
[null,null,null,"INDUSTRY","AEROSPACE"]
[null,null,null,"PROCESS","SHEET METAL ASSEMBLY"]
[null,null,null,"Clase Riesgo Trabajo","Clase III   ","DRIVERS SUMA",null,null,null,"QTY\nSUMA"]
[null,null,null,"Origen","Org Chart Bell Aeroespacial Sheet Metal 2016"]
["CLASS","TYPE","#","ID","POSITION","D1","D2","D3","D4",null,"Max","Start","Nivel","Meses","Progresion","Distribute on shifts"]
["DIR","HOU",1,"DIR-HOU-1","Operator","RAMP UP",null,null,null,null,null,null,"OP01",null,null,"YES"]
["DIR","HOU",301,"DIR-HOU-301","Operator A",null,null,null,null,null,null,null,86,1,"OP01","YES"]
["DIR","HOU",302,"DIR-HOU-302","Operator B",null,null,null,null,null,null,null,87,2,"OP01","YES"]
["DIR","HOU",303,"DIR-HOU-303","Operator C",null,null,null,null,null,null,null,88,7,"OP01","YES"]
["DIR","HOU",304,"DIR-HOU-304","Operator D",null,null,null,null,null,null,null,89,13,"OP01","YES"]
["DIR","HOU",305,"DIR-HOU-305","Operator E",null,null,null,null,null,null,null,90,19,"OP01","YES"]
["DIR","HOU",306,"DIR-HOU-306","Operator F",null,null,null,null,null,null,null,91,24,"OP01","YES"]
[]
[]
[]
[]
[]
[]
["IND","HOU",101,"IND-HOU-101","Quality Inspector ",1,null,null,null,25,null,null,28,null,null,"YES"]
["IND","HOU",102,"IND-HOU-102","Receiving and Shipping Materials Operator",1,null,null,null,100,null,null,53,null,null,"NO"]
["IND","SAL",103,"IND-SAL-103","Planning and Production Control Supervisor",1,null,null,null,100,null,null,56,null,null,"NO"]
["IND","SAL",104,"IND-SAL-104","Industrial Engineer",1,null,null,null,100,null,null,79,null,null,"YES"]
["IND","SAL",105,"IND-SAL-105","Maintenance Equipment Technician ",1,null,null,null,100,4,1,45,null,null,"YES"]
["IND","SAL",106,"IND-SAL-106","Quality Control Supervisor",1,null,null,null,200,null,null,25,null,null,"NO"]
["IND","SAL",107,"IND-SAL-107","Quality Control Engineer",1,null,null,null,200,null,null,26,null,null,"NO"]
["IND","SAL",108,"IND-SAL-108","Systems Technician",1,null,null,null,1,1,1,61,null,null,"NO"]
["IND","SAL",109,"IND-SAL-109","Production General Supervisor",1,null,null,null,50,null,null,3,null,null,"NO"]
["IND","SAL",110,"IND-SAL-110","Manufacturing Engineer",1,null,null,null,100,null,null,36,null,null,"NO"]
["IND","SAL",111,"IND-SAL-111","Asistance Administrative / Recepcionist",1,null,null,null,100,1,1,73,null,null,"NO"]
["IND","SAL",112,"IND-SAL-112","Trainer",1,null,null,null,100,null,null,9,null,null,"NO"]
["IND","SAL",113,"IND-SAL-113","Nurse",1,null,null,null,100,null,1,76,null,null,"NO"]
["IND","SAL",114,"IND-SAL-114","Material Handler",1,null,null,null,100,null,null,78,null,null,"NO"]
[]
[]
["ADM","SAL",201,"ADM-SAL-201","Process Engineering General Supervisor",1,null,null,null,250,1,null,32,null,null,"NO"]
["ADM","SAL",202,"ADM-SAL-202","Warehouse Supervisor",1,null,null,null,1,1,null,51,null,null,"NO"]
["ADM","SAL",203,"ADM-SAL-203","Purchasing Supervisor",1,null,null,null,1,1,null,50,null,null,"NO"]
["ADM","SAL",204,"ADM-SAL-204","Productive Equipment Maintenance Supervisor",105,null,null,null,10,1,null,44,null,null,"NO"]
["ADM","SAL",206,"ADM-SAL-206","Plant Manager",1,null,null,null,1,1,null,1,null,null,"NO"]
["ADM","SAL",207,"ADM-SAL-207","Production Manager",1,null,null,null,1,1,null,2,null,null,"NO"]
["ADM","SAL",208,"ADM-SAL-208","Quality Control Manager",1,null,null,null,1,1,null,23,null,null,"NO"]
["ADM","SAL",209,"ADM-SAL-209","Logistics and Materials Manager",1,null,null,null,1,1,null,47,null,null,"NO"]
["ADM","SAL",211,"ADM-SAL-211","Environmental Engineer",1,null,null,null,1,1,null,74,null,null,"NO"]

{"sheet":"ORGCHAEROSPACEWIREHARNESSES","index":8,"n_rows":43,"n_cols":16,"rows_kept":43,"cut":false,"hidden":true,"merged":[[2,5,2,8],[2,9,4,9],[5,5,5,8]]}
[null,null,null,"INDUSTRY","AEROSPACE"]
[null,null,null,"PROCESS","WIRE HARNESSES"]
[null,null,null,"Clase Riesgo Trabajo","Clase III   ","DRIVERS SUMA",null,null,null,"QTY\nSUMA"]
[null,null,null,"Origen","Org Chart Bell Aeroespacial Wire Harness 2016"]
["CLASS","TYPE","#","ID","POSITION","D1","D2","D3","D4",null,"Max","Start","Nivel","Meses","Progresion","Distribute on shifts"]
["DIR","HOU",1,"DIR-HOU-1","Operator","RAMP UP",null,null,null,null,null,null,"OP02",null,null,"YES"]
["DIR","HOU",301,"DIR-HOU-301","Operator level 1",null,null,null,null,null,null,null,92,1,"OP02","YES"]
["DIR","HOU",302,"DIR-HOU-302","Operator level 2",null,null,null,null,null,null,null,93,2,"OP02","YES"]
["DIR","HOU",303,"DIR-HOU-303","Operator level 3",null,null,null,null,null,null,null,94,7,"OP02","YES"]
["DIR","HOU",304,"DIR-HOU-304","Operator level 4",null,null,null,null,null,null,null,95,13,"OP02","YES"]
["DIR","HOU",305,"DIR-HOU-305","Operator level 5",null,null,null,null,null,null,null,96,19,"OP02","YES"]
["DIR","HOU",306,"DIR-HOU-306","Operator level 6",null,null,null,null,null,null,null,97,24,"OP02","YES"]
[]
[]
["IND","SAL",101,"IND-SAL-101","Production Planner",1,null,null,null,50,null,null,56,null,null,"NO"]
["IND","SAL",102,"IND-SAL-102","Production General Supervisor",1,null,null,null,27,null,null,3,null,null,"NO"]
["IND","SAL",103,"IND-SAL-103","Product Design/Development Engineer",102,null,null,null,2,null,null,33,null,null,"NO"]
["IND","SAL",104,"IND-SAL-104","Process Engineering General Supervisor",102,null,null,null,2,null,null,32,null,null,"NO"]
["IND","HOU",105,"IND-HOU-105","Quality Inspector ",1,null,null,null,11,null,null,28,null,null,"YES"]
["IND","SAL",106,"IND-SAL-106","Quality Control Supervisor",105,null,null,null,20,null,1,25,null,null,"NO"]
["IND","SAL",107,"IND-SAL-107","Quality Control Engineer",1,null,null,null,150,null,1,26,null,null,"NO"]
["IND","SAL",108,"IND-SAL-108","Warehouse Supervisor",110,null,null,null,15,null,null,51,null,null,"NO"]
["IND","SAL",109,"IND-SAL-109","Purchasing Supervisor",205,null,null,null,1,1,null,50,null,null,"NO"]
["IND","SAL",110,"IND-SAL-110","Industrial Engineer",1,null,null,null,15,null,null,79,null,null,"NO"]
["IND","HOU",111,"IND-HOU-111","Shipping Materials Operator",1,null,null,null,27,null,null,53,null,null,"NO"]
["IND","SAL",112,"IND-SAL-112","Materials Supervisor",1,null,null,null,50,null,null,48,null,null,"NO"]
["IND","SAL",113,"IND-SAL-113","Maintenance Equipment Technician ",1,null,null,null,27,null,null,45,null,null,"NO"]
["IND","SAL",114,"IND-SAL-114","Productive Equipment Maintenance Supervisor",113,null,null,null,10,null,2,44,null,null,"NO"]
[]
[]
[]
[]
[]
[]
[]
["ADM","SAL",202,"ADM-SAL-202","Material Handler",206,null,null,null,1,1,null,78,null,null,"NO"]
["ADM","SAL",203,"ADM-SAL-203","Manufacturing Manager",1,null,null,null,75,1,1,31,null,null,"NO"]
["ADM","SAL",204,"ADM-SAL-204","Quality Control Manager",1,null,null,null,25,1,null,23,null,null,"NO"]
["ADM","SAL",205,"ADM-SAL-205","Logistics and Materials Manager",1,null,null,null,75,1,null,47,null,null,"NO"]
["ADM","SAL",206,"ADM-SAL-206","Plant Manager",1,null,null,null,25,1,1,1,null,null,"NO"]
["ADM","SAL",207,"ADM-SAL-207","Information Technologies Manager",1,null,null,null,1,1,null,59,null,null,"NO"]
["ADM","SAL",208,"ADM-SAL-208","Chauffeur/Messenger",1,null,null,null,100,1,null,77,null,null,"NO"]
["ADM","SAL",209,"ADM-SAL-209","Production Trainer",1,null,null,null,150,null,1,9,null,null,"NO"]

{"sheet":"ORGCHAEROSPACEMACHINING","index":9,"n_rows":47,"n_cols":17,"rows_kept":47,"cut":false,"hidden":true,"merged":[[2,5,2,8],[2,9,4,9],[5,5,5,8],[12,5,12,8],[15,5,15,8],[16,5,16,8]]}
[null,null,null,"INDUSTRY","AEROSPACE"]
[null,null,null,"PROCESS","MACHINING"]
[null,null,null,"Clase Riesgo Trabajo","Clase III   ","DRIVERS SUMA",null,null,null,"QTY\nSUMA"]
[null,null,null,"Origen","Org Chart Manoir Aeroespacial Maquinados 2016"]
["CLASS","TYPE","#","ID","POSITION","D1","D2","D3","D4",null,"Max","Start","Nivel","Meses","Progresion","Distribute on shifts","Sueldo Intermex"]
["DIR","HOU",1,"DIR-HOU-1","CNC Technical Operator","RAMP UP",null,null,null,null,null,null,"OP03",null,null,"YES"]
["DIR","HOU",301,"DIR-HOU-301","CNC Technical Operator level 1",null,null,null,null,null,null,null,16,1,"OP03","YES",195]
["DIR","HOU",302,"DIR-HOU-302","CNC Technical Operator level 2",null,null,null,null,null,null,null,17,2,"OP03","YES",232.5]
["DIR","HOU",303,"DIR-HOU-303","CNC Technical Operator level 3",null,null,null,null,null,null,null,18,4,"OP03","YES",246.55]
["DIR","HOU",304,"DIR-HOU-304","CNC Technical Operator level 4",null,null,null,null,null,null,null,19,7,"OP03","YES",269.24]
["DIR","HOU",305,"DIR-HOU-305","CNC Technical Operator level 5",null,null,null,null,null,null,null,20,10,"OP03","YES",283]
["DIR","HOU",306,"DIR-HOU-306","CNC Technical Operator level 6",null,null,null,null,null,null,null,21,13,"OP03","YES",300]
["DIR","HOU",2,"DIR-HOU-2","Painting Operator","RAMP UP",null,null,null,null,null,null,"PNT01",null,null,"YES"]
["DIR","HOU",307,"DIR-HOU-307","Painting Operator 1",null,null,null,null,null,null,null,121,1,"PNT01","YES",168]
["DIR","HOU",308,"DIR-HOU-308","Painting Operator 2",null,null,null,null,null,null,null,122,2,"PNT01","YES",212]
[]
[]
[]
["IND","SAL",101,"IND-SAL-101","Production General Supervisor",1,2,null,null,25,null,null,3,null,null,"NO",753.8]
["IND","SAL",102,"IND-SAL-102","Quality Control Supervisor",1,2,null,null,20,1,1,25,null,null,"NO",462]
["IND","SAL",103,"IND-SAL-103","Production Planner",1,2,null,null,1,1,null,56,null,null,"NO",753.8]
["IND","HOU",104,"IND-HOU-104","Quality Inspector ",1,null,null,null,1,1,null,28,null,null,"YES",250]
["IND","SAL",105,"IND-SAL-105","Facilities Supervisor",1,2,null,null,1,1,null,43,null,null,"NO"]
["IND","SAL",106,"IND-SAL-106","Productive Equipment Maintenance Supervisor",1,2,null,null,1,1,null,44,null,null,"NO"]
["IND","SAL",107,"IND-SAL-107","Process Engineering Manager",1,2,null,null,1,1,null,83,null,null,"NO"]
["IND","SAL",108,"IND-SAL-108","Maintenance Equipment Technician ",1,2,null,null,60,1,25,45,null,null,"NO",294]
["IND","SAL",109,"IND-SAL-109","Nurse",1,2,null,null,100,1,100,76,null,null,"NO",250]
[]
[]
[]
[]
[]
[]
[]
[]
[]
[]
[]
[]
[]
[]
[]
[]
["ADM","SAL",201,"ADM-SAL-201","Production Manager",101,102,103,105,1,1,1,2,null,null,"NO",1456]
["ADM","SAL",202,"ADM-SAL-202","Quality Control Manager",102,null,null,null,1,1,1,23,null,null,"NO",1100]
["ADM","SAL",203,"ADM-SAL-203","Plant Manager",102,null,null,null,1,1,1,1,null,null,"NO",3048.98]
["ADM","SAL",204,"ADM-SAL-204","Process Engineer",101,2,null,null,1,1,1,84,null,null,"NO"]

{"sheet":"ORGCHAUTOMOTIVEMETALMECHANIC","index":10,"n_rows":38,"n_cols":16,"rows_kept":38,"cut":false,"hidden":true,"merged":[[2,5,2,8],[2,9,4,9],[5,5,5,8],[13,5,13,8],[14,5,14,8],[15,5,15,8]]}
[null,null,null,"INDUSTRY","AUTOMOTIVE"]
[null,null,null,"PROCESS","METAL MECHANIC"]
[null,null,null,"Clase Riesgo Trabajo","Clase III   ","DRIVERS SUMA",null,null,null,"QTY\nSUMA"]
[null,null,null,"Origen","Org Chart Borg Warner Automotriz 2016"]
["CLASS","TYPE","#","ID","POSITION","D1","D2","D3","D4",null,"Max","Start","Nivel","Meses","Progresion","Distribute on shifts"]
["DIR","HOU",1,"DIR-HOU-1","Operator","RAMP UP",null,null,null,null,null,null,"OP04",null,null,"YES"]
["DIR","HOU",301,"DIR-HOU-301","Operator A",null,null,null,null,null,null,null,104,1,"OP04","YES"]
["DIR","HOU",302,"DIR-HOU-302","Operator B",null,null,null,null,null,null,null,105,2,"OP04","YES"]
["DIR","HOU",303,"DIR-HOU-303","Operator C",null,null,null,null,null,null,null,106,4,"OP04","YES"]
["DIR","HOU",304,"DIR-HOU-304","Operator D",null,null,null,null,null,null,null,107,7,"OP04","YES"]
["DIR","HOU",305,"DIR-HOU-305","Operator E",null,null,null,null,null,null,null,108,10,"OP04","YES"]
["DIR","HOU",306,"DIR-HOU-306","Operator F",null,null,null,null,null,null,null,109,13,"OP04","YES"]
[]
[]
[]
[]
[]
["IND","HOU",101,"IND-HOU-101","Team/Group Leader",1,null,null,null,10,null,null,8,null,null,"NO"]
["IND","SAL",102,"IND-SAL-102","Enviromental Technician",1,null,null,null,1,1,1,74,null,null,"NO"]
["IND","SAL",103,"IND-SAL-103","Tools Technician",1,null,null,null,1,1,1,35,null,null,"NO"]
["IND","HOU",104,"IND-HOU-104","Quality Control Technician ",1,null,null,null,15,null,null,27,null,null,"YES"]
["IND","SAL",105,"IND-SAL-105","Maintenance Equipment Technician ",1,null,null,null,20,null,null,45,null,null,"NO"]
["IND","SAL",106,"IND-SAL-106","Manufacturing Engineer",1,null,null,null,50,null,null,36,null,null,"NO"]
["IND","SAL",107,"IND-SAL-107","Production Planner",1,null,null,null,100,null,null,56,null,null,"NO"]
["IND","SAL",108,"IND-SAL-108","Production Supervisor ",1,null,null,null,20,null,null,3,null,null,"NO"]
["IND","SAL",109,"IND-SAL-109","Material Handler",1,null,null,null,200,null,null,78,null,null,"NO"]
[]
[]
[]
[]
[]
[]
[]
["ADM","SAL",201,"ADM-SAL-201","Plant Manager",1,null,null,null,1,1,1,1,null,null,"NO"]
["ADM","SAL",202,"ADM-SAL-202","Engineering Manager",1,null,null,null,1,1,1,151,null,null,"NO"]
["ADM","SAL",203,"ADM-SAL-203","Maintenance Manager",1,null,null,null,1,1,1,41,null,null,"NO"]
["ADM","SAL",204,"ADM-SAL-204","Quality Control Manager",1,null,null,null,20,1,null,23,null,null,"NO"]
["ADM","SAL",205,"ADM-SAL-205","Production Manager",1,null,null,null,50,1,null,2,null,null,"NO"]

{"sheet":"ORGCHAUTOMOTIVEPLASTICINJECTION","index":11,"n_rows":50,"n_cols":16,"rows_kept":50,"cut":false,"hidden":true,"merged":[[2,5,2,8],[2,9,4,9],[5,5,5,8],[13,5,13,8],[14,5,14,8],[15,5,15,8]]}
[null,null,null,"INDUSTRY","AUTOMOTIVE"]
[null,null,null,"PROCESS","PLASTIC INJECTION MOLDING"]
[null,null,null,"Clase Riesgo Trabajo","Clase III   ","DRIVERS SUMA",null,null,null,"QTY\nSUMA"]
[null,null,null,"Origen","Org Chart Nifco America Automotriz Inyeccion 2016"]
["CLASS","TYPE","#","ID","POSITION","D1","D2","D3","D4",null,"Max","Start","Nivel","Meses","Progresion","Distribute on shifts"]
["DIR","HOU",1,"DIR-HOU-1","Operator","RAMP UP",null,null,null,null,null,null,"OP05",null,null,"YES"]
["DIR","HOU",301,"DIR-HOU-301","Operator A",null,null,null,null,null,null,null,110,1,"OP05","YES"]
["DIR","HOU",302,"DIR-HOU-302","Operator B",null,null,null,null,null,null,null,111,2,"OP05","YES"]
["DIR","HOU",303,"DIR-HOU-303","Operator C",null,null,null,null,null,null,null,112,4,"OP05","YES"]
["DIR","HOU",304,"DIR-HOU-304","Operator D",null,null,null,null,null,null,null,113,7,"OP05","YES"]
["DIR","HOU",305,"DIR-HOU-305","Operator E",null,null,null,null,null,null,null,114,10,"OP05","YES"]
[]
[]
[]
[]
[]
[]
["IND","SAL",101,"IND-SAL-101","Manufacturing Engineer",1,null,null,null,30,1,1,36,null,null,"NO"]
["IND","SAL",102,"IND-SAL-102","Model Maker, Metal and Plastic",1,null,null,null,300,2,1,39,null,null,"NO"]
["IND","HOU",103,"IND-HOU-103","Team/Group Leader",1,null,null,null,50,null,1,8,null,null,"NO"]
["IND","SAL",104,"IND-SAL-104","Metrologies Technician ",1,null,null,null,1,1,1,30,null,null,"NO"]
["IND","HOU",105,"IND-HOU-105","Quality Inspector ",1,null,null,null,30,null,1,28,null,null,"NO"]
["IND","SAL",106,"IND-SAL-106","Industrial Engineer",1,null,null,null,50,6,1,79,null,null,"NO"]
["IND","SAL",107,"IND-SAL-107","Planning and Production Control Supervisor",1,null,null,null,100,1,1,54,null,null,"NO"]
["IND","SAL",108,"IND-SAL-108","Maintenance Equipment Technician ",1,null,null,null,50,6,1,45,null,null,"NO"]
["IND","SAL",109,"IND-SAL-109","Environmental Engineer",1,null,null,null,1,1,1,74,null,null,"NO"]
["IND","SAL",110,"IND-SAL-110","Product Design/Development Engineer",1,null,null,null,200,1,1,33,null,null,"NO"]
["IND","SAL",111,"IND-SAL-111","Tool Room Supervisor",1,null,null,null,100,1,1,35,null,null,"NO"]
["IND","SAL",112,"IND-SAL-112","Production Supervisor ",1,null,null,null,50,6,1,3,null,null,"NO"]
["IND","SAL",113,"IND-SAL-113","Quality Control Superintendent",1,null,null,null,300,1,null,24,null,null,"NO"]
["IND","SAL",114,"IND-SAL-114","Quality Control Supervisor",1,null,null,null,30,1,1,25,null,null,"NO"]
["IND","SAL",115,"IND-SAL-115","Warehouse Supervisor",1,null,null,null,200,1,1,51,null,null,"NO"]
["IND","SAL",116,"IND-SAL-116","Production Planner",1,null,null,null,30,1,null,56,null,null,"NO"]
["IND","SAL",117,"IND-SAL-117","Traffic and Customs Manager",1,null,null,null,300,1,null,57,null,null,"NO"]
["IND","SAL",118,"IND-SAL-118","Productive Equipment Maintenance Supervisor",1,null,null,null,1,1,1,44,null,null,"NO"]
["IND","SAL",119,"IND-SAL-119","Purchasing Supervisor",1,null,null,null,30,1,null,50,null,null,"NO"]
[]
[]
[]
[]
[]
[]
[]
[]
["ADM","SAL",201,"ADM-SAL-201","Plant Manager",1,null,null,null,1,1,1,1,null,null,"NO"]
["ADM","SAL",202,"ADM-SAL-202","Production Manager",1,null,null,null,100,1,1,2,null,null,"NO"]
["ADM","SAL",203,"ADM-SAL-203","Quality Control Manager",1,null,null,null,50,1,1,23,null,null,"NO"]
["ADM","SAL",204,"ADM-SAL-204","Logistics and Materials Manager",1,null,null,null,1,1,1,47,null,null,"NO"]
["ADM","SAL",205,"ADM-SAL-205","Manufacturing Manager",1,null,null,null,30,1,1,31,null,null,"NO"]
["ADM","SAL",206,"ADM-SAL-206","Maintenance Manager",1,null,null,null,1,1,1,41,null,null,"NO"]

{"sheet":"ORGCHAUTOMOTIVEWIREHARNESSES","index":12,"n_rows":42,"n_cols":16,"rows_kept":42,"cut":false,"hidden":true,"merged":[[2,5,2,8],[2,9,4,9],[5,5,5,8]]}
[null,null,null,"INDUSTRY","AUTOMOTIVE"]
[null,null,null,"PROCESS","WIRE HARNESSES"]
[null,null,null,"Clase Riesgo Trabajo","Clase III   ","DRIVERS SUMA",null,null,null,"QTY\nSUMA"]
[null,null,null,"Origen","Org Chart Sumidenso Automotriz Wire Harness 2016"]
["CLASS","TYPE","#","ID","POSITION","D1","D2","D3","D4",null,"Max","Start","Nivel","Meses","Progresion","Distribute on shifts"]
["DIR","HOU",1,"DIR-HOU-1","Operator","RAMP UP",null,null,null,null,null,null,"OP06",null,null,"YES"]
["DIR","HOU",301,"DIR-HOU-301","Operator level 1",null,null,null,null,null,null,null,115,1,"OP06","YES"]
["DIR","HOU",302,"DIR-HOU-302","Operator level 2",null,null,null,null,null,null,null,116,2,"OP06","YES"]
["DIR","HOU",303,"DIR-HOU-303","Operator level 3",null,null,null,null,null,null,null,117,4,"OP06","YES"]
["DIR","HOU",304,"DIR-HOU-304","Operator level 4",null,null,null,null,null,null,null,118,7,"OP06","YES"]
["DIR","HOU",305,"DIR-HOU-305","Operator level 5",null,null,null,null,null,null,null,119,10,"OP06","YES"]
["DIR","HOU",306,"DIR-HOU-306","Operator level 6",null,null,null,null,null,null,null,120,13,"OP06","YES"]
[]
[]
["IND","SAL",101,"IND-SAL-101","Chauffeur/Messenger",1,null,null,null,1,1,null,77,null,null,"NO"]
["IND","SAL",102,"IND-SAL-102","Production Trainer",1,null,null,null,1,1,null,9,null,null,"NO"]
["IND","HOU",103,"IND-HOU-103","Quality Inspector ",1,null,null,null,60,null,null,28,null,null,"YES"]
["IND","HOU",105,"IND-HOU-105","Team/Group Leader",1,null,null,null,30,null,null,8,null,null,"YES"]
["IND","SAL",107,"IND-SAL-107","Accounting Supervisor",1,null,null,null,75,null,null,64,null,null,"NO"]
["IND","SAL",108,"IND-SAL-108","Industrial Engineer",1,null,null,null,15,null,null,79,null,null,"NO"]
["IND","SAL",109,"IND-SAL-109","Maintenance Technician ",1,null,null,null,60,null,null,45,null,null,"NO"]
["IND","SAL",110,"IND-SAL-110","Molding Technician ",1,null,null,null,1,1,null,39,null,null,"NO"]
["IND","SAL",111,"IND-SAL-111","Manufacturing Technician ",1,null,null,null,60,null,null,37,null,null,"NO"]
["IND","SAL",112,"IND-SAL-112","Material Handler",1,null,null,null,1,1,null,78,null,null,"NO"]
["IND","SAL",113,"IND-SAL-113","Quality Control Engineer",1,null,null,null,1,1,null,26,null,null,"YES"]
["IND","SAL",114,"IND-SAL-114","Product Design/Development Engineer",1,null,null,null,2,2,null,33,null,null,"NO"]
["IND","SAL",115,"IND-SAL-115","Manufacturing Engineer",1,null,null,null,1,1,null,36,null,null,"NO"]
["IND","SAL",116,"IND-SAL-116","Quality Control Engineer",1,null,null,null,1,1,null,26,null,null,"NO"]
["IND","HOU",117,"IND-HOU-117","Team/Group Leader",1,null,null,null,1,1,null,8,null,null,"YES"]
["IND","SAL",118,"IND-SAL-118","Traffic and Customs Manager",1,null,null,null,1,1,null,57,null,null,"NO"]
["IND","SAL",119,"IND-SAL-119","Quality Control Supervisor",1,null,null,null,1,1,null,25,null,null,"NO"]
["IND","SAL",120,"IND-SAL-120","Warehouse Supervisor",1,null,null,null,1,1,null,51,null,null,"NO"]
["IND","SAL",121,"IND-SAL-121","Production Planner",1,null,null,null,80,null,null,56,null,null,"NO"]
["IND","SAL",122,"IND-SAL-122","Facilities Supervisor",1,null,null,null,1,1,null,43,null,null,"NO"]
["IND","SAL",123,"IND-SAL-123","Manufacturing Engineer",1,null,null,null,1,1,null,36,null,null,"NO"]
[]
["ADM","SAL",201,"ADM-SAL-201","Production Manager",1,null,null,null,1,1,null,2,null,null,"NO"]
["ADM","SAL",202,"ADM-SAL-202","Maintenance Manager",1,null,null,null,1,1,null,41,null,null,"NO"]
["ADM","SAL",203,"ADM-SAL-203","Manufacturing Manager",1,null,null,null,1,1,null,31,null,null,"NO"]
["ADM","SAL",204,"ADM-SAL-204","Systems Technician",1,null,null,null,1,1,null,61,null,null,"NO"]
["ADM","SAL",205,"ADM-SAL-205","Plant Manager",1,null,null,null,1,1,null,1,null,null,"NO"]
["ADM","SAL",206,"ADM-SAL-206","Manufacturing Manager",1,null,null,null,1,1,null,31,null,null,"NO"]

{"sheet":"ORGCHELECTRONICASSEMBLY","index":13,"n_rows":40,"n_cols":16,"rows_kept":40,"cut":false,"hidden":true,"merged":[[2,5,2,8],[2,9,4,9],[5,5,5,8],[12,5,12,8],[13,5,13,8],[14,5,14,8]]}
[null,null,null,"INDUSTRY","ELECTRONIC"]
[null,null,null,"PROCESS","ASSEMBLY"]
[null,null,null,"Clase Riesgo Trabajo","Clase III   ","DRIVERS SUMA",null,null,null,"QTY\nSUMA"]
[]
["CLASS","TYPE","#","ID","POSITION","D1","D2","D3","D4",null,"Max","Start","Nivel","Meses","Progresion","Distribute on shifts"]
["DIR","HOU",1,"DIR-HOU-1","Operator","RAMP UP",null,null,null,null,null,null,"OP07",null,null,"YES"]
["DIR","HOU",301,"DIR-HOU-301","Operator A",null,null,null,null,null,null,null,126,1,"OP07","YES"]
["DIR","HOU",302,"DIR-HOU-302","Operator B",null,null,null,null,null,null,null,127,2,"OP07","YES"]
["DIR","HOU",303,"DIR-HOU-303","Operator C",null,null,null,null,null,null,null,128,4,"OP07","YES"]
["DIR","HOU",304,"DIR-HOU-304","Operator D",null,null,null,null,null,null,null,129,7,"OP07","YES"]
["DIR","HOU",305,"DIR-HOU-305","Operator E",null,null,null,null,null,null,null,130,10,"OP07","YES"]
["DIR","HOU",306,"DIR-HOU-306","Operator F",null,null,null,null,null,null,null,131,13,"OP07","YES"]
[]
[]
[]
[]
["IND","HOU",101,"IND-HOU-101","Quality Inspector ",1,null,null,null,20,null,null,28,null,null,"YES"]
["IND","SAL",102,"IND-SAL-102","Maintenance Technician",1,null,null,null,150,null,null,45,null,null,"NO"]
["IND","SAL",103,"IND-SAL-103","Maintenance Equipment",1,null,null,null,150,null,null,45,null,null,"NO"]
["IND","SAL",104,"IND-SAL-104","Industrial Engineer",1,null,null,null,50,null,null,79,null,null,"NO"]
["IND","HOU",105,"IND-HOU-105","Team/Group Leader",1,null,null,null,20,null,null,8,null,null,"YES"]
["IND","SAL",106,"IND-SAL-106","Systems Technician",1,null,null,null,1,1,null,61,null,null,"NO"]
["IND","SAL",107,"IND-SAL-107","Metrology Engineer",1,null,null,null,1,1,null,29,null,null,"NO"]
["IND","SAL",108,"IND-SAL-108","Quality Control Engineer",1,null,null,null,10,1,1,26,null,null,"NO"]
["IND","SAL",109,"IND-SAL-109","Laboratory Analyst",105,null,null,null,1,1,null,186,null,null,"NO"]
["IND","SAL",110,"IND-SAL-110","Laboratory Technician",1,null,null,null,1,1,null,187,null,null,"NO"]
["IND","SAL",111,"IND-SAL-111","Process Engineering General Supervisor",1,null,null,null,50,1,null,32,null,null,"NO"]
["IND","SAL",112,"IND-SAL-112","Manufacturing Engineer",1,null,null,null,1,1,null,36,null,null,"NO"]
["IND","SAL",113,"IND-SAL-113","Traffic and Customs Manager",1,null,null,null,50,1,null,57,null,null,"NO"]
["IND","SAL",114,"IND-SAL-114","Purchasing Supervisor",1,null,null,null,1,1,null,50,null,null,"NO"]
["IND","SAL",115,"IND-SAL-115","Production Supervisor ",1,null,null,null,100,null,null,3,null,null,"YES"]
[]
[]
[]
["ADM","SAL",201,"ADM-SAL-201","Plant Manager",1,null,null,null,1,1,1,1,null,null,"NO"]
["ADM","SAL",202,"ADM-SAL-202","Quality Control Manager",1,null,null,null,1,1,1,23,null,null,"NO"]
["ADM","SAL",203,"ADM-SAL-203","Project Engineer",1,null,null,null,1,1,null,34,null,null,"NO"]
["ADM","SAL",204,"ADM-SAL-204","Manufacturing Manager",1,null,null,null,1,1,null,31,null,null,"NO"]
["ADM","SAL",205,"ADM-SAL-205","Logistics and Materials Manager",1,null,null,null,1,1,null,47,null,null,"NO"]
["ADM","SAL",206,"ADM-SAL-206","Production Manager",1,null,null,null,1,1,null,2,null,null,"NO"]

{"sheet":"ORGCHELECTRONICREPAIR","index":14,"n_rows":38,"n_cols":16,"rows_kept":38,"cut":false,"hidden":true,"merged":[[2,5,2,8],[2,9,4,9],[5,5,5,8],[13,5,13,8],[14,5,14,8],[15,5,15,8]]}
[null,null,null,"INDUSTRY","ELECTRONIC"]
[null,null,null,"PROCESS","REPAIR"]
[null,null,null,"Clase Riesgo Trabajo","Clase III   ","DRIVERS SUMA",null,null,null,"QTY\nSUMA"]
[null,null,null,"Origen","Org Chart CTDI Electronica Reparacion 2016"]
["CLASS","TYPE","#","ID","POSITION","D1","D2","D3","D4",null,"Max","Start","Nivel","Meses","Progresion","Distribute on shifts"]
["DIR","HOU",1,"DIR-HOU-1","Operator","RAMP UP",null,null,null,null,null,null,"OP08",null,null,"YES"]
["DIR","HOU",301,"DIR-HOU-301","Operator A",null,null,null,null,null,null,null,132,1,"OP08","YES"]
["DIR","HOU",302,"DIR-HOU-302","Operator B",null,null,null,null,null,null,null,133,2,"OP08","YES"]
["DIR","HOU",303,"DIR-HOU-303","Operator C",null,null,null,null,null,null,null,134,4,"OP08","YES"]
["DIR",null,10,"DIR--10","Analist Technician",null,null,null,null,null,null,null,187,null,null,"YES"]
["DIR",null,11,"DIR--11","Repair Technician",null,null,null,null,null,null,null,188,null,null,"YES"]
[]
[]
[]
[]
[]
[]
["IND","SAL",101,"IND-SAL-101","Material Handler",1,null,null,null,1,1,null,78,null,null,"NO"]
["IND","SAL",102,"IND-SAL-102","Accounting Supervisor",2,null,null,null,30,null,null,64,null,null,"NO"]
["IND","HOU",103,"IND-HOU-103","Team/Group Leader",1,2,3,null,20,null,null,8,null,null,"YES"]
["IND","SAL",104,"IND-SAL-104","Industrial Engineer",1,2,3,null,60,null,null,79,null,null,"NO"]
["IND","HOU",105,"IND-HOU-105","Quality Control Technician ",1,2,3,null,7,null,null,27,null,null,"YES"]
["IND","SAL",106,"IND-SAL-106","Help Desk Engineer",2,null,null,null,30,null,null,62,null,null,"NO"]
["IND","SAL",108,"IND-SAL-108","Systems Technician",1,null,null,null,1,1,1,61,null,null,"NO"]
["IND","SAL",109,"IND-SAL-109","Production General Supervisor",1,2,3,null,100,null,null,3,null,null,"NO"]
["IND","SAL",110,"IND-SAL-110","Production Planner",1,2,3,null,30,null,null,56,null,null,"NO"]
["IND","SAL",111,"IND-SAL-111","Production Trainer",1,null,null,null,1,1,null,9,null,null,"NO"]
["IND","SAL",112,"IND-SAL-112","Quality Control Engineer",1,2,3,null,60,null,null,26,null,null,"NO"]
["IND","SAL",113,"IND-SAL-113","Traffic and Customs Manager",1,null,null,null,1,2,null,57,null,null,"NO"]
["IND","SAL",114,"IND-SAL-114","Productive Equipment Maintenance Supervisor",1,null,null,null,1,1,null,44,null,null,"NO"]
["IND","SAL",115,"IND-SAL-115","Product Design/Development Engineer",1,null,null,null,1,1,null,33,null,null,"NO"]
[]
[]
[]
["ADM","SAL",201,"ADM-SAL-201","Plant Manager",1,null,null,null,1,1,null,1,null,null,"NO"]
["ADM","SAL",202,"ADM-SAL-202","Quality Control Manager",1,null,null,null,1,1,null,23,null,null,"NO"]
["ADM","SAL",203,"ADM-SAL-203","Manufacturing Manager",1,null,null,null,1,1,null,31,null,null,"NO"]
["ADM","HOU",204,"ADM-HOU-204","Repair Manager",1,null,null,null,1,1,null,189,null,null,"NO"]

{"sheet":"ORGCHAUTOMOTIVEASSEMBLY","index":15,"n_rows":46,"n_cols":16,"rows_kept":46,"cut":false,"hidden":true,"merged":[[2,5,2,8],[2,9,4,9],[5,5,5,8],[13,5,13,8],[14,5,14,8],[15,5,15,8]]}
[null,null,null,"INDUSTRY","AUTOMOTIVE"]
[null,null,null,"PROCESS","ASSEMBLY"]
[null,null,null,"Clase Riesgo Trabajo","Clase III   ","DRIVERS SUMA",null,null,null,"QTY\nSUMA"]
[null,null,null,"Origen","Org Chart Nifco America Automotriz Ensamble 2016"]
["CLASS","TYPE","#","ID","POSITION","D1","D2","D3","D4",null,"Max","Start","Nivel","Meses","Progresion","Distribute on shifts"]
["DIR","HOU",1,"DIR-HOU-1","Operator","RAMP UP",null,null,null,null,null,null,"OP09",null,null,"YES"]
["DIR","HOU",301,"DIR-HOU-301","Operator A",null,null,null,null,null,null,null,135,1,"OP09","YES"]
["DIR","SAL",302,"DIR-SAL-302","Operator B",null,null,null,null,null,null,null,136,2,"OP09","YES"]
["DIR","SAL",303,"DIR-SAL-303","Operator C",null,null,null,null,null,null,null,137,4,"OP09","YES"]
["DIR","SAL",304,"DIR-SAL-304","Operator D",null,null,null,null,null,null,null,138,7,"OP09","YES"]
["DIR","SAL",305,"DIR-SAL-305","Operator E",null,null,null,null,null,null,null,139,10,"OP09","YES"]
[]
[]
[]
[]
[]
[]
["IND","HOU",101,"IND-HOU-101","Team/Group Leader",1,null,null,null,30,null,null,8,null,null,"NO"]
["IND","HOU",102,"IND-HOU-102","Quality Inspector ",1,null,null,null,10,null,null,28,null,null,"NO"]
["IND","SAL",103,"IND-SAL-103","Industrial Engineer",1,null,null,null,10,null,null,79,null,null,"YES"]
["IND","SAL",104,"IND-SAL-104","Planning and Production Control Supervisor",1,null,null,null,100,null,null,54,null,null,"NO"]
["IND","SAL",105,"IND-SAL-105","Maintenance Equipment Technician ",1,null,null,null,50,2,1,45,null,null,"NO"]
["IND","SAL",106,"IND-SAL-106","Environmental Engineer",1,null,null,null,1,2,1,74,null,null,"NO"]
["IND","SAL",107,"IND-SAL-107","Product Design/Development Engineer",1,null,null,null,200,null,1,33,null,null,"NO"]
["IND","SAL",108,"IND-SAL-108","Production Supervisor ",1,null,null,null,30,null,1,3,null,null,"NO"]
["IND","SAL",109,"IND-SAL-109","Quality Systems Coord. & Training",1,null,null,null,1,1,1,81,null,null,"NO"]
["IND","SAL",110,"IND-SAL-110","Quality Assurance Engineer",1,null,null,null,1,1,1,26,null,null,"NO"]
["IND","SAL",111,"IND-SAL-111","Quality Control Supervisor",102,null,null,null,20,null,1,25,null,null,"NO"]
["IND","SAL",112,"IND-SAL-112","Warehouse Supervisor",103,104,null,null,14,null,1,51,null,null,"NO"]
["IND","SAL",113,"IND-SAL-113","Production Planner",1,null,null,null,200,null,null,56,null,null,"NO"]
["IND","SAL",114,"IND-SAL-114","Traffic and Customs Manager",1,null,null,null,200,null,null,57,null,null,"NO"]
["IND","SAL",115,"IND-SAL-115","Productive Equipment Maintenance Supervisor",1,null,null,null,1,1,1,44,null,null,"NO"]
["IND","SAL",116,"IND-SAL-116","Manufacturing Engineer",1,null,null,null,1,1,1,36,null,null,"NO"]
["IND","SAL",117,"IND-SAL-117","Purchasing Supervisor",1,null,null,null,1,1,1,50,null,null,"NO"]
[]
[]
[]
[]
[]
[]
[]
[]
["ADM","SAL",201,"ADM-SAL-201","Production Manager",1,null,null,null,1,1,1,2,null,null,"NO"]
["ADM","SAL",202,"ADM-SAL-202","Quality Control Manager",1,null,null,null,1,1,1,23,null,null,"NO"]
["ADM","SAL",203,"ADM-SAL-203","Logistics and Materials Manager",1,null,null,null,1,1,1,47,null,null,"NO"]
["ADM","SAL",204,"ADM-SAL-204","Maintenance Manager",1,null,null,null,1,1,1,41,null,null,"NO"]

{"sheet":"Shelter Services Questionnaire","index":16,"n_rows":200,"n_cols":13,"rows_kept":200,"cut":false,"hidden":false,"merged":[[147,1,150,9],[151,1,151,9],[117,1,117,2],[85,1,85,2],[71,1,71,2],[72,1,72,2],[80,1,82,2],[75,1,75,2],[76,1,76,2],[85,4,85,8],[71,4,71,9],[78,4,78,8],[29,5,31,8],[39,2,39,3],[35,2,35,3],[53,1,53,2],[42,2,42,3],[45,2,45,3],[50,1,50,2],[51,1,51,2],[52,1,52,2],[48,4,48,9],[47,1,47,9],[34,2,34,3],[37,2,37,3],[43,2,43,3],[40,2,40,3],[41,2,41,3],[1,2,1,9],[3,1,3,9],[5,2,5,3],[5,4,5,5],[25,2,25,3],[9,2,9,3],[11,2,11,3],[13,2,13,3],[13,4,13,5],[17,2,17,3],[17,4,17,5],[23,1,23,9],[15,2,15,3],[15,4,15,5],[19,2,19,8],[21,2,21,8],[164,1,164,9],[55,1,55,9],[68,1,68,9],[69,3,69,9],[56,1,56,9],[146,1,146,9],[163,1,163,9],[161,1,161,9],[162,1,162,9],[117,4,117,8],[73,1,73,2],[74,1,74,2],[159,1,159,9],[160,1,160,9],[58,4,58,9],[57,3,57,9],[5,6,5,8],[7,2,7,8],[13,6,13,8],[15,6,15,8],[17,6,17,8],[29,2,29,3],[31,2,31,3],[27,2,27,3],[36,2,36,3],[33,2,33,3]]}
[]
[null,null,"SHELTER SERVICES QUESTIONNAIRE"]
[]
[null,"COMPANY GENERAL INFORMATION"]
[]
[null,"PREPARED BY:",null,null,"DATE:"]
[]
[null,"COMPANY NAME:"]
[]
[null,"ADDRESS:"]
[]
[null,"WEB-PAGE:"]
[]
[null,"MAIN CONTACT:",null,null,"TITLE:"]
[]
[null,"PHONE:",null,null,"CELL PHONE:"]
[]
[null,"ANNUAL SALES:",null,null,"E-MAIL:"]
[]
[null,"PRODUCTS:"]
[]
[null,"PROCESS:"]
[]
[null,"PROJECT SCOPE"]
[]
[null,"Projected date to start operation:"]
[]
[null,"CITY FOR OPERATION:"]
[]
[null,"INDUSTRY:","- Select -"]
[]
[null,"PROCESS:","- Select -"]
[]
[null,"DO YOU WANT TO USE INTERMEX SUGGESTIONS","- Select -"]
[null,"REAL ESTATE:","AREA"]
[null,"UNIT OF MEASURE:",{"$f":"INDEX(UnidadArea,E36)","v":"- Select Unit Measure"},null,1]
[]
[null,null,"Year→\nUnit of Measure↓",null,1,2,3,4,5]
[null,null,"LEASABLE AREAS"]
[null,"PRODUCTION:",{"$f":"UnidadEspacio","v":"- Select Unit Measure"}]
[null,"WAREHOUSE:",{"$f":"UnidadEspacio","v":"- Select Unit Measure"}]
[null,"OFFICES:",{"$f":"UnidadEspacio","v":"- Select Unit Measure"}]
[null,"PRODUCTION RESTROOMS:",{"$f":"UnidadEspacio","v":"- Select Unit Measure"}]
[null,"OTHERS Powder Coat:",{"$f":"UnidadEspacio","v":"- Select Unit Measure"}]
[]
[null,null,"TOTAL LEASABLE AREA:",null,{"$f":"SUM(E40:E44)","v":0},{"$f":"SUM(F40:F44)","v":0},{"$f":"SUM(G40:G44)","v":0},{"$f":"SUM(H40:H44)","v":0},{"$f":"SUM(I40:I44)","v":0}]
[]
[null,"SITE UTILITIES"]
[null,"Positions proposed by","INTERMEX"]
[null,null,null,"Year→\nUnit of Measure↓",1,2,3,4,5]
[null,"ELECTRICITY:",null,"Kwh/Month"]
[null,"SUBSTATION CAPACITY:",null,"KVAs"]
[null,"NATURAL GAS:",null,"M3/Month"]
[null,"WATER:",null,"M3/Month"]
[]
[]
[null,"LOGISTICS"]
[]
[]
[null,null,"Transp. Media↓","Year→\nIn/Out Port↓",1,2,3,4,5]
[null,"Import Trips per year",{"$f":"INDEX(TransportationMediaList,L61)","v":"- Select media"},{"$f":"INDEX(Import1,M61)","v":"- Select port"},null,null,null,null,null,null,null,1,1]
[null,"Import Trips per year",{"$f":"INDEX(TransportationMediaList,L62)","v":"- Select media"},{"$f":"INDEX(Import2,M62)","v":"- Select port"},null,null,null,null,null,null,null,1,1]
[null,"Import Trips per year",{"$f":"INDEX(TransportationMediaList,L63)","v":"- Select media"},{"$f":"INDEX(Import3,M63)","v":"- Select port"},null,null,null,null,null,null,null,1,1]
[null,"Export trips per year",{"$f":"INDEX(TransportationMediaOutList,L64)","v":"- Select media"},{"$f":"INDEX(Export1,M64)","v":"- Select port"},null,null,null,null,null,null,null,1,1]
[null,"Export trips per year",{"$f":"INDEX(TransportationMediaOutList,L65)","v":"- Select media"},{"$f":"INDEX(Export2,M65)","v":"- Select port"},null,null,null,null,null,null,null,1,1]
[null,"Export trips per year",{"$f":"INDEX(TransportationMediaOutList,L66)","v":"- Select media"},{"$f":"INDEX(Export3,M66)","v":"- Select port"},null,null,null,null,null,null,null,1,1]
[null,"Export trips per year",{"$f":"INDEX(TransportationMediaOutList,L67)","v":"- Select media"},{"$f":"INDEX(Export4,M67)","v":"- Select port"},null,null,null,null,null,null,null,1,1]
[]
[null,"PERSONNEL REQUIREMENTS"]
[null,"Positions proposed by","INTERMEX"]
[]
[null,"DIRECT LABOR EMPLOYEES\n(Blue-Collar Worker)"]
[null,"Position",null,"Year→\nDirect Pos. Key↓",1,2,3,4,5]
[]
[]
[]
[]
[]
[null,null,null,null,"    You must provide exactly 100% for each year, adding the three shifts   \n↓                   until the numbers are not red colored                                                 ↓"]
[null,null,null,"Year→\nShift Number↓",{"$f":"OperatorMonth","v":1},2,3,4,5]
[null,"Direct employees\nshift distribution",null," % on 1st. Shift"]
[null,null,null,"% on 2nd. Shift"]
[null,null,null,"% on 3rd. Shift"]
[]
[]
[null,"INDIRECT LABOR EMPLOYEES\n(White-collar worker)"]
[null,"Position","Distr. On Shifts","Year→\nPos. Number↓",{"$f":"OperatorMonth","v":1},2,3,4,5]
[null,null,"NO",null,null,null,null,null,null,null,null,1]
[null,null,"NO",null,null,null,null,null,null,null,null,1]
[null,null,"NO",null,null,null,null,null,null,null,null,1]
[null,null,"NO",null,null,null,null,null,null,null,null,1]
[null,null,"NO",null,null,null,null,null,null,null,null,1]
[null,null,"NO",null,null,null,null,null,null,null,null,1]
[null,null,"NO",null,null,null,null,null,null,null,null,1]
[null,null,{"$f":"INDEX(YESNO,L95)","v":"- Select -"},null,null,null,null,null,null,null,null,1]
[null,null,"- Select -",null,null,null,null,null,null,null,null,1]
[null,null,"- Select -",null,null,null,null,null,null,null,null,1]
[null,null,"- Select -",null,null,null,null,null,null,null,null,1]
[null,null,"- Select -",null,null,null,null,null,null,null,null,1]
[null,null,"- Select -",null,null,null,null,null,null,null,null,1]
[null,null,"- Select -",null,null,null,null,null,null,null,null,1]
[null,null,"- Select -",null,null,null,null,null,null,null,null,1]
[null,null,"- Select -",null,null,null,null,null,null,null,null,1]
[null,null,"- Select -",null,null,null,null,null,null,null,null,1]
[null,null,"- Select -",null,null,null,null,null,null,null,null,1]
[null,null,"- Select -",null,null,null,null,null,null,null,null,1]
[null,null,"- Select -",null,null,null,null,null,null,null,null,1]
[null,null,"- Select -",null,null,null,null,null,null,null,null,1]
[null,null,"- Select -",null,null,null,null,null,null,null,null,1]
[null,null,"- Select -",null,null,null,null,null,null,null,null,1]
[null,null,"- Select -",null,null,null,null,null,null,null,null,1]
[null,null,"- Select -",null,null,null,null,null,null,null,null,1]
[null,null,"- Select -",null,null,null,null,null,null,null,null,1]
[null,null,"- Select -",null,null,null,null,null,null,null,null,1]
[null,null,"- Select -",null,null,null,null,null,null,null,null,1]
[null,null,"- Select -",null,null,null,null,null,null,null,null,1]
[]
[null,"ADMINISTRATIVE EMPLOYEES\n(White-collar worker)"]
[null,"Position","Distr. On Shifts","Year→\nPos. Number↓",{"$f":"OperatorMonth","v":1},2,3,4,5]
[null,null,"NO",null,null,null,null,null,null,null,null,1]
[null,null,"NO",null,null,null,null,null,null,null,null,1]
[null,null,"NO",null,null,null,null,null,null,null,null,1]
[null,null,{"$f":"INDEX(YESNO,L123)","v":"- Select -"},null,null,null,null,null,null,null,null,1]
[null,null,"- Select -",null,null,null,null,null,null,null,null,1]
[null,null,"- Select -",null,null,null,null,null,null,null,null,1]
[null,null,"- Select -",null,null,null,null,null,null,null,null,1]
[null,null,"- Select -",null,null,null,null,null,null,null,null,1]
[null,null,"- Select -",null,null,null,null,null,null,null,null,1]
[null,null,"- Select -",null,null,null,null,null,null,null,null,1]
[null,null,"- Select -",null,null,null,null,null,null,null,null,1]
[null,null,"- Select -",null,null,null,null,null,null,null,null,1]
[null,null,"- Select -",null,null,null,null,null,null,null,null,1]
[null,null,"- Select -",null,null,null,null,null,null,null,null,1]
[null,null,"- Select -",null,null,null,null,null,null,null,null,1]
[null,null,"- Select -",null,null,null,null,null,null,null,null,1]
[null,null,"- Select -",null,null,null,null,null,null,null,null,1]
[null,null,"- Select -",null,null,null,null,null,null,null,null,1]
[null,null,"- Select -",null,null,null,null,null,null,null,null,1]
[null,null,"- Select -",null,null,null,null,null,null,null,null,1]
[null,null,"- Select -",null,null,null,null,null,null,null,null,1]
[null,null,"- Select -",null,null,null,null,null,null,null,null,1]
[null,null,"- Select -",null,null,null,null,null,null,null,null,1]
[]
[]
[]
[]
[null,"ADDITIONAL COMMENTS"]
[]
[]
[]
[]
[null,"PROPOSAL CONDITIONS"]
[]
[null,"Proposal currency",3]
[]
[null,"Show Yearly/Monthly totals",1]
[]
[null,"Years to show on proposal:",1,"and",2]
[]
[null,"Thank you for your interest in Intermex."]
[null,"Calle Segunda #4 Col. Centro Historico. Chihuahua, Chih. CP. 31000, Mexico"]
[null,"Main Office Tel. No. +52 (614) 439-4020"]
[null,"http://www.intermex.com/"]
[]
[null,"©2014 Intermex. All rights reserved."]
[]
[]
[]
[]
[]
[]
[]
[]
[]
[]
[]
[]
[]
[]
[]
[]
[]
[]
[]
[]
[]
[]
[]
[]
[]
[]
[]
[null,null,null,{"$f":"LEFT(SUBSTITUTE(\"ORGCH\"&industria&Process,\" \",\"\"),31)","v":{"$error":"#NAME?"}},{"$f":"IF(Ind_Adm_Positions_Proposed_By=\"INTERMEX\",hojaIndustria,\"ORG CHART CUSTOMER\")","v":{"$error":"#NAME?"}}]
[null,null,null,{"$f":"\"'\"&hojaIndustria&\"'!\"&SUBSTITUTE(ciudad,\" \",\"_\")&\"_\"&CostBase","v":{"$error":"#NAME?"}}]
[null,null,null,{"$f":"\"'POSITION CATALOG'!\"&SUBSTITUTE(ciudad,\" \",\"_\")&\"_\"&CostBase","v":{"$error":"#NAME?"}}]
[null,null,null,{"$f":"\"Sueldos\"&SUBSTITUTE(ciudad,\" \",\"_\")","v":{"$error":"#NAME?"}}]
[null,null,null,{"$f":"IFERROR(INDEX(INDIRECT(\"Industrias_Procesos!\"&industria),1),\"\")","v":""}]
[null,null,null,{"$f":"IFERROR(INDEX(INDIRECT(\"Industrias_Procesos!\"&industria),2),\"\")","v":""}]
[null,null,null,{"$f":"IFERROR(INDEX(INDIRECT(\"Industrias_Procesos!\"&industria),3),\"\")","v":""}]
[null,null,null,{"$f":"IFERROR(INDEX(INDIRECT(\"Industrias_Procesos!\"&industria),4),\"\")","v":""}]

{"sheet":"PuestosIndustriaProceso_Catalog","index":17,"n_rows":307,"n_cols":6,"rows_kept":307,"cut":false,"hidden":true,"merged":[]}
[]
["Pos","Clase","DatosLabor","Nivel","Meses","Progresion"]
[{"$f":"IF(B3<>\"\",IF(B2=\"Clase\",1,A2+1),\"\")","v":""},{"$f":"IF(ISERROR(INDEX(Clase_PositionCatalog,ROW()-ROW(B$2))),\"\",INDEX(Clase_PositionCatalog,ROW()-ROW(B$2)))","v":""},{"$f":"IF(ISERROR(INDEX(Position_PositionCatalog,ROW()-ROW(C$2))),\"\",INDEX(Position_PositionCatalog,ROW()-ROW(C$2)))","v":""},{"$f":"IF(ISERROR(INDEX(NumPuesto_PositionCatalog,ROW()-ROW(D$2))),\"\",INDEX(NumPuesto_PositionCatalog,ROW()-ROW(D$2)))","v":""},{"$f":"IF(ISERROR(INDEX(Meses_PositionCatalog,ROW()-ROW(E$2))),\"\",INDEX(Meses_PositionCatalog,ROW()-ROW(E$2)))","v":""},{"$f":"IF(ISERROR(INDEX(Progresion_Positioncatalog,ROW()-ROW(F$2))),\"\",INDEX(Progresion_Positioncatalog,ROW()-ROW(F$2)))","v":""}]
[{"$f":"IF(B4<>\"\",IF(B3=\"Clase\",1,A3+1),\"\")","v":""},"","","","",""]
["","","","","",""]
["","","","","",""]
["","","","","",""]
["","","","","",""]
["","","","","",""]
["","","","","",""]
["","","","","",""]
["","","","","",""]
["","","","","",""]
["","","","","",""]
["","","","","",""]
["","","","","",""]
["","","","","",""]
["","","","","",""]
["","","","","",""]
["","","","","",""]
["","","","","",""]
["","","","","",""]
["","","","","",""]
["","","","","",""]
["","","","","",""]
["","","","","",""]
["","","","","",""]
["","","","","",""]
["","","","","",""]
["","","","","",""]
["","","","","",""]
["","","","","",""]
["","","","","",""]
["","","","","",""]
["",{"$f":"IF(ISERROR(INDEX(Clase_PositionCatalog,ROW()-ROW(B$2))),\"\",INDEX(Clase_PositionCatalog,ROW()-ROW(B$2)))","v":""},{"$f":"IF(ISERROR(INDEX(Position_PositionCatalog,ROW()-ROW(C$2))),\"\",INDEX(Position_PositionCatalog,ROW()-ROW(C$2)))","v":""},{"$f":"IF(ISERROR(INDEX(NumPuesto_PositionCatalog,ROW()-ROW(D$2))),\"\",INDEX(NumPuesto_PositionCatalog,ROW()-ROW(D$2)))","v":""},{"$f":"IF(ISERROR(INDEX(Meses_PositionCatalog,ROW()-ROW(E$2))),\"\",INDEX(Meses_PositionCatalog,ROW()-ROW(E$2)))","v":""},{"$f":"IF(ISERROR(INDEX(Progresion_Positioncatalog,ROW()-ROW(F$2))),\"\",INDEX(Progresion_Positioncatalog,ROW()-ROW(F$2)))","v":""}]
["","","","","",""]
["","","","","",""]
["","","","","",""]
["","","","","",""]
["","","","","",""]
["","","","","",""]
["","","","","",""]
["","","","","",""]
["","","","","",""]
["","","","","",""]
["","","","","",""]
["","","","","",""]
["","","","","",""]
["","","","","",""]
["","","","","",""]
["","","","","",""]
["","","","","",""]
["","","","","",""]
["","","","","",""]
["","","","","",""]
["","","","","",""]
["","","","","",""]
["","","","","",""]
["","","","","",""]
["","","","","",""]
["","","","","",""]
["","","","","",""]
["","","","","",""]
["","","","","",""]
["","","","","",""]
["","","","","",""]
["",{"$f":"IF(ISERROR(INDEX(Clase_PositionCatalog,ROW()-ROW(B$2))),\"\",INDEX(Clase_PositionCatalog,ROW()-ROW(B$2)))","v":""},{"$f":"IF(ISERROR(INDEX(Position_PositionCatalog,ROW()-ROW(C$2))),\"\",INDEX(Position_PositionCatalog,ROW()-ROW(C$2)))","v":""},{"$f":"IF(ISERROR(INDEX(NumPuesto_PositionCatalog,ROW()-ROW(D$2))),\"\",INDEX(NumPuesto_PositionCatalog,ROW()-ROW(D$2)))","v":""},{"$f":"IF(ISERROR(INDEX(Meses_PositionCatalog,ROW()-ROW(E$2))),\"\",INDEX(Meses_PositionCatalog,ROW()-ROW(E$2)))","v":""},{"$f":"IF(ISERROR(INDEX(Progresion_Positioncatalog,ROW()-ROW(F$2))),\"\",INDEX(Progresion_Positioncatalog,ROW()-ROW(F$2)))","v":""}]
[{"$f":"IF(B68<>\"\",IF(B67=\"Clase\",1,A67+1),\"\")","v":""},"","","","",""]
["","","","","",""]
["","","","","",""]
["","","","","",""]
["","","","","",""]
["","","","","",""]
["","","","","",""]
["","","","","",""]
["","","","","",""]
["","","","","",""]
["","","","","",""]
["","","","","",""]
["","","","","",""]
["","","","","",""]
["","","","","",""]
["","","","","",""]
["","","","","",""]
["","","","","",""]
["","","","","",""]
["","","","","",""]
["","","","","",""]
["","","","","",""]
["","","","","",""]
["","","","","",""]
["","","","","",""]
["","","","","",""]
["","","","","",""]
["","","","","",""]
["","","","","",""]
["","","","","",""]
["","","","","",""]
["",{"$f":"IF(ISERROR(INDEX(Clase_PositionCatalog,ROW()-ROW(B$2))),\"\",INDEX(Clase_PositionCatalog,ROW()-ROW(B$2)))","v":""},{"$f":"IF(ISERROR(INDEX(Position_PositionCatalog,ROW()-ROW(C$2))),\"\",INDEX(Position_PositionCatalog,ROW()-ROW(C$2)))","v":""},{"$f":"IF(ISERROR(INDEX(NumPuesto_PositionCatalog,ROW()-ROW(D$2))),\"\",INDEX(NumPuesto_PositionCatalog,ROW()-ROW(D$2)))","v":""},{"$f":"IF(ISERROR(INDEX(Meses_PositionCatalog,ROW()-ROW(E$2))),\"\",INDEX(Meses_PositionCatalog,ROW()-ROW(E$2)))","v":""},{"$f":"IF(ISERROR(INDEX(Progresion_Positioncatalog,ROW()-ROW(F$2))),\"\",INDEX(Progresion_Positioncatalog,ROW()-ROW(F$2)))","v":""}]
["","","","","",""]
["","","","","",""]
["","","","","",""]
["","","","","",""]
["","","","","",""]
["","","","","",""]
["","","","","",""]
["","","","","",""]
["","","","","",""]
["","","","","",""]
["","","","","",""]
["","","","","",""]
["","","","","",""]
["","","","","",""]
["","","","","",""]
["","","","","",""]
["","","","","",""]
["","","","","",""]
["","","","","",""]
["","","","","",""]
["","","","","",""]
["","","","","",""]
["","","","","",""]
["","","","","",""]
["","","","","",""]
["","","","","",""]
["","","","","",""]
["","","","","",""]
["","","","","",""]
["","","","","",""]
["","","","","",""]
["",{"$f":"IF(ISERROR(INDEX(Clase_PositionCatalog,ROW()-ROW(B$2))),\"\",INDEX(Clase_PositionCatalog,ROW()-ROW(B$2)))","v":""},{"$f":"IF(ISERROR(INDEX(Position_PositionCatalog,ROW()-ROW(C$2))),\"\",INDEX(Position_PositionCatalog,ROW()-ROW(C$2)))","v":""},{"$f":"IF(ISERROR(INDEX(NumPuesto_PositionCatalog,ROW()-ROW(D$2))),\"\",INDEX(NumPuesto_PositionCatalog,ROW()-ROW(D$2)))","v":""},{"$f":"IF(ISERROR(INDEX(Meses_PositionCatalog,ROW()-ROW(E$2))),\"\",INDEX(Meses_PositionCatalog,ROW()-ROW(E$2)))","v":""},{"$f":"IF(ISERROR(INDEX(Progresion_Positioncatalog,ROW()-ROW(F$2))),\"\",INDEX(Progresion_Positioncatalog,ROW()-ROW(F$2)))","v":""}]
[{"$f":"IF(B132<>\"\",IF(B131=\"Clase\",1,A131+1),\"\")","v":""},"","","","",""]
["","","","","",""]
["","","","","",""]
["","","","","",""]
["","","","","",""]
["","","","","",""]
["","","","","",""]
["","","","","",""]
["","","","","",""]
["","","","","",""]
["","","","","",""]
["","","","","",""]
["","","","","",""]
["","","","","",""]
["","","","","",""]
["","","","","",""]
["","","","","",""]
["","","","","",""]
["","","","","",""]
["","","","","",""]
["","","","","",""]
["","","","","",""]
["","","","","",""]
[]
[null,"DIR"]
[0,"Clase","DatosLabor","Nivel"]
[{"$f":"MIN(IF($B$156=Clase,IF(ROW(Clase)>A157,IF(Meses=0,ROW(Clase),200),200),200))","v":200},{"$f":"IF(A158<100,INDEX(Clase,A158-ROW(Clase)+1),\"\")","v":""},{"$f":"IF(A158<100,INDEX(DatosLabor,A158-ROW(DatosLabor)+1),\"\")","v":""},{"$f":"IF(A158<100,INDEX(Nivel,A158-ROW(Nivel)+1),\"\")","v":""}]
[{"$f":"MIN(IF($B$156=Clase,IF(ROW(Clase)>A158,IF(Meses=0,ROW(Clase),200),200),200))","v":200},"","",""]
[{"$f":"MIN(IF($B$156=Clase,IF(ROW(Clase)>A159,IF(Meses=0,ROW(Clase),200),200),200))","v":200},"","",""]
[{"$f":"MIN(IF($B$156=Clase,IF(ROW(Clase)>A160,IF(Meses=0,ROW(Clase),200),200),200))","v":200},"","",""]
[{"$f":"MIN(IF($B$156=Clase,IF(ROW(Clase)>A161,IF(Meses=0,ROW(Clase),200),200),200))","v":200},"","",""]
[{"$f":"MIN(IF($B$156=Clase,IF(ROW(Clase)>A162,IF(Meses=0,ROW(Clase),200),200),200))","v":200},"","",""]
[{"$f":"MIN(IF($B$156=Clase,IF(ROW(Clase)>A163,IF(Meses=0,ROW(Clase),200),200),200))","v":200},"","",""]
[{"$f":"MIN(IF($B$156=Clase,IF(ROW(Clase)>A164,IF(Meses=0,ROW(Clase),200),200),200))","v":200},"","",""]
[{"$f":"MIN(IF($B$156=Clase,IF(ROW(Clase)>A165,IF(Meses=0,ROW(Clase),200),200),200))","v":200},"","",""]
[{"$f":"MIN(IF($B$156=Clase,IF(ROW(Clase)>A166,IF(Meses=0,ROW(Clase),200),200),200))","v":200},"","",""]
[{"$f":"MIN(IF($B$156=Clase,IF(ROW(Clase)>A167,IF(Meses=0,ROW(Clase),200),200),200))","v":200},"","",""]
[{"$f":"MIN(IF($B$156=Clase,IF(ROW(Clase)>A168,IF(Meses=0,ROW(Clase),200),200),200))","v":200},"","",""]
[{"$f":"MIN(IF($B$156=Clase,IF(ROW(Clase)>A169,IF(Meses=0,ROW(Clase),200),200),200))","v":200},"","",""]
[{"$f":"MIN(IF($B$156=Clase,IF(ROW(Clase)>A170,IF(Meses=0,ROW(Clase),200),200),200))","v":200},"","",""]
[{"$f":"MIN(IF($B$156=Clase,IF(ROW(Clase)>A171,IF(Meses=0,ROW(Clase),200),200),200))","v":200},"","",""]
[{"$f":"MIN(IF($B$156=Clase,IF(ROW(Clase)>A172,IF(Meses=0,ROW(Clase),200),200),200))","v":200},"","",""]
[{"$f":"MIN(IF($B$156=Clase,IF(ROW(Clase)>A173,IF(Meses=0,ROW(Clase),200),200),200))","v":200},"","",""]
[{"$f":"MIN(IF($B$156=Clase,IF(ROW(Clase)>A174,IF(Meses=0,ROW(Clase),200),200),200))","v":200},"","",""]
[{"$f":"MIN(IF($B$156=Clase,IF(ROW(Clase)>A175,IF(Meses=0,ROW(Clase),200),200),200))","v":200},"","",""]
[]
[null,"IND"]
[0,"Clase","DatosLabor","Nivel"]
[{"$f":"MIN(IF($B$178=Clase,IF(ROW(Clase)>A179,IF(Meses=0,ROW(Clase),200),200),200))","v":200},{"$f":"IF(A180<100,INDEX(Clase,A180-ROW(Clase)+1),\"\")","v":""},{"$f":"IF(A180<100,INDEX(DatosLabor,A180-ROW(DatosLabor)+1),\"\")","v":""},{"$f":"IF(A180<100,INDEX(Nivel,A180-ROW(Nivel)+1),\"\")","v":""}]
[{"$f":"MIN(IF($B$178=Clase,IF(ROW(Clase)>A180,IF(Meses=0,ROW(Clase),200),200),200))","v":200},"","",""]
[{"$f":"MIN(IF($B$178=Clase,IF(ROW(Clase)>A181,IF(Meses=0,ROW(Clase),200),200),200))","v":200},"","",""]
[{"$f":"MIN(IF($B$178=Clase,IF(ROW(Clase)>A182,IF(Meses=0,ROW(Clase),200),200),200))","v":200},"","",""]
[{"$f":"MIN(IF($B$178=Clase,IF(ROW(Clase)>A183,IF(Meses=0,ROW(Clase),200),200),200))","v":200},"","",""]
[{"$f":"MIN(IF($B$178=Clase,IF(ROW(Clase)>A184,IF(Meses=0,ROW(Clase),200),200),200))","v":200},"","",""]
[{"$f":"MIN(IF($B$178=Clase,IF(ROW(Clase)>A185,IF(Meses=0,ROW(Clase),200),200),200))","v":200},"","",""]
[{"$f":"MIN(IF($B$178=Clase,IF(ROW(Clase)>A186,IF(Meses=0,ROW(Clase),200),200),200))","v":200},"","",""]
[{"$f":"MIN(IF($B$178=Clase,IF(ROW(Clase)>A187,IF(Meses=0,ROW(Clase),200),200),200))","v":200},"","",""]
[{"$f":"MIN(IF($B$178=Clase,IF(ROW(Clase)>A188,IF(Meses=0,ROW(Clase),200),200),200))","v":200},"","",""]
[{"$f":"MIN(IF($B$178=Clase,IF(ROW(Clase)>A189,IF(Meses=0,ROW(Clase),200),200),200))","v":200},"","",""]
[{"$f":"MIN(IF($B$178=Clase,IF(ROW(Clase)>A190,IF(Meses=0,ROW(Clase),200),200),200))","v":200},"","",""]
[{"$f":"MIN(IF($B$178=Clase,IF(ROW(Clase)>A191,IF(Meses=0,ROW(Clase),200),200),200))","v":200},"","",""]
[{"$f":"MIN(IF($B$178=Clase,IF(ROW(Clase)>A192,IF(Meses=0,ROW(Clase),200),200),200))","v":200},"","",""]
[{"$f":"MIN(IF($B$178=Clase,IF(ROW(Clase)>A193,IF(Meses=0,ROW(Clase),200),200),200))","v":200},"","",""]
[{"$f":"MIN(IF($B$178=Clase,IF(ROW(Clase)>A194,IF(Meses=0,ROW(Clase),200),200),200))","v":200},"","",""]
[{"$f":"MIN(IF($B$178=Clase,IF(ROW(Clase)>A195,IF(Meses=0,ROW(Clase),200),200),200))","v":200},"","",""]
[{"$f":"MIN(IF($B$178=Clase,IF(ROW(Clase)>A196,IF(Meses=0,ROW(Clase),200),200),200))","v":200},"","",""]
[{"$f":"MIN(IF($B$178=Clase,IF(ROW(Clase)>A197,IF(Meses=0,ROW(Clase),200),200),200))","v":200},"","",""]
[{"$f":"MIN(IF($B$178=Clase,IF(ROW(Clase)>A198,IF(Meses=0,ROW(Clase),200),200),200))","v":200},"","",""]
[{"$f":"MIN(IF($B$178=Clase,IF(ROW(Clase)>A199,IF(Meses=0,ROW(Clase),200),200),200))","v":200},"","",""]
[{"$f":"MIN(IF($B$178=Clase,IF(ROW(Clase)>A200,IF(Meses=0,ROW(Clase),200),200),200))","v":200},"","",""]
[{"$f":"MIN(IF($B$178=Clase,IF(ROW(Clase)>A201,IF(Meses=0,ROW(Clase),200),200),200))","v":200},"","",""]
[{"$f":"MIN(IF($B$178=Clase,IF(ROW(Clase)>A202,IF(Meses=0,ROW(Clase),200),200),200))","v":200},"","",""]
[{"$f":"MIN(IF($B$178=Clase,IF(ROW(Clase)>A203,IF(Meses=0,ROW(Clase),200),200),200))","v":200},"","",""]
[{"$f":"MIN(IF($B$178=Clase,IF(ROW(Clase)>A204,IF(Meses=0,ROW(Clase),200),200),200))","v":200},"","",""]
[{"$f":"MIN(IF($B$178=Clase,IF(ROW(Clase)>A205,IF(Meses=0,ROW(Clase),200),200),200))","v":200},"","",""]
[{"$f":"MIN(IF($B$178=Clase,IF(ROW(Clase)>A206,IF(Meses=0,ROW(Clase),200),200),200))","v":200},"","",""]
[{"$f":"MIN(IF($B$178=Clase,IF(ROW(Clase)>A207,IF(Meses=0,ROW(Clase),200),200),200))","v":200},"","",""]
[{"$f":"MIN(IF($B$178=Clase,IF(ROW(Clase)>A208,IF(Meses=0,ROW(Clase),200),200),200))","v":200},"","",""]
[{"$f":"MIN(IF($B$178=Clase,IF(ROW(Clase)>A209,IF(Meses=0,ROW(Clase),200),200),200))","v":200},"","",""]
[{"$f":"MIN(IF($B$178=Clase,IF(ROW(Clase)>A210,IF(Meses=0,ROW(Clase),200),200),200))","v":200},"","",""]
[{"$f":"MIN(IF($B$178=Clase,IF(ROW(Clase)>A211,IF(Meses=0,ROW(Clase),200),200),200))","v":200},{"$f":"IF(A212<100,INDEX(Clase,A212-ROW(Clase)+1),\"\")","v":""},{"$f":"IF(A212<100,INDEX(DatosLabor,A212-ROW(DatosLabor)+1),\"\")","v":""},{"$f":"IF(A212<100,INDEX(Nivel,A212-ROW(Nivel)+1),\"\")","v":""}]
[{"$f":"MIN(IF($B$178=Clase,IF(ROW(Clase)>A212,IF(Meses=0,ROW(Clase),200),200),200))","v":200},"","",""]
[{"$f":"MIN(IF($B$178=Clase,IF(ROW(Clase)>A213,IF(Meses=0,ROW(Clase),200),200),200))","v":200},"","",""]
[{"$f":"MIN(IF($B$178=Clase,IF(ROW(Clase)>A214,IF(Meses=0,ROW(Clase),200),200),200))","v":200},"","",""]
[{"$f":"MIN(IF($B$178=Clase,IF(ROW(Clase)>A215,IF(Meses=0,ROW(Clase),200),200),200))","v":200},"","",""]
[{"$f":"MIN(IF($B$178=Clase,IF(ROW(Clase)>A216,IF(Meses=0,ROW(Clase),200),200),200))","v":200},"","",""]
[{"$f":"MIN(IF($B$178=Clase,IF(ROW(Clase)>A217,IF(Meses=0,ROW(Clase),200),200),200))","v":200},"","",""]
[{"$f":"MIN(IF($B$178=Clase,IF(ROW(Clase)>A218,IF(Meses=0,ROW(Clase),200),200),200))","v":200},"","",""]
[{"$f":"MIN(IF($B$178=Clase,IF(ROW(Clase)>A219,IF(Meses=0,ROW(Clase),200),200),200))","v":200},"","",""]
[{"$f":"MIN(IF($B$178=Clase,IF(ROW(Clase)>A220,IF(Meses=0,ROW(Clase),200),200),200))","v":200},"","",""]
[{"$f":"MIN(IF($B$178=Clase,IF(ROW(Clase)>A221,IF(Meses=0,ROW(Clase),200),200),200))","v":200},"","",""]
[{"$f":"MIN(IF($B$178=Clase,IF(ROW(Clase)>A222,IF(Meses=0,ROW(Clase),200),200),200))","v":200},"","",""]
[{"$f":"MIN(IF($B$178=Clase,IF(ROW(Clase)>A223,IF(Meses=0,ROW(Clase),200),200),200))","v":200},"","",""]
[{"$f":"MIN(IF($B$178=Clase,IF(ROW(Clase)>A224,IF(Meses=0,ROW(Clase),200),200),200))","v":200},"","",""]
[{"$f":"MIN(IF($B$178=Clase,IF(ROW(Clase)>A225,IF(Meses=0,ROW(Clase),200),200),200))","v":200},"","",""]
[{"$f":"MIN(IF($B$178=Clase,IF(ROW(Clase)>A226,IF(Meses=0,ROW(Clase),200),200),200))","v":200},"","",""]
[{"$f":"MIN(IF($B$178=Clase,IF(ROW(Clase)>A227,IF(Meses=0,ROW(Clase),200),200),200))","v":200},"","",""]
[{"$f":"MIN(IF($B$178=Clase,IF(ROW(Clase)>A228,IF(Meses=0,ROW(Clase),200),200),200))","v":200},"","",""]
[{"$f":"MIN(IF($B$178=Clase,IF(ROW(Clase)>A229,IF(Meses=0,ROW(Clase),200),200),200))","v":200},"","",""]
[{"$f":"MIN(IF($B$178=Clase,IF(ROW(Clase)>A230,IF(Meses=0,ROW(Clase),200),200),200))","v":200},"","",""]
[{"$f":"MIN(IF($B$178=Clase,IF(ROW(Clase)>A231,IF(Meses=0,ROW(Clase),200),200),200))","v":200},"","",""]
[{"$f":"MIN(IF($B$178=Clase,IF(ROW(Clase)>A232,IF(Meses=0,ROW(Clase),200),200),200))","v":200},"","",""]
[{"$f":"MIN(IF($B$178=Clase,IF(ROW(Clase)>A233,IF(Meses=0,ROW(Clase),200),200),200))","v":200},"","",""]
[{"$f":"MIN(IF($B$178=Clase,IF(ROW(Clase)>A234,IF(Meses=0,ROW(Clase),200),200),200))","v":200},"","",""]
[{"$f":"MIN(IF($B$178=Clase,IF(ROW(Clase)>A235,IF(Meses=0,ROW(Clase),200),200),200))","v":200},"","",""]
[{"$f":"MIN(IF($B$178=Clase,IF(ROW(Clase)>A236,IF(Meses=0,ROW(Clase),200),200),200))","v":200},"","",""]
[{"$f":"MIN(IF($B$178=Clase,IF(ROW(Clase)>A237,IF(Meses=0,ROW(Clase),200),200),200))","v":200},"","",""]
[{"$f":"MIN(IF($B$178=Clase,IF(ROW(Clase)>A238,IF(Meses=0,ROW(Clase),200),200),200))","v":200},"","",""]
[{"$f":"MIN(IF($B$178=Clase,IF(ROW(Clase)>A239,IF(Meses=0,ROW(Clase),200),200),200))","v":200},"","",""]
[{"$f":"MIN(IF($B$178=Clase,IF(ROW(Clase)>A240,IF(Meses=0,ROW(Clase),200),200),200))","v":200},"","",""]
[{"$f":"MIN(IF($B$178=Clase,IF(ROW(Clase)>A241,IF(Meses=0,ROW(Clase),200),200),200))","v":200},"","",""]
[{"$f":"MIN(IF($B$178=Clase,IF(ROW(Clase)>A242,IF(Meses=0,ROW(Clase),200),200),200))","v":200},"","",""]
[{"$f":"MIN(IF($B$178=Clase,IF(ROW(Clase)>A243,IF(Meses=0,ROW(Clase),200),200),200))","v":200},{"$f":"IF(A244<100,INDEX(Clase,A244-ROW(Clase)+1),\"\")","v":""},{"$f":"IF(A244<100,INDEX(DatosLabor,A244-ROW(DatosLabor)+1),\"\")","v":""},{"$f":"IF(A244<100,INDEX(Nivel,A244-ROW(Nivel)+1),\"\")","v":""}]
[{"$f":"MIN(IF($B$178=Clase,IF(ROW(Clase)>A244,IF(Meses=0,ROW(Clase),200),200),200))","v":200},"","",""]
[{"$f":"MIN(IF($B$178=Clase,IF(ROW(Clase)>A245,IF(Meses=0,ROW(Clase),200),200),200))","v":200},"","",""]
[{"$f":"MIN(IF($B$178=Clase,IF(ROW(Clase)>A246,IF(Meses=0,ROW(Clase),200),200),200))","v":200},"","",""]
[{"$f":"MIN(IF($B$178=Clase,IF(ROW(Clase)>A247,IF(Meses=0,ROW(Clase),200),200),200))","v":200},"","",""]
[{"$f":"MIN(IF($B$178=Clase,IF(ROW(Clase)>A248,IF(Meses=0,ROW(Clase),200),200),200))","v":200},"","",""]
[{"$f":"MIN(IF($B$178=Clase,IF(ROW(Clase)>A249,IF(Meses=0,ROW(Clase),200),200),200))","v":200},"","",""]
[{"$f":"MIN(IF($B$178=Clase,IF(ROW(Clase)>A250,IF(Meses=0,ROW(Clase),200),200),200))","v":200},"","",""]
[{"$f":"MIN(IF($B$178=Clase,IF(ROW(Clase)>A251,IF(Meses=0,ROW(Clase),200),200),200))","v":200},"","",""]
[{"$f":"MIN(IF($B$178=Clase,IF(ROW(Clase)>A252,IF(Meses=0,ROW(Clase),200),200),200))","v":200},"","",""]
[{"$f":"MIN(IF($B$178=Clase,IF(ROW(Clase)>A253,IF(Meses=0,ROW(Clase),200),200),200))","v":200},"","",""]
[{"$f":"MIN(IF($B$178=Clase,IF(ROW(Clase)>A254,IF(Meses=0,ROW(Clase),200),200),200))","v":200},"","",""]
[{"$f":"MIN(IF($B$178=Clase,IF(ROW(Clase)>A255,IF(Meses=0,ROW(Clase),200),200),200))","v":200},"","",""]
[{"$f":"MIN(IF($B$178=Clase,IF(ROW(Clase)>A256,IF(Meses=0,ROW(Clase),200),200),200))","v":200},"","",""]
[{"$f":"MIN(IF($B$178=Clase,IF(ROW(Clase)>A257,IF(Meses=0,ROW(Clase),200),200),200))","v":200},"","",""]
[{"$f":"MIN(IF($B$178=Clase,IF(ROW(Clase)>A258,IF(Meses=0,ROW(Clase),200),200),200))","v":200},"","",""]
[{"$f":"MIN(IF($B$178=Clase,IF(ROW(Clase)>A259,IF(Meses=0,ROW(Clase),200),200),200))","v":200},"","",""]
[{"$f":"MIN(IF($B$178=Clase,IF(ROW(Clase)>A260,IF(Meses=0,ROW(Clase),200),200),200))","v":200},"","",""]
[]
[null,"ADM"]
[0,"Clase","DatosLabor","Nivel"]
[{"$f":"MIN(IF($B$263=Clase,IF(ROW(Clase)>A264,IF(Meses=0,ROW(Clase),200),200),200))","v":200},{"$f":"IF(A265<100,INDEX(Clase,A265-ROW(Clase)+1),\"\")","v":""},{"$f":"IF(A265<100,INDEX(DatosLabor,A265-ROW(DatosLabor)+1),\"\")","v":""},{"$f":"IF(A265<100,INDEX(Nivel,A265-ROW(Nivel)+1),\"\")","v":""}]
[{"$f":"MIN(IF($B$263=Clase,IF(ROW(Clase)>A265,IF(Meses=0,ROW(Clase),200),200),200))","v":200},"","",""]
[{"$f":"MIN(IF($B$263=Clase,IF(ROW(Clase)>A266,IF(Meses=0,ROW(Clase),200),200),200))","v":200},"","",""]
[{"$f":"MIN(IF($B$263=Clase,IF(ROW(Clase)>A267,IF(Meses=0,ROW(Clase),200),200),200))","v":200},"","",""]
[{"$f":"MIN(IF($B$263=Clase,IF(ROW(Clase)>A268,IF(Meses=0,ROW(Clase),200),200),200))","v":200},"","",""]
[{"$f":"MIN(IF($B$263=Clase,IF(ROW(Clase)>A269,IF(Meses=0,ROW(Clase),200),200),200))","v":200},"","",""]
[{"$f":"MIN(IF($B$263=Clase,IF(ROW(Clase)>A270,IF(Meses=0,ROW(Clase),200),200),200))","v":200},"","",""]
[{"$f":"MIN(IF($B$263=Clase,IF(ROW(Clase)>A271,IF(Meses=0,ROW(Clase),200),200),200))","v":200},"","",""]
[{"$f":"MIN(IF($B$263=Clase,IF(ROW(Clase)>A272,IF(Meses=0,ROW(Clase),200),200),200))","v":200},"","",""]
[{"$f":"MIN(IF($B$263=Clase,IF(ROW(Clase)>A273,IF(Meses=0,ROW(Clase),200),200),200))","v":200},"","",""]
[{"$f":"MIN(IF($B$263=Clase,IF(ROW(Clase)>A274,IF(Meses=0,ROW(Clase),200),200),200))","v":200},"","",""]
[{"$f":"MIN(IF($B$263=Clase,IF(ROW(Clase)>A275,IF(Meses=0,ROW(Clase),200),200),200))","v":200},"","",""]
[{"$f":"MIN(IF($B$263=Clase,IF(ROW(Clase)>A276,IF(Meses=0,ROW(Clase),200),200),200))","v":200},{"$f":"IF(A277<100,INDEX(Clase,A277-ROW(Clase)+1),\"\")","v":""},{"$f":"IF(A277<100,INDEX(DatosLabor,A277-ROW(DatosLabor)+1),\"\")","v":""},{"$f":"IF(A277<100,INDEX(Nivel,A277-ROW(Nivel)+1),\"\")","v":""}]
[{"$f":"MIN(IF($B$263=Clase,IF(ROW(Clase)>A277,IF(Meses=0,ROW(Clase),200),200),200))","v":200},"","",""]
[{"$f":"MIN(IF($B$263=Clase,IF(ROW(Clase)>A278,IF(Meses=0,ROW(Clase),200),200),200))","v":200},"","",""]
[{"$f":"MIN(IF($B$263=Clase,IF(ROW(Clase)>A279,IF(Meses=0,ROW(Clase),200),200),200))","v":200},"","",""]
[{"$f":"MIN(IF($B$263=Clase,IF(ROW(Clase)>A280,IF(Meses=0,ROW(Clase),200),200),200))","v":200},"","",""]
[{"$f":"MIN(IF($B$263=Clase,IF(ROW(Clase)>A281,IF(Meses=0,ROW(Clase),200),200),200))","v":200},"","",""]
[{"$f":"MIN(IF($B$263=Clase,IF(ROW(Clase)>A282,IF(Meses=0,ROW(Clase),200),200),200))","v":200},"","",""]
[{"$f":"MIN(IF($B$263=Clase,IF(ROW(Clase)>A283,IF(Meses=0,ROW(Clase),200),200),200))","v":200},"","",""]
[{"$f":"MIN(IF($B$263=Clase,IF(ROW(Clase)>A284,IF(Meses=0,ROW(Clase),200),200),200))","v":200},"","",""]
[{"$f":"MIN(IF($B$263=Clase,IF(ROW(Clase)>A285,IF(Meses=0,ROW(Clase),200),200),200))","v":200},"","",""]
[{"$f":"MIN(IF($B$263=Clase,IF(ROW(Clase)>A286,IF(Meses=0,ROW(Clase),200),200),200))","v":200},"","",""]
[{"$f":"MIN(IF($B$263=Clase,IF(ROW(Clase)>A287,IF(Meses=0,ROW(Clase),200),200),200))","v":200},"","",""]
[{"$f":"MIN(IF($B$263=Clase,IF(ROW(Clase)>A288,IF(Meses=0,ROW(Clase),200),200),200))","v":200},"","",""]
[{"$f":"MIN(IF($B$263=Clase,IF(ROW(Clase)>A289,IF(Meses=0,ROW(Clase),200),200),200))","v":200},"","",""]
[{"$f":"MIN(IF($B$263=Clase,IF(ROW(Clase)>A290,IF(Meses=0,ROW(Clase),200),200),200))","v":200},"","",""]
[{"$f":"MIN(IF($B$263=Clase,IF(ROW(Clase)>A291,IF(Meses=0,ROW(Clase),200),200),200))","v":200},"","",""]
[{"$f":"MIN(IF($B$263=Clase,IF(ROW(Clase)>A292,IF(Meses=0,ROW(Clase),200),200),200))","v":200},"","",""]
[{"$f":"MIN(IF($B$263=Clase,IF(ROW(Clase)>A293,IF(Meses=0,ROW(Clase),200),200),200))","v":200},"","",""]
[{"$f":"MIN(IF($B$263=Clase,IF(ROW(Clase)>A294,IF(Meses=0,ROW(Clase),200),200),200))","v":200},"","",""]
[{"$f":"MIN(IF($B$263=Clase,IF(ROW(Clase)>A295,IF(Meses=0,ROW(Clase),200),200),200))","v":200},"","",""]
[{"$f":"MIN(IF($B$263=Clase,IF(ROW(Clase)>A296,IF(Meses=0,ROW(Clase),200),200),200))","v":200},"","",""]
[{"$f":"MIN(IF($B$263=Clase,IF(ROW(Clase)>A297,IF(Meses=0,ROW(Clase),200),200),200))","v":200},"","",""]
[{"$f":"MIN(IF($B$263=Clase,IF(ROW(Clase)>A298,IF(Meses=0,ROW(Clase),200),200),200))","v":200},"","",""]
[{"$f":"MIN(IF($B$263=Clase,IF(ROW(Clase)>A299,IF(Meses=0,ROW(Clase),200),200),200))","v":200},"","",""]
[{"$f":"MIN(IF($B$263=Clase,IF(ROW(Clase)>A300,IF(Meses=0,ROW(Clase),200),200),200))","v":200},"","",""]
[{"$f":"MIN(IF($B$263=Clase,IF(ROW(Clase)>A301,IF(Meses=0,ROW(Clase),200),200),200))","v":200},"","",""]
[{"$f":"MIN(IF($B$263=Clase,IF(ROW(Clase)>A302,IF(Meses=0,ROW(Clase),200),200),200))","v":200},"","",""]
[{"$f":"MIN(IF($B$263=Clase,IF(ROW(Clase)>A303,IF(Meses=0,ROW(Clase),200),200),200))","v":200},"","",""]
[{"$f":"MIN(IF($B$263=Clase,IF(ROW(Clase)>A304,IF(Meses=0,ROW(Clase),200),200),200))","v":200},"","",""]
[{"$f":"MIN(IF($B$263=Clase,IF(ROW(Clase)>A305,IF(Meses=0,ROW(Clase),200),200),200))","v":200},"","",""]
[{"$f":"MIN(IF($B$263=Clase,IF(ROW(Clase)>A306,IF(Meses=0,ROW(Clase),200),200),200))","v":200},"","",""]

{"sheet":"PuestosIndustriaProceso","index":18,"n_rows":283,"n_cols":6,"rows_kept":283,"cut":false,"hidden":true,"merged":[]}
[null,{"$f":"NombreHoja","v":"ORGCH00"},null,{"$f":"IF(ISERROR(INDEX(INDIRECT(NombreHoja&\"!\"&B$2),1)),\"NO\",\"SI\")","v":"NO"}]
["Pos","Clase","DatosLabor","Nivel","Meses","Progresion"]
[{"$f":"IF(B3<>\"\",IF(B2=\"Clase\",1,A2+1),\"\")","v":""},{"$f":"IF(ISERROR(INDEX(INDIRECT(NombreHoja&\"!\"&B$2),ROW()-ROW(B$2))),IF(ExisteOrgChart=\"NO\",IF(ISERROR(INDEX(Clase_PositionCatalog,ROW()-ROW(B$2))),\"\",INDEX(Clase_PositionCatalog,ROW()-ROW(B$2))),\"\"),INDEX(INDIRECT(NombreHoja&\"!\"&B$2),ROW()-ROW(B$2)))","v":""},{"$f":"IF(ISERROR(INDEX(INDIRECT(NombreHoja&\"!\"&C$2),ROW()-ROW(C$2))),IF(ExisteOrgChart=\"NO\",IF(ISERROR(INDEX(Position_PositionCatalog,ROW()-ROW(C$2))),\"\",INDEX(Position_PositionCatalog,ROW()-ROW(C$2))),\"\"),INDEX(INDIRECT(NombreHoja&\"!\"&C$2),ROW()-ROW(C$2)))","v":""},{"$f":"IF(ISERROR(INDEX(INDIRECT(NombreHoja&\"!\"&D$2),ROW()-ROW(D$2))),IF(ExisteOrgChart=\"NO\",IF(ISERROR(INDEX(NumPuesto_PositionCatalog,ROW()-ROW(D$2))),\"\",INDEX(NumPuesto_PositionCatalog,ROW()-ROW(D$2))),\"\"),INDEX(INDIRECT(NombreHoja&\"!\"&D$2),ROW()-ROW(D$2)))","v":""},{"$f":"IF(ISERROR(INDEX(INDIRECT(NombreHoja&\"!\"&E$2),ROW()-ROW(E$2))),IF(ExisteOrgChart=\"NO\",IF(ISERROR(INDEX(Meses_PositionCatalog,ROW()-ROW(E$2))),\"\",INDEX(Meses_PositionCatalog,ROW()-ROW(E$2))),\"\"),INDEX(INDIRECT(NombreHoja&\"!\"&E$2),ROW()-ROW(E$2)))","v":""},{"$f":"IF(ISERROR(INDEX(INDIRECT(NombreHoja&\"!\"&F$2),ROW()-ROW(F$2))),IF(ExisteOrgChart=\"NO\",IF(ISERROR(INDEX(Progresion_Positioncatalog,ROW()-ROW(F$2))),\"\",INDEX(Progresion_Positioncatalog,ROW()-ROW(F$2))),\"\"),INDEX(INDIRECT(NombreHoja&\"!\"&F$2),ROW()-ROW(F$2)))","v":""}]
["","","","","",""]
["","","","","",""]
["","","","","",""]
["","","","","",""]
["","","","","",""]
["","","","","",""]
["","","","","",""]
["","","","","",""]
["","","","","",""]
["","","","","",""]
["","","","","",""]
["","","","","",""]
["","","","","",""]
["","","","","",""]
["","","","","",""]
["","","","","",""]
["","","","","",""]
["","","","","",""]
["","","","","",""]
["","","","","",""]
["","","","","",""]
["","","","","",""]
["","","","","",""]
["","","","","",""]
["","","","","",""]
["","","","","",""]
["","","","","",""]
["","","","","",""]
["","","","","",""]
["","","","","",""]
["","","","","",""]
["",{"$f":"IF(ISERROR(INDEX(INDIRECT(NombreHoja&\"!\"&B$2),ROW()-ROW(B$2))),IF(ExisteOrgChart=\"NO\",IF(ISERROR(INDEX(Clase_PositionCatalog,ROW()-ROW(B$2))),\"\",INDEX(Clase_PositionCatalog,ROW()-ROW(B$2))),\"\"),INDEX(INDIRECT(NombreHoja&\"!\"&B$2),ROW()-ROW(B$2)))","v":""},{"$f":"IF(ISERROR(INDEX(INDIRECT(NombreHoja&\"!\"&C$2),ROW()-ROW(C$2))),IF(ExisteOrgChart=\"NO\",IF(ISERROR(INDEX(Position_PositionCatalog,ROW()-ROW(C$2))),\"\",INDEX(Position_PositionCatalog,ROW()-ROW(C$2))),\"\"),INDEX(INDIRECT(NombreHoja&\"!\"&C$2),ROW()-ROW(C$2)))","v":""},{"$f":"IF(ISERROR(INDEX(INDIRECT(NombreHoja&\"!\"&D$2),ROW()-ROW(D$2))),IF(ExisteOrgChart=\"NO\",IF(ISERROR(INDEX(NumPuesto_PositionCatalog,ROW()-ROW(D$2))),\"\",INDEX(NumPuesto_PositionCatalog,ROW()-ROW(D$2))),\"\"),INDEX(INDIRECT(NombreHoja&\"!\"&D$2),ROW()-ROW(D$2)))","v":""},{"$f":"IF(ISERROR(INDEX(INDIRECT(NombreHoja&\"!\"&E$2),ROW()-ROW(E$2))),IF(ExisteOrgChart=\"NO\",IF(ISERROR(INDEX(Meses_PositionCatalog,ROW()-ROW(E$2))),\"\",INDEX(Meses_PositionCatalog,ROW()-ROW(E$2))),\"\"),INDEX(INDIRECT(NombreHoja&\"!\"&E$2),ROW()-ROW(E$2)))","v":""},{"$f":"IF(ISERROR(INDEX(INDIRECT(NombreHoja&\"!\"&F$2),ROW()-ROW(F$2))),IF(ExisteOrgChart=\"NO\",IF(ISERROR(INDEX(Progresion_Positioncatalog,ROW()-ROW(F$2))),\"\",INDEX(Progresion_Positioncatalog,ROW()-ROW(F$2))),\"\"),INDEX(INDIRECT(NombreHoja&\"!\"&F$2),ROW()-ROW(F$2)))","v":""}]
["","","","","",""]
["","","","","",""]
["","","","","",""]
["","","","","",""]
["","","","","",""]
["","","","","",""]
["","","","","",""]
["","","","","",""]
["","","","","",""]
["","","","","",""]
["","","","","",""]
["","","","","",""]
["","","","","",""]
[{"$f":"IF(B49<>\"\",IF(B48=\"Clase\",1,A48+1),\"\")","v":""},"","","","",""]
["","","","","",""]
["","","","","",""]
["","","","","",""]
["","","","","",""]
["","","","","",""]
["","","","","",""]
["","","","","",""]
["","","","","",""]
["","","","","",""]
["","","","","",""]
["","","","","",""]
["","","","","",""]
["","","","","",""]
["","","","","",""]
["","","","","",""]
["","","","","",""]
["","","","","",""]
["",{"$f":"IF(ISERROR(INDEX(INDIRECT(NombreHoja&\"!\"&B$2),ROW()-ROW(B$2))),IF(ExisteOrgChart=\"NO\",IF(ISERROR(INDEX(Clase_PositionCatalog,ROW()-ROW(B$2))),\"\",INDEX(Clase_PositionCatalog,ROW()-ROW(B$2))),\"\"),INDEX(INDIRECT(NombreHoja&\"!\"&B$2),ROW()-ROW(B$2)))","v":""},{"$f":"IF(ISERROR(INDEX(INDIRECT(NombreHoja&\"!\"&C$2),ROW()-ROW(C$2))),IF(ExisteOrgChart=\"NO\",IF(ISERROR(INDEX(Position_PositionCatalog,ROW()-ROW(C$2))),\"\",INDEX(Position_PositionCatalog,ROW()-ROW(C$2))),\"\"),INDEX(INDIRECT(NombreHoja&\"!\"&C$2),ROW()-ROW(C$2)))","v":""},{"$f":"IF(ISERROR(INDEX(INDIRECT(NombreHoja&\"!\"&D$2),ROW()-ROW(D$2))),IF(ExisteOrgChart=\"NO\",IF(ISERROR(INDEX(NumPuesto_PositionCatalog,ROW()-ROW(D$2))),\"\",INDEX(NumPuesto_PositionCatalog,ROW()-ROW(D$2))),\"\"),INDEX(INDIRECT(NombreHoja&\"!\"&D$2),ROW()-ROW(D$2)))","v":""},{"$f":"IF(ISERROR(INDEX(INDIRECT(NombreHoja&\"!\"&E$2),ROW()-ROW(E$2))),IF(ExisteOrgChart=\"NO\",IF(ISERROR(INDEX(Meses_PositionCatalog,ROW()-ROW(E$2))),\"\",INDEX(Meses_PositionCatalog,ROW()-ROW(E$2))),\"\"),INDEX(INDIRECT(NombreHoja&\"!\"&E$2),ROW()-ROW(E$2)))","v":""},{"$f":"IF(ISERROR(INDEX(INDIRECT(NombreHoja&\"!\"&F$2),ROW()-ROW(F$2))),IF(ExisteOrgChart=\"NO\",IF(ISERROR(INDEX(Progresion_Positioncatalog,ROW()-ROW(F$2))),\"\",INDEX(Progresion_Positioncatalog,ROW()-ROW(F$2))),\"\"),INDEX(INDIRECT(NombreHoja&\"!\"&F$2),ROW()-ROW(F$2)))","v":""}]
["","","","","",""]
["","","","","",""]
["","","","","",""]
["","","","","",""]
["","","","","",""]
["","","","","",""]
["","","","","",""]
["","","","","",""]
["","","","","",""]
["","","","","",""]
["","","","","",""]
["","","","","",""]
["","","","","",""]
["","","","","",""]
["","","","","",""]
["","","","","",""]
["","","","","",""]
["","","","","",""]
["","","","","",""]
["","","","","",""]
["","","","","",""]
["","","","","",""]
["","","","","",""]
["","","","","",""]
["","","","","",""]
["","","","","",""]
["","","","","",""]
["","","","","",""]
["","","","","",""]
["","","","","",""]
["","","","","",""]
["",{"$f":"IF(ISERROR(INDEX(INDIRECT(NombreHoja&\"!\"&B$2),ROW()-ROW(B$2))),IF(ExisteOrgChart=\"NO\",IF(ISERROR(INDEX(Clase_PositionCatalog,ROW()-ROW(B$2))),\"\",INDEX(Clase_PositionCatalog,ROW()-ROW(B$2))),\"\"),INDEX(INDIRECT(NombreHoja&\"!\"&B$2),ROW()-ROW(B$2)))","v":""},{"$f":"IF(ISERROR(INDEX(INDIRECT(NombreHoja&\"!\"&C$2),ROW()-ROW(C$2))),IF(ExisteOrgChart=\"NO\",IF(ISERROR(INDEX(Position_PositionCatalog,ROW()-ROW(C$2))),\"\",INDEX(Position_PositionCatalog,ROW()-ROW(C$2))),\"\"),INDEX(INDIRECT(NombreHoja&\"!\"&C$2),ROW()-ROW(C$2)))","v":""},{"$f":"IF(ISERROR(INDEX(INDIRECT(NombreHoja&\"!\"&D$2),ROW()-ROW(D$2))),IF(ExisteOrgChart=\"NO\",IF(ISERROR(INDEX(NumPuesto_PositionCatalog,ROW()-ROW(D$2))),\"\",INDEX(NumPuesto_PositionCatalog,ROW()-ROW(D$2))),\"\"),INDEX(INDIRECT(NombreHoja&\"!\"&D$2),ROW()-ROW(D$2)))","v":""},{"$f":"IF(ISERROR(INDEX(INDIRECT(NombreHoja&\"!\"&E$2),ROW()-ROW(E$2))),IF(ExisteOrgChart=\"NO\",IF(ISERROR(INDEX(Meses_PositionCatalog,ROW()-ROW(E$2))),\"\",INDEX(Meses_PositionCatalog,ROW()-ROW(E$2))),\"\"),INDEX(INDIRECT(NombreHoja&\"!\"&E$2),ROW()-ROW(E$2)))","v":""},{"$f":"IF(ISERROR(INDEX(INDIRECT(NombreHoja&\"!\"&F$2),ROW()-ROW(F$2))),IF(ExisteOrgChart=\"NO\",IF(ISERROR(INDEX(Progresion_Positioncatalog,ROW()-ROW(F$2))),\"\",INDEX(Progresion_Positioncatalog,ROW()-ROW(F$2))),\"\"),INDEX(INDIRECT(NombreHoja&\"!\"&F$2),ROW()-ROW(F$2)))","v":""}]
["","","","","",""]
["","","","","",""]
["","","","","",""]
["","","","","",""]
["","","","","",""]
["","","","","",""]
["","","","","",""]
["","","","","",""]
["","","","","",""]
["","","","","",""]
["","","","","",""]
["","","","","",""]
["","","","","",""]
[{"$f":"IF(B113<>\"\",IF(B112=\"Clase\",1,A112+1),\"\")","v":""},"","","","",""]
["","","","","",""]
["","","","","",""]
["","","","","",""]
["","","","","",""]
["","","","","",""]
["","","","","",""]
["","","","","",""]
["","","","","",""]
["","","","","",""]
["","","","","",""]
["","","","","",""]
["","","","","",""]
["","","","","",""]
["","","","","",""]
["","","","","",""]
["","","","","",""]
["","","","","",""]
["",{"$f":"IF(ISERROR(INDEX(INDIRECT(NombreHoja&\"!\"&B$2),ROW()-ROW(B$2))),IF(ExisteOrgChart=\"NO\",IF(ISERROR(INDEX(Clase_PositionCatalog,ROW()-ROW(B$2))),\"\",INDEX(Clase_PositionCatalog,ROW()-ROW(B$2))),\"\"),INDEX(INDIRECT(NombreHoja&\"!\"&B$2),ROW()-ROW(B$2)))","v":""},{"$f":"IF(ISERROR(INDEX(INDIRECT(NombreHoja&\"!\"&C$2),ROW()-ROW(C$2))),IF(ExisteOrgChart=\"NO\",IF(ISERROR(INDEX(Position_PositionCatalog,ROW()-ROW(C$2))),\"\",INDEX(Position_PositionCatalog,ROW()-ROW(C$2))),\"\"),INDEX(INDIRECT(NombreHoja&\"!\"&C$2),ROW()-ROW(C$2)))","v":""},{"$f":"IF(ISERROR(INDEX(INDIRECT(NombreHoja&\"!\"&D$2),ROW()-ROW(D$2))),IF(ExisteOrgChart=\"NO\",IF(ISERROR(INDEX(NumPuesto_PositionCatalog,ROW()-ROW(D$2))),\"\",INDEX(NumPuesto_PositionCatalog,ROW()-ROW(D$2))),\"\"),INDEX(INDIRECT(NombreHoja&\"!\"&D$2),ROW()-ROW(D$2)))","v":""},{"$f":"IF(ISERROR(INDEX(INDIRECT(NombreHoja&\"!\"&E$2),ROW()-ROW(E$2))),IF(ExisteOrgChart=\"NO\",IF(ISERROR(INDEX(Meses_PositionCatalog,ROW()-ROW(E$2))),\"\",INDEX(Meses_PositionCatalog,ROW()-ROW(E$2))),\"\"),INDEX(INDIRECT(NombreHoja&\"!\"&E$2),ROW()-ROW(E$2)))","v":""},{"$f":"IF(ISERROR(INDEX(INDIRECT(NombreHoja&\"!\"&F$2),ROW()-ROW(F$2))),IF(ExisteOrgChart=\"NO\",IF(ISERROR(INDEX(Progresion_Positioncatalog,ROW()-ROW(F$2))),\"\",INDEX(Progresion_Positioncatalog,ROW()-ROW(F$2))),\"\"),INDEX(INDIRECT(NombreHoja&\"!\"&F$2),ROW()-ROW(F$2)))","v":""}]
["","","","","",""]
["","","","","",""]
["","","","","",""]
["","","","","",""]
["","","","","",""]
["","","","","",""]
["","","","","",""]
["","","","","",""]
["","","","","",""]
["","","","","",""]
["","","","","",""]
["","","","","",""]
["","","","","",""]
["","","","","",""]
["","","","","",""]
["","","","","",""]
["","","","","",""]
["","","","","",""]
["","","","","",""]
["","","","","",""]
["","","","","",""]
["","","","","",""]
[{"$f":"IF(B154<>\"\",IF(B153=\"Clase\",1,A153+1),\"\")","v":""},"","","","",""]
[]
[null,"DIR"]
[0,"Clase","DatosLabor","Nivel"]
[{"$f":"MIN(IF($B$156=Clase,IF(ROW(Clase)>A157,IF(Meses=0,ROW(Clase),200),200),200))","v":200},{"$f":"IF(A158<100,INDEX(Clase,A158-ROW(Clase)+1),\"\")","v":""},{"$f":"IF(A158<100,INDEX(DatosLabor,A158-ROW(DatosLabor)+1),\"\")","v":""},{"$f":"IF(A158<100,INDEX(Nivel,A158-ROW(Nivel)+1),\"\")","v":""}]
[{"$f":"MIN(IF($B$156=Clase,IF(ROW(Clase)>A158,IF(Meses=0,ROW(Clase),200),200),200))","v":200},"","",""]
[{"$f":"MIN(IF($B$156=Clase,IF(ROW(Clase)>A159,IF(Meses=0,ROW(Clase),200),200),200))","v":200},"","",""]
[{"$f":"MIN(IF($B$156=Clase,IF(ROW(Clase)>A160,IF(Meses=0,ROW(Clase),200),200),200))","v":200},"","",""]
[{"$f":"MIN(IF($B$156=Clase,IF(ROW(Clase)>A161,IF(Meses=0,ROW(Clase),200),200),200))","v":200},"","",""]
[{"$f":"MIN(IF($B$156=Clase,IF(ROW(Clase)>A162,IF(Meses=0,ROW(Clase),200),200),200))","v":200},"","",""]
[{"$f":"MIN(IF($B$156=Clase,IF(ROW(Clase)>A163,IF(Meses=0,ROW(Clase),200),200),200))","v":200},"","",""]
[{"$f":"MIN(IF($B$156=Clase,IF(ROW(Clase)>A164,IF(Meses=0,ROW(Clase),200),200),200))","v":200},"","",""]
[{"$f":"MIN(IF($B$156=Clase,IF(ROW(Clase)>A165,IF(Meses=0,ROW(Clase),200),200),200))","v":200},"","",""]
[{"$f":"MIN(IF($B$156=Clase,IF(ROW(Clase)>A166,IF(Meses=0,ROW(Clase),200),200),200))","v":200},"","",""]
[{"$f":"MIN(IF($B$156=Clase,IF(ROW(Clase)>A167,IF(Meses=0,ROW(Clase),200),200),200))","v":200},"","",""]
[{"$f":"MIN(IF($B$156=Clase,IF(ROW(Clase)>A168,IF(Meses=0,ROW(Clase),200),200),200))","v":200},"","",""]
[{"$f":"MIN(IF($B$156=Clase,IF(ROW(Clase)>A169,IF(Meses=0,ROW(Clase),200),200),200))","v":200},"","",""]
[{"$f":"MIN(IF($B$156=Clase,IF(ROW(Clase)>A170,IF(Meses=0,ROW(Clase),200),200),200))","v":200},"","",""]
[{"$f":"MIN(IF($B$156=Clase,IF(ROW(Clase)>A171,IF(Meses=0,ROW(Clase),200),200),200))","v":200},"","",""]
[{"$f":"MIN(IF($B$156=Clase,IF(ROW(Clase)>A172,IF(Meses=0,ROW(Clase),200),200),200))","v":200},"","",""]
[{"$f":"MIN(IF($B$156=Clase,IF(ROW(Clase)>A173,IF(Meses=0,ROW(Clase),200),200),200))","v":200},"","",""]
[{"$f":"MIN(IF($B$156=Clase,IF(ROW(Clase)>A174,IF(Meses=0,ROW(Clase),200),200),200))","v":200},"","",""]
[{"$f":"MIN(IF($B$156=Clase,IF(ROW(Clase)>A175,IF(Meses=0,ROW(Clase),200),200),200))","v":200},"","",""]
[]
[null,"IND"]
[0,"Clase","DatosLabor","Nivel"]
[{"$f":"MIN(IF($B$178=Clase,IF(ROW(Clase)>A179,IF(Meses=0,ROW(Clase),200),200),200))","v":200},{"$f":"IF(A180<100,INDEX(Clase,A180-ROW(Clase)+1),\"\")","v":""},{"$f":"IF(A180<100,INDEX(DatosLabor,A180-ROW(DatosLabor)+1),\"\")","v":""},{"$f":"IF(A180<100,INDEX(Nivel,A180-ROW(Nivel)+1),\"\")","v":""}]
[{"$f":"MIN(IF($B$178=Clase,IF(ROW(Clase)>A180,IF(Meses=0,ROW(Clase),200),200),200))","v":200},"","",""]
[{"$f":"MIN(IF($B$178=Clase,IF(ROW(Clase)>A181,IF(Meses=0,ROW(Clase),200),200),200))","v":200},"","",""]
[{"$f":"MIN(IF($B$178=Clase,IF(ROW(Clase)>A182,IF(Meses=0,ROW(Clase),200),200),200))","v":200},"","",""]
[{"$f":"MIN(IF($B$178=Clase,IF(ROW(Clase)>A183,IF(Meses=0,ROW(Clase),200),200),200))","v":200},"","",""]
[{"$f":"MIN(IF($B$178=Clase,IF(ROW(Clase)>A184,IF(Meses=0,ROW(Clase),200),200),200))","v":200},"","",""]
[{"$f":"MIN(IF($B$178=Clase,IF(ROW(Clase)>A185,IF(Meses=0,ROW(Clase),200),200),200))","v":200},"","",""]
[{"$f":"MIN(IF($B$178=Clase,IF(ROW(Clase)>A186,IF(Meses=0,ROW(Clase),200),200),200))","v":200},"","",""]
[{"$f":"MIN(IF($B$178=Clase,IF(ROW(Clase)>A187,IF(Meses=0,ROW(Clase),200),200),200))","v":200},"","",""]
[{"$f":"MIN(IF($B$178=Clase,IF(ROW(Clase)>A188,IF(Meses=0,ROW(Clase),200),200),200))","v":200},"","",""]
[{"$f":"MIN(IF($B$178=Clase,IF(ROW(Clase)>A189,IF(Meses=0,ROW(Clase),200),200),200))","v":200},"","",""]
[{"$f":"MIN(IF($B$178=Clase,IF(ROW(Clase)>A190,IF(Meses=0,ROW(Clase),200),200),200))","v":200},"","",""]
[{"$f":"MIN(IF($B$178=Clase,IF(ROW(Clase)>A191,IF(Meses=0,ROW(Clase),200),200),200))","v":200},{"$f":"IF(A192<100,INDEX(Clase,A192-ROW(Clase)+1),\"\")","v":""},{"$f":"IF(A192<100,INDEX(DatosLabor,A192-ROW(DatosLabor)+1),\"\")","v":""},{"$f":"IF(A192<100,INDEX(Nivel,A192-ROW(Nivel)+1),\"\")","v":""}]
[{"$f":"MIN(IF($B$178=Clase,IF(ROW(Clase)>A192,IF(Meses=0,ROW(Clase),200),200),200))","v":200},"","",""]
[{"$f":"MIN(IF($B$178=Clase,IF(ROW(Clase)>A193,IF(Meses=0,ROW(Clase),200),200),200))","v":200},"","",""]
[{"$f":"MIN(IF($B$178=Clase,IF(ROW(Clase)>A194,IF(Meses=0,ROW(Clase),200),200),200))","v":200},"","",""]
[{"$f":"MIN(IF($B$178=Clase,IF(ROW(Clase)>A195,IF(Meses=0,ROW(Clase),200),200),200))","v":200},"","",""]
[{"$f":"MIN(IF($B$178=Clase,IF(ROW(Clase)>A196,IF(Meses=0,ROW(Clase),200),200),200))","v":200},"","",""]
[{"$f":"MIN(IF($B$178=Clase,IF(ROW(Clase)>A197,IF(Meses=0,ROW(Clase),200),200),200))","v":200},"","",""]
[{"$f":"MIN(IF($B$178=Clase,IF(ROW(Clase)>A198,IF(Meses=0,ROW(Clase),200),200),200))","v":200},"","",""]
[{"$f":"MIN(IF($B$178=Clase,IF(ROW(Clase)>A199,IF(Meses=0,ROW(Clase),200),200),200))","v":200},"","",""]
[{"$f":"MIN(IF($B$178=Clase,IF(ROW(Clase)>A200,IF(Meses=0,ROW(Clase),200),200),200))","v":200},"","",""]
[{"$f":"MIN(IF($B$178=Clase,IF(ROW(Clase)>A201,IF(Meses=0,ROW(Clase),200),200),200))","v":200},"","",""]
[{"$f":"MIN(IF($B$178=Clase,IF(ROW(Clase)>A202,IF(Meses=0,ROW(Clase),200),200),200))","v":200},{"$f":"IF(A203<100,INDEX(Clase,A203-ROW(Clase)+1),\"\")","v":""},{"$f":"IF(A203<100,INDEX(DatosLabor,A203-ROW(DatosLabor)+1),\"\")","v":""},{"$f":"IF(A203<100,INDEX(Nivel,A203-ROW(Nivel)+1),\"\")","v":""}]
[{"$f":"MIN(IF($B$178=Clase,IF(ROW(Clase)>A203,IF(Meses=0,ROW(Clase),200),200),200))","v":200},"","",""]
[{"$f":"MIN(IF($B$178=Clase,IF(ROW(Clase)>A204,IF(Meses=0,ROW(Clase),200),200),200))","v":200},"","",""]
[{"$f":"MIN(IF($B$178=Clase,IF(ROW(Clase)>A205,IF(Meses=0,ROW(Clase),200),200),200))","v":200},"","",""]
[{"$f":"MIN(IF($B$178=Clase,IF(ROW(Clase)>A206,IF(Meses=0,ROW(Clase),200),200),200))","v":200},"","",""]
[{"$f":"MIN(IF($B$178=Clase,IF(ROW(Clase)>A207,IF(Meses=0,ROW(Clase),200),200),200))","v":200},"","",""]
[{"$f":"MIN(IF($B$178=Clase,IF(ROW(Clase)>A208,IF(Meses=0,ROW(Clase),200),200),200))","v":200},"","",""]
[{"$f":"MIN(IF($B$178=Clase,IF(ROW(Clase)>A209,IF(Meses=0,ROW(Clase),200),200),200))","v":200},"","",""]
[{"$f":"MIN(IF($B$178=Clase,IF(ROW(Clase)>A210,IF(Meses=0,ROW(Clase),200),200),200))","v":200},"","",""]
[{"$f":"MIN(IF($B$178=Clase,IF(ROW(Clase)>A211,IF(Meses=0,ROW(Clase),200),200),200))","v":200},"","",""]
[{"$f":"MIN(IF($B$178=Clase,IF(ROW(Clase)>A212,IF(Meses=0,ROW(Clase),200),200),200))","v":200},"","",""]
[{"$f":"MIN(IF($B$178=Clase,IF(ROW(Clase)>A213,IF(Meses=0,ROW(Clase),200),200),200))","v":200},"","",""]
[{"$f":"MIN(IF($B$178=Clase,IF(ROW(Clase)>A214,IF(Meses=0,ROW(Clase),200),200),200))","v":200},"","",""]
[{"$f":"MIN(IF($B$178=Clase,IF(ROW(Clase)>A215,IF(Meses=0,ROW(Clase),200),200),200))","v":200},"","",""]
[{"$f":"MIN(IF($B$178=Clase,IF(ROW(Clase)>A216,IF(Meses=0,ROW(Clase),200),200),200))","v":200},"","",""]
[{"$f":"MIN(IF($B$178=Clase,IF(ROW(Clase)>A217,IF(Meses=0,ROW(Clase),200),200),200))","v":200},"","",""]
[{"$f":"MIN(IF($B$178=Clase,IF(ROW(Clase)>A218,IF(Meses=0,ROW(Clase),200),200),200))","v":200},"","",""]
[{"$f":"MIN(IF($B$178=Clase,IF(ROW(Clase)>A219,IF(Meses=0,ROW(Clase),200),200),200))","v":200},"","",""]
[{"$f":"MIN(IF($B$178=Clase,IF(ROW(Clase)>A220,IF(Meses=0,ROW(Clase),200),200),200))","v":200},"","",""]
[{"$f":"MIN(IF($B$178=Clase,IF(ROW(Clase)>A221,IF(Meses=0,ROW(Clase),200),200),200))","v":200},"","",""]
[{"$f":"MIN(IF($B$178=Clase,IF(ROW(Clase)>A222,IF(Meses=0,ROW(Clase),200),200),200))","v":200},"","",""]
[{"$f":"MIN(IF($B$178=Clase,IF(ROW(Clase)>A223,IF(Meses=0,ROW(Clase),200),200),200))","v":200},"","",""]
[{"$f":"MIN(IF($B$178=Clase,IF(ROW(Clase)>A224,IF(Meses=0,ROW(Clase),200),200),200))","v":200},{"$f":"IF(A225<100,INDEX(Clase,A225-ROW(Clase)+1),\"\")","v":""},{"$f":"IF(A225<100,INDEX(DatosLabor,A225-ROW(DatosLabor)+1),\"\")","v":""},{"$f":"IF(A225<100,INDEX(Nivel,A225-ROW(Nivel)+1),\"\")","v":""}]
[{"$f":"MIN(IF($B$178=Clase,IF(ROW(Clase)>A225,IF(Meses=0,ROW(Clase),200),200),200))","v":200},"","",""]
[{"$f":"MIN(IF($B$178=Clase,IF(ROW(Clase)>A226,IF(Meses=0,ROW(Clase),200),200),200))","v":200},"","",""]
[{"$f":"MIN(IF($B$178=Clase,IF(ROW(Clase)>A227,IF(Meses=0,ROW(Clase),200),200),200))","v":200},"","",""]
[{"$f":"MIN(IF($B$178=Clase,IF(ROW(Clase)>A228,IF(Meses=0,ROW(Clase),200),200),200))","v":200},"","",""]
[{"$f":"MIN(IF($B$178=Clase,IF(ROW(Clase)>A229,IF(Meses=0,ROW(Clase),200),200),200))","v":200},"","",""]
[{"$f":"MIN(IF($B$178=Clase,IF(ROW(Clase)>A230,IF(Meses=0,ROW(Clase),200),200),200))","v":200},"","",""]
[{"$f":"MIN(IF($B$178=Clase,IF(ROW(Clase)>A231,IF(Meses=0,ROW(Clase),200),200),200))","v":200},"","",""]
[{"$f":"MIN(IF($B$178=Clase,IF(ROW(Clase)>A232,IF(Meses=0,ROW(Clase),200),200),200))","v":200},"","",""]
[{"$f":"MIN(IF($B$178=Clase,IF(ROW(Clase)>A233,IF(Meses=0,ROW(Clase),200),200),200))","v":200},"","",""]
[{"$f":"MIN(IF($B$178=Clase,IF(ROW(Clase)>A234,IF(Meses=0,ROW(Clase),200),200),200))","v":200},"","",""]
[{"$f":"MIN(IF($B$178=Clase,IF(ROW(Clase)>A235,IF(Meses=0,ROW(Clase),200),200),200))","v":200},"","",""]
[{"$f":"MIN(IF($B$178=Clase,IF(ROW(Clase)>A236,IF(Meses=0,ROW(Clase),200),200),200))","v":200},"","",""]
[{"$f":"MIN(IF($B$178=Clase,IF(ROW(Clase)>A237,IF(Meses=0,ROW(Clase),200),200),200))","v":200},"","",""]
[{"$f":"MIN(IF($B$178=Clase,IF(ROW(Clase)>A238,IF(Meses=0,ROW(Clase),200),200),200))","v":200},"","",""]
[{"$f":"MIN(IF($B$178=Clase,IF(ROW(Clase)>A239,IF(Meses=0,ROW(Clase),200),200),200))","v":200},"","",""]
[{"$f":"MIN(IF($B$178=Clase,IF(ROW(Clase)>A240,IF(Meses=0,ROW(Clase),200),200),200))","v":200},"","",""]
[{"$f":"MIN(IF($B$178=Clase,IF(ROW(Clase)>A241,IF(Meses=0,ROW(Clase),200),200),200))","v":200},"","",""]
[{"$f":"MIN(IF($B$178=Clase,IF(ROW(Clase)>A242,IF(Meses=0,ROW(Clase),200),200),200))","v":200},"","",""]
[{"$f":"MIN(IF($B$178=Clase,IF(ROW(Clase)>A243,IF(Meses=0,ROW(Clase),200),200),200))","v":200},"","",""]
[{"$f":"MIN(IF($B$178=Clase,IF(ROW(Clase)>A244,IF(Meses=0,ROW(Clase),200),200),200))","v":200},"","",""]
[{"$f":"MIN(IF($B$178=Clase,IF(ROW(Clase)>A245,IF(Meses=0,ROW(Clase),200),200),200))","v":200},"","",""]
[{"$f":"MIN(IF($B$178=Clase,IF(ROW(Clase)>A246,IF(Meses=0,ROW(Clase),200),200),200))","v":200},"","",""]
[{"$f":"MIN(IF($B$178=Clase,IF(ROW(Clase)>A247,IF(Meses=0,ROW(Clase),200),200),200))","v":200},"","",""]
[{"$f":"MIN(IF($B$178=Clase,IF(ROW(Clase)>A248,IF(Meses=0,ROW(Clase),200),200),200))","v":200},"","",""]
[{"$f":"MIN(IF($B$178=Clase,IF(ROW(Clase)>A249,IF(Meses=0,ROW(Clase),200),200),200))","v":200},"","",""]
[{"$f":"MIN(IF($B$178=Clase,IF(ROW(Clase)>A250,IF(Meses=0,ROW(Clase),200),200),200))","v":200},"","",""]
[{"$f":"MIN(IF($B$178=Clase,IF(ROW(Clase)>A251,IF(Meses=0,ROW(Clase),200),200),200))","v":200},"","",""]
[{"$f":"MIN(IF($B$178=Clase,IF(ROW(Clase)>A252,IF(Meses=0,ROW(Clase),200),200),200))","v":200},"","",""]
[{"$f":"MIN(IF($B$178=Clase,IF(ROW(Clase)>A253,IF(Meses=0,ROW(Clase),200),200),200))","v":200},"","",""]
[{"$f":"MIN(IF($B$178=Clase,IF(ROW(Clase)>A254,IF(Meses=0,ROW(Clase),200),200),200))","v":200},"","",""]
[{"$f":"MIN(IF($B$178=Clase,IF(ROW(Clase)>A255,IF(Meses=0,ROW(Clase),200),200),200))","v":200},"","",""]
[{"$f":"MIN(IF($B$178=Clase,IF(ROW(Clase)>A256,IF(Meses=0,ROW(Clase),200),200),200))","v":200},"","",""]
[{"$f":"MIN(IF($B$178=Clase,IF(ROW(Clase)>A257,IF(Meses=0,ROW(Clase),200),200),200))","v":200},"","",""]
[{"$f":"MIN(IF($B$178=Clase,IF(ROW(Clase)>A258,IF(Meses=0,ROW(Clase),200),200),200))","v":200},"","",""]
[{"$f":"MIN(IF($B$178=Clase,IF(ROW(Clase)>A259,IF(Meses=0,ROW(Clase),200),200),200))","v":200},"","",""]
[{"$f":"MIN(IF($B$178=Clase,IF(ROW(Clase)>A260,IF(Meses=0,ROW(Clase),200),200),200))","v":200},"","",""]
[]
[null,"ADM"]
[0,"Clase","DatosLabor","Nivel"]
[{"$f":"MIN(IF($B$263=Clase,IF(ROW(Clase)>A264,IF(Meses=0,ROW(Clase),200),200),200))","v":200},{"$f":"IF(A265<100,INDEX(Clase,A265-ROW(Clase)+1),\"\")","v":""},{"$f":"IF(A265<100,INDEX(DatosLabor,A265-ROW(DatosLabor)+1),\"\")","v":""},{"$f":"IF(A265<100,INDEX(Nivel,A265-ROW(Nivel)+1),\"\")","v":""}]
[{"$f":"MIN(IF($B$263=Clase,IF(ROW(Clase)>A265,IF(Meses=0,ROW(Clase),200),200),200))","v":200},"","",""]
[{"$f":"MIN(IF($B$263=Clase,IF(ROW(Clase)>A266,IF(Meses=0,ROW(Clase),200),200),200))","v":200},"","",""]
[{"$f":"MIN(IF($B$263=Clase,IF(ROW(Clase)>A267,IF(Meses=0,ROW(Clase),200),200),200))","v":200},"","",""]
[{"$f":"MIN(IF($B$263=Clase,IF(ROW(Clase)>A268,IF(Meses=0,ROW(Clase),200),200),200))","v":200},"","",""]
[{"$f":"MIN(IF($B$263=Clase,IF(ROW(Clase)>A269,IF(Meses=0,ROW(Clase),200),200),200))","v":200},"","",""]
[{"$f":"MIN(IF($B$263=Clase,IF(ROW(Clase)>A270,IF(Meses=0,ROW(Clase),200),200),200))","v":200},"","",""]
[{"$f":"MIN(IF($B$263=Clase,IF(ROW(Clase)>A271,IF(Meses=0,ROW(Clase),200),200),200))","v":200},"","",""]
[{"$f":"MIN(IF($B$263=Clase,IF(ROW(Clase)>A272,IF(Meses=0,ROW(Clase),200),200),200))","v":200},"","",""]
[{"$f":"MIN(IF($B$263=Clase,IF(ROW(Clase)>A273,IF(Meses=0,ROW(Clase),200),200),200))","v":200},"","",""]
[{"$f":"MIN(IF($B$263=Clase,IF(ROW(Clase)>A274,IF(Meses=0,ROW(Clase),200),200),200))","v":200},"","",""]
[{"$f":"MIN(IF($B$263=Clase,IF(ROW(Clase)>A275,IF(Meses=0,ROW(Clase),200),200),200))","v":200},"","",""]
[{"$f":"MIN(IF($B$263=Clase,IF(ROW(Clase)>A276,IF(Meses=0,ROW(Clase),200),200),200))","v":200},"","",""]
[{"$f":"MIN(IF($B$263=Clase,IF(ROW(Clase)>A277,IF(Meses=0,ROW(Clase),200),200),200))","v":200},"","",""]
[{"$f":"MIN(IF($B$263=Clase,IF(ROW(Clase)>A278,IF(Meses=0,ROW(Clase),200),200),200))","v":200},"","",""]
[{"$f":"MIN(IF($B$263=Clase,IF(ROW(Clase)>A279,IF(Meses=0,ROW(Clase),200),200),200))","v":200},"","",""]
[{"$f":"MIN(IF($B$263=Clase,IF(ROW(Clase)>A280,IF(Meses=0,ROW(Clase),200),200),200))","v":200},"","",""]
[{"$f":"MIN(IF($B$263=Clase,IF(ROW(Clase)>A281,IF(Meses=0,ROW(Clase),200),200),200))","v":200},"","",""]
[{"$f":"MIN(IF($B$263=Clase,IF(ROW(Clase)>A282,IF(Meses=0,ROW(Clase),200),200),200))","v":200},"","",""]

{"sheet":"Listas","index":19,"n_rows":38,"n_cols":20,"rows_kept":38,"cut":false,"hidden":true,"merged":[]}
[null,null,null,null,null,null,null,null,null,null,null,null,null,null,"Transportation Media",null,"InboundCustomLand","OutBoundCustomLand","OutboundCustomSea","OperationCityTarget"]
[null,"YESNO","CostBse","UnidadArea","Ciudades","Industrias","NombreIndustria","Procesos","NombreProcesos","Industria",{"$f":"'Shelter Services Questionnaire'!$C$30","v":"- Select -"},null,"ShowYearlyMonthlyTotalsList",null,"- Select media",null,"- Select port","- Select port","- Select port","- Select port"]
[null,"- Select -","- Select -","- Select Unit Measure","- Select -","- Select -",null,"- Select -",null,"NombreIndusria",{"$f":"INDEX(NombreIndustrias,MATCH(K2,Industrias,0))","v":0},null,"Yearly Totals",null,"Land",null,"El Paso","Juarez","Altamira","Chihuahua"]
[null,"YES","Q1","Square feet","El Paso","Aerospace","AEROSPACE","Assembly","ASSEMBLY","Proceso",{"$f":"'Shelter Services Questionnaire'!$C$32","v":"- Select -"},null,"Monthly Totals",null,"Sea",null,"Brownsville","Matamoros","Lázaro Cárdenas","Bajio"]
[null,"NO","MED","Square meter","Laredo","Automotive","AUTOMOTIVE","Machining","MACHINING","NombreProceso",{"$f":"INDEX(NombreProcesos,MATCH(K4,Procesos,0))","v":0},null,null,null,null,null,"Laredo","Nogales","Manzanillo","Guadalajara"]
[null,null,"Q3",null,"Reynosa","Chemical","CHEMICAL","Metal Mechanic","METALMECHANIC","NombreHoja",{"$f":"\"ORGCH\"&K3&K5","v":"ORGCH00"},null,null,null,null,null,"McAllen","Nuevo Laredo","Mazatlán","Juarez"]
[null,null,null,null,"Veracruz","Electronic","ELECTRONIC","Plastic Injection","PLASTICINJECTION",null,null,null,null,null,"Transportation Media Output",null,"Nogales","Reynosa","Tijuana","Monterrey"]
[null,null,null,null,"Altamira","Foods","FOODS","Repair","REPAIR",null,null,null,null,null,"- Select media",null,"San Diego","Tijuana","Veracruz","Nogales"]
[null,null,null,null,"Manzanillo","Home Appliance","HOMEAPPL","Sheet Metal Asse.","SHEETMETALASSEMBL",null,null,null,null,null,"Land",null,"","","","Nuevo Laredo "]
[null,null,null,null,null,"Industrial Ceramics","INDUSTRCER","Wire Harnesses","WIREHARNESSES",null,null,null,null,null,"Sea",null,"","","","Queretaro"]
[null,null,null,null,null,"Info. Technologies","INFOTECHNO","Other (specify)","OTHERSPECI",null,null,null,null,null,"Domestic",null,"","","","Reynosa"]
[null,null,null,null,null,"Metal-Mechanic","METALMECHA",null,null,null,null,null,null,null,null,null,"","","","San Luis Potosi"]
[null,null,null,null,null,"New Technologies","NEWTECHNOL",null,null,null,null,null,null,null,null,null,"","","","Tijuana"]
[null,null,null,null,null,"Pharm. & Cosmetic","PHARMCOSME"]
[null,null,null,null,null,"Plastic","PLASTIC"]
[null,null,null,null,null,"Renewable Energy","RENEWENERG"]
[null,null,null,null,null,"Services","SERVICES",null,null,null,null,null,null,null,null,null,1,2,3]
[null,null,null,null,null,"Shoe Industry","SHOEINDUST",null,null,null,null,null,null,null,null,null,{"$f":"IF(impor1=2,InboundCustomLand,IF(impor1=3,OutboundCustomSea,$Q$2))","v":"- Select port"},{"$f":"IF(impor2=2,InboundCustomLand,IF(impor2=3,OutboundCustomSea,$Q$2))","v":"- Select port"},{"$f":"IF(impor3=2,InboundCustomLand,IF(impor3=3,OutboundCustomSea,$Q$2))","v":"- Select port"}]
[null,null,null,null,null,"Textile","TEXTILE",null,null,null,null,null,null,null,null,null,"- Select port","- Select port","- Select port"]
[null,null,null,null,null,"Other (specify)","OTHERSPECI",null,null,null,null,null,null,null,null,null,"- Select port","- Select port","- Select port"]
[null,null,null,null,null,null,null,null,null,null,null,null,null,null,null,null,"- Select port","- Select port","- Select port"]
[null,null,null,null,null,null,null,null,null,null,null,null,null,null,null,null,"- Select port","- Select port","- Select port"]
[null,null,null,null,null,null,null,null,null,null,null,null,null,null,null,null,"- Select port","- Select port","- Select port"]
[null,null,null,null,null,null,null,null,null,null,null,null,null,null,null,null,"- Select port","- Select port","- Select port"]
[]
[null,null,null,null,null,null,null,null,null,null,null,null,null,null,null,null,1,2,3,4]
[null,null,null,null,null,null,null,null,null,null,null,null,null,null,null,null,{"$f":"IF(expor1=2,OutBoundCustomLand,IF(expor1=3,OutboundCustomSea,IF(expor1=4,AduanaDomestica,$R$2)))","v":"- Select port"},{"$f":"IF(expor2=2,OutBoundCustomLand,IF(expor2=3,OutboundCustomSea,IF(expor2=4,AduanaDomestica,$R$2)))","v":"- Select port"},{"$f":"IF(expor3=2,OutBoundCustomLand,IF(expor3=3,OutboundCustomSea,IF(expor3=4,AduanaDomestica,$R$2)))","v":"- Select port"},{"$f":"IF(expor4=2,OutBoundCustomLand,IF(expor4=3,OutboundCustomSea,IF(expor4=4,AduanaDomestica,$R$2)))","v":"- Select port"}]
[null,null,null,null,null,null,null,null,null,null,null,null,null,null,null,null,"- Select port","- Select port","- Select port","- Select port"]
[null,null,null,null,null,null,null,null,null,null,null,null,null,null,null,null,"- Select port","- Select port","- Select port","- Select port"]
[null,null,null,null,null,null,null,null,null,null,null,null,null,null,null,null,"- Select port","- Select port","- Select port","- Select port"]
[null,null,null,null,null,null,null,null,null,null,null,null,null,null,null,null,"- Select port","- Select port","- Select port","- Select port"]
[null,null,null,null,null,null,null,null,null,null,null,null,null,null,null,null,"- Select port","- Select port","- Select port","- Select port"]
[null,null,null,null,null,null,null,null,null,null,null,null,null,null,null,null,"- Select port","- Select port","- Select port","- Select port"]
[null,null,null,null,null,null,null,null,null,null,null,null,null,null,null,null,"- Select port","- Select port","- Select port","- Select port"]
[null,null,null,null,null,null,null,null,null,null,null,null,null,null,null,null,"- Select port","- Select port","- Select port","- Select port"]
[null,null,null,null,null,null,null,null,null,null,null,null,null,null,null,null,"- Select port","- Select port","- Select port","- Select port"]
[null,null,null,null,null,null,null,null,null,null,null,null,null,null,null,null,"- Select port","- Select port","- Select port","- Select port"]
[null,null,null,null,null,null,null,null,null,null,null,null,null,null,null,null,"- Select port","- Select port","- Select port","- Select port"]

{"sheet":"Currencies","index":20,"n_rows":7,"n_cols":4,"rows_kept":7,"cut":false,"hidden":true,"merged":[]}
["Country","Flag","Currency","Currency Sign"]
["Canada",null,"Canadian Dólar","CAND"]
["China",null,"Chinese Yuan","CNY"]
["United States",null,"United States Dollar","USD"]
["Europe",null,"Euro","EUR"]
["Japan",null,"Japanese Yen","JPY"]
["Mexico",null,"Mexican Peso","MXN"]